Workbook

Sheet User_Specifications
A1: User Specifications | F1: =Divertible_Flow_OneYr!B3 -> WY 2011 - Initial Sites Storage = 60 TAF - Diversions = 649 TAF
G2: Available Flow (TAF) | J2: Divertible Flow (TAF) | M2: Storable Flow (TAF) | P2: Accumulative Storable Flow (TAF) | U2: Diversion Days
A3: Year: | B3: =VLOOKUP(Spec_Pg!$A$1,Spec_Pg!$A$2:$B$11,2,FALSE) -> 2011 | F3: Month | G3: Red Bluff | H3: Hamilton City | I3: Delevan | J3: Red Bluff | K3: Hamilton City | L3: Delevan | M3: Red Bluff | N3: Hamilton City | O3: Delevan | P3: Red Bluff | Q3: Hamilton City | R3: Delevan | S3: Total | U3: Red Bluff | V3: Hamilton City | W3: Delevan | X3: Total
A4: Initial Sites Storage (TAF): | B4: 60 | F4: 10 | G4: =Monthly_Report!B4 -> 6.131270959 | H4: =Monthly_Report!C4 -> 6.131270959 | I4: =Monthly_Report!D4 -> 6.131270959 | J4: =Monthly_Report!E4 -> 0 | K4: =Monthly_Report!F4 -> 0 | L4: =Monthly_Report!G4 -> 0 | M4: =Monthly_Report!H4 -> 0 | N4: =Monthly_Report!I4 -> 0 | O4: =Monthly_Report!J4 -> 0 | P4: =Monthly_Report!K4 -> 0 | Q4: =Monthly_Report!L4 -> 0 | R4: =Monthly_Report!M4 -> 0 | S4: =Monthly_Report!N4 -> 0 | U4: =Divertible_Flow_OneYr!M373 -> 106 | V4: =Divertible_Flow_OneYr!O373 -> 86 | W4: =Divertible_Flow_OneYr!Q373 -> 0 | X4: =Divertible_Flow_OneYr!BK373 -> 107
A5: Climate Conditions: | F5: 11 | G5: =Monthly_Report!B5 -> 13.84234154 | H5: =Monthly_Report!C5 -> 13.84234154 | I5: =Monthly_Report!D5 -> 13.84234154 | J5: =Monthly_Report!E5 -> 0 | K5: =Monthly_Report!F5 -> 0 | L5: =Monthly_Report!G5 -> 0 | M5: =Monthly_Report!H5 -> 0 | N5: =Monthly_Report!I5 -> 0 | O5: =Monthly_Report!J5 -> 0 | P5: =Monthly_Report!K5 -> 0 | Q5: =Monthly_Report!L5 -> 0 | R5: =Monthly_Report!M5 -> 0 | S5: =Monthly_Report!N5 -> 0
F6: 12 | G6: =Monthly_Report!B6 -> 712.627625 | H6: =Monthly_Report!C6 -> 767.1807308 | I6: =Monthly_Report!D6 -> 777.4280842 | J6: =Monthly_Report!E6 -> 79.14118898 | K6: =Monthly_Report!F6 -> 51.14085157 | L6: =Monthly_Report!G6 -> 0 | M6: =Monthly_Report!H6 -> 79.14118898 | N6: =Monthly_Report!I6 -> 51.14085157 | O6: =Monthly_Report!J6 -> 0 | P6: =Monthly_Report!K6 -> 79.14118898 | Q6: =Monthly_Report!L6 -> 51.14085157 | R6: =Monthly_Report!M6 -> 0 | S6: =Monthly_Report!N6 -> 130.2820405 | U6: Sac R blw Del (Nov-Mar): | X6: =Divertible_Flow_OneYr!BJ374 -> 5742.603623
A7: Diversion Criteria: | F7: 1 | G7: =Monthly_Report!B7 -> 417.3436556 | H7: =Monthly_Report!C7 -> 533.395359 | I7: =Monthly_Report!D7 -> 626.2155436 | J7: =Monthly_Report!E7 -> 98.09744544 | K7: =Monthly_Report!F7 -> 55.10195315 | L7: =Monthly_Report!G7 -> 0 | M7: =Monthly_Report!H7 -> 98.09744544 | N7: =Monthly_Report!I7 -> 55.10195315 | O7: =Monthly_Report!J7 -> 0 | P7: =Monthly_Report!K7 -> 177.2386344 | Q7: =Monthly_Report!L7 -> 106.2428047 | R7: =Monthly_Report!M7 -> 0 | S7: =Monthly_Report!N7 -> 283.4814391
A8: Sites Storage Capacity (TAF) | B8: 1500 | F8: 2 | G8: =Monthly_Report!B8 -> 81.02749431 | H8: =Monthly_Report!C8 -> 168.6335943 | I8: =Monthly_Report!D8 -> 202.3389465 | J8: =Monthly_Report!E8 -> 7.644031283 | K8: =Monthly_Report!F8 -> 0 | L8: =Monthly_Report!G8 -> 0 | M8: =Monthly_Report!H8 -> 7.644031283 | N8: =Monthly_Report!I8 -> 0 | O8: =Monthly_Report!J8 -> 0 | P8: =Monthly_Report!K8 -> 184.8826657 | Q8: =Monthly_Report!L8 -> 106.2428047 | R8: =Monthly_Report!M8 -> 0 | S8: =Monthly_Report!N8 -> 291.1254704
F9: 3 | G9: =Monthly_Report!B9 -> 783.4482653 | H9: =Monthly_Report!C9 -> 855.4688526 | I9: =Monthly_Report!D9 -> 872.9298575 | J9: =Monthly_Report!E9 -> 112.0835031 | K9: =Monthly_Report!F9 -> 69.44727678 | L9: =Monthly_Report!G9 -> 0 | M9: =Monthly_Report!H9 -> 112.0835031 | N9: =Monthly_Report!I9 -> 69.44727678 | O9: =Monthly_Report!J9 -> 0 | P9: =Monthly_Report!K9 -> 296.9661688 | Q9: =Monthly_Report!L9 -> 175.6900815 | R9: =Monthly_Report!M9 -> 0 | S9: =Monthly_Report!N9 -> 472.6562503
A10: Intake Conveyance Capacities | F10: 4 | G10: =Monthly_Report!B10 -> 651.4555682 | H10: =Monthly_Report!C10 -> 801.4157096 | I10: =Monthly_Report!D10 -> 823.6332121 | J10: =Monthly_Report!E10 -> 107.6255136 | K10: =Monthly_Report!F10 -> 67.44776515 | L10: =Monthly_Report!G10 -> 0 | M10: =Monthly_Report!H10 -> 107.6255136 | N10: =Monthly_Report!I10 -> 67.44776515 | O10: =Monthly_Report!J10 -> 0 | P10: =Monthly_Report!K10 -> 404.5916824 | Q10: =Monthly_Report!L10 -> 243.1378466 | R10: =Monthly_Report!M10 -> 0 | S10: =Monthly_Report!N10 -> 647.729529
A11: TCC | B11: 2100 | F11: 5 | G11: =Monthly_Report!B11 -> 277.7537161 | H11: =Monthly_Report!C11 -> 280.8858343 | I11: =Monthly_Report!D11 -> 281.9477635 | J11: =Monthly_Report!E11 -> 0.9127954653 | K11: =Monthly_Report!F11 -> 0.2055886128 | L11: =Monthly_Report!G11 -> 0 | M11: =Monthly_Report!H11 -> 0.9127954653 | N11: =Monthly_Report!I11 -> 0.2055886128 | O11: =Monthly_Report!J11 -> 0 | P11: =Monthly_Report!K11 -> 405.5044778 | Q11: =Monthly_Report!L11 -> 243.3434353 | R11: =Monthly_Report!M11 -> 0 | S11: =Monthly_Report!N11 -> 648.8479131
A12: GCC | B12: 1800 | F12: 6 | G12: =Monthly_Report!B12 -> 424.8905357 | H12: =Monthly_Report!C12 -> 436.0145609 | I12: =Monthly_Report!D12 -> 453.0633897 | J12: =Monthly_Report!E12 -> 0 | K12: =Monthly_Report!F12 -> 0 | L12: =Monthly_Report!G12 -> 0 | M12: =Monthly_Report!H12 -> 0 | N12: =Monthly_Report!I12 -> 0 | O12: =Monthly_Report!J12 -> 0 | P12: =Monthly_Report!K12 -> 405.5044778 | Q12: =Monthly_Report!L12 -> 243.3434353 | R12: =Monthly_Report!M12 -> 0 | S12: =Monthly_Report!N12 -> 648.8479131
A13: Delevan | B13: 0 | F13: 7 | G13: =Monthly_Report!B13 -> 226.3336484 | H13: =Monthly_Report!C13 -> 226.3336484 | I13: =Monthly_Report!D13 -> 226.3336484 | J13: =Monthly_Report!E13 -> 0 | K13: =Monthly_Report!F13 -> 0 | L13: =Monthly_Report!G13 -> 0 | M13: =Monthly_Report!H13 -> 0 | N13: =Monthly_Report!I13 -> 0 | O13: =Monthly_Report!J13 -> 0 | P13: =Monthly_Report!K13 -> 405.5044778 | Q13: =Monthly_Report!L13 -> 243.3434353 | R13: =Monthly_Report!M13 -> 0 | S13: =Monthly_Report!N13 -> 648.8479131
F14: 8 | G14: =Monthly_Report!B14 -> 209.5505186 | H14: =Monthly_Report!C14 -> 209.5505186 | I14: =Monthly_Report!D14 -> 209.5505186 | J14: =Monthly_Report!E14 -> 0 | K14: =Monthly_Report!F14 -> 0 | L14: =Monthly_Report!G14 -> 0 | M14: =Monthly_Report!H14 -> 0 | N14: =Monthly_Report!I14 -> 0 | O14: =Monthly_Report!J14 -> 0 | P14: =Monthly_Report!K14 -> 405.5044778 | Q14: =Monthly_Report!L14 -> 243.3434353 | R14: =Monthly_Report!M14 -> 0 | S14: =Monthly_Report!N14 -> 648.8479131
A15: Bypass Requirements (cfs) | F15: 9 | G15: =Monthly_Report!B15 -> 58.91639004 | H15: =Monthly_Report!C15 -> 58.91639004 | I15: =Monthly_Report!D15 -> 59.11354361 | J15: =Monthly_Report!E15 -> 0 | K15: =Monthly_Report!F15 -> 0 | L15: =Monthly_Report!G15 -> 0 | M15: =Monthly_Report!H15 -> 0 | N15: =Monthly_Report!I15 -> 0 | O15: =Monthly_Report!J15 -> 0 | P15: =Monthly_Report!K15 -> 405.5044778 | Q15: =Monthly_Report!L15 -> 243.3434353 | R15: =Monthly_Report!M15 -> 0 | S15: =Monthly_Report!N15 -> 648.8479131
A16: Sac R Below Red Bluff 1 | B16: 3250
A17: Sac R Below Red Bluff 2 | B17: 3250 | C17: 10 | D17: 6
A18: Sac R Below Hamilton City 1 | B18: 4000
A19: Sac R Below Hamilton City 2 | B19: 4000 | C19: 10 | D19: 6
A20: Sac R Below Delevan Intake | B20: 0
A21: Wilkins Slough 1 | B21: 10700 | C21: 10 | D21: 6
A22: Wilkins Slough 2 | B22: 5000 | C22: 7 | D22: 9
A23: Freeport (additional) | B23: 0 | C23: 1 | D23: 5
A24: Freeport (Jul-Nov)
A25: Freeport (Dec, Feb-Jun)
A26: Freeport (Jan)
A27: Delta Outflow (SWP ITP) | B27: 44500 | C27: 4 | D27: 5
A28: Delta Outflow (Additional) | B28: 0 | C28: 4 | D28: 5 | E28: 6
A29: NDOI Switch (CWF ITP based) | B29: 0
A31: Bend Bridge Pulse Controls
A32: Beginning month (CY) | B32: 10
A33: Ending month (CY) | B33: 5
A34: Initiation Threshold (cfs) | B34: 8000
A35: Maintenance Threshold (cfs) | B35: 0
A36: Reset Threshold (cfs) | B36: 7500
A37: Pulse Protection Duration (days) | B37: 7
A39: Diversion Season
A40: Starting Month (CY 7-12) | B40: 11
A41: Ending Month (CY 1-6) | B41: 5
A43: Min Pumping Levels (cfs)
A44: Red Bluff | B44: 125
A45: Hamilton City | B45: 100
A46: Delevan | B46: 0
A48: Wilkins Slough Override
A49: Initiation Flow | B49: 5000
A50: Override at Red Bluff | B50: 0
A51: Override at Hamilton City | B51: 0
A52: Override at Delevan | B52: 0
A54: Freeport Override
A55: Initiation Flow | B55: 5000
A56: Override at Red Bluff | B56: 0
A57: Override at Hamilton City | B57: 0
A58: Override at Delevan | B58: 0
A60: Bend Bridge Pulse Override
A61: Initiation Flow | B61: 15000
A62: Override at Red Bluff | B62: 0
A63: Override at Hamilton City | B63: 0
A64: Override at Delevan | B64: 0
A66: Surplus Outflow (Feb-Mar)
A67: Number of Days: | B67: 7
A69: Intake Priority - NOT AVAILABLE IN THIS VERSION
A70: 1 | B70: TCC
A71: 2 | B71: DP
A72: 3 | B72: GCC
A74: Fremont Weir Notch? | B74: 1 | D74: 1 | F74: Fremont Weir Notch Operations - CDFW 60-day Criteria:
F75: Turn on? | G75: 2
A76: Notch Spill Buffer (total %): | B76: OFF
B77: 0-600 | C77: 600-6,000
A78: Notch Spill Impact Buffer (%) | B78: OFF | C78: OFF | F78: Start | G78: End
F79: =DATE(User_Specifications!$B$3-1,12,1) -> 2010-12-01 | G79: =DATE(User_Specifications!$B$3,3,15) -> 2011-03-15
A80: Aggregate Weir Spill Protection? | B80: 2 | D80: Oct | E80: Sep | F80: Tis Notch? | G80: 2 | H80: Weir Spill Curve Logic: | J80: 1
A82: Protection (cfs): | B82: 3000
A83: Buffer (%): | B83: 0.05
A84: Protection (%): | B84: 0.05
F86: STONY CREEK OFF IN THIS VERSION
A87: Intake Season | B87: Start | C87: End | F87: Divert Stony Creek through TCC? | I87: 2
A88: TCC | B88: 1 | C88: 12
A89: GCC | B89: 1 | C89: 12
A90: DP (OFF IN THIS VERSION) | B90: 0 | C90: 0 | F90: Divert Stony Creek through GCC? | I90: 2
A92: Additional Protective Criteria | B92: 2
A94: Protective Criteria & Ramp Down Specs | G94: Scaled NDOI: | H94: 0 | I94: (cfs)
A95: Flow Level 1 (cfs): | B95: 4000 | C95: Rate (cfs): | F95: 100 | G95: Below Thresh: | H95: 0
A96: Flow Level 2 (cfs): | B96: 6000 | C96: Rate (cfs): | F96: 200 | G96: Above Thresh: | H96: 0
A97: >Flow Level 2 Rate (%): | B97: 15
A99: Freeport Pulse (Fish-based) | H99: Start Month | I99: End Month
A100: Pulse (KLC Threshold # fish) | B100: 5 | G100: Pulses: | H100: 1 | I100: 3
A101: Bypass at Freeport (cfs) | B101: 35000 | G101: Post-Pulses: | H101: 1 | I101: 3
A102: Post-Pulse Level Thresholds | B102: Fish Presence | E102: 2
A103: Level 1 (KLC Threshold # fish) | B103: 2
A104: Level 2 (KLC Threshold # fish) | B104: 1
A106: Freeport Pulse (Flow-based) | B106: 2 | D106: 3
A108: Level 1 for Pulse? | B108: 1
A112: *Assumes EOS storage reverts
A113: =_xlfn.CONCAT("to ",$B$4," TAF each Year") -> to 60 TAF each Year

Sheet Table1
A1: Table 1
A3: The following are ratios of Sacramento River flows that can be diverted to fill Sites at Red Bluff, Hamilton City, and Delevan
A5: Flow Level | B5: Sac Level | C5: TC Ratio | D5: GC Ratio | E5: DP Ratio | F5: Total Ratio
A6: 3250 | B6: 1 | C6: 1 | D6: 1 | E6: 1 | F6: 1
A7: 4000 | B7: 2 | C7: 1 | D7: 1 | E7: 1 | F7: 1
A8: 5000 | B8: 3 | C8: 1 | D8: 1 | E8: 1 | F8: 1
A9: 6000 | B9: 4 | C9: 1 | D9: 1 | E9: 1 | F9: 1
A10: 7000 | B10: 5 | C10: 1 | D10: 1 | E10: 1 | F10: 1
A11: 8000 | B11: 6 | C11: 1 | D11: 1 | E11: 1 | F11: 1
A12: 9000 | B12: 7 | C12: 1 | D12: 1 | E12: 1 | F12: 1
A13: 10000 | B13: 8 | C13: 1 | D13: 1 | E13: 1 | F13: 1
A14: 999999 | B14: 10 | C14: 1 | D14: 1 | E14: 1 | F14: 1
A18: Example
A19: Flow Level | B19: Sac Level | C19: TC Ratio | D19: GC Ratio | E19: DP Ratio | F19: Total Ratio
A20: 3250 | B20: 1 | C20: 0 | D20: 0 | E20: 0 | F20: 0.33
A21: 4000 | B21: 2 | C21: 0.05 | D21: 0 | E21: 0 | F21: 0.33
A22: 5000 | B22: 3 | C22: 0.1 | D22: 0.05 | E22: 0 | F22: 0.33
A23: 6000 | B23: 4 | C23: 0.1 | D23: 0.1 | E23: 0.05 | F23: 0.33
A24: 7000 | B24: 5 | C24: 0.15 | D24: 0.15 | E24: 0.1 | F24: 0.33
A25: 8000 | B25: 6 | C25: 0.15 | D25: 0.15 | E25: 0.15 | F25: 0.33
A26: 9000 | B26: 7 | C26: 0.2 | D26: 0.2 | E26: 0.2 | F26: 0.33
A27: 10000 | B27: 8 | C27: 0.2 | D27: 0.2 | E27: 0.2 | F27: 0.33
A28: 999999 | B28: 10 | C28: 0.2 | D28: 0.2 | E28: 0.2 | F28: 0.33

Sheet ProtectiveCrit
A1: Protective Criteria
A2: The following are proportions of intake capacities that can be diverted to fill Sites at Red Bluff, Hamilton City, and Delevan
A3: Start Month: | B3: =IF(User_Specifications!$B$92=1,B42,1) -> 1 | C3: End Month: | D3: =IF(User_Specifications!$B$92=1,D42,1) -> 1 | F3: Start Month: | G3: =IF(User_Specifications!$B$92=1,G42,1) -> 1 | H3: End Month: | I3: =IF(User_Specifications!$B$92=1,I42,1) -> 1
A4: Red Bluff | F4: Red Bluff
A5: Flow Level | B5: Sac Level | C5: TC Ratio | F5: Flow Level | G5: Sac Level | H5: TC Ratio | J5: Options: | K5: S1
A6: =IF(User_Specifications!$B$92=1,A45,0) -> 0 | B6: 1 | C6: =IF(User_Specifications!$B$92=1,C45,1) -> 1 | F6: =IF(User_Specifications!$B$92=1,F45,0) -> 0 | G6: 1 | H6: =IF(User_Specifications!$B$92=1,H45,1) -> 1 | K6: S2
A7: =IF(User_Specifications!$B$92=1,A46,0) -> 0 | B7: 2 | C7: =IF(User_Specifications!$B$92=1,C46,1) -> 1 | F7: =IF(User_Specifications!$B$92=1,F46,0) -> 0 | G7: 2 | H7: =IF(User_Specifications!$B$92=1,H46,1) -> 1 | K7: S3
A8: =IF(User_Specifications!$B$92=1,A47,0) -> 0 | B8: 3 | C8: =IF(User_Specifications!$B$92=1,C47,1) -> 1 | F8: =IF(User_Specifications!$B$92=1,F47,0) -> 0 | G8: 3 | H8: =IF(User_Specifications!$B$92=1,H47,1) -> 1 | K8: S4
A9: =IF(User_Specifications!$B$92=1,A48,0) -> 0 | B9: 4 | C9: =IF(User_Specifications!$B$92=1,C48,1) -> 1 | F9: =IF(User_Specifications!$B$92=1,F48,0) -> 0 | G9: 4 | H9: =IF(User_Specifications!$B$92=1,H48,1) -> 1 | K9: S5
A10: =IF(User_Specifications!$B$92=1,A49,0) -> 0 | B10: 5 | C10: =IF(User_Specifications!$B$92=1,C49,1) -> 1 | F10: =IF(User_Specifications!$B$92=1,F49,0) -> 0 | G10: 5 | H10: =IF(User_Specifications!$B$92=1,H49,1) -> 1
A11: =IF(User_Specifications!$B$92=1,A50,0) -> 0 | B11: 6 | C11: =IF(User_Specifications!$B$92=1,C50,1) -> 1 | F11: =IF(User_Specifications!$B$92=1,F50,0) -> 0 | G11: 6 | H11: =IF(User_Specifications!$B$92=1,H50,1) -> 1
A12: =IF(User_Specifications!$B$92=1,A51,0) -> 0 | B12: 7 | C12: =IF(User_Specifications!$B$92=1,C51,1) -> 1 | F12: =IF(User_Specifications!$B$92=1,F51,0) -> 0 | G12: 7 | H12: =IF(User_Specifications!$B$92=1,H51,1) -> 1
A13: =IF(User_Specifications!$B$92=1,A52,0) -> 0 | B13: 8 | C13: =IF(User_Specifications!$B$92=1,C52,1) -> 1 | F13: =IF(User_Specifications!$B$92=1,F52,0) -> 0 | G13: 8 | H13: =IF(User_Specifications!$B$92=1,H52,1) -> 1
A14: =IF(User_Specifications!$B$92=1,A53,0) -> 0 | B14: 9 | C14: =IF(User_Specifications!$B$92=1,C53,1) -> 1 | F14: =IF(User_Specifications!$B$92=1,F53,0) -> 0 | G14: 9 | H14: =IF(User_Specifications!$B$92=1,H53,1) -> 1
A15: Hamilton City | F15: Hamilton City
A16: Flow Level | B16: Sac Level | C16: GC Ratio | F16: Flow Level | G16: Sac Level | H16: GC Ratio
A17: =IF(User_Specifications!$B$92=1,A56,0) -> 0 | B17: 1 | C17: =IF(User_Specifications!$B$92=1,C56,1) -> 1 | F17: =IF(User_Specifications!$B$92=1,F56,0) -> 0 | G17: 1 | H17: =IF(User_Specifications!$B$92=1,H56,1) -> 1
A18: =IF(User_Specifications!$B$92=1,A57,0) -> 0 | B18: 2 | C18: =IF(User_Specifications!$B$92=1,C57,1) -> 1 | F18: =IF(User_Specifications!$B$92=1,F57,0) -> 0 | G18: 2 | H18: =IF(User_Specifications!$B$92=1,H57,1) -> 1
A19: =IF(User_Specifications!$B$92=1,A58,0) -> 0 | B19: 3 | C19: =IF(User_Specifications!$B$92=1,C58,1) -> 1 | F19: =IF(User_Specifications!$B$92=1,F58,0) -> 0 | G19: 3 | H19: =IF(User_Specifications!$B$92=1,H58,1) -> 1
A20: =IF(User_Specifications!$B$92=1,A59,0) -> 0 | B20: 4 | C20: =IF(User_Specifications!$B$92=1,C59,1) -> 1 | F20: =IF(User_Specifications!$B$92=1,F59,0) -> 0 | G20: 4 | H20: =IF(User_Specifications!$B$92=1,H59,1) -> 1
A21: =IF(User_Specifications!$B$92=1,A60,0) -> 0 | B21: 5 | C21: =IF(User_Specifications!$B$92=1,C60,1) -> 1 | F21: =IF(User_Specifications!$B$92=1,F60,0) -> 0 | G21: 5 | H21: =IF(User_Specifications!$B$92=1,H60,1) -> 1
A22: =IF(User_Specifications!$B$92=1,A61,0) -> 0 | B22: 6 | C22: =IF(User_Specifications!$B$92=1,C61,1) -> 1 | F22: =IF(User_Specifications!$B$92=1,F61,0) -> 0 | G22: 6 | H22: =IF(User_Specifications!$B$92=1,H61,1) -> 1
A23: =IF(User_Specifications!$B$92=1,A62,0) -> 0 | B23: 7 | C23: =IF(User_Specifications!$B$92=1,C62,1) -> 1 | F23: =IF(User_Specifications!$B$92=1,F62,0) -> 0 | G23: 7 | H23: =IF(User_Specifications!$B$92=1,H62,1) -> 1
A24: =IF(User_Specifications!$B$92=1,A63,0) -> 0 | B24: 8 | C24: =IF(User_Specifications!$B$92=1,C63,1) -> 1 | F24: =IF(User_Specifications!$B$92=1,F63,0) -> 0 | G24: 8 | H24: =IF(User_Specifications!$B$92=1,H63,1) -> 1
A25: =IF(User_Specifications!$B$92=1,A64,0) -> 0 | B25: 9 | C25: =IF(User_Specifications!$B$92=1,C64,1) -> 1 | F25: =IF(User_Specifications!$B$92=1,F64,0) -> 0 | G25: 9 | H25: =IF(User_Specifications!$B$92=1,H64,1) -> 1
A26: Develan | F26: Develan
A27: Flow Level | B27: Sac Level | C27: DP Ratio | F27: Flow Level | G27: Sac Level | H27: DP Ratio
A28: =IF(User_Specifications!$B$92=1,A67,0) -> 0 | B28: 1 | C28: =IF(User_Specifications!$B$92=1,C67,1) -> 1 | F28: =IF(User_Specifications!$B$92=1,F67,0) -> 0 | G28: 1 | H28: =IF(User_Specifications!$B$92=1,H67,1) -> 1
A29: =IF(User_Specifications!$B$92=1,A68,0) -> 0 | B29: 2 | C29: =IF(User_Specifications!$B$92=1,C68,1) -> 1 | F29: =IF(User_Specifications!$B$92=1,F68,0) -> 0 | G29: 2 | H29: =IF(User_Specifications!$B$92=1,H68,1) -> 1
A30: =IF(User_Specifications!$B$92=1,A69,0) -> 0 | B30: 3 | C30: =IF(User_Specifications!$B$92=1,C69,1) -> 1 | F30: =IF(User_Specifications!$B$92=1,F69,0) -> 0 | G30: 3 | H30: =IF(User_Specifications!$B$92=1,H69,1) -> 1
A31: =IF(User_Specifications!$B$92=1,A70,0) -> 0 | B31: 4 | C31: =IF(User_Specifications!$B$92=1,C70,1) -> 1 | F31: =IF(User_Specifications!$B$92=1,F70,0) -> 0 | G31: 4 | H31: =IF(User_Specifications!$B$92=1,H70,1) -> 1
A32: =IF(User_Specifications!$B$92=1,A71,0) -> 0 | B32: 5 | C32: =IF(User_Specifications!$B$92=1,C71,1) -> 1 | F32: =IF(User_Specifications!$B$92=1,F71,0) -> 0 | G32: 5 | H32: =IF(User_Specifications!$B$92=1,H71,1) -> 1
A33: =IF(User_Specifications!$B$92=1,A72,0) -> 0 | B33: 6 | C33: =IF(User_Specifications!$B$92=1,C72,1) -> 1 | F33: =IF(User_Specifications!$B$92=1,F72,0) -> 0 | G33: 6 | H33: =IF(User_Specifications!$B$92=1,H72,1) -> 1
A34: =IF(User_Specifications!$B$92=1,A73,0) -> 0 | B34: 7 | C34: =IF(User_Specifications!$B$92=1,C73,1) -> 1 | F34: =IF(User_Specifications!$B$92=1,F73,0) -> 0 | G34: 7 | H34: =IF(User_Specifications!$B$92=1,H73,1) -> 1
A35: =IF(User_Specifications!$B$92=1,A74,0) -> 0 | B35: 8 | C35: =IF(User_Specifications!$B$92=1,C74,1) -> 1 | F35: =IF(User_Specifications!$B$92=1,F74,0) -> 0 | G35: 8 | H35: =IF(User_Specifications!$B$92=1,H74,1) -> 1
A36: =IF(User_Specifications!$B$92=1,A75,0) -> 0 | B36: 9 | C36: =IF(User_Specifications!$B$92=1,C75,1) -> 1 | F36: =IF(User_Specifications!$B$92=1,F75,0) -> 0 | G36: 9 | H36: =IF(User_Specifications!$B$92=1,H75,1) -> 1
A40: =MID(ADDRESS(ROW(),COLUMN()),2,SEARCH("$",ADDRESS(ROW(),COLUMN()),2)-2) -> A | B40: =MID(ADDRESS(ROW(),COLUMN()),2,SEARCH("$",ADDRESS(ROW(),COLUMN()),2)-2) -> B | C40: =MID(ADDRESS(ROW(),COLUMN()),2,SEARCH("$",ADDRESS(ROW(),COLUMN()),2)-2) -> C | D40: D | E40: E | F40: F | G40: G | H40: H | I40: I
A41: Master | B41: 5
A42: Start Month: | B42: =INDIRECT(CONCATENATE(B$40,ROW($A42)+37*$B$41)) -> 9 | C42: End Month: | D42: =INDIRECT(CONCATENATE(D$40,ROW($A42)+37*$B$41)) -> 12 | F42: Start Month: | G42: =INDIRECT(CONCATENATE(G$40,ROW($A42)+37*$B$41)) -> 1 | H42: End Month: | I42: =INDIRECT(CONCATENATE(I$40,ROW($A42)+37*$B$41)) -> 5
A43: Red Bluff | F43: Red Bluff
A44: Flow Level | B44: Sac Level | C44: TC Ratio | F44: Flow Level | G44: Sac Level | H44: TC Ratio
A45: =INDIRECT(CONCATENATE(A$40,ROW($A45)+37*$B$41)) -> 3250 | B45: 1 | C45: 0 | F45: =INDIRECT(CONCATENATE(F$40,ROW($A45)+37*$B$41)) -> 3250 | G45: 1 | H45: 0
A46: 4400 | B46: 2 | C46: 0.2 | F46: 4400 | G46: 2 | H46: 0.2
A47: 5600 | B47: 3 | C47: 0.4 | F47: 5600 | G47: 3 | H47: 0.4
A48: 6800 | B48: 4 | C48: 0.6 | F48: 6800 | G48: 4 | H48: 0.6
A49: 8000 | B49: 5 | C49: 0.8 | F49: 8000 | G49: 5 | H49: 0.8
A50: 8500 | B50: 6 | C50: 1 | F50: 8500 | G50: 6 | H50: 1
A51: 9000 | B51: 7 | C51: 1 | F51: 9000 | G51: 7 | H51: 1
A52: 10000 | B52: 8 | C52: 1 | F52: 10000 | G52: 8 | H52: 1
A53: 999999 | B53: 9 | C53: 1 | F53: 999999 | G53: 9 | H53: 1
A54: Hamilton City | F54: Hamilton City
A55: Flow Level | B55: Sac Level | C55: GC Ratio | F55: Flow Level | G55: Sac Level | H55: GC Ratio
A56: =INDIRECT(CONCATENATE(A$40,ROW($A56)+37*$B$41)) -> 4000 | B56: 1 | C56: 0 | F56: =INDIRECT(CONCATENATE(F$40,ROW($A56)+37*$B$41)) -> 4000 | G56: 1 | H56: 0
A57: 5200 | B57: 2 | C57: 0.2 | F57: 5200 | G57: 2 | H57: 0.2
A58: 6400 | B58: 3 | C58: 0.4 | F58: 6400 | G58: 3 | H58: 0.4
A59: 7600 | B59: 4 | C59: 0.6 | F59: 7600 | G59: 4 | H59: 0.6
A60: 8800 | B60: 5 | C60: 0.8 | F60: 8800 | G60: 5 | H60: 0.8
A61: 8900 | B61: 6 | C61: 1 | F61: 8900 | G61: 6 | H61: 1
A62: 9000 | B62: 7 | C62: 1 | F62: 9000 | G62: 7 | H62: 1
... 73 more rows

Sheet Inputs
A1: ScenarioID | B1: EOS Sites Storage | C1: RDBLF Bypass | D1: Ham City Bypass | E1: Wilkins Slough Bypass | F1: Freeport Bypass | G1: Delta Outflow Bypass | H1: NDOI (On/Off) | I1: Fremont Weir Notch (On\Off) | J1: No. Scen: | K1: =COUNT(A1:A99999) -> 2
A2: 1 | B2: 200 | C2: 3250 | D2: 4000 | E2: 5000 | F2: 15000 | G2: 0 | H2: 0 | I2: 0
A3: =IF(B3>0,A2+1,"") -> 2 | B3: 200 | C3: 3250 | D3: 4000 | E3: 10000 | F3: 35000 | G3: 0 | H3: 1 | I3: 1 | K3: Scen Start: | L3: 1
A4: =IF(B4>0,A3+1,"") ->  | K4: Scen End: | L4: 1
A66: =IF(B66>0,A65+1,"") -> 
A68: =IF(B68>0,A67+1,"") -> 

Sheet Pulse_Post-Pulse_Figs
A1: =CONCATENATE("Flows at Red Bluff - WY ",User_Specifications!$B$3," (Using Fish-based Pulse and Post-Pulse Protection)") -> Flows at Red Bluff - WY 2011 (Using Fish-based Pulse and Post-Pulse Protection) | J1: =CONCATENATE("Flows at Hamilton City - WY ",User_Specifications!$B$3," (Using Fish-based Pulse and Post-Pulse Protection)") -> Flows at Hamilton City - WY 2011 (Using Fish-based Pulse and Post-Pulse Protection) | S1: =CONCATENATE("Flows at Delevan - WY ",User_Specifications!$B$3," (Using Fish-based Pulse and Post-Pulse Protection)") -> Flows at Delevan - WY 2011 (Using Fish-based Pulse and Post-Pulse Protection)
A17: =IF(User_Specifications!$D$106=2,CONCATENATE("Flows at Red Bluff - WY ",User_Specifications!$B$3," (Using Fish-based Pulse and Flow-based Post-Pulse Protection)"),CONCATENATE("Flows at Red Bluff - WY ",User_Specifications!$B$3," (Using Flow-based Pulse and Post-Pulse Protection)")) -> Flows at Red Bluff - WY 2011 (Using Flow-based Pulse and Post-Pulse Protection) | J17: =IF(User_Specifications!$D$106=2,CONCATENATE("Flows at Hamilton City - WY ",User_Specifications!$B$3," (Using Fish-based Pulse and Flow-based Post-Pulse Protection)"),CONCATENATE("Flows at Hamilton City - WY ",User_Specifications!$B$3," (Using Flow-based Pulse and Post-Pulse Protection)")) -> Flows at Hamilton City - WY 2011 (Using Flow-based Pulse and Post-Pulse Protection) | S17: =IF(User_Specifications!$D$106=2,CONCATENATE("Flows at Delevan - WY ",User_Specifications!$B$3," (Using Fish-based Pulse and Flow-based Post-Pulse Protection)"),CONCATENATE("Flows at Delevan - WY ",User_Specifications!$B$3," (Using Flow-based Pulse and Post-Pulse Protection)")) -> Flows at Delevan - WY 2011 (Using Flow-based Pulse and Post-Pulse Protection)
A34: =CONCATENATE("Fish Presence and Pulse + Post-Pulse Levels (Fish-based) at Knights Landing - WY ",User_Specifications!$B$3) -> Fish Presence and Pulse + Post-Pulse Levels (Fish-based) at Knights Landing - WY 2011 | J34: =IF(User_Specifications!$D$106=2,CONCATENATE("Fish Presence and Pulse (Fish-based) + Post-Pulse Levels (Flow-based) at Knights Landing - WY ",User_Specifications!$B$3),CONCATENATE("Fish Presence and Pulse + Post-Pulse Levels (Flow-based) at Knights Landing - WY ",User_Specifications!$B$3)) -> Fish Presence and Pulse + Post-Pulse Levels (Flow-based) at Knights Landing - WY 2011
A52: =CONCATENATE("Flow & Fish Presence at Knights Landing - WY ",User_Specifications!$B$3) -> Flow & Fish Presence at Knights Landing - WY 2011

Sheet Ann_Fills
A1: ScenarioID | B1: Fremont Weir Notch? | C1: Wilkins Slough Bypass Criteria | D1: Freeport Bypass Criteria | E1: NDOI? | F1: Protective Criteria? | G1: Average Annual Storable Flow | H1: 2009 (D) | I1: 2010 (BN) | J1: 2011 (W) | K1: 2012 (BN) | L1: 2013 (D) | M1: 2014 (C) | N1: 2015 (C) | O1: 2016 (BN) | P1: 2017 (W) | Q1: 2018 (BN)
A2: 0.1 | B2: 0 | C2: 5000 | D2: 0 | E2: 0 | F2: 0 | G2: 638.6721853 | H2: 369.2724827 | I2: 807.0465715 | J2: 1461.664212 | K2: 528.8911762 | L2: 612.6885257 | M2: 4.3061785 | N2: 99.16232969 | O2: 709.0913007 | P2: 1375.601283 | Q2: 418.997793 | R2: ALTD
A3: 2 | B3: 1 | C3: 5000 | D3: 0 | E3: 0 | F3: 1 | G3: 439.6771718 | H3: 242.806102 | I3: 322.8900451 | J3: 910.8414368 | K3: 484.7667844 | L3: 257.5879534 | M3: 2.870785667 | N3: 52.00428223 | O3: 473.7211994 | P3: 1275.416392 | Q3: 373.8667371 | R3: ALTD+S1 (no ramp)
A4: 3 | B4: 1 | C4: 5000 | D4: 0 | E4: 0 | F4: 1 | G4: 439.3988502 | H4: 242.806102 | I4: 322.8900451 | J4: 910.945016 | K4: 484.3228839 | L4: 255.7396561 | M4: 2.870785667 | N4: 52.00428223 | O4: 473.7211994 | P4: 1274.980693 | Q4: 373.7078386 | R4: ALTD+S4 (no ramp)
A5: 4 | B5: 1 | C5: 5000 | D5: 0 | E5: 0 | F5: 1 | G5: 338.6204925 | H5: 199.052223 | I5: 270.4893529 | J5: 761.778643 | K5: 428.3957299 | L5: 161.8198446 | M5: 2.870785667 | N5: 26.40402673 | O5: 310.9970248 | P5: 920.3687364 | Q5: 304.0285577 | R5: ALTD+S5 (no ramp)
A6: 5 | B6: 1 | C6: 5000 | D6: 0 | E6: 0 | F6: 1 | G6: 416.7404896 | H6: 229.6032086 | I6: 296.5284145 | J6: 866.408284 | K6: 453.1727928 | L6: 230.1656749 | M6: 2.870785667 | N6: 46.47288323 | O6: 448.8162431 | P6: 1252.045738 | Q6: 341.3208705 | R6: ALTD+S1
A7: 6 | B7: 1 | C7: 5000 | D7: 0 | E7: 0 | F7: 1 | G7: 415.6994054 | H7: 229.6032086 | I7: 296.5284145 | J7: 869.0049713 | K7: 440.8972129 | L7: 228.5860568 | M7: 2.870785667 | N7: 46.47288323 | O7: 448.8162431 | P7: 1251.689092 | Q7: 342.5251864 | R7: ALTD+S4
A8: 7 | B8: 1 | C8: 5000 | D8: 0 | E8: 0 | F8: 1 | G8: 309.0035927 | H8: 178.7902167 | I8: 240.8965722 | J8: 710.834476 | K8: 373.080109 | L8: 132.0939856 | M8: 2.870785667 | N8: 21.05400404 | O8: 276.4722162 | P8: 895.028333 | Q8: 258.9152281 | R8: ALTD+S5
A9: 8 | B9: 1 | C9: 5000 | D9: 0 | E9: 0 | F9: 0 | G9: 421.0309935 | H9: 246.6806203 | I9: 328.724604 | J9: 916.0066763 | K9: 302.4642344 | L9: 281.3638378 | M9: 2.870785667 | N9: 57.03637169 | O9: 491.5778783 | P9: 1276.844512 | Q9: 306.7404148 | R9: ALTD+FreWei
A10: 9 | B10: 1 | C10: 5000 | D10: 0 | E10: 0 | F10: 0 | G10: 466.7317595 | H10: 219.1102413 | I10: 358.3485031 | J10: 949.5413222 | K10: 563.2791403 | L10: 413.9912089 | M10: 2.870785667 | N10: 54.5884294 | O10: 532.684657 | P10: 1148.949297 | Q10: 423.9540104 | R10: ALTD+FreWeiLag
A11: 10 | B11: 1 | C11: 5000 | D11: 0 | E11: 0 | F11: 0 | G11: 467.2478216 | H11: 220.6970413 | I11: 360.0800988 | J11: 949.7396722 | K11: 563.2791403 | L11: 414.5862589 | M11: 2.870785667 | N11: 54.5884294 | O11: 533.3143927 | P11: 1149.368386 | Q11: 423.9540104 | R11: ALTD+FreWeiLag+100Buff
A12: 11 | B12: 1 | C12: 5000 | D12: 0 | E12: 0 | F12: 0 | G12: 438.307553 | H12: 201.1949476 | I12: 316.3487816 | J12: 918.7837579 | K12: 473.7242385 | L12: 281.3638378 | M12: 2.625492833 | N12: 48.76123763 | O12: 468.3436685 | P12: 1276.844512 | Q12: 395.0850554 | R12: ALTD+FreWei+CWFPostPulse
A13: 1 | B13: 1 | C13: 8000 | D13: 15000 | E13: 0 | F13: 1 | G13: 287.1919681 | H13: 135.9316643 | I13: 174.8045165 | J13: 633.5160016 | K13: 209.9404863 | L13: 173.1428738 | M13: 2.870785667 | N13: 24.01112885 | O13: 296.7413564 | P13: 1062.504265 | Q13: 158.4566023 | R13: A1.SPA
A14: 2 | B14: 0 | C14: 5000 | D14: 0 | E14: 0 | F14: 0 | G14: 464.4304995 | H14: 285.9751584 | I14: 608.62998 | J14: 1072.858022 | K14: 462.1869107 | L14: 378.667825 | M14: 4.3061785 | N14: 55.3392781 | O14: 486.7942796 | P14: 985.9415123 | Q14: 303.6058512 | R14: ALTD+NoDel
A15: 3 | B15: 1 | C15: 5000 | D15: 0 | E15: 0 | F15: 0 | G15: 321.1325355 | H15: 209.1764677 | I15: 279.1801518 | J15: 762.6862712 | K15: 271.3504201 | L15: 171.8311299 | M15: 2.870785667 | N15: 34.05216706 | O15: 323.4759997 | P15: 923.551891 | Q15: 233.1500705 | R15: ALTD+FreeWei+NoDel (SPA w/o scaled protect crit)
A16: 4 | B16: 1 | C16: 10000 | D16: 35000 | E16: 1 | F16: 0 | G16: 147.6372049 | H16: 13.122836 | I16: 53.75851432 | J16: 370.6595346 | K16: 0 | L16: 11.88432609 | M16: 0 | N16: 0 | O16: 190.5216455 | P16: 811.501814 | Q16: 24.92337888 | R16: Scn A1c
A17: 1 | B17: 1 | C17: 5000 | D17: 0 | E17: 0 | F17: 0 | G17: 369.8322668 | H17: 69.02154138 | I17: 285.1254103 | J17: 845.8094748 | K17: 275.3112467 | L17: 224.8033917 | M17: 2.870785667 | N17: 52.8031729 | O17: 483.3975899 | P17: 1251.909125 | Q17: 207.2709295 | R17: ALTD+FreeWei+FreepFlow
A18: 1 | B18: 1 | C18: 5000 | D18: 0 | E18: 0 | F18: 0 | G18: 259.1412223 | H18: 138.8782152 | I18: 222.6774044 | J18: 516.7552709 | K18: 123.1822691 | L18: 216.2024078 | M18: 0 | N18: 33.65667077 | O18: 328.4233013 | P18: 845.4994393 | Q18: 166.1372442 | R18: ALTD+FreeWei+FreepFish
A19: 3 | B19: 1 | C19: 5000 | D19: 0 | E19: 0 | F19: 0 | G19: 368.3832084 | H19: 246.6806203 | I19: 258.1300592 | J19: 834.1068487 | K19: 275.3112467 | L19: 216.2024078 | M19: 2.870785667 | N19: 35.01629225 | O19: 483.3975899 | P19: 1147.980645 | Q19: 184.1355879 | R19: ALTD+FreeWei+FreepCombo
A20: 1 | B20: 1 | C20: 5000 | D20: 0 | E20: 0 | F20: 0 | G20: 284.1296082 | H20: 67.1436842 | I20: 255.415958 | J20: 712.3240697 | K20: 256.9445463 | L20: 129.0190889 | M20: 2.870785667 | N20: 29.35928509 | O20: 319.3932152 | P20: 900.2701996 | Q20: 168.5552489 | R20: NoDel+FreeWei+FreepFlow45%
A21: 2 | B21: 1 | C21: 5000 | D21: 0 | E21: 0 | F21: 0 | G21: 173.1441694 | H21: 22.5650249 | I21: 25.7589211 | J21: 534.5373807 | K21: 134.8135404 | L21: 70.72101621 | M21: 1.435392833 | N21: 13.97473982 | O21: 142.7104216 | P21: 668.7962345 | Q21: 116.1290215 | R21: NoDel+FreeWei+FreepFlow45%_unlimitedpulses
A22: 3 | B22: 1 | C22: 5000 | D22: 0 | E22: 0 | F22: 0 | G22: 195.8237607 | H22: 126.9772152 | I22: 204.8689522 | J22: 451.2817073 | K22: 117.9941197 | L22: 120.418105 | M22: 0 | N22: 27.23040776 | O22: 209.6466243 | P22: 593.4579001 | Q22: 106.3625756 | R22: NoDel+FreeWei+FreepFish
A23: 1 | B23: 1 | C23: 5000 | D23: 35000 | E23: 0 | F23: 0 | G23: 188.2543735 | H23: 39.36250154 | I23: 41.26254001 | J23: 558.7100303 | K23: 13.28954156 | L23: 83.19716902 | M23: 0 | N23: 0 | O23: 199.7773707 | P23: 839.8927304 | Q23: 107.0518517 | R23: NoDel+FreeWei+Freep35kOct-Jun
A24: 1 | B24: 1 | C24: 5000 | D24: 0 | E24: 0 | F24: 0 | G24: 317.9262925 | H24: 207.5317437 | I24: 269.6129653 | J24: 762.6862712 | K24: 265.5903884 | L24: 171.3745282 | M24: 2.870785667 | N24: 34.04391668 | O24: 318.568089 | P24: 913.834166 | Q24: 233.1500705 | R24: NoDel+FreeWei+FreepFlow45%_unlimitedpulses_pulse=L1
A25: 1 | B25: 1 | C25: 8000 | D25: 44500 | E25: 0 | F25: 0 | G25: 122.836725 | H25: 0 | I25: 0 | J25: 229.9689018 | K25: 81.38612748 | L25: 48.30883605 | M25: 0 | N25: 18.93591594 | O25: 94.6366555 | P25: 664.9389679 | Q25: 90.19184522 | R25: Scenario A
A26: 2 | B26: 1 | C26: 8000 | D26: 44500 | E26: 0 | F26: 0 | G26: 202.396848 | H26: 41.95882375 | I26: 53.4524885 | J26: 448.4060644 | K26: 88.63346379 | L26: 162.9882261 | M26: 0 | N26: 30.26818778 | O26: 244.5672547 | P26: 835.8299371 | Q26: 117.8640335 | R26: Scenario B
A27: 1 | B27: 1 | C27: 5000 | D27: 0 | E27: 0 | F27: 0 | G27: 221.336011 | H27: 93.705561 | I27: 153.9765426 | J27: 586.9191471 | K27: 183.4543948 | L27: 41.04075138 | M27: 1.435392833 | N27: 20.42568596 | O27: 174.7729391 | P27: 796.3659447 | Q27: 161.2637507 | R27: ALTD+FreeWei+NoDel (ROC on LTO FreWei curves)
A28: 2 | B28: 1 | C28: 8000 | D28: 0 | E28: 0 | F28: 0 | G28: 106.4502306 | H28: 0 | I28: 0 | J28: 256.7240004 | K28: 0 | L28: 0 | M28: 0 | N28: 2.258613774 | O28: 31.34713012 | P28: 738.181297 | Q28: 35.99126442 | R28: Scenario A
A29: 3 | B29: 1 | C29: 8000 | D29: 0 | E29: 0 | F29: 0 | G29: 161.0201094 | H29: 0 | I29: 8.330645694 | J29: 406.3096454 | K29: 60.17852341 | L29: 45.69117173 | M29: 0 | N29: 8.58489105 | O29: 123.7597598 | P29: 855.9807256 | Q29: 101.3657313 | R29: Scenario B
A30: 1 | B30: 1 | C30: 10000 | D30: 35000 | E30: 0 | F30: 0 | G30: 120.7056877 | H30: 0 | I30: 6.49262884 | J30: 310.3826333 | K30: 0 | L30: 0 | M30: 0 | N30: 0 | O30: 105.1331105 | P30: 762.1871154 | Q30: 22.86138895 | R30: CDFW Revised w/ FreWei Buffer = 0%
A31: 2 | B31: 1 | C31: 8000 | D31: 0 | E31: 0 | F31: 0 | G31: 155.0743999 | H31: 7.575114791 | I31: 14.1643348 | J31: 436.3405888 | K31: 0 | L31: 31.41107073 | M31: 0 | N31: 2.258613774 | O31: 127.0812457 | P31: 873.0804827 | Q31: 58.83254752 | R31: Scenario A w/ FreWei Buffer = 1%
A32: 3 | B32: 1 | C32: 8000 | D32: 0 | E32: 0 | F32: 0 | G32: 203.4340607 | H32: 39.19928126 | I32: 45.48585118 | J32: 538.8625869 | K32: 67.61012281 | L32: 113.338904 | M32: 0 | N32: 24.46362427 | O32: 173.6170756 | P32: 937.4624724 | Q32: 94.30068846 | R32: Scenario B w/ FreWei Buffer = 1% & 5%
A33: 4 | B33: 1 | C33: 8000 | D33: 15000 | E33: 0 | F33: 1 | G33: 223.5400151 | H33: 77.66733763 | I33: 97.07505466 | J33: 574.4503383 | K33: 139.7769578 | L33: 86.32218693 | M33: 1.435392833 | N33: 30.67073094 | O33: 205.2892662 | P33: 930.1124577 | Q33: 92.60042818 | R33: SPA w/ FreWei Buffer = 1% & 5%
A34: 5 | B34: 1 | C34: 8000 | D34: 15000 | E34: 0 | F34: 1 | G34: 180.4076441 | H34: 30.7076254 | I34: 49.03270987 | J34: 434.082417 | K34: 138.6990946 | L34: 26.35038161 | M34: 1.435392833 | N34: 26.07486797 | O34: 155.4564185 | P34: 850.0800263 | Q34: 92.15750662 | R34: SPA w/ FreWei Buffer = 0%
A35: 6 | B35: 1 | C35: 8000 | D35: 15000 | E35: 0 | F35: 1 | G35: 191.9277315 | H35: 40.46178448 | I35: 59.90820206 | J35: 470.2644249 | K35: 139.1982741 | L35: 47.21562407 | M35: 1.435392833 | N35: 26.27736687 | O35: 167.9310642 | P35: 874.6723666 | Q35: 91.91281484 | R35: SPA w/ FreWei Buffer = 1%
A36: 7 | B36: 1 | C36: 8000 | D36: 15000 | E36: 0 | F36: 1 | G36: 238.4483742 | H36: 100.9598387 | I36: 122.083505 | J36: 618.5738851 | K36: 140.2415413 | L36: 104.1435857 | M36: 1.435392833 | N36: 33.75248998 | O36: 223.1538788 | P36: 947.5391964 | Q36: 92.60042818 | R36: SPA w/ FreWei Buffer = 1% & 9%
A37: 8 | B37: 1 | C37: 8000 | D37: 15000 | E37: 0 | F37: 0 | G37: 235.8840397 | H37: 81.28714543 | I37: 104.4578923 | J37: 588.6001344 | K37: 159.1759968 | L37: 96.87445123 | M37: 1.435392833 | N37: 46.83235636 | O37: 222.7716767 | P37: 937.4624724 | Q37: 119.9428783 | R37: SPA w/o S5
A38: 9 | B38: 1 | C38: 8000 | D38: 0 | E38: 0 | F38: 0 | G38: 241.57658 | H38: 91.58007051 | I38: 106.9306557 | J38: 588.6001344 | K38: 165.6514347 | L38: 128.2433556 | M38: 1.435392833 | N38: 46.83235636 | O38: 223.1320597 | P38: 937.4624724 | Q38: 125.8978681 | R38: SPA w/o S5 or Freep=15k in Feb-Mar
A39: 10 | B39: 1 | C39: 8000 | D39: 0 | E39: 0 | F39: 0 | G39: 257.0044179 | H39: 117.3139868 | I39: 131.939106 | J39: 632.7236812 | K39: 166.1160182 | L39: 147.5957032 | M39: 1.435392833 | N39: 50.41988247 | O39: 241.3116108 | P39: 955.1964726 | Q39: 125.9923252 | R39: SPA w/o S5 or Freep=15k in Feb-Mar & FreWei Buffer = 1% & 9%
A40: 11 | B40: 1 | C40: 10000 | D40: 35000 | E40: 0 | F40: 0 | G40: 124.6722235 | H40: 6.130534579 | I40: 9.924019691 | J40: 325.7576367 | K40: 0 | L40: 0.5480008667 | M40: 0 | N40: 0 | O40: 106.4470659 | P40: 775.0535879 | Q40: 22.86138895 | R40: CDFW Revised w/ FreWei Buffer = 1%
A41: 12 | B41: 1 | C41: 8000 | D41: 0 | E41: 0 | F41: 0 | G41: 216.4672759 | H41: 57.59733725 | I41: 63.25660127 | J41: 574.5998028 | K41: 68.07470635 | L41: 132.6912516 | M41: 0 | N41: 28.05115037 | O41: 190.8102913 | P41: 955.1964726 | Q41: 94.39514559 | R41: Scenario B w/ FreWei Buffer = 1% & 9%
A42: 13 | B42: 1 | C42: 8000 | D42: 0 | E42: 0 | F42: 0 | G42: 206.17399 | H42: 39.19928126 | I42: 45.48585118 | J42: 538.8625869 | K42: 67.61012281 | L42: 113.338904 | M42: 0 | N42: 46.83235636 | O42: 178.6476364 | P42: 937.4624724 | Q42: 94.30068846 | R42: Scenario B w/ FreWei Buffer = 1% & 5%, no Freep Byp Crit
A43: 14 | B43: 1 | C43: 8000 | D43: 0 | E43: 0 | F43: 0 | G43: 235.7311784 | H43: 75.318236 | I43: 102.8024131 | J43: 588.6001344 | K43: 166.4187912 | L43: 128.160207 | M43: 1.435392833 | N43: 24.46362427 | O43: 206.7526442 | P43: 937.4624724 | Q43: 125.8978681 | R43: Scenario B w/ FreWei Buffer = 1% & 5%, no NDOI Crit
A44: 1 | B44: 1 | C44: 10000 | D44: 35000 | E44: 0 | F44: 0 | G44: 123.2266487 | H44: 6.130534579 | I44: 9.924019691 | J44: 324.4247247 | K44: 0 | L44: 0.5480008667 | M44: 0 | N44: 0 | O44: 105.2093619 | P44: 763.1684559 | Q44: 22.86138895 | R44: CDFW Revised w/ FreWei Buffer = 1%
A45: 2 | B45: 1 | C45: 8000 | D45: 0 | E45: 0 | F45: 0 | G45: 153.1182722 | H45: 7.575114791 | I45: 14.1643348 | J45: 433.4645138 | K45: 0 | L45: 29.86790773 | M45: 0 | N45: 2.258613774 | O45: 125.6531257 | P45: 859.6521877 | Q45: 58.54692352 | R45: Scenario A w/ FreWei Buffer = 1%
A46: 3 | B46: 1 | C46: 8000 | D46: 0 | E46: 0 | F46: 0 | G46: 199.7761887 | H46: 39.10407326 | I46: 45.48585118 | J46: 527.6726666 | K46: 67.61012281 | L46: 107.9378335 | M46: 0 | N46: 23.53137927 | O46: 171.6276251 | P46: 920.9676864 | Q46: 93.82464846 | R46: Scenario B w/ FreWei Buffer = 1% & 5%
A47: 4 | B47: 1 | C47: 8000 | D47: 15000 | E47: 0 | F47: 1 | G47: 220.1570999 | H47: 77.57212963 | I47: 97.07505466 | J47: 563.260418 | K47: 139.6817498 | L47: 82.54802399 | M47: 1.435392833 | N47: 30.67073094 | O47: 203.2998157 | P47: 913.6176717 | Q47: 92.41001218 | R47: SPA w/ FreWei Buffer = 1% & 5%
A48: 5 | B48: 1 | C48: 8000 | D48: 15000 | E48: 0 | F48: 1 | G48: 178.4589783 | H48: 30.7076254 | I48: 49.03270987 | J48: 431.111134 | K48: 138.6038866 | L48: 24.97704604 | M48: 1.435392833 | N48: 26.07486797 | O48: 154.0282985 | P48: 836.6517313 | Q48: 91.96709062 | R48: SPA w/ FreWei Buffer = 0%
A49: 6 | B49: 1 | C49: 8000 | D49: 15000 | E49: 0 | F49: 1 | G49: 189.9790657 | H49: 40.46178448 | I49: 59.90820206 | J49: 467.2931419 | K49: 139.1030661 | L49: 45.84228851 | M49: 1.435392833 | N49: 26.27736687 | O49: 166.5029442 | P49: 861.2440716 | Q49: 91.72239884 | R49: SPA w/ FreWei Buffer = 1%
A50: 7 | B50: 1 | C50: 8000 | D50: 15000 | E50: 0 | F50: 1 | G50: 234.8628387 | H50: 100.7694227 | I50: 122.083505 | J50: 607.0993376 | K50: 140.1463333 | L50: 100.2047287 | M50: 1.435392833 | N50: 33.75248998 | O50: 220.6983058 | P50: 930.0288584 | Q50: 92.41001218 | R50: SPA w/ FreWei Buffer = 1% & 9%
A51: 8 | B51: 1 | C51: 8000 | D51: 0 | E51: 0 | F51: 0 | G51: 212.5982608 | H51: 57.40692125 | I51: 63.25660127 | J51: 563.1252553 | K51: 68.07470635 | L51: 127.0402601 | M51: 0 | N51: 27.11890537 | O51: 188.3547183 | P51: 937.6861346 | Q51: 93.91910559 | R51: Scenario B w/ FreWei Buffer = 1% & 9%
A52: 9 | B52: 1 | C52: 8000 | D52: 0 | E52: 0 | F52: 0 | G52: 199.7761887 | H52: 39.10407326 | I52: 45.48585118 | J52: 527.6726666 | K52: 67.61012281 | L52: 107.9378335 | M52: 0 | N52: 23.53137927 | O52: 171.6276251 | P52: 920.9676864 | Q52: 93.82464846 | R52: Scenario B w/ FreWei Buffer = 1% & 5%, no Freep Byp Crit
A53: 10 | B53: 1 | C53: 8000 | D53: 0 | E53: 0 | F53: 0 | G53: 231.9876191 | H53: 75.223028 | I53: 102.8024131 | J53: 577.4102141 | K53: 166.0379592 | L53: 122.7591365 | M53: 1.435392833 | N53: 23.53137927 | O53: 204.4775697 | P53: 920.9676864 | Q53: 125.2314121 | R53: Scenario B w/ FreWei Buffer = 1% & 5%, no NDOI Crit
A54: 1 | B54: 1 | C54: 8000 | D54: 0 | E54: 0 | F54: 0 | G54: 154.6090006 | H54: 7.575114791 | I54: 16.8803994 | J54: 437.4466409 | K54: 0.1065056208 | L54: 34.05492012 | M54: 0 | N54: 2.472041392 | O54: 127.4346616 | P54: 860.8808684 | Q54: 59.23885358 | R54: Scenario A w/ FreWei Buffer = 1% & 1% & Stony Creek (TCC)
A55: 2 | B55: 1 | C55: 8000 | D55: 0 | E55: 0 | F55: 0 | G55: 201.4782713 | H55: 39.10412794 | I55: 46.42843346 | J55: 531.3065306 | K55: 68.07527197 | L55: 111.1207308 | M55: 0 | N55: 28.58259451 | O55: 172.9491168 | P55: 921.5114053 | Q55: 95.70450195 | R55: Scenario B w/ FreWei Buffer = 1% & 5% & Stony Creek (TCC)
A56: 1 | B56: 1 | C56: 8000 | D56: 0 | E56: 0 | F56: 0 | G56: 154.1053704 | H56: 7.575114791 | I56: 15.77475486 | J56: 436.361456 | K56: 0.1065056208 | L56: 32.95770845 | M56: 0 | N56: 2.472041392 | O56: 126.3407348 | P56: 860.6481112 | Q56: 58.81727642 | R56: Scenario A w/ FreWei Buffer = 1% & 1% & Stony Creek (GCC)
A57: 2 | B57: 1 | C57: 8000 | D57: 0 | E57: 0 | F57: 0 | G57: 201.1378827 | H57: 39.10407326 | I57: 48.59280102 | J57: 530.5663743 | K57: 68.38611996 | L57: 110.2627821 | M57: 0 | N57: 24.99444301 | O57: 172.9891953 | P57: 921.50931 | Q57: 94.97372772 | R57: Scenario B w/ FreWei Buffer = 1% & 5% & Stony Creek (GCC)
A58: 1 | B58: 1 | C58: 8000 | D58: 0 | E58: 0 | F58: 0 | G58: 103.004346 | H58: 1.175670554 | I58: 8.636888608 | J58: 191.9088972 | K58: 67.03143918 | L58: 42.29674459 | M58: 0 | N58: 18.9355163 | O58: 52.57018968 | P58: 561.9922433 | Q58: 85.49587041 | R58: Scenario B w/ FreWei Buffer = 1% & 5%; TisWei Protect 5k
A59: 1 | B59: 1 | C59: 8000 | D59: 0 | E59: 0 | F59: 0 | G59: 193.8203058 | H59: 38.17579158 | I59: 42.87679899 | J59: 513.6461023 | K59: 66.33779526 | L59: 89.9255448 | M59: 0 | N59: 30.67073094 | O59: 171.0069066 | P59: 913.6176717 | Q59: 71.9457157 | R59: SPA w/ FreWei Buffer = 1% & 5% & NDOI
A60: 1 | B60: 1 | C60: 8000 | D60: 0 | E60: 0 | F60: 0 | G60: 181.8607646 | H60: 31.46365826 | I60: 37.76794274 | J60: 458.3059021 | K60: 67.61012281 | L60: 98.17507424 | M60: 0 | N60: 23.53137927 | O60: 134.028023 | P60: 873.900895 | Q60: 93.82464846 | R60: Scenario B w/ FreWei Buffer = 1% & 5%, no Freep Byp Crit, AggWei 3k cfs (5% buffer; 1% protection)
A61: 1 | B61: 1 | C61: 8000 | D61: 0 | E61: 0 | F61: 0 | G61: 178.1690112 | H61: 26.76026151 | I61: 37.76794274 | J61: 449.9752484 | K61: 67.61012281 | L61: 94.00975122 | M61: 0 | N61: 23.53137927 | O61: 118.4751896 | P61: 869.7355681 | Q61: 93.82464846 | R61: Scenario B w/ FreWei Buffer = 1% & 5%, no Freep Byp Crit, AggWei 3k cfs (25% buffer; 1% protection)
A62: 1 | B62: 1 | C62: 8000 | D62: 0 | E62: 0 | F62: 0 | G62: 183.1077707 | H62: 31.96402072 | I62: 38.0395699 | J62: 463.2286196 | K62: 67.61012281 | L62: 98.54273116 | M62: 0 | N62: 23.53137927 | O62: 137.2641856 | P62: 877.072429 | Q62: 93.82464846 | R62: Scenario B w/ FreWei Buffer = 1% & 5%, no Freep Byp Crit, AggWei 3k cfs (5% buffer; 5% protection)
A63: 2 | B63: 1 | C63: 8000 | D63: 0 | E63: 0 | F63: 0 | G63: 180.131846 | H63: 28.85550634 | I63: 38.0395699 | J63: 456.3543916 | K63: 67.61012281 | L63: 95.08094096 | M63: 0 | N63: 23.53137927 | O63: 124.4137815 | P63: 873.6081187 | Q63: 93.82464846 | R63: Scenario B w/ FreWei Buffer = 1% & 5%, no Freep Byp Crit, AggWei 3k cfs (25% buffer; 5% protection)
A64: 1 | B64: 1 | C64: 8000 | D64: 0 | E64: 0 | F64: 0 | G64: 179.0475492 | H64: 27.70663323 | I64: 38.34433173 | J64: 452.4829484 | K64: 67.03143918 | L64: 78.17669138 | M64: 0 | N64: 22.40941578 | O64: 139.5164549 | P64: 871.576085 | Q64: 93.23149226 | R64: Scenario B w/ FreWei Buffer = 1% & 5%, no Freep Byp Crit, AggWei 3k cfs (5% buffer; 5% protection) - Tisdsale Notch
A65: 2 | B65: 1 | C65: 8000 | D65: 0 | E65: 0 | F65: 0 | G65: 176.3165852 | H65: 25.90720831 | I65: 38.34433173 | J65: 445.9370632 | K65: 67.03143918 | L65: 75.09095928 | M65: 0 | N65: 22.40941578 | O65: 127.1021678 | P65: 868.1117747 | Q65: 93.23149226 | R65: Scenario B w/ FreWei Buffer = 1% & 5%, no Freep Byp Crit, AggWei 3k cfs (25% buffer; 5% protection) - Tisdsale Notch
A66: 1 | B66: 0 | C66: 8000 | D66: 0 | E66: 44500 | F66: 0 | G66: 183.1077707 | H66: 31.96402072 | I66: 38.0395699 | J66: 463.2286196 | K66: 67.61012281 | L66: 98.54273116 | M66: 0 | N66: 23.53137927 | O66: 137.2641856 | P66: 877.072429 | Q66: 93.82464846 | R66: Alternative A2 - 91 TAF CVP OpFlex - CDFW Scenario B w/ Tisdale Weir criteria
A67: 2 | B67: 0 | C67: 8000 | D67: 0 | E67: 0 | F67: 0 | G67: 239.791525 | H67: 110.7739913 | I67: 122.7422903 | J67: 575.6822632 | K67: 165.7351862 | L67: 134.585245 | M67: 1.435392833 | N67: 47.89901442 | O67: 209.1671882 | P67: 904.5688096 | Q67: 125.3258692 | R67: Alternative A2 - 91 TAF CVP OpFlex - Preliminary Effects Analysis (relaxed criteria)
A68: 3 | B68: 0 | C68: 15000 | D68: 35000 | E68: 44500 | F68: 0 | G68: 84.49478518 | H68: 0.8959317328 | I68: 0.5751150983 | J68: 210.7473819 | K68: 0 | L68: 11.83687702 | M68: 0 | N68: 0 | O68: 56.93613987 | P68: 563.4000222 | Q68: 0.5563839144 | R68: Alternative A2 - 91 TAF CVP OpFlex - NRDC1
A69: 1 | B69: 0 | C69: 8000 | D69: 0 | E69: 44500 | F69: 0 | G69: 263.8422208 | H69: 86.42625067 | I69: 112.1831805 | J69: 591.2199782 | K69: 187.0672263 | L69: 166.8899577 | M69: 0 | N69: 51.8283259 | O69: 234.6014986 | P69: 1072.03586 | Q69: 136.1699305 | R69: Sites DEIRS Alternatives
A70: 1 | B70: 0 | C70: 8000 | D70: 0 | E70: 44500 | F70: 0 | G70: 283.8143772 | H70: 135.0371558 | I70: 163.099792 | J70: 604.3175319 | K70: 240.8919413 | L70: 181.2525566 | M70: 0 | N70: 52.13496243 | O70: 238.8679966 | P70: 1077.698535 | Q70: 144.8433004 | R70: Sites DEIRS Alternatives UPDATED!
A71: 1 | B71: 0 | C71: 10700 | D71: 0 | E71: 44500 | F71: 0 | G71: 205.3424705 | H71: 78.48175495 | I71: 115.7878518 | J71: 520.6067287 | K71: 24.73158016 | L71: 118.8628647 | M71: 0 | N71: 5.045042854 | O71: 209.201701 | P71: 948.3970125 | Q71: 32.3101682 | R71: Study 8
A72: 1 | B72: 0 | C72: 10700 | D72: 0 | E72: 44500 | F72: 0 | G72: 203.8755363 | H72: 78.48175495 | I72: 115.7878518 | J72: 516.7786163 | K72: 24.73158016 | L72: 113.9299678 | M72: 0 | N72: 2.455814431 | O72: 209.201701 | P72: 948.3970125 | Q72: 28.99106375 | R72: Study 9
A73: 1 | B73: 0 | C73: 10700 | D73: 0 | E73: 44500 | F73: 0 | G73: 151.6305622 | H73: 21.12437785 | I73: 59.70088064 | J73: 403.5227336 | K73: 7.640415256 | L73: 64.17853046 | M73: 0 | N73: 3.277744844 | O73: 145.5660038 | P73: 781.1389688 | Q73: 30.15596711 | R73: Study 11
A74: 1 | B74: 0 | C74: 10700 | D74: 0 | E74: 44500 | F74: 0 | G74: 243.6656955 | H74: 108.3447598 | I74: 245.4498652 | J74: 648.8479131 | K74: 24.73158016 | L74: 136.5272497 | M74: 0 | N74: 10.71522535 | O74: 244.9621754 | P74: 988.087123 | Q74: 28.99106375 | R74: NoFre_Oct-May_WS10700
A75: 2 | B75: 0 | C75: 10700 | D75: 0 | E75: 44500 | F75: 0 | G75: 247.255832 | H75: 111.1312857 | I75: 253.5935645 | J75: 666.0220392 | K75: 28.73386405 | L75: 140.2989661 | M75: 0 | N75: 11.65713608 | O75: 246.4355151 | P75: 984.5755091 | Q75: 30.11043974 | R75: BA2022_2035CT_SLR15_ALT3A
A76: 1 | B76: 0 | C76: 10700 | D76: 0 | E76: 44500 | F76: 0 | G76: 243.6656955 | H76: 108.3447598 | I76: 245.4498652 | J76: 648.8479131 | K76: 24.73158016 | L76: 136.5272497 | M76: 0 | N76: 10.71522535 | O76: 244.9621754 | P76: 988.087123 | Q76: 28.99106375 | R76: FEIRS2022

Sheet Hydrographs
Q101: Notch?

Sheet Controls
B1: 10 | C1: 11 | D1: 12 | E1: 1 | F1: 2 | G1: 3 | H1: 4 | I1: 5 | J1: 6 | K1: 7 | L1: 8 | M1: 9
A2: =CONCATENATE("Controls on Red Bluff Intake - WY ",User_Specifications!$B$3) -> Controls on Red Bluff Intake - WY 2011
B3: October | C3: November | D3: December | E3: January | F3: February | G3: March | H3: April | I3: May | J3: June | K3: July | L3: August | M3: September | N3: Annual
A4: SAC | B4: =COUNTIFS(Divertible_Flow_OneYr!$C$7:$C$371,B$1,Divertible_Flow_OneYr!$BG$7:$BG$371,$A4) -> 0 | C4: =COUNTIFS(Divertible_Flow_OneYr!$C$7:$C$371,C$1,Divertible_Flow_OneYr!$BG$7:$BG$371,$A4) -> 0 | D4: =COUNTIFS(Divertible_Flow_OneYr!$C$7:$C$371,D$1,Divertible_Flow_OneYr!$BG$7:$BG$371,$A4) -> 0 | E4: =COUNTIFS(Divertible_Flow_OneYr!$C$7:$C$371,E$1,Divertible_Flow_OneYr!$BG$7:$BG$371,$A4) -> 0 | F4: =COUNTIFS(Divertible_Flow_OneYr!$C$7:$C$371,F$1,Divertible_Flow_OneYr!$BG$7:$BG$371,$A4) -> 0 | G4: =COUNTIFS(Divertible_Flow_OneYr!$C$7:$C$371,G$1,Divertible_Flow_OneYr!$BG$7:$BG$371,$A4) -> 0 | H4: =COUNTIFS(Divertible_Flow_OneYr!$C$7:$C$371,H$1,Divertible_Flow_OneYr!$BG$7:$BG$371,$A4) -> 0 | I4: =COUNTIFS(Divertible_Flow_OneYr!$C$7:$C$371,I$1,Divertible_Flow_OneYr!$BG$7:$BG$371,$A4) -> 0 | J4: =COUNTIFS(Divertible_Flow_OneYr!$C$7:$C$371,J$1,Divertible_Flow_OneYr!$BG$7:$BG$371,$A4) -> 0 | K4: =COUNTIFS(Divertible_Flow_OneYr!$C$7:$C$371,K$1,Divertible_Flow_OneYr!$BG$7:$BG$371,$A4) -> 0 | L4: =COUNTIFS(Divertible_Flow_OneYr!$C$7:$C$371,L$1,Divertible_Flow_OneYr!$BG$7:$BG$371,$A4) -> 0 | M4: =COUNTIFS(Divertible_Flow_OneYr!$C$7:$C$372,M$1,Divertible_Flow_OneYr!$BG$7:$BG$372,$A4) -> 0 | N4: =SUM(B4:M4) -> 0
A5: Export Lim | B5: =COUNTIFS(Divertible_Flow_OneYr!$C$7:$C$371,B$1,Divertible_Flow_OneYr!$BG$7:$BG$371,$A5) -> 0 | C5: =COUNTIFS(Divertible_Flow_OneYr!$C$7:$C$371,C$1,Divertible_Flow_OneYr!$BG$7:$BG$371,$A5) -> 0 | D5: =COUNTIFS(Divertible_Flow_OneYr!$C$7:$C$371,D$1,Divertible_Flow_OneYr!$BG$7:$BG$371,$A5) -> 0 | E5: =COUNTIFS(Divertible_Flow_OneYr!$C$7:$C$371,E$1,Divertible_Flow_OneYr!$BG$7:$BG$371,$A5) -> 0 | F5: =COUNTIFS(Divertible_Flow_OneYr!$C$7:$C$371,F$1,Divertible_Flow_OneYr!$BG$7:$BG$371,$A5) -> 0 | G5: =COUNTIFS(Divertible_Flow_OneYr!$C$7:$C$371,G$1,Divertible_Flow_OneYr!$BG$7:$BG$371,$A5) -> 0 | H5: =COUNTIFS(Divertible_Flow_OneYr!$C$7:$C$371,H$1,Divertible_Flow_OneYr!$BG$7:$BG$371,$A5) -> 0 | I5: =COUNTIFS(Divertible_Flow_OneYr!$C$7:$C$371,I$1,Divertible_Flow_OneYr!$BG$7:$BG$371,$A5) -> 0 | J5: =COUNTIFS(Divertible_Flow_OneYr!$C$7:$C$371,J$1,Divertible_Flow_OneYr!$BG$7:$BG$371,$A5) -> 0 | K5: =COUNTIFS(Divertible_Flow_OneYr!$C$7:$C$371,K$1,Divertible_Flow_OneYr!$BG$7:$BG$371,$A5) -> 0 | L5: =COUNTIFS(Divertible_Flow_OneYr!$C$7:$C$371,L$1,Divertible_Flow_OneYr!$BG$7:$BG$371,$A5) -> 0 | M5: =COUNTIFS(Divertible_Flow_OneYr!$C$7:$C$372,M$1,Divertible_Flow_OneYr!$BG$7:$BG$372,$A5) -> 0 | N5: =SUM(B5:M5) -> 0
A6: E/I | B6: =COUNTIFS(Divertible_Flow_OneYr!$C$7:$C$371,B$1,Divertible_Flow_OneYr!$BG$7:$BG$371,$A6) -> 0 | C6: =COUNTIFS(Divertible_Flow_OneYr!$C$7:$C$371,C$1,Divertible_Flow_OneYr!$BG$7:$BG$371,$A6) -> 0 | D6: =COUNTIFS(Divertible_Flow_OneYr!$C$7:$C$371,D$1,Divertible_Flow_OneYr!$BG$7:$BG$371,$A6) -> 0 | E6: =COUNTIFS(Divertible_Flow_OneYr!$C$7:$C$371,E$1,Divertible_Flow_OneYr!$BG$7:$BG$371,$A6) -> 0 | F6: =COUNTIFS(Divertible_Flow_OneYr!$C$7:$C$371,F$1,Divertible_Flow_OneYr!$BG$7:$BG$371,$A6) -> 0 | G6: =COUNTIFS(Divertible_Flow_OneYr!$C$7:$C$371,G$1,Divertible_Flow_OneYr!$BG$7:$BG$371,$A6) -> 0 | H6: =COUNTIFS(Divertible_Flow_OneYr!$C$7:$C$371,H$1,Divertible_Flow_OneYr!$BG$7:$BG$371,$A6) -> 0 | I6: =COUNTIFS(Divertible_Flow_OneYr!$C$7:$C$371,I$1,Divertible_Flow_OneYr!$BG$7:$BG$371,$A6) -> 0 | J6: =COUNTIFS(Divertible_Flow_OneYr!$C$7:$C$371,J$1,Divertible_Flow_OneYr!$BG$7:$BG$371,$A6) -> 0 | K6: =COUNTIFS(Divertible_Flow_OneYr!$C$7:$C$371,K$1,Divertible_Flow_OneYr!$BG$7:$BG$371,$A6) -> 0 | L6: =COUNTIFS(Divertible_Flow_OneYr!$C$7:$C$371,L$1,Divertible_Flow_OneYr!$BG$7:$BG$371,$A6) -> 0 | M6: =COUNTIFS(Divertible_Flow_OneYr!$C$7:$C$372,M$1,Divertible_Flow_OneYr!$BG$7:$BG$372,$A6) -> 0 | N6: 0
A7: OMR | B7: =COUNTIFS(Divertible_Flow_OneYr!$C$7:$C$371,B$1,Divertible_Flow_OneYr!$BG$7:$BG$371,$A7) -> 0 | C7: =COUNTIFS(Divertible_Flow_OneYr!$C$7:$C$371,C$1,Divertible_Flow_OneYr!$BG$7:$BG$371,$A7) -> 0 | D7: =COUNTIFS(Divertible_Flow_OneYr!$C$7:$C$371,D$1,Divertible_Flow_OneYr!$BG$7:$BG$371,$A7) -> 0 | E7: =COUNTIFS(Divertible_Flow_OneYr!$C$7:$C$371,E$1,Divertible_Flow_OneYr!$BG$7:$BG$371,$A7) -> 0 | F7: =COUNTIFS(Divertible_Flow_OneYr!$C$7:$C$371,F$1,Divertible_Flow_OneYr!$BG$7:$BG$371,$A7) -> 0 | G7: =COUNTIFS(Divertible_Flow_OneYr!$C$7:$C$371,G$1,Divertible_Flow_OneYr!$BG$7:$BG$371,$A7) -> 0 | H7: =COUNTIFS(Divertible_Flow_OneYr!$C$7:$C$371,H$1,Divertible_Flow_OneYr!$BG$7:$BG$371,$A7) -> 0 | I7: =COUNTIFS(Divertible_Flow_OneYr!$C$7:$C$371,I$1,Divertible_Flow_OneYr!$BG$7:$BG$371,$A7) -> 0 | J7: =COUNTIFS(Divertible_Flow_OneYr!$C$7:$C$371,J$1,Divertible_Flow_OneYr!$BG$7:$BG$371,$A7) -> 0 | K7: =COUNTIFS(Divertible_Flow_OneYr!$C$7:$C$371,K$1,Divertible_Flow_OneYr!$BG$7:$BG$371,$A7) -> 0 | L7: =COUNTIFS(Divertible_Flow_OneYr!$C$7:$C$371,L$1,Divertible_Flow_OneYr!$BG$7:$BG$371,$A7) -> 0 | M7: =COUNTIFS(Divertible_Flow_OneYr!$C$7:$C$372,M$1,Divertible_Flow_OneYr!$BG$7:$BG$372,$A7) -> 0 | N7: 0
A8: SJR EI | B8: =COUNTIFS(Divertible_Flow_OneYr!$C$7:$C$371,B$1,Divertible_Flow_OneYr!$BG$7:$BG$371,$A8) -> 0 | C8: =COUNTIFS(Divertible_Flow_OneYr!$C$7:$C$371,C$1,Divertible_Flow_OneYr!$BG$7:$BG$371,$A8) -> 0 | D8: =COUNTIFS(Divertible_Flow_OneYr!$C$7:$C$371,D$1,Divertible_Flow_OneYr!$BG$7:$BG$371,$A8) -> 0 | E8: =COUNTIFS(Divertible_Flow_OneYr!$C$7:$C$371,E$1,Divertible_Flow_OneYr!$BG$7:$BG$371,$A8) -> 0 | F8: =COUNTIFS(Divertible_Flow_OneYr!$C$7:$C$371,F$1,Divertible_Flow_OneYr!$BG$7:$BG$371,$A8) -> 0 | G8: =COUNTIFS(Divertible_Flow_OneYr!$C$7:$C$371,G$1,Divertible_Flow_OneYr!$BG$7:$BG$371,$A8) -> 0 | H8: =COUNTIFS(Divertible_Flow_OneYr!$C$7:$C$371,H$1,Divertible_Flow_OneYr!$BG$7:$BG$371,$A8) -> 0 | I8: =COUNTIFS(Divertible_Flow_OneYr!$C$7:$C$371,I$1,Divertible_Flow_OneYr!$BG$7:$BG$371,$A8) -> 0 | J8: =COUNTIFS(Divertible_Flow_OneYr!$C$7:$C$371,J$1,Divertible_Flow_OneYr!$BG$7:$BG$371,$A8) -> 0 | K8: =COUNTIFS(Divertible_Flow_OneYr!$C$7:$C$371,K$1,Divertible_Flow_OneYr!$BG$7:$BG$371,$A8) -> 0 | L8: =COUNTIFS(Divertible_Flow_OneYr!$C$7:$C$371,L$1,Divertible_Flow_OneYr!$BG$7:$BG$371,$A8) -> 0 | M8: =COUNTIFS(Divertible_Flow_OneYr!$C$7:$C$372,M$1,Divertible_Flow_OneYr!$BG$7:$BG$372,$A8) -> 0 | N8: 0
A9: H&S | B9: =COUNTIFS(Divertible_Flow_OneYr!$C$7:$C$371,B$1,Divertible_Flow_OneYr!$BG$7:$BG$371,$A9) -> 0 | C9: =COUNTIFS(Divertible_Flow_OneYr!$C$7:$C$371,C$1,Divertible_Flow_OneYr!$BG$7:$BG$371,$A9) -> 0 | D9: =COUNTIFS(Divertible_Flow_OneYr!$C$7:$C$371,D$1,Divertible_Flow_OneYr!$BG$7:$BG$371,$A9) -> 0 | E9: =COUNTIFS(Divertible_Flow_OneYr!$C$7:$C$371,E$1,Divertible_Flow_OneYr!$BG$7:$BG$371,$A9) -> 0 | F9: =COUNTIFS(Divertible_Flow_OneYr!$C$7:$C$371,F$1,Divertible_Flow_OneYr!$BG$7:$BG$371,$A9) -> 0 | G9: =COUNTIFS(Divertible_Flow_OneYr!$C$7:$C$371,G$1,Divertible_Flow_OneYr!$BG$7:$BG$371,$A9) -> 1 | H9: =COUNTIFS(Divertible_Flow_OneYr!$C$7:$C$371,H$1,Divertible_Flow_OneYr!$BG$7:$BG$371,$A9) -> 0 | I9: =COUNTIFS(Divertible_Flow_OneYr!$C$7:$C$371,I$1,Divertible_Flow_OneYr!$BG$7:$BG$371,$A9) -> 0 | J9: =COUNTIFS(Divertible_Flow_OneYr!$C$7:$C$371,J$1,Divertible_Flow_OneYr!$BG$7:$BG$371,$A9) -> 0 | K9: =COUNTIFS(Divertible_Flow_OneYr!$C$7:$C$371,K$1,Divertible_Flow_OneYr!$BG$7:$BG$371,$A9) -> 0 | L9: =COUNTIFS(Divertible_Flow_OneYr!$C$7:$C$371,L$1,Divertible_Flow_OneYr!$BG$7:$BG$371,$A9) -> 0 | M9: =COUNTIFS(Divertible_Flow_OneYr!$C$7:$C$372,M$1,Divertible_Flow_OneYr!$BG$7:$BG$372,$A9) -> 0 | N9: 1
A10: DO | B10: =COUNTIFS(Divertible_Flow_OneYr!$C$7:$C$371,B$1,Divertible_Flow_OneYr!$BG$7:$BG$371,$A10) -> 0 | C10: =COUNTIFS(Divertible_Flow_OneYr!$C$7:$C$371,C$1,Divertible_Flow_OneYr!$BG$7:$BG$371,$A10) -> 1 | D10: =COUNTIFS(Divertible_Flow_OneYr!$C$7:$C$371,D$1,Divertible_Flow_OneYr!$BG$7:$BG$371,$A10) -> 0 | E10: =COUNTIFS(Divertible_Flow_OneYr!$C$7:$C$371,E$1,Divertible_Flow_OneYr!$BG$7:$BG$371,$A10) -> 0 | F10: =COUNTIFS(Divertible_Flow_OneYr!$C$7:$C$371,F$1,Divertible_Flow_OneYr!$BG$7:$BG$371,$A10) -> 0 | G10: =COUNTIFS(Divertible_Flow_OneYr!$C$7:$C$371,G$1,Divertible_Flow_OneYr!$BG$7:$BG$371,$A10) -> 0 | H10: =COUNTIFS(Divertible_Flow_OneYr!$C$7:$C$371,H$1,Divertible_Flow_OneYr!$BG$7:$BG$371,$A10) -> 0 | I10: =COUNTIFS(Divertible_Flow_OneYr!$C$7:$C$371,I$1,Divertible_Flow_OneYr!$BG$7:$BG$371,$A10) -> 0 | J10: =COUNTIFS(Divertible_Flow_OneYr!$C$7:$C$371,J$1,Divertible_Flow_OneYr!$BG$7:$BG$371,$A10) -> 0 | K10: =COUNTIFS(Divertible_Flow_OneYr!$C$7:$C$371,K$1,Divertible_Flow_OneYr!$BG$7:$BG$371,$A10) -> 0 | L10: =COUNTIFS(Divertible_Flow_OneYr!$C$7:$C$371,L$1,Divertible_Flow_OneYr!$BG$7:$BG$371,$A10) -> 0 | M10: =COUNTIFS(Divertible_Flow_OneYr!$C$7:$C$372,M$1,Divertible_Flow_OneYr!$BG$7:$BG$372,$A10) -> 0 | N10: 1
A11: Balance | B11: =COUNTIFS(Divertible_Flow_OneYr!$C$7:$C$371,B$1,Divertible_Flow_OneYr!$BG$7:$BG$371,$A11) -> 0 | C11: =COUNTIFS(Divertible_Flow_OneYr!$C$7:$C$371,C$1,Divertible_Flow_OneYr!$BG$7:$BG$371,$A11) -> 0 | D11: =COUNTIFS(Divertible_Flow_OneYr!$C$7:$C$371,D$1,Divertible_Flow_OneYr!$BG$7:$BG$371,$A11) -> 0 | E11: =COUNTIFS(Divertible_Flow_OneYr!$C$7:$C$371,E$1,Divertible_Flow_OneYr!$BG$7:$BG$371,$A11) -> 0 | F11: =COUNTIFS(Divertible_Flow_OneYr!$C$7:$C$371,F$1,Divertible_Flow_OneYr!$BG$7:$BG$371,$A11) -> 0 | G11: =COUNTIFS(Divertible_Flow_OneYr!$C$7:$C$371,G$1,Divertible_Flow_OneYr!$BG$7:$BG$371,$A11) -> 0 | H11: =COUNTIFS(Divertible_Flow_OneYr!$C$7:$C$371,H$1,Divertible_Flow_OneYr!$BG$7:$BG$371,$A11) -> 0 | I11: =COUNTIFS(Divertible_Flow_OneYr!$C$7:$C$371,I$1,Divertible_Flow_OneYr!$BG$7:$BG$371,$A11) -> 0 | J11: =COUNTIFS(Divertible_Flow_OneYr!$C$7:$C$371,J$1,Divertible_Flow_OneYr!$BG$7:$BG$371,$A11) -> 0 | K11: =COUNTIFS(Divertible_Flow_OneYr!$C$7:$C$371,K$1,Divertible_Flow_OneYr!$BG$7:$BG$371,$A11) -> 0 | L11: =COUNTIFS(Divertible_Flow_OneYr!$C$7:$C$371,L$1,Divertible_Flow_OneYr!$BG$7:$BG$371,$A11) -> 0 | M11: =COUNTIFS(Divertible_Flow_OneYr!$C$7:$C$372,M$1,Divertible_Flow_OneYr!$BG$7:$BG$372,$A11) -> 0 | N11: 0
A12: Term 91 | B12: =COUNTIFS(Divertible_Flow_OneYr!$C$7:$C$371,B$1,Divertible_Flow_OneYr!$BG$7:$BG$371,$A12) -> 0 | C12: =COUNTIFS(Divertible_Flow_OneYr!$C$7:$C$371,C$1,Divertible_Flow_OneYr!$BG$7:$BG$371,$A12) -> 0 | D12: =COUNTIFS(Divertible_Flow_OneYr!$C$7:$C$371,D$1,Divertible_Flow_OneYr!$BG$7:$BG$371,$A12) -> 0 | E12: =COUNTIFS(Divertible_Flow_OneYr!$C$7:$C$371,E$1,Divertible_Flow_OneYr!$BG$7:$BG$371,$A12) -> 0 | F12: =COUNTIFS(Divertible_Flow_OneYr!$C$7:$C$371,F$1,Divertible_Flow_OneYr!$BG$7:$BG$371,$A12) -> 0 | G12: =COUNTIFS(Divertible_Flow_OneYr!$C$7:$C$371,G$1,Divertible_Flow_OneYr!$BG$7:$BG$371,$A12) -> 0 | H12: =COUNTIFS(Divertible_Flow_OneYr!$C$7:$C$371,H$1,Divertible_Flow_OneYr!$BG$7:$BG$371,$A12) -> 0 | I12: =COUNTIFS(Divertible_Flow_OneYr!$C$7:$C$371,I$1,Divertible_Flow_OneYr!$BG$7:$BG$371,$A12) -> 0 | J12: =COUNTIFS(Divertible_Flow_OneYr!$C$7:$C$371,J$1,Divertible_Flow_OneYr!$BG$7:$BG$371,$A12) -> 0 | K12: =COUNTIFS(Divertible_Flow_OneYr!$C$7:$C$371,K$1,Divertible_Flow_OneYr!$BG$7:$BG$371,$A12) -> 0 | L12: =COUNTIFS(Divertible_Flow_OneYr!$C$7:$C$371,L$1,Divertible_Flow_OneYr!$BG$7:$BG$371,$A12) -> 0 | M12: =COUNTIFS(Divertible_Flow_OneYr!$C$7:$C$372,M$1,Divertible_Flow_OneYr!$BG$7:$BG$372,$A12) -> 0 | N12: 0
A13: Spring X2 | B13: =COUNTIFS(Divertible_Flow_OneYr!$C$7:$C$371,B$1,Divertible_Flow_OneYr!$BG$7:$BG$371,$A13) -> 0 | C13: =COUNTIFS(Divertible_Flow_OneYr!$C$7:$C$371,C$1,Divertible_Flow_OneYr!$BG$7:$BG$371,$A13) -> 0 | D13: =COUNTIFS(Divertible_Flow_OneYr!$C$7:$C$371,D$1,Divertible_Flow_OneYr!$BG$7:$BG$371,$A13) -> 0 | E13: =COUNTIFS(Divertible_Flow_OneYr!$C$7:$C$371,E$1,Divertible_Flow_OneYr!$BG$7:$BG$371,$A13) -> 0 | F13: =COUNTIFS(Divertible_Flow_OneYr!$C$7:$C$371,F$1,Divertible_Flow_OneYr!$BG$7:$BG$371,$A13) -> 0 | G13: =COUNTIFS(Divertible_Flow_OneYr!$C$7:$C$371,G$1,Divertible_Flow_OneYr!$BG$7:$BG$371,$A13) -> 0 | H13: =COUNTIFS(Divertible_Flow_OneYr!$C$7:$C$371,H$1,Divertible_Flow_OneYr!$BG$7:$BG$371,$A13) -> 0 | I13: =COUNTIFS(Divertible_Flow_OneYr!$C$7:$C$371,I$1,Divertible_Flow_OneYr!$BG$7:$BG$371,$A13) -> 0 | J13: =COUNTIFS(Divertible_Flow_OneYr!$C$7:$C$371,J$1,Divertible_Flow_OneYr!$BG$7:$BG$371,$A13) -> 0 | K13: =COUNTIFS(Divertible_Flow_OneYr!$C$7:$C$371,K$1,Divertible_Flow_OneYr!$BG$7:$BG$371,$A13) -> 0 | L13: =COUNTIFS(Divertible_Flow_OneYr!$C$7:$C$371,L$1,Divertible_Flow_OneYr!$BG$7:$BG$371,$A13) -> 0 | M13: =COUNTIFS(Divertible_Flow_OneYr!$C$7:$C$372,M$1,Divertible_Flow_OneYr!$BG$7:$BG$372,$A13) -> 0 | N13: 0
A14: Fall X2 | B14: =COUNTIFS(Divertible_Flow_OneYr!$C$7:$C$371,B$1,Divertible_Flow_OneYr!$BG$7:$BG$371,$A14) -> 0 | C14: =COUNTIFS(Divertible_Flow_OneYr!$C$7:$C$371,C$1,Divertible_Flow_OneYr!$BG$7:$BG$371,$A14) -> 12 | D14: =COUNTIFS(Divertible_Flow_OneYr!$C$7:$C$371,D$1,Divertible_Flow_OneYr!$BG$7:$BG$371,$A14) -> 0 | E14: =COUNTIFS(Divertible_Flow_OneYr!$C$7:$C$371,E$1,Divertible_Flow_OneYr!$BG$7:$BG$371,$A14) -> 0 | F14: =COUNTIFS(Divertible_Flow_OneYr!$C$7:$C$371,F$1,Divertible_Flow_OneYr!$BG$7:$BG$371,$A14) -> 0 | G14: =COUNTIFS(Divertible_Flow_OneYr!$C$7:$C$371,G$1,Divertible_Flow_OneYr!$BG$7:$BG$371,$A14) -> 0 | H14: =COUNTIFS(Divertible_Flow_OneYr!$C$7:$C$371,H$1,Divertible_Flow_OneYr!$BG$7:$BG$371,$A14) -> 0 | I14: =COUNTIFS(Divertible_Flow_OneYr!$C$7:$C$371,I$1,Divertible_Flow_OneYr!$BG$7:$BG$371,$A14) -> 0 | J14: =COUNTIFS(Divertible_Flow_OneYr!$C$7:$C$371,J$1,Divertible_Flow_OneYr!$BG$7:$BG$371,$A14) -> 0 | K14: =COUNTIFS(Divertible_Flow_OneYr!$C$7:$C$371,K$1,Divertible_Flow_OneYr!$BG$7:$BG$371,$A14) -> 0 | L14: =COUNTIFS(Divertible_Flow_OneYr!$C$7:$C$371,L$1,Divertible_Flow_OneYr!$BG$7:$BG$371,$A14) -> 0 | M14: =COUNTIFS(Divertible_Flow_OneYr!$C$7:$C$372,M$1,Divertible_Flow_OneYr!$BG$7:$BG$372,$A14) -> 0 | N14: 12
A15: EC | B15: =COUNTIFS(Divertible_Flow_OneYr!$C$7:$C$371,B$1,Divertible_Flow_OneYr!$BG$7:$BG$371,$A15) -> 0 | C15: =COUNTIFS(Divertible_Flow_OneYr!$C$7:$C$371,C$1,Divertible_Flow_OneYr!$BG$7:$BG$371,$A15) -> 0 | D15: =COUNTIFS(Divertible_Flow_OneYr!$C$7:$C$371,D$1,Divertible_Flow_OneYr!$BG$7:$BG$371,$A15) -> 0 | E15: =COUNTIFS(Divertible_Flow_OneYr!$C$7:$C$371,E$1,Divertible_Flow_OneYr!$BG$7:$BG$371,$A15) -> 0 | F15: =COUNTIFS(Divertible_Flow_OneYr!$C$7:$C$371,F$1,Divertible_Flow_OneYr!$BG$7:$BG$371,$A15) -> 0 | G15: =COUNTIFS(Divertible_Flow_OneYr!$C$7:$C$371,G$1,Divertible_Flow_OneYr!$BG$7:$BG$371,$A15) -> 0 | H15: =COUNTIFS(Divertible_Flow_OneYr!$C$7:$C$371,H$1,Divertible_Flow_OneYr!$BG$7:$BG$371,$A15) -> 0 | I15: =COUNTIFS(Divertible_Flow_OneYr!$C$7:$C$371,I$1,Divertible_Flow_OneYr!$BG$7:$BG$371,$A15) -> 0 | J15: =COUNTIFS(Divertible_Flow_OneYr!$C$7:$C$371,J$1,Divertible_Flow_OneYr!$BG$7:$BG$371,$A15) -> 0 | K15: =COUNTIFS(Divertible_Flow_OneYr!$C$7:$C$371,K$1,Divertible_Flow_OneYr!$BG$7:$BG$371,$A15) -> 0 | L15: =COUNTIFS(Divertible_Flow_OneYr!$C$7:$C$371,L$1,Divertible_Flow_OneYr!$BG$7:$BG$371,$A15) -> 0 | M15: =COUNTIFS(Divertible_Flow_OneYr!$C$7:$C$372,M$1,Divertible_Flow_OneYr!$BG$7:$BG$372,$A15) -> 0 | N15: 0
A16: Rio Vista | B16: =COUNTIFS(Divertible_Flow_OneYr!$C$7:$C$371,B$1,Divertible_Flow_OneYr!$BG$7:$BG$371,$A16) -> 0 | C16: =COUNTIFS(Divertible_Flow_OneYr!$C$7:$C$371,C$1,Divertible_Flow_OneYr!$BG$7:$BG$371,$A16) -> 0 | D16: =COUNTIFS(Divertible_Flow_OneYr!$C$7:$C$371,D$1,Divertible_Flow_OneYr!$BG$7:$BG$371,$A16) -> 0 | E16: =COUNTIFS(Divertible_Flow_OneYr!$C$7:$C$371,E$1,Divertible_Flow_OneYr!$BG$7:$BG$371,$A16) -> 0 | F16: =COUNTIFS(Divertible_Flow_OneYr!$C$7:$C$371,F$1,Divertible_Flow_OneYr!$BG$7:$BG$371,$A16) -> 0 | G16: =COUNTIFS(Divertible_Flow_OneYr!$C$7:$C$371,G$1,Divertible_Flow_OneYr!$BG$7:$BG$371,$A16) -> 0 | H16: =COUNTIFS(Divertible_Flow_OneYr!$C$7:$C$371,H$1,Divertible_Flow_OneYr!$BG$7:$BG$371,$A16) -> 0 | I16: =COUNTIFS(Divertible_Flow_OneYr!$C$7:$C$371,I$1,Divertible_Flow_OneYr!$BG$7:$BG$371,$A16) -> 0 | J16: =COUNTIFS(Divertible_Flow_OneYr!$C$7:$C$371,J$1,Divertible_Flow_OneYr!$BG$7:$BG$371,$A16) -> 0 | K16: =COUNTIFS(Divertible_Flow_OneYr!$C$7:$C$371,K$1,Divertible_Flow_OneYr!$BG$7:$BG$371,$A16) -> 0 | L16: =COUNTIFS(Divertible_Flow_OneYr!$C$7:$C$371,L$1,Divertible_Flow_OneYr!$BG$7:$BG$371,$A16) -> 0 | M16: =COUNTIFS(Divertible_Flow_OneYr!$C$7:$C$372,M$1,Divertible_Flow_OneYr!$BG$7:$BG$372,$A16) -> 0 | N16: 0
A17: Surplus Outflow (Feb-Mar) | B17: =COUNTIFS(Divertible_Flow_OneYr!$C$7:$C$371,B$1,Divertible_Flow_OneYr!$BG$7:$BG$371,$A17) -> 0 | C17: =COUNTIFS(Divertible_Flow_OneYr!$C$7:$C$371,C$1,Divertible_Flow_OneYr!$BG$7:$BG$371,$A17) -> 0 | D17: =COUNTIFS(Divertible_Flow_OneYr!$C$7:$C$371,D$1,Divertible_Flow_OneYr!$BG$7:$BG$371,$A17) -> 0 | E17: =COUNTIFS(Divertible_Flow_OneYr!$C$7:$C$371,E$1,Divertible_Flow_OneYr!$BG$7:$BG$371,$A17) -> 0 | F17: =COUNTIFS(Divertible_Flow_OneYr!$C$7:$C$371,F$1,Divertible_Flow_OneYr!$BG$7:$BG$371,$A17) -> 7 | G17: =COUNTIFS(Divertible_Flow_OneYr!$C$7:$C$371,G$1,Divertible_Flow_OneYr!$BG$7:$BG$371,$A17) -> 0 | H17: =COUNTIFS(Divertible_Flow_OneYr!$C$7:$C$371,H$1,Divertible_Flow_OneYr!$BG$7:$BG$371,$A17) -> 0 | I17: =COUNTIFS(Divertible_Flow_OneYr!$C$7:$C$371,I$1,Divertible_Flow_OneYr!$BG$7:$BG$371,$A17) -> 0 | J17: =COUNTIFS(Divertible_Flow_OneYr!$C$7:$C$371,J$1,Divertible_Flow_OneYr!$BG$7:$BG$371,$A17) -> 0 | K17: =COUNTIFS(Divertible_Flow_OneYr!$C$7:$C$371,K$1,Divertible_Flow_OneYr!$BG$7:$BG$371,$A17) -> 0 | L17: =COUNTIFS(Divertible_Flow_OneYr!$C$7:$C$371,L$1,Divertible_Flow_OneYr!$BG$7:$BG$371,$A17) -> 0 | M17: =COUNTIFS(Divertible_Flow_OneYr!$C$7:$C$372,M$1,Divertible_Flow_OneYr!$BG$7:$BG$372,$A17) -> 0 | N17: 7
A18: Intake Capacity | B18: =COUNTIFS(Divertible_Flow_OneYr!$C$7:$C$371,B$1,Divertible_Flow_OneYr!$BG$7:$BG$371,$A18) -> 0 | C18: =COUNTIFS(Divertible_Flow_OneYr!$C$7:$C$371,C$1,Divertible_Flow_OneYr!$BG$7:$BG$371,$A18) -> 0 | D18: =COUNTIFS(Divertible_Flow_OneYr!$C$7:$C$371,D$1,Divertible_Flow_OneYr!$BG$7:$BG$371,$A18) -> 19 | E18: =COUNTIFS(Divertible_Flow_OneYr!$C$7:$C$371,E$1,Divertible_Flow_OneYr!$BG$7:$BG$371,$A18) -> 21 | F18: =COUNTIFS(Divertible_Flow_OneYr!$C$7:$C$371,F$1,Divertible_Flow_OneYr!$BG$7:$BG$371,$A18) -> 0 | G18: =COUNTIFS(Divertible_Flow_OneYr!$C$7:$C$371,G$1,Divertible_Flow_OneYr!$BG$7:$BG$371,$A18) -> 22 | H18: =COUNTIFS(Divertible_Flow_OneYr!$C$7:$C$371,H$1,Divertible_Flow_OneYr!$BG$7:$BG$371,$A18) -> 23 | I18: =COUNTIFS(Divertible_Flow_OneYr!$C$7:$C$371,I$1,Divertible_Flow_OneYr!$BG$7:$BG$371,$A18) -> 0 | J18: =COUNTIFS(Divertible_Flow_OneYr!$C$7:$C$371,J$1,Divertible_Flow_OneYr!$BG$7:$BG$371,$A18) -> 0 | K18: =COUNTIFS(Divertible_Flow_OneYr!$C$7:$C$371,K$1,Divertible_Flow_OneYr!$BG$7:$BG$371,$A18) -> 0 | L18: =COUNTIFS(Divertible_Flow_OneYr!$C$7:$C$371,L$1,Divertible_Flow_OneYr!$BG$7:$BG$371,$A18) -> 0 | M18: =COUNTIFS(Divertible_Flow_OneYr!$C$7:$C$372,M$1,Divertible_Flow_OneYr!$BG$7:$BG$372,$A18) -> 0 | N18: 85
A19: Red Bluff Bypass | B19: =COUNTIFS(Divertible_Flow_OneYr!$C$7:$C$371,B$1,Divertible_Flow_OneYr!$BG$7:$BG$371,$A19) -> 0 | C19: =COUNTIFS(Divertible_Flow_OneYr!$C$7:$C$371,C$1,Divertible_Flow_OneYr!$BG$7:$BG$371,$A19) -> 0 | D19: =COUNTIFS(Divertible_Flow_OneYr!$C$7:$C$371,D$1,Divertible_Flow_OneYr!$BG$7:$BG$371,$A19) -> 0 | E19: =COUNTIFS(Divertible_Flow_OneYr!$C$7:$C$371,E$1,Divertible_Flow_OneYr!$BG$7:$BG$371,$A19) -> 0 | F19: =COUNTIFS(Divertible_Flow_OneYr!$C$7:$C$371,F$1,Divertible_Flow_OneYr!$BG$7:$BG$371,$A19) -> 0 | G19: =COUNTIFS(Divertible_Flow_OneYr!$C$7:$C$371,G$1,Divertible_Flow_OneYr!$BG$7:$BG$371,$A19) -> 0 | H19: =COUNTIFS(Divertible_Flow_OneYr!$C$7:$C$371,H$1,Divertible_Flow_OneYr!$BG$7:$BG$371,$A19) -> 0 | I19: =COUNTIFS(Divertible_Flow_OneYr!$C$7:$C$371,I$1,Divertible_Flow_OneYr!$BG$7:$BG$371,$A19) -> 0 | J19: =COUNTIFS(Divertible_Flow_OneYr!$C$7:$C$371,J$1,Divertible_Flow_OneYr!$BG$7:$BG$371,$A19) -> 0 | K19: =COUNTIFS(Divertible_Flow_OneYr!$C$7:$C$371,K$1,Divertible_Flow_OneYr!$BG$7:$BG$371,$A19) -> 0 | L19: =COUNTIFS(Divertible_Flow_OneYr!$C$7:$C$371,L$1,Divertible_Flow_OneYr!$BG$7:$BG$371,$A19) -> 0 | M19: =COUNTIFS(Divertible_Flow_OneYr!$C$7:$C$372,M$1,Divertible_Flow_OneYr!$BG$7:$BG$372,$A19) -> 0 | N19: 0
A20: Hamilton City Bypass | B20: =COUNTIFS(Divertible_Flow_OneYr!$C$7:$C$371,B$1,Divertible_Flow_OneYr!$BG$7:$BG$371,$A20) -> 0 | C20: =COUNTIFS(Divertible_Flow_OneYr!$C$7:$C$371,C$1,Divertible_Flow_OneYr!$BG$7:$BG$371,$A20) -> 0 | D20: =COUNTIFS(Divertible_Flow_OneYr!$C$7:$C$371,D$1,Divertible_Flow_OneYr!$BG$7:$BG$371,$A20) -> 0 | E20: =COUNTIFS(Divertible_Flow_OneYr!$C$7:$C$371,E$1,Divertible_Flow_OneYr!$BG$7:$BG$371,$A20) -> 0 | F20: =COUNTIFS(Divertible_Flow_OneYr!$C$7:$C$371,F$1,Divertible_Flow_OneYr!$BG$7:$BG$371,$A20) -> 0 | G20: =COUNTIFS(Divertible_Flow_OneYr!$C$7:$C$371,G$1,Divertible_Flow_OneYr!$BG$7:$BG$371,$A20) -> 0 | H20: =COUNTIFS(Divertible_Flow_OneYr!$C$7:$C$371,H$1,Divertible_Flow_OneYr!$BG$7:$BG$371,$A20) -> 0 | I20: =COUNTIFS(Divertible_Flow_OneYr!$C$7:$C$371,I$1,Divertible_Flow_OneYr!$BG$7:$BG$371,$A20) -> 0 | J20: =COUNTIFS(Divertible_Flow_OneYr!$C$7:$C$371,J$1,Divertible_Flow_OneYr!$BG$7:$BG$371,$A20) -> 0 | K20: =COUNTIFS(Divertible_Flow_OneYr!$C$7:$C$371,K$1,Divertible_Flow_OneYr!$BG$7:$BG$371,$A20) -> 0 | L20: =COUNTIFS(Divertible_Flow_OneYr!$C$7:$C$371,L$1,Divertible_Flow_OneYr!$BG$7:$BG$371,$A20) -> 0 | M20: =COUNTIFS(Divertible_Flow_OneYr!$C$7:$C$372,M$1,Divertible_Flow_OneYr!$BG$7:$BG$372,$A20) -> 0 | N20: 0
A21: Delevan Bypass | B21: =COUNTIFS(Divertible_Flow_OneYr!$C$7:$C$371,B$1,Divertible_Flow_OneYr!$BG$7:$BG$371,$A21) -> 0 | C21: =COUNTIFS(Divertible_Flow_OneYr!$C$7:$C$371,C$1,Divertible_Flow_OneYr!$BG$7:$BG$371,$A21) -> 0 | D21: =COUNTIFS(Divertible_Flow_OneYr!$C$7:$C$371,D$1,Divertible_Flow_OneYr!$BG$7:$BG$371,$A21) -> 0 | E21: =COUNTIFS(Divertible_Flow_OneYr!$C$7:$C$371,E$1,Divertible_Flow_OneYr!$BG$7:$BG$371,$A21) -> 0 | F21: =COUNTIFS(Divertible_Flow_OneYr!$C$7:$C$371,F$1,Divertible_Flow_OneYr!$BG$7:$BG$371,$A21) -> 0 | G21: =COUNTIFS(Divertible_Flow_OneYr!$C$7:$C$371,G$1,Divertible_Flow_OneYr!$BG$7:$BG$371,$A21) -> 0 | H21: =COUNTIFS(Divertible_Flow_OneYr!$C$7:$C$371,H$1,Divertible_Flow_OneYr!$BG$7:$BG$371,$A21) -> 0 | I21: =COUNTIFS(Divertible_Flow_OneYr!$C$7:$C$371,I$1,Divertible_Flow_OneYr!$BG$7:$BG$371,$A21) -> 0 | J21: =COUNTIFS(Divertible_Flow_OneYr!$C$7:$C$371,J$1,Divertible_Flow_OneYr!$BG$7:$BG$371,$A21) -> 0 | K21: =COUNTIFS(Divertible_Flow_OneYr!$C$7:$C$371,K$1,Divertible_Flow_OneYr!$BG$7:$BG$371,$A21) -> 0 | L21: =COUNTIFS(Divertible_Flow_OneYr!$C$7:$C$371,L$1,Divertible_Flow_OneYr!$BG$7:$BG$371,$A21) -> 0 | M21: =COUNTIFS(Divertible_Flow_OneYr!$C$7:$C$372,M$1,Divertible_Flow_OneYr!$BG$7:$BG$372,$A21) -> 0 | N21: 0
A22: Wilkins Slough Bypass | B22: =COUNTIFS(Divertible_Flow_OneYr!$C$7:$C$371,B$1,Divertible_Flow_OneYr!$BG$7:$BG$371,$A22) -> 0 | C22: =COUNTIFS(Divertible_Flow_OneYr!$C$7:$C$371,C$1,Divertible_Flow_OneYr!$BG$7:$BG$371,$A22) -> 17 | D22: =COUNTIFS(Divertible_Flow_OneYr!$C$7:$C$371,D$1,Divertible_Flow_OneYr!$BG$7:$BG$371,$A22) -> 6 | E22: =COUNTIFS(Divertible_Flow_OneYr!$C$7:$C$371,E$1,Divertible_Flow_OneYr!$BG$7:$BG$371,$A22) -> 10 | F22: =COUNTIFS(Divertible_Flow_OneYr!$C$7:$C$371,F$1,Divertible_Flow_OneYr!$BG$7:$BG$371,$A22) -> 14 | G22: =COUNTIFS(Divertible_Flow_OneYr!$C$7:$C$371,G$1,Divertible_Flow_OneYr!$BG$7:$BG$371,$A22) -> 7 | H22: =COUNTIFS(Divertible_Flow_OneYr!$C$7:$C$371,H$1,Divertible_Flow_OneYr!$BG$7:$BG$371,$A22) -> 7 | I22: =COUNTIFS(Divertible_Flow_OneYr!$C$7:$C$371,I$1,Divertible_Flow_OneYr!$BG$7:$BG$371,$A22) -> 25 | J22: =COUNTIFS(Divertible_Flow_OneYr!$C$7:$C$371,J$1,Divertible_Flow_OneYr!$BG$7:$BG$371,$A22) -> 0 | K22: =COUNTIFS(Divertible_Flow_OneYr!$C$7:$C$371,K$1,Divertible_Flow_OneYr!$BG$7:$BG$371,$A22) -> 0 | L22: =COUNTIFS(Divertible_Flow_OneYr!$C$7:$C$371,L$1,Divertible_Flow_OneYr!$BG$7:$BG$371,$A22) -> 0 | M22: =COUNTIFS(Divertible_Flow_OneYr!$C$7:$C$372,M$1,Divertible_Flow_OneYr!$BG$7:$BG$372,$A22) -> 0 | N22: 86
A23: Freeport Bypass | B23: =COUNTIFS(Divertible_Flow_OneYr!$C$7:$C$371,B$1,Divertible_Flow_OneYr!$BG$7:$BG$371,$A23) -> 0 | C23: =COUNTIFS(Divertible_Flow_OneYr!$C$7:$C$371,C$1,Divertible_Flow_OneYr!$BG$7:$BG$371,$A23) -> 0 | D23: =COUNTIFS(Divertible_Flow_OneYr!$C$7:$C$371,D$1,Divertible_Flow_OneYr!$BG$7:$BG$371,$A23) -> 0 | E23: =COUNTIFS(Divertible_Flow_OneYr!$C$7:$C$371,E$1,Divertible_Flow_OneYr!$BG$7:$BG$371,$A23) -> 0 | F23: =COUNTIFS(Divertible_Flow_OneYr!$C$7:$C$371,F$1,Divertible_Flow_OneYr!$BG$7:$BG$371,$A23) -> 0 | G23: =COUNTIFS(Divertible_Flow_OneYr!$C$7:$C$371,G$1,Divertible_Flow_OneYr!$BG$7:$BG$371,$A23) -> 0 | H23: =COUNTIFS(Divertible_Flow_OneYr!$C$7:$C$371,H$1,Divertible_Flow_OneYr!$BG$7:$BG$371,$A23) -> 0 | I23: =COUNTIFS(Divertible_Flow_OneYr!$C$7:$C$371,I$1,Divertible_Flow_OneYr!$BG$7:$BG$371,$A23) -> 0 | J23: =COUNTIFS(Divertible_Flow_OneYr!$C$7:$C$371,J$1,Divertible_Flow_OneYr!$BG$7:$BG$371,$A23) -> 0 | K23: =COUNTIFS(Divertible_Flow_OneYr!$C$7:$C$371,K$1,Divertible_Flow_OneYr!$BG$7:$BG$371,$A23) -> 0 | L23: =COUNTIFS(Divertible_Flow_OneYr!$C$7:$C$371,L$1,Divertible_Flow_OneYr!$BG$7:$BG$371,$A23) -> 0 | M23: =COUNTIFS(Divertible_Flow_OneYr!$C$7:$C$372,M$1,Divertible_Flow_OneYr!$BG$7:$BG$372,$A23) -> 0 | N23: 0
A24: Delta Outflow Bypass | B24: =COUNTIFS(Divertible_Flow_OneYr!$C$7:$C$371,B$1,Divertible_Flow_OneYr!$BG$7:$BG$371,$A24) -> 0 | C24: =COUNTIFS(Divertible_Flow_OneYr!$C$7:$C$371,C$1,Divertible_Flow_OneYr!$BG$7:$BG$371,$A24) -> 0 | D24: =COUNTIFS(Divertible_Flow_OneYr!$C$7:$C$371,D$1,Divertible_Flow_OneYr!$BG$7:$BG$371,$A24) -> 0 | E24: =COUNTIFS(Divertible_Flow_OneYr!$C$7:$C$371,E$1,Divertible_Flow_OneYr!$BG$7:$BG$371,$A24) -> 0 | F24: =COUNTIFS(Divertible_Flow_OneYr!$C$7:$C$371,F$1,Divertible_Flow_OneYr!$BG$7:$BG$371,$A24) -> 0 | G24: =COUNTIFS(Divertible_Flow_OneYr!$C$7:$C$371,G$1,Divertible_Flow_OneYr!$BG$7:$BG$371,$A24) -> 0 | H24: =COUNTIFS(Divertible_Flow_OneYr!$C$7:$C$371,H$1,Divertible_Flow_OneYr!$BG$7:$BG$371,$A24) -> 0 | I24: =COUNTIFS(Divertible_Flow_OneYr!$C$7:$C$371,I$1,Divertible_Flow_OneYr!$BG$7:$BG$371,$A24) -> 5 | J24: =COUNTIFS(Divertible_Flow_OneYr!$C$7:$C$371,J$1,Divertible_Flow_OneYr!$BG$7:$BG$371,$A24) -> 0 | K24: =COUNTIFS(Divertible_Flow_OneYr!$C$7:$C$371,K$1,Divertible_Flow_OneYr!$BG$7:$BG$371,$A24) -> 0 | L24: =COUNTIFS(Divertible_Flow_OneYr!$C$7:$C$371,L$1,Divertible_Flow_OneYr!$BG$7:$BG$371,$A24) -> 0 | M24: =COUNTIFS(Divertible_Flow_OneYr!$C$7:$C$372,M$1,Divertible_Flow_OneYr!$BG$7:$BG$372,$A24) -> 0 | N24: 5
A25: Fremont Weir Criteria | B25: =COUNTIFS(Divertible_Flow_OneYr!$C$7:$C$371,B$1,Divertible_Flow_OneYr!$BG$7:$BG$371,$A25) -> 0 | C25: =COUNTIFS(Divertible_Flow_OneYr!$C$7:$C$371,C$1,Divertible_Flow_OneYr!$BG$7:$BG$371,$A25) -> 0 | D25: =COUNTIFS(Divertible_Flow_OneYr!$C$7:$C$371,D$1,Divertible_Flow_OneYr!$BG$7:$BG$371,$A25) -> 0 | E25: =COUNTIFS(Divertible_Flow_OneYr!$C$7:$C$371,E$1,Divertible_Flow_OneYr!$BG$7:$BG$371,$A25) -> 0 | F25: =COUNTIFS(Divertible_Flow_OneYr!$C$7:$C$371,F$1,Divertible_Flow_OneYr!$BG$7:$BG$371,$A25) -> 0 | G25: =COUNTIFS(Divertible_Flow_OneYr!$C$7:$C$371,G$1,Divertible_Flow_OneYr!$BG$7:$BG$371,$A25) -> 0 | H25: =COUNTIFS(Divertible_Flow_OneYr!$C$7:$C$371,H$1,Divertible_Flow_OneYr!$BG$7:$BG$371,$A25) -> 0 | I25: =COUNTIFS(Divertible_Flow_OneYr!$C$7:$C$371,I$1,Divertible_Flow_OneYr!$BG$7:$BG$371,$A25) -> 0 | J25: =COUNTIFS(Divertible_Flow_OneYr!$C$7:$C$371,J$1,Divertible_Flow_OneYr!$BG$7:$BG$371,$A25) -> 0 | K25: =COUNTIFS(Divertible_Flow_OneYr!$C$7:$C$371,K$1,Divertible_Flow_OneYr!$BG$7:$BG$371,$A25) -> 0 | L25: =COUNTIFS(Divertible_Flow_OneYr!$C$7:$C$371,L$1,Divertible_Flow_OneYr!$BG$7:$BG$371,$A25) -> 0 | M25: =COUNTIFS(Divertible_Flow_OneYr!$C$7:$C$372,M$1,Divertible_Flow_OneYr!$BG$7:$BG$372,$A25) -> 0 | N25: 0
A26: Tisdale Weir Criteria | B26: =COUNTIFS(Divertible_Flow_OneYr!$C$7:$C$371,B$1,Divertible_Flow_OneYr!$BG$7:$BG$371,$A26) -> 0 | C26: =COUNTIFS(Divertible_Flow_OneYr!$C$7:$C$371,C$1,Divertible_Flow_OneYr!$BG$7:$BG$371,$A26) -> 0 | D26: =COUNTIFS(Divertible_Flow_OneYr!$C$7:$C$371,D$1,Divertible_Flow_OneYr!$BG$7:$BG$371,$A26) -> 0 | E26: =COUNTIFS(Divertible_Flow_OneYr!$C$7:$C$371,E$1,Divertible_Flow_OneYr!$BG$7:$BG$371,$A26) -> 0 | F26: =COUNTIFS(Divertible_Flow_OneYr!$C$7:$C$371,F$1,Divertible_Flow_OneYr!$BG$7:$BG$371,$A26) -> 0 | G26: =COUNTIFS(Divertible_Flow_OneYr!$C$7:$C$371,G$1,Divertible_Flow_OneYr!$BG$7:$BG$371,$A26) -> 0 | H26: =COUNTIFS(Divertible_Flow_OneYr!$C$7:$C$371,H$1,Divertible_Flow_OneYr!$BG$7:$BG$371,$A26) -> 0 | I26: =COUNTIFS(Divertible_Flow_OneYr!$C$7:$C$371,I$1,Divertible_Flow_OneYr!$BG$7:$BG$371,$A26) -> 0 | J26: =COUNTIFS(Divertible_Flow_OneYr!$C$7:$C$371,J$1,Divertible_Flow_OneYr!$BG$7:$BG$371,$A26) -> 0 | K26: =COUNTIFS(Divertible_Flow_OneYr!$C$7:$C$371,K$1,Divertible_Flow_OneYr!$BG$7:$BG$371,$A26) -> 0 | L26: =COUNTIFS(Divertible_Flow_OneYr!$C$7:$C$371,L$1,Divertible_Flow_OneYr!$BG$7:$BG$371,$A26) -> 0 | M26: =COUNTIFS(Divertible_Flow_OneYr!$C$7:$C$372,M$1,Divertible_Flow_OneYr!$BG$7:$BG$372,$A26) -> 0 | N26: =SUM(B26:M26) -> 0
A27: Scaled Protection Criteria | B27: =COUNTIFS(Divertible_Flow_OneYr!$C$7:$C$371,B$1,Divertible_Flow_OneYr!$BG$7:$BG$371,$A27) -> 0 | C27: =COUNTIFS(Divertible_Flow_OneYr!$C$7:$C$371,C$1,Divertible_Flow_OneYr!$BG$7:$BG$371,$A27) -> 0 | D27: =COUNTIFS(Divertible_Flow_OneYr!$C$7:$C$371,D$1,Divertible_Flow_OneYr!$BG$7:$BG$371,$A27) -> 0 | E27: =COUNTIFS(Divertible_Flow_OneYr!$C$7:$C$371,E$1,Divertible_Flow_OneYr!$BG$7:$BG$371,$A27) -> 0 | F27: =COUNTIFS(Divertible_Flow_OneYr!$C$7:$C$371,F$1,Divertible_Flow_OneYr!$BG$7:$BG$371,$A27) -> 0 | G27: =COUNTIFS(Divertible_Flow_OneYr!$C$7:$C$371,G$1,Divertible_Flow_OneYr!$BG$7:$BG$371,$A27) -> 0 | H27: =COUNTIFS(Divertible_Flow_OneYr!$C$7:$C$371,H$1,Divertible_Flow_OneYr!$BG$7:$BG$371,$A27) -> 0 | I27: =COUNTIFS(Divertible_Flow_OneYr!$C$7:$C$371,I$1,Divertible_Flow_OneYr!$BG$7:$BG$371,$A27) -> 0 | J27: =COUNTIFS(Divertible_Flow_OneYr!$C$7:$C$371,J$1,Divertible_Flow_OneYr!$BG$7:$BG$371,$A27) -> 0 | K27: =COUNTIFS(Divertible_Flow_OneYr!$C$7:$C$371,K$1,Divertible_Flow_OneYr!$BG$7:$BG$371,$A27) -> 0 | L27: =COUNTIFS(Divertible_Flow_OneYr!$C$7:$C$371,L$1,Divertible_Flow_OneYr!$BG$7:$BG$371,$A27) -> 0 | M27: =COUNTIFS(Divertible_Flow_OneYr!$C$7:$C$372,M$1,Divertible_Flow_OneYr!$BG$7:$BG$372,$A27) -> 0 | N27: 0
A28: Hydraulic Curve | B28: =COUNTIFS(Divertible_Flow_OneYr!$C$7:$C$371,B$1,Divertible_Flow_OneYr!$BG$7:$BG$371,$A28) -> 0 | C28: =COUNTIFS(Divertible_Flow_OneYr!$C$7:$C$371,C$1,Divertible_Flow_OneYr!$BG$7:$BG$371,$A28) -> 0 | D28: =COUNTIFS(Divertible_Flow_OneYr!$C$7:$C$371,D$1,Divertible_Flow_OneYr!$BG$7:$BG$371,$A28) -> 0 | E28: =COUNTIFS(Divertible_Flow_OneYr!$C$7:$C$371,E$1,Divertible_Flow_OneYr!$BG$7:$BG$371,$A28) -> 0 | F28: =COUNTIFS(Divertible_Flow_OneYr!$C$7:$C$371,F$1,Divertible_Flow_OneYr!$BG$7:$BG$371,$A28) -> 0 | G28: =COUNTIFS(Divertible_Flow_OneYr!$C$7:$C$371,G$1,Divertible_Flow_OneYr!$BG$7:$BG$371,$A28) -> 0 | H28: =COUNTIFS(Divertible_Flow_OneYr!$C$7:$C$371,H$1,Divertible_Flow_OneYr!$BG$7:$BG$371,$A28) -> 0 | I28: =COUNTIFS(Divertible_Flow_OneYr!$C$7:$C$371,I$1,Divertible_Flow_OneYr!$BG$7:$BG$371,$A28) -> 0 | J28: =COUNTIFS(Divertible_Flow_OneYr!$C$7:$C$371,J$1,Divertible_Flow_OneYr!$BG$7:$BG$371,$A28) -> 0 | K28: =COUNTIFS(Divertible_Flow_OneYr!$C$7:$C$371,K$1,Divertible_Flow_OneYr!$BG$7:$BG$371,$A28) -> 0 | L28: =COUNTIFS(Divertible_Flow_OneYr!$C$7:$C$371,L$1,Divertible_Flow_OneYr!$BG$7:$BG$371,$A28) -> 0 | M28: =COUNTIFS(Divertible_Flow_OneYr!$C$7:$C$372,M$1,Divertible_Flow_OneYr!$BG$7:$BG$372,$A28) -> 0 | N28: 0
A29: Table1 | B29: =COUNTIFS(Divertible_Flow_OneYr!$C$7:$C$371,B$1,Divertible_Flow_OneYr!$BG$7:$BG$371,$A29) -> 0 | C29: =COUNTIFS(Divertible_Flow_OneYr!$C$7:$C$371,C$1,Divertible_Flow_OneYr!$BG$7:$BG$371,$A29) -> 0 | D29: =COUNTIFS(Divertible_Flow_OneYr!$C$7:$C$371,D$1,Divertible_Flow_OneYr!$BG$7:$BG$371,$A29) -> 0 | E29: =COUNTIFS(Divertible_Flow_OneYr!$C$7:$C$371,E$1,Divertible_Flow_OneYr!$BG$7:$BG$371,$A29) -> 0 | F29: =COUNTIFS(Divertible_Flow_OneYr!$C$7:$C$371,F$1,Divertible_Flow_OneYr!$BG$7:$BG$371,$A29) -> 0 | G29: =COUNTIFS(Divertible_Flow_OneYr!$C$7:$C$371,G$1,Divertible_Flow_OneYr!$BG$7:$BG$371,$A29) -> 0 | H29: =COUNTIFS(Divertible_Flow_OneYr!$C$7:$C$371,H$1,Divertible_Flow_OneYr!$BG$7:$BG$371,$A29) -> 0 | I29: =COUNTIFS(Divertible_Flow_OneYr!$C$7:$C$371,I$1,Divertible_Flow_OneYr!$BG$7:$BG$371,$A29) -> 0 | J29: =COUNTIFS(Divertible_Flow_OneYr!$C$7:$C$371,J$1,Divertible_Flow_OneYr!$BG$7:$BG$371,$A29) -> 0 | K29: =COUNTIFS(Divertible_Flow_OneYr!$C$7:$C$371,K$1,Divertible_Flow_OneYr!$BG$7:$BG$371,$A29) -> 0 | L29: =COUNTIFS(Divertible_Flow_OneYr!$C$7:$C$371,L$1,Divertible_Flow_OneYr!$BG$7:$BG$371,$A29) -> 0 | M29: =COUNTIFS(Divertible_Flow_OneYr!$C$7:$C$372,M$1,Divertible_Flow_OneYr!$BG$7:$BG$372,$A29) -> 0 | N29: 0
A30: Pulse Flow (Bend Bridge) | B30: =COUNTIFS(Divertible_Flow_OneYr!$C$7:$C$371,B$1,Divertible_Flow_OneYr!$BG$7:$BG$371,$A30) -> 0 | C30: =COUNTIFS(Divertible_Flow_OneYr!$C$7:$C$371,C$1,Divertible_Flow_OneYr!$BG$7:$BG$371,$A30) -> 0 | D30: =COUNTIFS(Divertible_Flow_OneYr!$C$7:$C$371,D$1,Divertible_Flow_OneYr!$BG$7:$BG$371,$A30) -> 6 | E30: =COUNTIFS(Divertible_Flow_OneYr!$C$7:$C$371,E$1,Divertible_Flow_OneYr!$BG$7:$BG$371,$A30) -> 0 | F30: =COUNTIFS(Divertible_Flow_OneYr!$C$7:$C$371,F$1,Divertible_Flow_OneYr!$BG$7:$BG$371,$A30) -> 7 | G30: =COUNTIFS(Divertible_Flow_OneYr!$C$7:$C$371,G$1,Divertible_Flow_OneYr!$BG$7:$BG$371,$A30) -> 0 | H30: =COUNTIFS(Divertible_Flow_OneYr!$C$7:$C$371,H$1,Divertible_Flow_OneYr!$BG$7:$BG$371,$A30) -> 0 | I30: =COUNTIFS(Divertible_Flow_OneYr!$C$7:$C$371,I$1,Divertible_Flow_OneYr!$BG$7:$BG$371,$A30) -> 0 | J30: =COUNTIFS(Divertible_Flow_OneYr!$C$7:$C$371,J$1,Divertible_Flow_OneYr!$BG$7:$BG$371,$A30) -> 0 | K30: =COUNTIFS(Divertible_Flow_OneYr!$C$7:$C$371,K$1,Divertible_Flow_OneYr!$BG$7:$BG$371,$A30) -> 0 | L30: =COUNTIFS(Divertible_Flow_OneYr!$C$7:$C$371,L$1,Divertible_Flow_OneYr!$BG$7:$BG$371,$A30) -> 0 | M30: =COUNTIFS(Divertible_Flow_OneYr!$C$7:$C$372,M$1,Divertible_Flow_OneYr!$BG$7:$BG$372,$A30) -> 0 | N30: 13
A31: Freeport Pulse (Fish-based) | B31: =COUNTIFS(Divertible_Flow_OneYr!$C$7:$C$371,B$1,Divertible_Flow_OneYr!$BG$7:$BG$371,$A31) -> 0 | C31: =COUNTIFS(Divertible_Flow_OneYr!$C$7:$C$371,C$1,Divertible_Flow_OneYr!$BG$7:$BG$371,$A31) -> 0 | D31: =COUNTIFS(Divertible_Flow_OneYr!$C$7:$C$371,D$1,Divertible_Flow_OneYr!$BG$7:$BG$371,$A31) -> 0 | E31: =COUNTIFS(Divertible_Flow_OneYr!$C$7:$C$371,E$1,Divertible_Flow_OneYr!$BG$7:$BG$371,$A31) -> 0 | F31: =COUNTIFS(Divertible_Flow_OneYr!$C$7:$C$371,F$1,Divertible_Flow_OneYr!$BG$7:$BG$371,$A31) -> 0 | G31: =COUNTIFS(Divertible_Flow_OneYr!$C$7:$C$371,G$1,Divertible_Flow_OneYr!$BG$7:$BG$371,$A31) -> 0 | H31: =COUNTIFS(Divertible_Flow_OneYr!$C$7:$C$371,H$1,Divertible_Flow_OneYr!$BG$7:$BG$371,$A31) -> 0 | I31: =COUNTIFS(Divertible_Flow_OneYr!$C$7:$C$371,I$1,Divertible_Flow_OneYr!$BG$7:$BG$371,$A31) -> 0 | J31: =COUNTIFS(Divertible_Flow_OneYr!$C$7:$C$371,J$1,Divertible_Flow_OneYr!$BG$7:$BG$371,$A31) -> 0 | K31: =COUNTIFS(Divertible_Flow_OneYr!$C$7:$C$371,K$1,Divertible_Flow_OneYr!$BG$7:$BG$371,$A31) -> 0 | L31: =COUNTIFS(Divertible_Flow_OneYr!$C$7:$C$371,L$1,Divertible_Flow_OneYr!$BG$7:$BG$371,$A31) -> 0 | M31: =COUNTIFS(Divertible_Flow_OneYr!$C$7:$C$372,M$1,Divertible_Flow_OneYr!$BG$7:$BG$372,$A31) -> 0 | N31: =SUM(B31:M31) -> 0
A32: Freeport Pulse (Flow-based) | B32: =COUNTIFS(Divertible_Flow_OneYr!$C$7:$C$371,B$1,Divertible_Flow_OneYr!$BG$7:$BG$371,$A32) -> 0 | C32: =COUNTIFS(Divertible_Flow_OneYr!$C$7:$C$371,C$1,Divertible_Flow_OneYr!$BG$7:$BG$371,$A32) -> 0 | D32: =COUNTIFS(Divertible_Flow_OneYr!$C$7:$C$371,D$1,Divertible_Flow_OneYr!$BG$7:$BG$371,$A32) -> 0 | E32: =COUNTIFS(Divertible_Flow_OneYr!$C$7:$C$371,E$1,Divertible_Flow_OneYr!$BG$7:$BG$371,$A32) -> 0 | F32: =COUNTIFS(Divertible_Flow_OneYr!$C$7:$C$371,F$1,Divertible_Flow_OneYr!$BG$7:$BG$371,$A32) -> 0 | G32: =COUNTIFS(Divertible_Flow_OneYr!$C$7:$C$371,G$1,Divertible_Flow_OneYr!$BG$7:$BG$371,$A32) -> 0 | H32: =COUNTIFS(Divertible_Flow_OneYr!$C$7:$C$371,H$1,Divertible_Flow_OneYr!$BG$7:$BG$371,$A32) -> 0 | I32: =COUNTIFS(Divertible_Flow_OneYr!$C$7:$C$371,I$1,Divertible_Flow_OneYr!$BG$7:$BG$371,$A32) -> 0 | J32: =COUNTIFS(Divertible_Flow_OneYr!$C$7:$C$371,J$1,Divertible_Flow_OneYr!$BG$7:$BG$371,$A32) -> 0 | K32: =COUNTIFS(Divertible_Flow_OneYr!$C$7:$C$371,K$1,Divertible_Flow_OneYr!$BG$7:$BG$371,$A32) -> 0 | L32: =COUNTIFS(Divertible_Flow_OneYr!$C$7:$C$371,L$1,Divertible_Flow_OneYr!$BG$7:$BG$371,$A32) -> 0 | M32: =COUNTIFS(Divertible_Flow_OneYr!$C$7:$C$372,M$1,Divertible_Flow_OneYr!$BG$7:$BG$372,$A32) -> 0 | N32: =SUM(B32:M32) -> 0
A33: Minimum Pumping | B33: =COUNTIFS(Divertible_Flow_OneYr!$C$7:$C$371,B$1,Divertible_Flow_OneYr!$BG$7:$BG$371,$A33) -> 0 | C33: =COUNTIFS(Divertible_Flow_OneYr!$C$7:$C$371,C$1,Divertible_Flow_OneYr!$BG$7:$BG$371,$A33) -> 0 | D33: =COUNTIFS(Divertible_Flow_OneYr!$C$7:$C$371,D$1,Divertible_Flow_OneYr!$BG$7:$BG$371,$A33) -> 0 | E33: =COUNTIFS(Divertible_Flow_OneYr!$C$7:$C$371,E$1,Divertible_Flow_OneYr!$BG$7:$BG$371,$A33) -> 0 | F33: =COUNTIFS(Divertible_Flow_OneYr!$C$7:$C$371,F$1,Divertible_Flow_OneYr!$BG$7:$BG$371,$A33) -> 0 | G33: =COUNTIFS(Divertible_Flow_OneYr!$C$7:$C$371,G$1,Divertible_Flow_OneYr!$BG$7:$BG$371,$A33) -> 1 | H33: =COUNTIFS(Divertible_Flow_OneYr!$C$7:$C$371,H$1,Divertible_Flow_OneYr!$BG$7:$BG$371,$A33) -> 0 | I33: =COUNTIFS(Divertible_Flow_OneYr!$C$7:$C$371,I$1,Divertible_Flow_OneYr!$BG$7:$BG$371,$A33) -> 1 | J33: =COUNTIFS(Divertible_Flow_OneYr!$C$7:$C$371,J$1,Divertible_Flow_OneYr!$BG$7:$BG$371,$A33) -> 0 | K33: =COUNTIFS(Divertible_Flow_OneYr!$C$7:$C$371,K$1,Divertible_Flow_OneYr!$BG$7:$BG$371,$A33) -> 0 | L33: =COUNTIFS(Divertible_Flow_OneYr!$C$7:$C$371,L$1,Divertible_Flow_OneYr!$BG$7:$BG$371,$A33) -> 0 | M33: =COUNTIFS(Divertible_Flow_OneYr!$C$7:$C$372,M$1,Divertible_Flow_OneYr!$BG$7:$BG$372,$A33) -> 0 | N33: 2
A34: Maintenance | B34: =COUNTIFS(Divertible_Flow_OneYr!$C$7:$C$371,B$1,Divertible_Flow_OneYr!$BG$7:$BG$371,$A34) -> 0 | C34: =COUNTIFS(Divertible_Flow_OneYr!$C$7:$C$371,C$1,Divertible_Flow_OneYr!$BG$7:$BG$371,$A34) -> 0 | D34: =COUNTIFS(Divertible_Flow_OneYr!$C$7:$C$371,D$1,Divertible_Flow_OneYr!$BG$7:$BG$371,$A34) -> 0 | E34: =COUNTIFS(Divertible_Flow_OneYr!$C$7:$C$371,E$1,Divertible_Flow_OneYr!$BG$7:$BG$371,$A34) -> 0 | F34: =COUNTIFS(Divertible_Flow_OneYr!$C$7:$C$371,F$1,Divertible_Flow_OneYr!$BG$7:$BG$371,$A34) -> 0 | G34: =COUNTIFS(Divertible_Flow_OneYr!$C$7:$C$371,G$1,Divertible_Flow_OneYr!$BG$7:$BG$371,$A34) -> 0 | H34: =COUNTIFS(Divertible_Flow_OneYr!$C$7:$C$371,H$1,Divertible_Flow_OneYr!$BG$7:$BG$371,$A34) -> 0 | I34: =COUNTIFS(Divertible_Flow_OneYr!$C$7:$C$371,I$1,Divertible_Flow_OneYr!$BG$7:$BG$371,$A34) -> 0 | J34: =COUNTIFS(Divertible_Flow_OneYr!$C$7:$C$371,J$1,Divertible_Flow_OneYr!$BG$7:$BG$371,$A34) -> 0 | K34: =COUNTIFS(Divertible_Flow_OneYr!$C$7:$C$371,K$1,Divertible_Flow_OneYr!$BG$7:$BG$371,$A34) -> 0 | L34: =COUNTIFS(Divertible_Flow_OneYr!$C$7:$C$371,L$1,Divertible_Flow_OneYr!$BG$7:$BG$371,$A34) -> 0 | M34: =COUNTIFS(Divertible_Flow_OneYr!$C$7:$C$372,M$1,Divertible_Flow_OneYr!$BG$7:$BG$372,$A34) -> 0 | N34: 0
A35: Storage Capacity | B35: =COUNTIFS(Divertible_Flow_OneYr!$C$7:$C$371,B$1,Divertible_Flow_OneYr!$BG$7:$BG$371,$A35) -> 0 | C35: =COUNTIFS(Divertible_Flow_OneYr!$C$7:$C$371,C$1,Divertible_Flow_OneYr!$BG$7:$BG$371,$A35) -> 0 | D35: =COUNTIFS(Divertible_Flow_OneYr!$C$7:$C$371,D$1,Divertible_Flow_OneYr!$BG$7:$BG$371,$A35) -> 0 | E35: =COUNTIFS(Divertible_Flow_OneYr!$C$7:$C$371,E$1,Divertible_Flow_OneYr!$BG$7:$BG$371,$A35) -> 0 | F35: =COUNTIFS(Divertible_Flow_OneYr!$C$7:$C$371,F$1,Divertible_Flow_OneYr!$BG$7:$BG$371,$A35) -> 0 | G35: =COUNTIFS(Divertible_Flow_OneYr!$C$7:$C$371,G$1,Divertible_Flow_OneYr!$BG$7:$BG$371,$A35) -> 0 | H35: =COUNTIFS(Divertible_Flow_OneYr!$C$7:$C$371,H$1,Divertible_Flow_OneYr!$BG$7:$BG$371,$A35) -> 0 | I35: =COUNTIFS(Divertible_Flow_OneYr!$C$7:$C$371,I$1,Divertible_Flow_OneYr!$BG$7:$BG$371,$A35) -> 0 | J35: =COUNTIFS(Divertible_Flow_OneYr!$C$7:$C$371,J$1,Divertible_Flow_OneYr!$BG$7:$BG$371,$A35) -> 0 | K35: =COUNTIFS(Divertible_Flow_OneYr!$C$7:$C$371,K$1,Divertible_Flow_OneYr!$BG$7:$BG$371,$A35) -> 0 | L35: =COUNTIFS(Divertible_Flow_OneYr!$C$7:$C$371,L$1,Divertible_Flow_OneYr!$BG$7:$BG$371,$A35) -> 0 | M35: =COUNTIFS(Divertible_Flow_OneYr!$C$7:$C$372,M$1,Divertible_Flow_OneYr!$BG$7:$BG$372,$A35) -> 0 | N35: 0
A36: Intake Off | B36: =COUNTIFS(Divertible_Flow_OneYr!$C$7:$C$371,B$1,Divertible_Flow_OneYr!$BG$7:$BG$371,$A36) -> 31 | C36: =COUNTIFS(Divertible_Flow_OneYr!$C$7:$C$371,C$1,Divertible_Flow_OneYr!$BG$7:$BG$371,$A36) -> 0 | D36: =COUNTIFS(Divertible_Flow_OneYr!$C$7:$C$371,D$1,Divertible_Flow_OneYr!$BG$7:$BG$371,$A36) -> 0 | E36: =COUNTIFS(Divertible_Flow_OneYr!$C$7:$C$371,E$1,Divertible_Flow_OneYr!$BG$7:$BG$371,$A36) -> 0 | F36: =COUNTIFS(Divertible_Flow_OneYr!$C$7:$C$371,F$1,Divertible_Flow_OneYr!$BG$7:$BG$371,$A36) -> 0 | G36: =COUNTIFS(Divertible_Flow_OneYr!$C$7:$C$371,G$1,Divertible_Flow_OneYr!$BG$7:$BG$371,$A36) -> 0 | H36: =COUNTIFS(Divertible_Flow_OneYr!$C$7:$C$371,H$1,Divertible_Flow_OneYr!$BG$7:$BG$371,$A36) -> 0 | I36: =COUNTIFS(Divertible_Flow_OneYr!$C$7:$C$371,I$1,Divertible_Flow_OneYr!$BG$7:$BG$371,$A36) -> 0 | J36: =COUNTIFS(Divertible_Flow_OneYr!$C$7:$C$371,J$1,Divertible_Flow_OneYr!$BG$7:$BG$371,$A36) -> 30 | K36: =COUNTIFS(Divertible_Flow_OneYr!$C$7:$C$371,K$1,Divertible_Flow_OneYr!$BG$7:$BG$371,$A36) -> 31 | L36: =COUNTIFS(Divertible_Flow_OneYr!$C$7:$C$371,L$1,Divertible_Flow_OneYr!$BG$7:$BG$371,$A36) -> 31 | M36: =COUNTIFS(Divertible_Flow_OneYr!$C$7:$C$372,M$1,Divertible_Flow_OneYr!$BG$7:$BG$372,$A36) -> 30 | N36: =SUM(B36:M36) -> 153
A38: =CONCATENATE("Controls on Hamilton City Intake - WY ",User_Specifications!$B$3) -> Controls on Hamilton City Intake - WY 2011
B39: October | C39: November | D39: December | E39: January | F39: February | G39: March | H39: April | I39: May | J39: June | K39: July | L39: August | M39: September | N39: Annual
A40: SAC | B40: =COUNTIFS(Divertible_Flow_OneYr!$C$7:$C$371,B$1,Divertible_Flow_OneYr!$BH$7:$BH$371,$A40) -> 0 | C40: =COUNTIFS(Divertible_Flow_OneYr!$C$7:$C$371,C$1,Divertible_Flow_OneYr!$BH$7:$BH$371,$A40) -> 0 | D40: =COUNTIFS(Divertible_Flow_OneYr!$C$7:$C$371,D$1,Divertible_Flow_OneYr!$BH$7:$BH$371,$A40) -> 0 | E40: =COUNTIFS(Divertible_Flow_OneYr!$C$7:$C$371,E$1,Divertible_Flow_OneYr!$BH$7:$BH$371,$A40) -> 0 | F40: =COUNTIFS(Divertible_Flow_OneYr!$C$7:$C$371,F$1,Divertible_Flow_OneYr!$BH$7:$BH$371,$A40) -> 0 | G40: =COUNTIFS(Divertible_Flow_OneYr!$C$7:$C$371,G$1,Divertible_Flow_OneYr!$BH$7:$BH$371,$A40) -> 0 | H40: =COUNTIFS(Divertible_Flow_OneYr!$C$7:$C$371,H$1,Divertible_Flow_OneYr!$BH$7:$BH$371,$A40) -> 0 | I40: =COUNTIFS(Divertible_Flow_OneYr!$C$7:$C$371,I$1,Divertible_Flow_OneYr!$BH$7:$BH$371,$A40) -> 0 | J40: =COUNTIFS(Divertible_Flow_OneYr!$C$7:$C$371,J$1,Divertible_Flow_OneYr!$BH$7:$BH$371,$A40) -> 0 | K40: =COUNTIFS(Divertible_Flow_OneYr!$C$7:$C$371,K$1,Divertible_Flow_OneYr!$BH$7:$BH$371,$A40) -> 0 | L40: =COUNTIFS(Divertible_Flow_OneYr!$C$7:$C$371,L$1,Divertible_Flow_OneYr!$BH$7:$BH$371,$A40) -> 0 | M40: =COUNTIFS(Divertible_Flow_OneYr!$C$7:$C$372,M$1,Divertible_Flow_OneYr!$BH$7:$BH$372,$A40) -> 0 | N40: =SUM(B40:M40) -> 0
A41: Export Lim | B41: =COUNTIFS(Divertible_Flow_OneYr!$C$7:$C$371,B$1,Divertible_Flow_OneYr!$BH$7:$BH$371,$A41) -> 0 | C41: =COUNTIFS(Divertible_Flow_OneYr!$C$7:$C$371,C$1,Divertible_Flow_OneYr!$BH$7:$BH$371,$A41) -> 0 | D41: =COUNTIFS(Divertible_Flow_OneYr!$C$7:$C$371,D$1,Divertible_Flow_OneYr!$BH$7:$BH$371,$A41) -> 0 | E41: =COUNTIFS(Divertible_Flow_OneYr!$C$7:$C$371,E$1,Divertible_Flow_OneYr!$BH$7:$BH$371,$A41) -> 0 | F41: =COUNTIFS(Divertible_Flow_OneYr!$C$7:$C$371,F$1,Divertible_Flow_OneYr!$BH$7:$BH$371,$A41) -> 0 | G41: =COUNTIFS(Divertible_Flow_OneYr!$C$7:$C$371,G$1,Divertible_Flow_OneYr!$BH$7:$BH$371,$A41) -> 0 | H41: =COUNTIFS(Divertible_Flow_OneYr!$C$7:$C$371,H$1,Divertible_Flow_OneYr!$BH$7:$BH$371,$A41) -> 0 | I41: =COUNTIFS(Divertible_Flow_OneYr!$C$7:$C$371,I$1,Divertible_Flow_OneYr!$BH$7:$BH$371,$A41) -> 0 | J41: =COUNTIFS(Divertible_Flow_OneYr!$C$7:$C$371,J$1,Divertible_Flow_OneYr!$BH$7:$BH$371,$A41) -> 0 | K41: =COUNTIFS(Divertible_Flow_OneYr!$C$7:$C$371,K$1,Divertible_Flow_OneYr!$BH$7:$BH$371,$A41) -> 0 | L41: =COUNTIFS(Divertible_Flow_OneYr!$C$7:$C$371,L$1,Divertible_Flow_OneYr!$BH$7:$BH$371,$A41) -> 0 | M41: =COUNTIFS(Divertible_Flow_OneYr!$C$7:$C$372,M$1,Divertible_Flow_OneYr!$BH$7:$BH$372,$A41) -> 0 | N41: 0
A42: E/I | B42: =COUNTIFS(Divertible_Flow_OneYr!$C$7:$C$371,B$1,Divertible_Flow_OneYr!$BH$7:$BH$371,$A42) -> 0 | C42: =COUNTIFS(Divertible_Flow_OneYr!$C$7:$C$371,C$1,Divertible_Flow_OneYr!$BH$7:$BH$371,$A42) -> 0 | D42: =COUNTIFS(Divertible_Flow_OneYr!$C$7:$C$371,D$1,Divertible_Flow_OneYr!$BH$7:$BH$371,$A42) -> 0 | E42: =COUNTIFS(Divertible_Flow_OneYr!$C$7:$C$371,E$1,Divertible_Flow_OneYr!$BH$7:$BH$371,$A42) -> 0 | F42: =COUNTIFS(Divertible_Flow_OneYr!$C$7:$C$371,F$1,Divertible_Flow_OneYr!$BH$7:$BH$371,$A42) -> 0 | G42: =COUNTIFS(Divertible_Flow_OneYr!$C$7:$C$371,G$1,Divertible_Flow_OneYr!$BH$7:$BH$371,$A42) -> 0 | H42: =COUNTIFS(Divertible_Flow_OneYr!$C$7:$C$371,H$1,Divertible_Flow_OneYr!$BH$7:$BH$371,$A42) -> 0 | I42: =COUNTIFS(Divertible_Flow_OneYr!$C$7:$C$371,I$1,Divertible_Flow_OneYr!$BH$7:$BH$371,$A42) -> 0 | J42: =COUNTIFS(Divertible_Flow_OneYr!$C$7:$C$371,J$1,Divertible_Flow_OneYr!$BH$7:$BH$371,$A42) -> 0 | K42: =COUNTIFS(Divertible_Flow_OneYr!$C$7:$C$371,K$1,Divertible_Flow_OneYr!$BH$7:$BH$371,$A42) -> 0 | L42: =COUNTIFS(Divertible_Flow_OneYr!$C$7:$C$371,L$1,Divertible_Flow_OneYr!$BH$7:$BH$371,$A42) -> 0 | M42: =COUNTIFS(Divertible_Flow_OneYr!$C$7:$C$372,M$1,Divertible_Flow_OneYr!$BH$7:$BH$372,$A42) -> 0 | N42: 0
A43: OMR | B43: =COUNTIFS(Divertible_Flow_OneYr!$C$7:$C$371,B$1,Divertible_Flow_OneYr!$BH$7:$BH$371,$A43) -> 0 | C43: =COUNTIFS(Divertible_Flow_OneYr!$C$7:$C$371,C$1,Divertible_Flow_OneYr!$BH$7:$BH$371,$A43) -> 0 | D43: =COUNTIFS(Divertible_Flow_OneYr!$C$7:$C$371,D$1,Divertible_Flow_OneYr!$BH$7:$BH$371,$A43) -> 0 | E43: =COUNTIFS(Divertible_Flow_OneYr!$C$7:$C$371,E$1,Divertible_Flow_OneYr!$BH$7:$BH$371,$A43) -> 0 | F43: =COUNTIFS(Divertible_Flow_OneYr!$C$7:$C$371,F$1,Divertible_Flow_OneYr!$BH$7:$BH$371,$A43) -> 0 | G43: =COUNTIFS(Divertible_Flow_OneYr!$C$7:$C$371,G$1,Divertible_Flow_OneYr!$BH$7:$BH$371,$A43) -> 0 | H43: =COUNTIFS(Divertible_Flow_OneYr!$C$7:$C$371,H$1,Divertible_Flow_OneYr!$BH$7:$BH$371,$A43) -> 0 | I43: =COUNTIFS(Divertible_Flow_OneYr!$C$7:$C$371,I$1,Divertible_Flow_OneYr!$BH$7:$BH$371,$A43) -> 0 | J43: =COUNTIFS(Divertible_Flow_OneYr!$C$7:$C$371,J$1,Divertible_Flow_OneYr!$BH$7:$BH$371,$A43) -> 0 | K43: =COUNTIFS(Divertible_Flow_OneYr!$C$7:$C$371,K$1,Divertible_Flow_OneYr!$BH$7:$BH$371,$A43) -> 0 | L43: =COUNTIFS(Divertible_Flow_OneYr!$C$7:$C$371,L$1,Divertible_Flow_OneYr!$BH$7:$BH$371,$A43) -> 0 | M43: =COUNTIFS(Divertible_Flow_OneYr!$C$7:$C$372,M$1,Divertible_Flow_OneYr!$BH$7:$BH$372,$A43) -> 0 | N43: 0
A44: SJR EI | B44: =COUNTIFS(Divertible_Flow_OneYr!$C$7:$C$371,B$1,Divertible_Flow_OneYr!$BH$7:$BH$371,$A44) -> 0 | C44: =COUNTIFS(Divertible_Flow_OneYr!$C$7:$C$371,C$1,Divertible_Flow_OneYr!$BH$7:$BH$371,$A44) -> 0 | D44: =COUNTIFS(Divertible_Flow_OneYr!$C$7:$C$371,D$1,Divertible_Flow_OneYr!$BH$7:$BH$371,$A44) -> 0 | E44: =COUNTIFS(Divertible_Flow_OneYr!$C$7:$C$371,E$1,Divertible_Flow_OneYr!$BH$7:$BH$371,$A44) -> 0 | F44: =COUNTIFS(Divertible_Flow_OneYr!$C$7:$C$371,F$1,Divertible_Flow_OneYr!$BH$7:$BH$371,$A44) -> 0 | G44: =COUNTIFS(Divertible_Flow_OneYr!$C$7:$C$371,G$1,Divertible_Flow_OneYr!$BH$7:$BH$371,$A44) -> 0 | H44: =COUNTIFS(Divertible_Flow_OneYr!$C$7:$C$371,H$1,Divertible_Flow_OneYr!$BH$7:$BH$371,$A44) -> 0 | I44: =COUNTIFS(Divertible_Flow_OneYr!$C$7:$C$371,I$1,Divertible_Flow_OneYr!$BH$7:$BH$371,$A44) -> 0 | J44: =COUNTIFS(Divertible_Flow_OneYr!$C$7:$C$371,J$1,Divertible_Flow_OneYr!$BH$7:$BH$371,$A44) -> 0 | K44: =COUNTIFS(Divertible_Flow_OneYr!$C$7:$C$371,K$1,Divertible_Flow_OneYr!$BH$7:$BH$371,$A44) -> 0 | L44: =COUNTIFS(Divertible_Flow_OneYr!$C$7:$C$371,L$1,Divertible_Flow_OneYr!$BH$7:$BH$371,$A44) -> 0 | M44: =COUNTIFS(Divertible_Flow_OneYr!$C$7:$C$372,M$1,Divertible_Flow_OneYr!$BH$7:$BH$372,$A44) -> 0 | N44: 0
A45: H&S | B45: =COUNTIFS(Divertible_Flow_OneYr!$C$7:$C$371,B$1,Divertible_Flow_OneYr!$BH$7:$BH$371,$A45) -> 0 | C45: =COUNTIFS(Divertible_Flow_OneYr!$C$7:$C$371,C$1,Divertible_Flow_OneYr!$BH$7:$BH$371,$A45) -> 0 | D45: =COUNTIFS(Divertible_Flow_OneYr!$C$7:$C$371,D$1,Divertible_Flow_OneYr!$BH$7:$BH$371,$A45) -> 0 | E45: =COUNTIFS(Divertible_Flow_OneYr!$C$7:$C$371,E$1,Divertible_Flow_OneYr!$BH$7:$BH$371,$A45) -> 0 | F45: =COUNTIFS(Divertible_Flow_OneYr!$C$7:$C$371,F$1,Divertible_Flow_OneYr!$BH$7:$BH$371,$A45) -> 0 | G45: =COUNTIFS(Divertible_Flow_OneYr!$C$7:$C$371,G$1,Divertible_Flow_OneYr!$BH$7:$BH$371,$A45) -> 1 | H45: =COUNTIFS(Divertible_Flow_OneYr!$C$7:$C$371,H$1,Divertible_Flow_OneYr!$BH$7:$BH$371,$A45) -> 0 | I45: =COUNTIFS(Divertible_Flow_OneYr!$C$7:$C$371,I$1,Divertible_Flow_OneYr!$BH$7:$BH$371,$A45) -> 0 | J45: =COUNTIFS(Divertible_Flow_OneYr!$C$7:$C$371,J$1,Divertible_Flow_OneYr!$BH$7:$BH$371,$A45) -> 0 | K45: =COUNTIFS(Divertible_Flow_OneYr!$C$7:$C$371,K$1,Divertible_Flow_OneYr!$BH$7:$BH$371,$A45) -> 0 | L45: =COUNTIFS(Divertible_Flow_OneYr!$C$7:$C$371,L$1,Divertible_Flow_OneYr!$BH$7:$BH$371,$A45) -> 0 | M45: =COUNTIFS(Divertible_Flow_OneYr!$C$7:$C$372,M$1,Divertible_Flow_OneYr!$BH$7:$BH$372,$A45) -> 0 | N45: 1
A46: DO | B46: =COUNTIFS(Divertible_Flow_OneYr!$C$7:$C$371,B$1,Divertible_Flow_OneYr!$BH$7:$BH$371,$A46) -> 0 | C46: =COUNTIFS(Divertible_Flow_OneYr!$C$7:$C$371,C$1,Divertible_Flow_OneYr!$BH$7:$BH$371,$A46) -> 1 | D46: =COUNTIFS(Divertible_Flow_OneYr!$C$7:$C$371,D$1,Divertible_Flow_OneYr!$BH$7:$BH$371,$A46) -> 0 | E46: =COUNTIFS(Divertible_Flow_OneYr!$C$7:$C$371,E$1,Divertible_Flow_OneYr!$BH$7:$BH$371,$A46) -> 0 | F46: =COUNTIFS(Divertible_Flow_OneYr!$C$7:$C$371,F$1,Divertible_Flow_OneYr!$BH$7:$BH$371,$A46) -> 0 | G46: =COUNTIFS(Divertible_Flow_OneYr!$C$7:$C$371,G$1,Divertible_Flow_OneYr!$BH$7:$BH$371,$A46) -> 0 | H46: =COUNTIFS(Divertible_Flow_OneYr!$C$7:$C$371,H$1,Divertible_Flow_OneYr!$BH$7:$BH$371,$A46) -> 0 | I46: =COUNTIFS(Divertible_Flow_OneYr!$C$7:$C$371,I$1,Divertible_Flow_OneYr!$BH$7:$BH$371,$A46) -> 0 | J46: =COUNTIFS(Divertible_Flow_OneYr!$C$7:$C$371,J$1,Divertible_Flow_OneYr!$BH$7:$BH$371,$A46) -> 0 | K46: =COUNTIFS(Divertible_Flow_OneYr!$C$7:$C$371,K$1,Divertible_Flow_OneYr!$BH$7:$BH$371,$A46) -> 0 | L46: =COUNTIFS(Divertible_Flow_OneYr!$C$7:$C$371,L$1,Divertible_Flow_OneYr!$BH$7:$BH$371,$A46) -> 0 | M46: =COUNTIFS(Divertible_Flow_OneYr!$C$7:$C$372,M$1,Divertible_Flow_OneYr!$BH$7:$BH$372,$A46) -> 0 | N46: 1
A47: Balance | B47: =COUNTIFS(Divertible_Flow_OneYr!$C$7:$C$371,B$1,Divertible_Flow_OneYr!$BH$7:$BH$371,$A47) -> 0 | C47: =COUNTIFS(Divertible_Flow_OneYr!$C$7:$C$371,C$1,Divertible_Flow_OneYr!$BH$7:$BH$371,$A47) -> 0 | D47: =COUNTIFS(Divertible_Flow_OneYr!$C$7:$C$371,D$1,Divertible_Flow_OneYr!$BH$7:$BH$371,$A47) -> 0 | E47: =COUNTIFS(Divertible_Flow_OneYr!$C$7:$C$371,E$1,Divertible_Flow_OneYr!$BH$7:$BH$371,$A47) -> 0 | F47: =COUNTIFS(Divertible_Flow_OneYr!$C$7:$C$371,F$1,Divertible_Flow_OneYr!$BH$7:$BH$371,$A47) -> 0 | G47: =COUNTIFS(Divertible_Flow_OneYr!$C$7:$C$371,G$1,Divertible_Flow_OneYr!$BH$7:$BH$371,$A47) -> 0 | H47: =COUNTIFS(Divertible_Flow_OneYr!$C$7:$C$371,H$1,Divertible_Flow_OneYr!$BH$7:$BH$371,$A47) -> 0 | I47: =COUNTIFS(Divertible_Flow_OneYr!$C$7:$C$371,I$1,Divertible_Flow_OneYr!$BH$7:$BH$371,$A47) -> 0 | J47: =COUNTIFS(Divertible_Flow_OneYr!$C$7:$C$371,J$1,Divertible_Flow_OneYr!$BH$7:$BH$371,$A47) -> 0 | K47: =COUNTIFS(Divertible_Flow_OneYr!$C$7:$C$371,K$1,Divertible_Flow_OneYr!$BH$7:$BH$371,$A47) -> 0 | L47: =COUNTIFS(Divertible_Flow_OneYr!$C$7:$C$371,L$1,Divertible_Flow_OneYr!$BH$7:$BH$371,$A47) -> 0 | M47: =COUNTIFS(Divertible_Flow_OneYr!$C$7:$C$372,M$1,Divertible_Flow_OneYr!$BH$7:$BH$372,$A47) -> 0 | N47: 0
A48: Term 91 | B48: =COUNTIFS(Divertible_Flow_OneYr!$C$7:$C$371,B$1,Divertible_Flow_OneYr!$BH$7:$BH$371,$A48) -> 0 | C48: =COUNTIFS(Divertible_Flow_OneYr!$C$7:$C$371,C$1,Divertible_Flow_OneYr!$BH$7:$BH$371,$A48) -> 0 | D48: =COUNTIFS(Divertible_Flow_OneYr!$C$7:$C$371,D$1,Divertible_Flow_OneYr!$BH$7:$BH$371,$A48) -> 0 | E48: =COUNTIFS(Divertible_Flow_OneYr!$C$7:$C$371,E$1,Divertible_Flow_OneYr!$BH$7:$BH$371,$A48) -> 0 | F48: =COUNTIFS(Divertible_Flow_OneYr!$C$7:$C$371,F$1,Divertible_Flow_OneYr!$BH$7:$BH$371,$A48) -> 0 | G48: =COUNTIFS(Divertible_Flow_OneYr!$C$7:$C$371,G$1,Divertible_Flow_OneYr!$BH$7:$BH$371,$A48) -> 0 | H48: =COUNTIFS(Divertible_Flow_OneYr!$C$7:$C$371,H$1,Divertible_Flow_OneYr!$BH$7:$BH$371,$A48) -> 0 | I48: =COUNTIFS(Divertible_Flow_OneYr!$C$7:$C$371,I$1,Divertible_Flow_OneYr!$BH$7:$BH$371,$A48) -> 0 | J48: =COUNTIFS(Divertible_Flow_OneYr!$C$7:$C$371,J$1,Divertible_Flow_OneYr!$BH$7:$BH$371,$A48) -> 0 | K48: =COUNTIFS(Divertible_Flow_OneYr!$C$7:$C$371,K$1,Divertible_Flow_OneYr!$BH$7:$BH$371,$A48) -> 0 | L48: =COUNTIFS(Divertible_Flow_OneYr!$C$7:$C$371,L$1,Divertible_Flow_OneYr!$BH$7:$BH$371,$A48) -> 0 | M48: =COUNTIFS(Divertible_Flow_OneYr!$C$7:$C$372,M$1,Divertible_Flow_OneYr!$BH$7:$BH$372,$A48) -> 0 | N48: 0
A49: Spring X2 | B49: =COUNTIFS(Divertible_Flow_OneYr!$C$7:$C$371,B$1,Divertible_Flow_OneYr!$BH$7:$BH$371,$A49) -> 0 | C49: =COUNTIFS(Divertible_Flow_OneYr!$C$7:$C$371,C$1,Divertible_Flow_OneYr!$BH$7:$BH$371,$A49) -> 0 | D49: =COUNTIFS(Divertible_Flow_OneYr!$C$7:$C$371,D$1,Divertible_Flow_OneYr!$BH$7:$BH$371,$A49) -> 0 | E49: =COUNTIFS(Divertible_Flow_OneYr!$C$7:$C$371,E$1,Divertible_Flow_OneYr!$BH$7:$BH$371,$A49) -> 0 | F49: =COUNTIFS(Divertible_Flow_OneYr!$C$7:$C$371,F$1,Divertible_Flow_OneYr!$BH$7:$BH$371,$A49) -> 0 | G49: =COUNTIFS(Divertible_Flow_OneYr!$C$7:$C$371,G$1,Divertible_Flow_OneYr!$BH$7:$BH$371,$A49) -> 0 | H49: =COUNTIFS(Divertible_Flow_OneYr!$C$7:$C$371,H$1,Divertible_Flow_OneYr!$BH$7:$BH$371,$A49) -> 0 | I49: =COUNTIFS(Divertible_Flow_OneYr!$C$7:$C$371,I$1,Divertible_Flow_OneYr!$BH$7:$BH$371,$A49) -> 0 | J49: =COUNTIFS(Divertible_Flow_OneYr!$C$7:$C$371,J$1,Divertible_Flow_OneYr!$BH$7:$BH$371,$A49) -> 0 | K49: =COUNTIFS(Divertible_Flow_OneYr!$C$7:$C$371,K$1,Divertible_Flow_OneYr!$BH$7:$BH$371,$A49) -> 0 | L49: =COUNTIFS(Divertible_Flow_OneYr!$C$7:$C$371,L$1,Divertible_Flow_OneYr!$BH$7:$BH$371,$A49) -> 0 | M49: =COUNTIFS(Divertible_Flow_OneYr!$C$7:$C$372,M$1,Divertible_Flow_OneYr!$BH$7:$BH$372,$A49) -> 0 | N49: 0
A50: Fall X2 | B50: =COUNTIFS(Divertible_Flow_OneYr!$C$7:$C$371,B$1,Divertible_Flow_OneYr!$BH$7:$BH$371,$A50) -> 0 | C50: =COUNTIFS(Divertible_Flow_OneYr!$C$7:$C$371,C$1,Divertible_Flow_OneYr!$BH$7:$BH$371,$A50) -> 12 | D50: =COUNTIFS(Divertible_Flow_OneYr!$C$7:$C$371,D$1,Divertible_Flow_OneYr!$BH$7:$BH$371,$A50) -> 0 | E50: =COUNTIFS(Divertible_Flow_OneYr!$C$7:$C$371,E$1,Divertible_Flow_OneYr!$BH$7:$BH$371,$A50) -> 0 | F50: =COUNTIFS(Divertible_Flow_OneYr!$C$7:$C$371,F$1,Divertible_Flow_OneYr!$BH$7:$BH$371,$A50) -> 0 | G50: =COUNTIFS(Divertible_Flow_OneYr!$C$7:$C$371,G$1,Divertible_Flow_OneYr!$BH$7:$BH$371,$A50) -> 0 | H50: =COUNTIFS(Divertible_Flow_OneYr!$C$7:$C$371,H$1,Divertible_Flow_OneYr!$BH$7:$BH$371,$A50) -> 0 | I50: =COUNTIFS(Divertible_Flow_OneYr!$C$7:$C$371,I$1,Divertible_Flow_OneYr!$BH$7:$BH$371,$A50) -> 0 | J50: =COUNTIFS(Divertible_Flow_OneYr!$C$7:$C$371,J$1,Divertible_Flow_OneYr!$BH$7:$BH$371,$A50) -> 0 | K50: =COUNTIFS(Divertible_Flow_OneYr!$C$7:$C$371,K$1,Divertible_Flow_OneYr!$BH$7:$BH$371,$A50) -> 0 | L50: =COUNTIFS(Divertible_Flow_OneYr!$C$7:$C$371,L$1,Divertible_Flow_OneYr!$BH$7:$BH$371,$A50) -> 0 | M50: =COUNTIFS(Divertible_Flow_OneYr!$C$7:$C$372,M$1,Divertible_Flow_OneYr!$BH$7:$BH$372,$A50) -> 0 | N50: 12
A51: EC | B51: =COUNTIFS(Divertible_Flow_OneYr!$C$7:$C$371,B$1,Divertible_Flow_OneYr!$BH$7:$BH$371,$A51) -> 0 | C51: =COUNTIFS(Divertible_Flow_OneYr!$C$7:$C$371,C$1,Divertible_Flow_OneYr!$BH$7:$BH$371,$A51) -> 0 | D51: =COUNTIFS(Divertible_Flow_OneYr!$C$7:$C$371,D$1,Divertible_Flow_OneYr!$BH$7:$BH$371,$A51) -> 0 | E51: =COUNTIFS(Divertible_Flow_OneYr!$C$7:$C$371,E$1,Divertible_Flow_OneYr!$BH$7:$BH$371,$A51) -> 0 | F51: =COUNTIFS(Divertible_Flow_OneYr!$C$7:$C$371,F$1,Divertible_Flow_OneYr!$BH$7:$BH$371,$A51) -> 0 | G51: =COUNTIFS(Divertible_Flow_OneYr!$C$7:$C$371,G$1,Divertible_Flow_OneYr!$BH$7:$BH$371,$A51) -> 0 | H51: =COUNTIFS(Divertible_Flow_OneYr!$C$7:$C$371,H$1,Divertible_Flow_OneYr!$BH$7:$BH$371,$A51) -> 0 | I51: =COUNTIFS(Divertible_Flow_OneYr!$C$7:$C$371,I$1,Divertible_Flow_OneYr!$BH$7:$BH$371,$A51) -> 0 | J51: =COUNTIFS(Divertible_Flow_OneYr!$C$7:$C$371,J$1,Divertible_Flow_OneYr!$BH$7:$BH$371,$A51) -> 0 | K51: =COUNTIFS(Divertible_Flow_OneYr!$C$7:$C$371,K$1,Divertible_Flow_OneYr!$BH$7:$BH$371,$A51) -> 0 | L51: =COUNTIFS(Divertible_Flow_OneYr!$C$7:$C$371,L$1,Divertible_Flow_OneYr!$BH$7:$BH$371,$A51) -> 0 | M51: =COUNTIFS(Divertible_Flow_OneYr!$C$7:$C$372,M$1,Divertible_Flow_OneYr!$BH$7:$BH$372,$A51) -> 0 | N51: 0
A52: Rio Vista | B52: =COUNTIFS(Divertible_Flow_OneYr!$C$7:$C$371,B$1,Divertible_Flow_OneYr!$BH$7:$BH$371,$A52) -> 0 | C52: =COUNTIFS(Divertible_Flow_OneYr!$C$7:$C$371,C$1,Divertible_Flow_OneYr!$BH$7:$BH$371,$A52) -> 0 | D52: =COUNTIFS(Divertible_Flow_OneYr!$C$7:$C$371,D$1,Divertible_Flow_OneYr!$BH$7:$BH$371,$A52) -> 0 | E52: =COUNTIFS(Divertible_Flow_OneYr!$C$7:$C$371,E$1,Divertible_Flow_OneYr!$BH$7:$BH$371,$A52) -> 0 | F52: =COUNTIFS(Divertible_Flow_OneYr!$C$7:$C$371,F$1,Divertible_Flow_OneYr!$BH$7:$BH$371,$A52) -> 0 | G52: =COUNTIFS(Divertible_Flow_OneYr!$C$7:$C$371,G$1,Divertible_Flow_OneYr!$BH$7:$BH$371,$A52) -> 0 | H52: =COUNTIFS(Divertible_Flow_OneYr!$C$7:$C$371,H$1,Divertible_Flow_OneYr!$BH$7:$BH$371,$A52) -> 0 | I52: =COUNTIFS(Divertible_Flow_OneYr!$C$7:$C$371,I$1,Divertible_Flow_OneYr!$BH$7:$BH$371,$A52) -> 0 | J52: =COUNTIFS(Divertible_Flow_OneYr!$C$7:$C$371,J$1,Divertible_Flow_OneYr!$BH$7:$BH$371,$A52) -> 0 | K52: =COUNTIFS(Divertible_Flow_OneYr!$C$7:$C$371,K$1,Divertible_Flow_OneYr!$BH$7:$BH$371,$A52) -> 0 | L52: =COUNTIFS(Divertible_Flow_OneYr!$C$7:$C$371,L$1,Divertible_Flow_OneYr!$BH$7:$BH$371,$A52) -> 0 | M52: =COUNTIFS(Divertible_Flow_OneYr!$C$7:$C$372,M$1,Divertible_Flow_OneYr!$BH$7:$BH$372,$A52) -> 0 | N52: 0
A53: Surplus Outflow (Feb-Mar) | B53: =COUNTIFS(Divertible_Flow_OneYr!$C$7:$C$371,B$1,Divertible_Flow_OneYr!$BH$7:$BH$371,$A53) -> 0 | C53: =COUNTIFS(Divertible_Flow_OneYr!$C$7:$C$371,C$1,Divertible_Flow_OneYr!$BH$7:$BH$371,$A53) -> 0 | D53: =COUNTIFS(Divertible_Flow_OneYr!$C$7:$C$371,D$1,Divertible_Flow_OneYr!$BH$7:$BH$371,$A53) -> 0 | E53: =COUNTIFS(Divertible_Flow_OneYr!$C$7:$C$371,E$1,Divertible_Flow_OneYr!$BH$7:$BH$371,$A53) -> 0 | F53: =COUNTIFS(Divertible_Flow_OneYr!$C$7:$C$371,F$1,Divertible_Flow_OneYr!$BH$7:$BH$371,$A53) -> 0 | G53: =COUNTIFS(Divertible_Flow_OneYr!$C$7:$C$371,G$1,Divertible_Flow_OneYr!$BH$7:$BH$371,$A53) -> 0 | H53: =COUNTIFS(Divertible_Flow_OneYr!$C$7:$C$371,H$1,Divertible_Flow_OneYr!$BH$7:$BH$371,$A53) -> 0 | I53: =COUNTIFS(Divertible_Flow_OneYr!$C$7:$C$371,I$1,Divertible_Flow_OneYr!$BH$7:$BH$371,$A53) -> 0 | J53: =COUNTIFS(Divertible_Flow_OneYr!$C$7:$C$371,J$1,Divertible_Flow_OneYr!$BH$7:$BH$371,$A53) -> 0 | K53: =COUNTIFS(Divertible_Flow_OneYr!$C$7:$C$371,K$1,Divertible_Flow_OneYr!$BH$7:$BH$371,$A53) -> 0 | L53: =COUNTIFS(Divertible_Flow_OneYr!$C$7:$C$371,L$1,Divertible_Flow_OneYr!$BH$7:$BH$371,$A53) -> 0 | M53: =COUNTIFS(Divertible_Flow_OneYr!$C$7:$C$372,M$1,Divertible_Flow_OneYr!$BH$7:$BH$372,$A53) -> 0 | N53: =SUM(B53:M53) -> 0
A54: Intake Capacity | B54: =COUNTIFS(Divertible_Flow_OneYr!$C$7:$C$371,B$1,Divertible_Flow_OneYr!$BH$7:$BH$371,$A54) -> 0 | C54: =COUNTIFS(Divertible_Flow_OneYr!$C$7:$C$371,C$1,Divertible_Flow_OneYr!$BH$7:$BH$371,$A54) -> 0 | D54: =COUNTIFS(Divertible_Flow_OneYr!$C$7:$C$371,D$1,Divertible_Flow_OneYr!$BH$7:$BH$371,$A54) -> 17 | E54: =COUNTIFS(Divertible_Flow_OneYr!$C$7:$C$371,E$1,Divertible_Flow_OneYr!$BH$7:$BH$371,$A54) -> 15 | F54: =COUNTIFS(Divertible_Flow_OneYr!$C$7:$C$371,F$1,Divertible_Flow_OneYr!$BH$7:$BH$371,$A54) -> 0 | G54: =COUNTIFS(Divertible_Flow_OneYr!$C$7:$C$371,G$1,Divertible_Flow_OneYr!$BH$7:$BH$371,$A54) -> 18 | H54: =COUNTIFS(Divertible_Flow_OneYr!$C$7:$C$371,H$1,Divertible_Flow_OneYr!$BH$7:$BH$371,$A54) -> 15 | I54: =COUNTIFS(Divertible_Flow_OneYr!$C$7:$C$371,I$1,Divertible_Flow_OneYr!$BH$7:$BH$371,$A54) -> 0 | J54: =COUNTIFS(Divertible_Flow_OneYr!$C$7:$C$371,J$1,Divertible_Flow_OneYr!$BH$7:$BH$371,$A54) -> 0 | K54: =COUNTIFS(Divertible_Flow_OneYr!$C$7:$C$371,K$1,Divertible_Flow_OneYr!$BH$7:$BH$371,$A54) -> 0 | L54: =COUNTIFS(Divertible_Flow_OneYr!$C$7:$C$371,L$1,Divertible_Flow_OneYr!$BH$7:$BH$371,$A54) -> 0 | M54: =COUNTIFS(Divertible_Flow_OneYr!$C$7:$C$372,M$1,Divertible_Flow_OneYr!$BH$7:$BH$372,$A54) -> 0 | N54: 65
A55: Stony Creek Bypass | B55: =COUNTIFS(Divertible_Flow_OneYr!$C$7:$C$371,B$1,Divertible_Flow_OneYr!$BH$7:$BH$371,$A55) -> 0 | C55: =COUNTIFS(Divertible_Flow_OneYr!$C$7:$C$371,C$1,Divertible_Flow_OneYr!$BH$7:$BH$371,$A55) -> 0 | D55: =COUNTIFS(Divertible_Flow_OneYr!$C$7:$C$371,D$1,Divertible_Flow_OneYr!$BH$7:$BH$371,$A55) -> 0 | E55: =COUNTIFS(Divertible_Flow_OneYr!$C$7:$C$371,E$1,Divertible_Flow_OneYr!$BH$7:$BH$371,$A55) -> 0 | F55: =COUNTIFS(Divertible_Flow_OneYr!$C$7:$C$371,F$1,Divertible_Flow_OneYr!$BH$7:$BH$371,$A55) -> 0 | G55: =COUNTIFS(Divertible_Flow_OneYr!$C$7:$C$371,G$1,Divertible_Flow_OneYr!$BH$7:$BH$371,$A55) -> 0 | H55: =COUNTIFS(Divertible_Flow_OneYr!$C$7:$C$371,H$1,Divertible_Flow_OneYr!$BH$7:$BH$371,$A55) -> 0 | I55: =COUNTIFS(Divertible_Flow_OneYr!$C$7:$C$371,I$1,Divertible_Flow_OneYr!$BH$7:$BH$371,$A55) -> 0 | J55: =COUNTIFS(Divertible_Flow_OneYr!$C$7:$C$371,J$1,Divertible_Flow_OneYr!$BH$7:$BH$371,$A55) -> 0 | K55: =COUNTIFS(Divertible_Flow_OneYr!$C$7:$C$371,K$1,Divertible_Flow_OneYr!$BH$7:$BH$371,$A55) -> 0 | L55: =COUNTIFS(Divertible_Flow_OneYr!$C$7:$C$371,L$1,Divertible_Flow_OneYr!$BH$7:$BH$371,$A55) -> 0 | M55: =COUNTIFS(Divertible_Flow_OneYr!$C$7:$C$372,M$1,Divertible_Flow_OneYr!$BH$7:$BH$372,$A55) -> 0 | N55: =SUM(B55:M55) -> 0
A56: Hamilton City Bypass | B56: =COUNTIFS(Divertible_Flow_OneYr!$C$7:$C$371,B$1,Divertible_Flow_OneYr!$BH$7:$BH$371,$A56) -> 0 | C56: =COUNTIFS(Divertible_Flow_OneYr!$C$7:$C$371,C$1,Divertible_Flow_OneYr!$BH$7:$BH$371,$A56) -> 0 | D56: =COUNTIFS(Divertible_Flow_OneYr!$C$7:$C$371,D$1,Divertible_Flow_OneYr!$BH$7:$BH$371,$A56) -> 0 | E56: =COUNTIFS(Divertible_Flow_OneYr!$C$7:$C$371,E$1,Divertible_Flow_OneYr!$BH$7:$BH$371,$A56) -> 0 | F56: =COUNTIFS(Divertible_Flow_OneYr!$C$7:$C$371,F$1,Divertible_Flow_OneYr!$BH$7:$BH$371,$A56) -> 0 | G56: =COUNTIFS(Divertible_Flow_OneYr!$C$7:$C$371,G$1,Divertible_Flow_OneYr!$BH$7:$BH$371,$A56) -> 0 | H56: =COUNTIFS(Divertible_Flow_OneYr!$C$7:$C$371,H$1,Divertible_Flow_OneYr!$BH$7:$BH$371,$A56) -> 0 | I56: =COUNTIFS(Divertible_Flow_OneYr!$C$7:$C$371,I$1,Divertible_Flow_OneYr!$BH$7:$BH$371,$A56) -> 0 | J56: =COUNTIFS(Divertible_Flow_OneYr!$C$7:$C$371,J$1,Divertible_Flow_OneYr!$BH$7:$BH$371,$A56) -> 0 | K56: =COUNTIFS(Divertible_Flow_OneYr!$C$7:$C$371,K$1,Divertible_Flow_OneYr!$BH$7:$BH$371,$A56) -> 0 | L56: =COUNTIFS(Divertible_Flow_OneYr!$C$7:$C$371,L$1,Divertible_Flow_OneYr!$BH$7:$BH$371,$A56) -> 0 | M56: =COUNTIFS(Divertible_Flow_OneYr!$C$7:$C$372,M$1,Divertible_Flow_OneYr!$BH$7:$BH$372,$A56) -> 0 | N56: 0
A57: Delevan Bypass | B57: =COUNTIFS(Divertible_Flow_OneYr!$C$7:$C$371,B$1,Divertible_Flow_OneYr!$BH$7:$BH$371,$A57) -> 0 | C57: =COUNTIFS(Divertible_Flow_OneYr!$C$7:$C$371,C$1,Divertible_Flow_OneYr!$BH$7:$BH$371,$A57) -> 0 | D57: =COUNTIFS(Divertible_Flow_OneYr!$C$7:$C$371,D$1,Divertible_Flow_OneYr!$BH$7:$BH$371,$A57) -> 0 | E57: =COUNTIFS(Divertible_Flow_OneYr!$C$7:$C$371,E$1,Divertible_Flow_OneYr!$BH$7:$BH$371,$A57) -> 0 | F57: =COUNTIFS(Divertible_Flow_OneYr!$C$7:$C$371,F$1,Divertible_Flow_OneYr!$BH$7:$BH$371,$A57) -> 0 | G57: =COUNTIFS(Divertible_Flow_OneYr!$C$7:$C$371,G$1,Divertible_Flow_OneYr!$BH$7:$BH$371,$A57) -> 0 | H57: =COUNTIFS(Divertible_Flow_OneYr!$C$7:$C$371,H$1,Divertible_Flow_OneYr!$BH$7:$BH$371,$A57) -> 0 | I57: =COUNTIFS(Divertible_Flow_OneYr!$C$7:$C$371,I$1,Divertible_Flow_OneYr!$BH$7:$BH$371,$A57) -> 0 | J57: =COUNTIFS(Divertible_Flow_OneYr!$C$7:$C$371,J$1,Divertible_Flow_OneYr!$BH$7:$BH$371,$A57) -> 0 | K57: =COUNTIFS(Divertible_Flow_OneYr!$C$7:$C$371,K$1,Divertible_Flow_OneYr!$BH$7:$BH$371,$A57) -> 0 | L57: =COUNTIFS(Divertible_Flow_OneYr!$C$7:$C$371,L$1,Divertible_Flow_OneYr!$BH$7:$BH$371,$A57) -> 0 | M57: =COUNTIFS(Divertible_Flow_OneYr!$C$7:$C$372,M$1,Divertible_Flow_OneYr!$BH$7:$BH$372,$A57) -> 0 | N57: 0
A58: Wilkins Slough Bypass | B58: =COUNTIFS(Divertible_Flow_OneYr!$C$7:$C$371,B$1,Divertible_Flow_OneYr!$BH$7:$BH$371,$A58) -> 0 | C58: =COUNTIFS(Divertible_Flow_OneYr!$C$7:$C$371,C$1,Divertible_Flow_OneYr!$BH$7:$BH$371,$A58) -> 17 | D58: =COUNTIFS(Divertible_Flow_OneYr!$C$7:$C$371,D$1,Divertible_Flow_OneYr!$BH$7:$BH$371,$A58) -> 8 | E58: =COUNTIFS(Divertible_Flow_OneYr!$C$7:$C$371,E$1,Divertible_Flow_OneYr!$BH$7:$BH$371,$A58) -> 9 | F58: =COUNTIFS(Divertible_Flow_OneYr!$C$7:$C$371,F$1,Divertible_Flow_OneYr!$BH$7:$BH$371,$A58) -> 14 | G58: =COUNTIFS(Divertible_Flow_OneYr!$C$7:$C$371,G$1,Divertible_Flow_OneYr!$BH$7:$BH$371,$A58) -> 11 | H58: =COUNTIFS(Divertible_Flow_OneYr!$C$7:$C$371,H$1,Divertible_Flow_OneYr!$BH$7:$BH$371,$A58) -> 15 | I58: =COUNTIFS(Divertible_Flow_OneYr!$C$7:$C$371,I$1,Divertible_Flow_OneYr!$BH$7:$BH$371,$A58) -> 26 | J58: =COUNTIFS(Divertible_Flow_OneYr!$C$7:$C$371,J$1,Divertible_Flow_OneYr!$BH$7:$BH$371,$A58) -> 0 | K58: =COUNTIFS(Divertible_Flow_OneYr!$C$7:$C$371,K$1,Divertible_Flow_OneYr!$BH$7:$BH$371,$A58) -> 0 | L58: =COUNTIFS(Divertible_Flow_OneYr!$C$7:$C$371,L$1,Divertible_Flow_OneYr!$BH$7:$BH$371,$A58) -> 0 | M58: =COUNTIFS(Divertible_Flow_OneYr!$C$7:$C$372,M$1,Divertible_Flow_OneYr!$BH$7:$BH$372,$A58) -> 0 | N58: 100
A59: Freeport Bypass | B59: =COUNTIFS(Divertible_Flow_OneYr!$C$7:$C$371,B$1,Divertible_Flow_OneYr!$BH$7:$BH$371,$A59) -> 0 | C59: =COUNTIFS(Divertible_Flow_OneYr!$C$7:$C$371,C$1,Divertible_Flow_OneYr!$BH$7:$BH$371,$A59) -> 0 | D59: =COUNTIFS(Divertible_Flow_OneYr!$C$7:$C$371,D$1,Divertible_Flow_OneYr!$BH$7:$BH$371,$A59) -> 0 | E59: =COUNTIFS(Divertible_Flow_OneYr!$C$7:$C$371,E$1,Divertible_Flow_OneYr!$BH$7:$BH$371,$A59) -> 0 | F59: =COUNTIFS(Divertible_Flow_OneYr!$C$7:$C$371,F$1,Divertible_Flow_OneYr!$BH$7:$BH$371,$A59) -> 0 | G59: =COUNTIFS(Divertible_Flow_OneYr!$C$7:$C$371,G$1,Divertible_Flow_OneYr!$BH$7:$BH$371,$A59) -> 0 | H59: =COUNTIFS(Divertible_Flow_OneYr!$C$7:$C$371,H$1,Divertible_Flow_OneYr!$BH$7:$BH$371,$A59) -> 0 | I59: =COUNTIFS(Divertible_Flow_OneYr!$C$7:$C$371,I$1,Divertible_Flow_OneYr!$BH$7:$BH$371,$A59) -> 0 | J59: =COUNTIFS(Divertible_Flow_OneYr!$C$7:$C$371,J$1,Divertible_Flow_OneYr!$BH$7:$BH$371,$A59) -> 0 | K59: =COUNTIFS(Divertible_Flow_OneYr!$C$7:$C$371,K$1,Divertible_Flow_OneYr!$BH$7:$BH$371,$A59) -> 0 | L59: =COUNTIFS(Divertible_Flow_OneYr!$C$7:$C$371,L$1,Divertible_Flow_OneYr!$BH$7:$BH$371,$A59) -> 0 | M59: =COUNTIFS(Divertible_Flow_OneYr!$C$7:$C$372,M$1,Divertible_Flow_OneYr!$BH$7:$BH$372,$A59) -> 0 | N59: 0
A60: Delta Outflow Bypass | B60: =COUNTIFS(Divertible_Flow_OneYr!$C$7:$C$371,B$1,Divertible_Flow_OneYr!$BH$7:$BH$371,$A60) -> 0 | C60: =COUNTIFS(Divertible_Flow_OneYr!$C$7:$C$371,C$1,Divertible_Flow_OneYr!$BH$7:$BH$371,$A60) -> 0 | D60: =COUNTIFS(Divertible_Flow_OneYr!$C$7:$C$371,D$1,Divertible_Flow_OneYr!$BH$7:$BH$371,$A60) -> 0 | E60: =COUNTIFS(Divertible_Flow_OneYr!$C$7:$C$371,E$1,Divertible_Flow_OneYr!$BH$7:$BH$371,$A60) -> 0 | F60: =COUNTIFS(Divertible_Flow_OneYr!$C$7:$C$371,F$1,Divertible_Flow_OneYr!$BH$7:$BH$371,$A60) -> 0 | G60: =COUNTIFS(Divertible_Flow_OneYr!$C$7:$C$371,G$1,Divertible_Flow_OneYr!$BH$7:$BH$371,$A60) -> 0 | H60: =COUNTIFS(Divertible_Flow_OneYr!$C$7:$C$371,H$1,Divertible_Flow_OneYr!$BH$7:$BH$371,$A60) -> 0 | I60: =COUNTIFS(Divertible_Flow_OneYr!$C$7:$C$371,I$1,Divertible_Flow_OneYr!$BH$7:$BH$371,$A60) -> 5 | J60: =COUNTIFS(Divertible_Flow_OneYr!$C$7:$C$371,J$1,Divertible_Flow_OneYr!$BH$7:$BH$371,$A60) -> 0 | K60: =COUNTIFS(Divertible_Flow_OneYr!$C$7:$C$371,K$1,Divertible_Flow_OneYr!$BH$7:$BH$371,$A60) -> 0 | L60: =COUNTIFS(Divertible_Flow_OneYr!$C$7:$C$371,L$1,Divertible_Flow_OneYr!$BH$7:$BH$371,$A60) -> 0 | M60: =COUNTIFS(Divertible_Flow_OneYr!$C$7:$C$372,M$1,Divertible_Flow_OneYr!$BH$7:$BH$372,$A60) -> 0 | N60: 5
A61: Fremont Weir Criteria | B61: =COUNTIFS(Divertible_Flow_OneYr!$C$7:$C$371,B$1,Divertible_Flow_OneYr!$BH$7:$BH$371,$A61) -> 0 | C61: =COUNTIFS(Divertible_Flow_OneYr!$C$7:$C$371,C$1,Divertible_Flow_OneYr!$BH$7:$BH$371,$A61) -> 0 | D61: =COUNTIFS(Divertible_Flow_OneYr!$C$7:$C$371,D$1,Divertible_Flow_OneYr!$BH$7:$BH$371,$A61) -> 0 | E61: =COUNTIFS(Divertible_Flow_OneYr!$C$7:$C$371,E$1,Divertible_Flow_OneYr!$BH$7:$BH$371,$A61) -> 0 | F61: =COUNTIFS(Divertible_Flow_OneYr!$C$7:$C$371,F$1,Divertible_Flow_OneYr!$BH$7:$BH$371,$A61) -> 0 | G61: =COUNTIFS(Divertible_Flow_OneYr!$C$7:$C$371,G$1,Divertible_Flow_OneYr!$BH$7:$BH$371,$A61) -> 0 | H61: =COUNTIFS(Divertible_Flow_OneYr!$C$7:$C$371,H$1,Divertible_Flow_OneYr!$BH$7:$BH$371,$A61) -> 0 | I61: =COUNTIFS(Divertible_Flow_OneYr!$C$7:$C$371,I$1,Divertible_Flow_OneYr!$BH$7:$BH$371,$A61) -> 0 | J61: =COUNTIFS(Divertible_Flow_OneYr!$C$7:$C$371,J$1,Divertible_Flow_OneYr!$BH$7:$BH$371,$A61) -> 0 | K61: =COUNTIFS(Divertible_Flow_OneYr!$C$7:$C$371,K$1,Divertible_Flow_OneYr!$BH$7:$BH$371,$A61) -> 0 | L61: =COUNTIFS(Divertible_Flow_OneYr!$C$7:$C$371,L$1,Divertible_Flow_OneYr!$BH$7:$BH$371,$A61) -> 0 | M61: =COUNTIFS(Divertible_Flow_OneYr!$C$7:$C$372,M$1,Divertible_Flow_OneYr!$BH$7:$BH$372,$A61) -> 0 | N61: 0
A62: Tisdale Weir Criteria | B62: =COUNTIFS(Divertible_Flow_OneYr!$C$7:$C$371,B$1,Divertible_Flow_OneYr!$BH$7:$BH$371,$A62) -> 0 | C62: =COUNTIFS(Divertible_Flow_OneYr!$C$7:$C$371,C$1,Divertible_Flow_OneYr!$BH$7:$BH$371,$A62) -> 0 | D62: =COUNTIFS(Divertible_Flow_OneYr!$C$7:$C$371,D$1,Divertible_Flow_OneYr!$BH$7:$BH$371,$A62) -> 0 | E62: =COUNTIFS(Divertible_Flow_OneYr!$C$7:$C$371,E$1,Divertible_Flow_OneYr!$BH$7:$BH$371,$A62) -> 0 | F62: =COUNTIFS(Divertible_Flow_OneYr!$C$7:$C$371,F$1,Divertible_Flow_OneYr!$BH$7:$BH$371,$A62) -> 0 | G62: =COUNTIFS(Divertible_Flow_OneYr!$C$7:$C$371,G$1,Divertible_Flow_OneYr!$BH$7:$BH$371,$A62) -> 0 | H62: =COUNTIFS(Divertible_Flow_OneYr!$C$7:$C$371,H$1,Divertible_Flow_OneYr!$BH$7:$BH$371,$A62) -> 0 | I62: =COUNTIFS(Divertible_Flow_OneYr!$C$7:$C$371,I$1,Divertible_Flow_OneYr!$BH$7:$BH$371,$A62) -> 0 | J62: =COUNTIFS(Divertible_Flow_OneYr!$C$7:$C$371,J$1,Divertible_Flow_OneYr!$BH$7:$BH$371,$A62) -> 0 | K62: =COUNTIFS(Divertible_Flow_OneYr!$C$7:$C$371,K$1,Divertible_Flow_OneYr!$BH$7:$BH$371,$A62) -> 0 | L62: =COUNTIFS(Divertible_Flow_OneYr!$C$7:$C$371,L$1,Divertible_Flow_OneYr!$BH$7:$BH$371,$A62) -> 0 | M62: =COUNTIFS(Divertible_Flow_OneYr!$C$7:$C$372,M$1,Divertible_Flow_OneYr!$BH$7:$BH$372,$A62) -> 0 | N62: =SUM(B62:M62) -> 0
A63: Scaled Protection Criteria | B63: =COUNTIFS(Divertible_Flow_OneYr!$C$7:$C$371,B$1,Divertible_Flow_OneYr!$BH$7:$BH$371,$A63) -> 0 | C63: =COUNTIFS(Divertible_Flow_OneYr!$C$7:$C$371,C$1,Divertible_Flow_OneYr!$BH$7:$BH$371,$A63) -> 0 | D63: =COUNTIFS(Divertible_Flow_OneYr!$C$7:$C$371,D$1,Divertible_Flow_OneYr!$BH$7:$BH$371,$A63) -> 0 | E63: =COUNTIFS(Divertible_Flow_OneYr!$C$7:$C$371,E$1,Divertible_Flow_OneYr!$BH$7:$BH$371,$A63) -> 0 | F63: =COUNTIFS(Divertible_Flow_OneYr!$C$7:$C$371,F$1,Divertible_Flow_OneYr!$BH$7:$BH$371,$A63) -> 0 | G63: =COUNTIFS(Divertible_Flow_OneYr!$C$7:$C$371,G$1,Divertible_Flow_OneYr!$BH$7:$BH$371,$A63) -> 0 | H63: =COUNTIFS(Divertible_Flow_OneYr!$C$7:$C$371,H$1,Divertible_Flow_OneYr!$BH$7:$BH$371,$A63) -> 0 | I63: =COUNTIFS(Divertible_Flow_OneYr!$C$7:$C$371,I$1,Divertible_Flow_OneYr!$BH$7:$BH$371,$A63) -> 0 | J63: =COUNTIFS(Divertible_Flow_OneYr!$C$7:$C$371,J$1,Divertible_Flow_OneYr!$BH$7:$BH$371,$A63) -> 0 | K63: =COUNTIFS(Divertible_Flow_OneYr!$C$7:$C$371,K$1,Divertible_Flow_OneYr!$BH$7:$BH$371,$A63) -> 0 | L63: =COUNTIFS(Divertible_Flow_OneYr!$C$7:$C$371,L$1,Divertible_Flow_OneYr!$BH$7:$BH$371,$A63) -> 0 | M63: =COUNTIFS(Divertible_Flow_OneYr!$C$7:$C$372,M$1,Divertible_Flow_OneYr!$BH$7:$BH$372,$A63) -> 0 | N63: 0
A64: Hydraulic Curve | B64: =COUNTIFS(Divertible_Flow_OneYr!$C$7:$C$371,B$1,Divertible_Flow_OneYr!$BH$7:$BH$371,$A64) -> 0 | C64: =COUNTIFS(Divertible_Flow_OneYr!$C$7:$C$371,C$1,Divertible_Flow_OneYr!$BH$7:$BH$371,$A64) -> 0 | D64: =COUNTIFS(Divertible_Flow_OneYr!$C$7:$C$371,D$1,Divertible_Flow_OneYr!$BH$7:$BH$371,$A64) -> 0 | E64: =COUNTIFS(Divertible_Flow_OneYr!$C$7:$C$371,E$1,Divertible_Flow_OneYr!$BH$7:$BH$371,$A64) -> 0 | F64: =COUNTIFS(Divertible_Flow_OneYr!$C$7:$C$371,F$1,Divertible_Flow_OneYr!$BH$7:$BH$371,$A64) -> 0 | G64: =COUNTIFS(Divertible_Flow_OneYr!$C$7:$C$371,G$1,Divertible_Flow_OneYr!$BH$7:$BH$371,$A64) -> 0 | H64: =COUNTIFS(Divertible_Flow_OneYr!$C$7:$C$371,H$1,Divertible_Flow_OneYr!$BH$7:$BH$371,$A64) -> 0 | I64: =COUNTIFS(Divertible_Flow_OneYr!$C$7:$C$371,I$1,Divertible_Flow_OneYr!$BH$7:$BH$371,$A64) -> 0 | J64: =COUNTIFS(Divertible_Flow_OneYr!$C$7:$C$371,J$1,Divertible_Flow_OneYr!$BH$7:$BH$371,$A64) -> 0 | K64: =COUNTIFS(Divertible_Flow_OneYr!$C$7:$C$371,K$1,Divertible_Flow_OneYr!$BH$7:$BH$371,$A64) -> 0 | L64: =COUNTIFS(Divertible_Flow_OneYr!$C$7:$C$371,L$1,Divertible_Flow_OneYr!$BH$7:$BH$371,$A64) -> 0 | M64: =COUNTIFS(Divertible_Flow_OneYr!$C$7:$C$372,M$1,Divertible_Flow_OneYr!$BH$7:$BH$372,$A64) -> 0 | N64: 0
A65: Table1 | B65: =COUNTIFS(Divertible_Flow_OneYr!$C$7:$C$371,B$1,Divertible_Flow_OneYr!$BH$7:$BH$371,$A65) -> 0 | C65: =COUNTIFS(Divertible_Flow_OneYr!$C$7:$C$371,C$1,Divertible_Flow_OneYr!$BH$7:$BH$371,$A65) -> 0 | D65: =COUNTIFS(Divertible_Flow_OneYr!$C$7:$C$371,D$1,Divertible_Flow_OneYr!$BH$7:$BH$371,$A65) -> 0 | E65: =COUNTIFS(Divertible_Flow_OneYr!$C$7:$C$371,E$1,Divertible_Flow_OneYr!$BH$7:$BH$371,$A65) -> 0 | F65: =COUNTIFS(Divertible_Flow_OneYr!$C$7:$C$371,F$1,Divertible_Flow_OneYr!$BH$7:$BH$371,$A65) -> 0 | G65: =COUNTIFS(Divertible_Flow_OneYr!$C$7:$C$371,G$1,Divertible_Flow_OneYr!$BH$7:$BH$371,$A65) -> 0 | H65: =COUNTIFS(Divertible_Flow_OneYr!$C$7:$C$371,H$1,Divertible_Flow_OneYr!$BH$7:$BH$371,$A65) -> 0 | I65: =COUNTIFS(Divertible_Flow_OneYr!$C$7:$C$371,I$1,Divertible_Flow_OneYr!$BH$7:$BH$371,$A65) -> 0 | J65: =COUNTIFS(Divertible_Flow_OneYr!$C$7:$C$371,J$1,Divertible_Flow_OneYr!$BH$7:$BH$371,$A65) -> 0 | K65: =COUNTIFS(Divertible_Flow_OneYr!$C$7:$C$371,K$1,Divertible_Flow_OneYr!$BH$7:$BH$371,$A65) -> 0 | L65: =COUNTIFS(Divertible_Flow_OneYr!$C$7:$C$371,L$1,Divertible_Flow_OneYr!$BH$7:$BH$371,$A65) -> 0 | M65: =COUNTIFS(Divertible_Flow_OneYr!$C$7:$C$372,M$1,Divertible_Flow_OneYr!$BH$7:$BH$372,$A65) -> 0 | N65: 0
A66: Pulse Flow (Bend Bridge) | B66: =COUNTIFS(Divertible_Flow_OneYr!$C$7:$C$371,B$1,Divertible_Flow_OneYr!$BH$7:$BH$371,$A66) -> 0 | C66: =COUNTIFS(Divertible_Flow_OneYr!$C$7:$C$371,C$1,Divertible_Flow_OneYr!$BH$7:$BH$371,$A66) -> 0 | D66: =COUNTIFS(Divertible_Flow_OneYr!$C$7:$C$371,D$1,Divertible_Flow_OneYr!$BH$7:$BH$371,$A66) -> 6 | E66: =COUNTIFS(Divertible_Flow_OneYr!$C$7:$C$371,E$1,Divertible_Flow_OneYr!$BH$7:$BH$371,$A66) -> 0 | F66: =COUNTIFS(Divertible_Flow_OneYr!$C$7:$C$371,F$1,Divertible_Flow_OneYr!$BH$7:$BH$371,$A66) -> 7 | G66: =COUNTIFS(Divertible_Flow_OneYr!$C$7:$C$371,G$1,Divertible_Flow_OneYr!$BH$7:$BH$371,$A66) -> 0 | H66: =COUNTIFS(Divertible_Flow_OneYr!$C$7:$C$371,H$1,Divertible_Flow_OneYr!$BH$7:$BH$371,$A66) -> 0 | I66: =COUNTIFS(Divertible_Flow_OneYr!$C$7:$C$371,I$1,Divertible_Flow_OneYr!$BH$7:$BH$371,$A66) -> 0 | J66: =COUNTIFS(Divertible_Flow_OneYr!$C$7:$C$371,J$1,Divertible_Flow_OneYr!$BH$7:$BH$371,$A66) -> 0 | K66: =COUNTIFS(Divertible_Flow_OneYr!$C$7:$C$371,K$1,Divertible_Flow_OneYr!$BH$7:$BH$371,$A66) -> 0 | L66: =COUNTIFS(Divertible_Flow_OneYr!$C$7:$C$371,L$1,Divertible_Flow_OneYr!$BH$7:$BH$371,$A66) -> 0 | M66: =COUNTIFS(Divertible_Flow_OneYr!$C$7:$C$372,M$1,Divertible_Flow_OneYr!$BH$7:$BH$372,$A66) -> 0 | N66: 13
A67: Freeport Pulse (Fish-based) | B67: =COUNTIFS(Divertible_Flow_OneYr!$C$7:$C$371,B$1,Divertible_Flow_OneYr!$BH$7:$BH$371,$A67) -> 0 | C67: =COUNTIFS(Divertible_Flow_OneYr!$C$7:$C$371,C$1,Divertible_Flow_OneYr!$BH$7:$BH$371,$A67) -> 0 | D67: =COUNTIFS(Divertible_Flow_OneYr!$C$7:$C$371,D$1,Divertible_Flow_OneYr!$BH$7:$BH$371,$A67) -> 0 | E67: =COUNTIFS(Divertible_Flow_OneYr!$C$7:$C$371,E$1,Divertible_Flow_OneYr!$BH$7:$BH$371,$A67) -> 0 | F67: =COUNTIFS(Divertible_Flow_OneYr!$C$7:$C$371,F$1,Divertible_Flow_OneYr!$BH$7:$BH$371,$A67) -> 0 | G67: =COUNTIFS(Divertible_Flow_OneYr!$C$7:$C$371,G$1,Divertible_Flow_OneYr!$BH$7:$BH$371,$A67) -> 0 | H67: =COUNTIFS(Divertible_Flow_OneYr!$C$7:$C$371,H$1,Divertible_Flow_OneYr!$BH$7:$BH$371,$A67) -> 0 | I67: =COUNTIFS(Divertible_Flow_OneYr!$C$7:$C$371,I$1,Divertible_Flow_OneYr!$BH$7:$BH$371,$A67) -> 0 | J67: =COUNTIFS(Divertible_Flow_OneYr!$C$7:$C$371,J$1,Divertible_Flow_OneYr!$BH$7:$BH$371,$A67) -> 0 | K67: =COUNTIFS(Divertible_Flow_OneYr!$C$7:$C$371,K$1,Divertible_Flow_OneYr!$BH$7:$BH$371,$A67) -> 0 | L67: =COUNTIFS(Divertible_Flow_OneYr!$C$7:$C$371,L$1,Divertible_Flow_OneYr!$BH$7:$BH$371,$A67) -> 0 | M67: =COUNTIFS(Divertible_Flow_OneYr!$C$7:$C$372,M$1,Divertible_Flow_OneYr!$BH$7:$BH$372,$A67) -> 0 | N67: =SUM(B67:M67) -> 0
A68: Freeport Pulse (Flow-based) | B68: =COUNTIFS(Divertible_Flow_OneYr!$C$7:$C$371,B$1,Divertible_Flow_OneYr!$BH$7:$BH$371,$A68) -> 0 | C68: =COUNTIFS(Divertible_Flow_OneYr!$C$7:$C$371,C$1,Divertible_Flow_OneYr!$BH$7:$BH$371,$A68) -> 0 | D68: =COUNTIFS(Divertible_Flow_OneYr!$C$7:$C$371,D$1,Divertible_Flow_OneYr!$BH$7:$BH$371,$A68) -> 0 | E68: =COUNTIFS(Divertible_Flow_OneYr!$C$7:$C$371,E$1,Divertible_Flow_OneYr!$BH$7:$BH$371,$A68) -> 0 | F68: =COUNTIFS(Divertible_Flow_OneYr!$C$7:$C$371,F$1,Divertible_Flow_OneYr!$BH$7:$BH$371,$A68) -> 0 | G68: =COUNTIFS(Divertible_Flow_OneYr!$C$7:$C$371,G$1,Divertible_Flow_OneYr!$BH$7:$BH$371,$A68) -> 0 | H68: =COUNTIFS(Divertible_Flow_OneYr!$C$7:$C$371,H$1,Divertible_Flow_OneYr!$BH$7:$BH$371,$A68) -> 0 | I68: =COUNTIFS(Divertible_Flow_OneYr!$C$7:$C$371,I$1,Divertible_Flow_OneYr!$BH$7:$BH$371,$A68) -> 0 | J68: =COUNTIFS(Divertible_Flow_OneYr!$C$7:$C$371,J$1,Divertible_Flow_OneYr!$BH$7:$BH$371,$A68) -> 0 | K68: =COUNTIFS(Divertible_Flow_OneYr!$C$7:$C$371,K$1,Divertible_Flow_OneYr!$BH$7:$BH$371,$A68) -> 0 | L68: =COUNTIFS(Divertible_Flow_OneYr!$C$7:$C$371,L$1,Divertible_Flow_OneYr!$BH$7:$BH$371,$A68) -> 0 | M68: =COUNTIFS(Divertible_Flow_OneYr!$C$7:$C$372,M$1,Divertible_Flow_OneYr!$BH$7:$BH$372,$A68) -> 0 | N68: =SUM(B68:M68) -> 0
A69: Minimum Pumping | B69: =COUNTIFS(Divertible_Flow_OneYr!$C$7:$C$371,B$1,Divertible_Flow_OneYr!$BH$7:$BH$371,$A69) -> 0 | C69: =COUNTIFS(Divertible_Flow_OneYr!$C$7:$C$371,C$1,Divertible_Flow_OneYr!$BH$7:$BH$371,$A69) -> 0 | D69: =COUNTIFS(Divertible_Flow_OneYr!$C$7:$C$371,D$1,Divertible_Flow_OneYr!$BH$7:$BH$371,$A69) -> 0 | E69: =COUNTIFS(Divertible_Flow_OneYr!$C$7:$C$371,E$1,Divertible_Flow_OneYr!$BH$7:$BH$371,$A69) -> 0 | F69: =COUNTIFS(Divertible_Flow_OneYr!$C$7:$C$371,F$1,Divertible_Flow_OneYr!$BH$7:$BH$371,$A69) -> 0 | G69: =COUNTIFS(Divertible_Flow_OneYr!$C$7:$C$371,G$1,Divertible_Flow_OneYr!$BH$7:$BH$371,$A69) -> 1 | H69: =COUNTIFS(Divertible_Flow_OneYr!$C$7:$C$371,H$1,Divertible_Flow_OneYr!$BH$7:$BH$371,$A69) -> 0 | I69: =COUNTIFS(Divertible_Flow_OneYr!$C$7:$C$371,I$1,Divertible_Flow_OneYr!$BH$7:$BH$371,$A69) -> 0 | J69: =COUNTIFS(Divertible_Flow_OneYr!$C$7:$C$371,J$1,Divertible_Flow_OneYr!$BH$7:$BH$371,$A69) -> 0 | K69: =COUNTIFS(Divertible_Flow_OneYr!$C$7:$C$371,K$1,Divertible_Flow_OneYr!$BH$7:$BH$371,$A69) -> 0 | L69: =COUNTIFS(Divertible_Flow_OneYr!$C$7:$C$371,L$1,Divertible_Flow_OneYr!$BH$7:$BH$371,$A69) -> 0 | M69: =COUNTIFS(Divertible_Flow_OneYr!$C$7:$C$372,M$1,Divertible_Flow_OneYr!$BH$7:$BH$372,$A69) -> 0 | N69: 1
A70: Maintenance | B70: =COUNTIFS(Divertible_Flow_OneYr!$C$7:$C$371,B$1,Divertible_Flow_OneYr!$BH$7:$BH$371,$A70) -> 0 | C70: =COUNTIFS(Divertible_Flow_OneYr!$C$7:$C$371,C$1,Divertible_Flow_OneYr!$BH$7:$BH$371,$A70) -> 0 | D70: =COUNTIFS(Divertible_Flow_OneYr!$C$7:$C$371,D$1,Divertible_Flow_OneYr!$BH$7:$BH$371,$A70) -> 0 | E70: =COUNTIFS(Divertible_Flow_OneYr!$C$7:$C$371,E$1,Divertible_Flow_OneYr!$BH$7:$BH$371,$A70) -> 7 | F70: =COUNTIFS(Divertible_Flow_OneYr!$C$7:$C$371,F$1,Divertible_Flow_OneYr!$BH$7:$BH$371,$A70) -> 7 | G70: =COUNTIFS(Divertible_Flow_OneYr!$C$7:$C$371,G$1,Divertible_Flow_OneYr!$BH$7:$BH$371,$A70) -> 0 | H70: =COUNTIFS(Divertible_Flow_OneYr!$C$7:$C$371,H$1,Divertible_Flow_OneYr!$BH$7:$BH$371,$A70) -> 0 | I70: =COUNTIFS(Divertible_Flow_OneYr!$C$7:$C$371,I$1,Divertible_Flow_OneYr!$BH$7:$BH$371,$A70) -> 0 | J70: =COUNTIFS(Divertible_Flow_OneYr!$C$7:$C$371,J$1,Divertible_Flow_OneYr!$BH$7:$BH$371,$A70) -> 0 | K70: =COUNTIFS(Divertible_Flow_OneYr!$C$7:$C$371,K$1,Divertible_Flow_OneYr!$BH$7:$BH$371,$A70) -> 0 | L70: =COUNTIFS(Divertible_Flow_OneYr!$C$7:$C$371,L$1,Divertible_Flow_OneYr!$BH$7:$BH$371,$A70) -> 0 | M70: =COUNTIFS(Divertible_Flow_OneYr!$C$7:$C$372,M$1,Divertible_Flow_OneYr!$BH$7:$BH$372,$A70) -> 0 | N70: 14
A71: Storage Capacity | B71: =COUNTIFS(Divertible_Flow_OneYr!$C$7:$C$371,B$1,Divertible_Flow_OneYr!$BH$7:$BH$371,$A71) -> 0 | C71: =COUNTIFS(Divertible_Flow_OneYr!$C$7:$C$371,C$1,Divertible_Flow_OneYr!$BH$7:$BH$371,$A71) -> 0 | D71: =COUNTIFS(Divertible_Flow_OneYr!$C$7:$C$371,D$1,Divertible_Flow_OneYr!$BH$7:$BH$371,$A71) -> 0 | E71: =COUNTIFS(Divertible_Flow_OneYr!$C$7:$C$371,E$1,Divertible_Flow_OneYr!$BH$7:$BH$371,$A71) -> 0 | F71: =COUNTIFS(Divertible_Flow_OneYr!$C$7:$C$371,F$1,Divertible_Flow_OneYr!$BH$7:$BH$371,$A71) -> 0 | G71: =COUNTIFS(Divertible_Flow_OneYr!$C$7:$C$371,G$1,Divertible_Flow_OneYr!$BH$7:$BH$371,$A71) -> 0 | H71: =COUNTIFS(Divertible_Flow_OneYr!$C$7:$C$371,H$1,Divertible_Flow_OneYr!$BH$7:$BH$371,$A71) -> 0 | I71: =COUNTIFS(Divertible_Flow_OneYr!$C$7:$C$371,I$1,Divertible_Flow_OneYr!$BH$7:$BH$371,$A71) -> 0 | J71: =COUNTIFS(Divertible_Flow_OneYr!$C$7:$C$371,J$1,Divertible_Flow_OneYr!$BH$7:$BH$371,$A71) -> 0 | K71: =COUNTIFS(Divertible_Flow_OneYr!$C$7:$C$371,K$1,Divertible_Flow_OneYr!$BH$7:$BH$371,$A71) -> 0 | L71: =COUNTIFS(Divertible_Flow_OneYr!$C$7:$C$371,L$1,Divertible_Flow_OneYr!$BH$7:$BH$371,$A71) -> 0 | M71: =COUNTIFS(Divertible_Flow_OneYr!$C$7:$C$372,M$1,Divertible_Flow_OneYr!$BH$7:$BH$372,$A71) -> 0 | N71: 0
A72: Intake Off | B72: =COUNTIFS(Divertible_Flow_OneYr!$C$7:$C$371,B$1,Divertible_Flow_OneYr!$BH$7:$BH$371,$A72) -> 31 | C72: =COUNTIFS(Divertible_Flow_OneYr!$C$7:$C$371,C$1,Divertible_Flow_OneYr!$BH$7:$BH$371,$A72) -> 0 | D72: =COUNTIFS(Divertible_Flow_OneYr!$C$7:$C$371,D$1,Divertible_Flow_OneYr!$BH$7:$BH$371,$A72) -> 0 | E72: =COUNTIFS(Divertible_Flow_OneYr!$C$7:$C$371,E$1,Divertible_Flow_OneYr!$BH$7:$BH$371,$A72) -> 0 | F72: =COUNTIFS(Divertible_Flow_OneYr!$C$7:$C$371,F$1,Divertible_Flow_OneYr!$BH$7:$BH$371,$A72) -> 0 | G72: =COUNTIFS(Divertible_Flow_OneYr!$C$7:$C$371,G$1,Divertible_Flow_OneYr!$BH$7:$BH$371,$A72) -> 0 | H72: =COUNTIFS(Divertible_Flow_OneYr!$C$7:$C$371,H$1,Divertible_Flow_OneYr!$BH$7:$BH$371,$A72) -> 0 | I72: =COUNTIFS(Divertible_Flow_OneYr!$C$7:$C$371,I$1,Divertible_Flow_OneYr!$BH$7:$BH$371,$A72) -> 0 | J72: =COUNTIFS(Divertible_Flow_OneYr!$C$7:$C$371,J$1,Divertible_Flow_OneYr!$BH$7:$BH$371,$A72) -> 30 | K72: =COUNTIFS(Divertible_Flow_OneYr!$C$7:$C$371,K$1,Divertible_Flow_OneYr!$BH$7:$BH$371,$A72) -> 31 | L72: =COUNTIFS(Divertible_Flow_OneYr!$C$7:$C$371,L$1,Divertible_Flow_OneYr!$BH$7:$BH$371,$A72) -> 31 | M72: =COUNTIFS(Divertible_Flow_OneYr!$C$7:$C$372,M$1,Divertible_Flow_OneYr!$BH$7:$BH$372,$A72) -> 30 | N72: =SUM(B72:M72) -> 153
A74: =CONCATENATE("Controls on Delevan Intake - WY ",User_Specifications!$B$3) -> Controls on Delevan Intake - WY 2011
B75: October | C75: November | D75: December | E75: January | F75: February | G75: March | H75: April | I75: May | J75: June | K75: July | L75: August | M75: September | N75: Annual
A76: SAC | B76: =COUNTIFS(Divertible_Flow_OneYr!$C$7:$C$371,B$1,Divertible_Flow_OneYr!$BI$7:$BI$371,$A76) -> 0 | C76: =COUNTIFS(Divertible_Flow_OneYr!$C$7:$C$371,C$1,Divertible_Flow_OneYr!$BI$7:$BI$371,$A76) -> 0 | D76: =COUNTIFS(Divertible_Flow_OneYr!$C$7:$C$371,D$1,Divertible_Flow_OneYr!$BI$7:$BI$371,$A76) -> 0 | E76: =COUNTIFS(Divertible_Flow_OneYr!$C$7:$C$371,E$1,Divertible_Flow_OneYr!$BI$7:$BI$371,$A76) -> 0 | F76: =COUNTIFS(Divertible_Flow_OneYr!$C$7:$C$371,F$1,Divertible_Flow_OneYr!$BI$7:$BI$371,$A76) -> 0 | G76: =COUNTIFS(Divertible_Flow_OneYr!$C$7:$C$371,G$1,Divertible_Flow_OneYr!$BI$7:$BI$371,$A76) -> 0 | H76: =COUNTIFS(Divertible_Flow_OneYr!$C$7:$C$371,H$1,Divertible_Flow_OneYr!$BI$7:$BI$371,$A76) -> 0 | I76: =COUNTIFS(Divertible_Flow_OneYr!$C$7:$C$371,I$1,Divertible_Flow_OneYr!$BI$7:$BI$371,$A76) -> 0 | J76: =COUNTIFS(Divertible_Flow_OneYr!$C$7:$C$371,J$1,Divertible_Flow_OneYr!$BI$7:$BI$371,$A76) -> 0 | K76: =COUNTIFS(Divertible_Flow_OneYr!$C$7:$C$371,K$1,Divertible_Flow_OneYr!$BI$7:$BI$371,$A76) -> 0 | L76: =COUNTIFS(Divertible_Flow_OneYr!$C$7:$C$371,L$1,Divertible_Flow_OneYr!$BI$7:$BI$371,$A76) -> 0 | M76: =COUNTIFS(Divertible_Flow_OneYr!$C$7:$C$372,M$1,Divertible_Flow_OneYr!$BI$7:$BI$372,$A76) -> 0 | N76: =SUM(B76:M76) -> 0
A77: Export Lim | B77: =COUNTIFS(Divertible_Flow_OneYr!$C$7:$C$371,B$1,Divertible_Flow_OneYr!$BI$7:$BI$371,$A77) -> 0 | C77: =COUNTIFS(Divertible_Flow_OneYr!$C$7:$C$371,C$1,Divertible_Flow_OneYr!$BI$7:$BI$371,$A77) -> 0 | D77: =COUNTIFS(Divertible_Flow_OneYr!$C$7:$C$371,D$1,Divertible_Flow_OneYr!$BI$7:$BI$371,$A77) -> 0 | E77: =COUNTIFS(Divertible_Flow_OneYr!$C$7:$C$371,E$1,Divertible_Flow_OneYr!$BI$7:$BI$371,$A77) -> 0 | F77: =COUNTIFS(Divertible_Flow_OneYr!$C$7:$C$371,F$1,Divertible_Flow_OneYr!$BI$7:$BI$371,$A77) -> 0 | G77: =COUNTIFS(Divertible_Flow_OneYr!$C$7:$C$371,G$1,Divertible_Flow_OneYr!$BI$7:$BI$371,$A77) -> 0 | H77: =COUNTIFS(Divertible_Flow_OneYr!$C$7:$C$371,H$1,Divertible_Flow_OneYr!$BI$7:$BI$371,$A77) -> 0 | I77: =COUNTIFS(Divertible_Flow_OneYr!$C$7:$C$371,I$1,Divertible_Flow_OneYr!$BI$7:$BI$371,$A77) -> 0 | J77: =COUNTIFS(Divertible_Flow_OneYr!$C$7:$C$371,J$1,Divertible_Flow_OneYr!$BI$7:$BI$371,$A77) -> 0 | K77: =COUNTIFS(Divertible_Flow_OneYr!$C$7:$C$371,K$1,Divertible_Flow_OneYr!$BI$7:$BI$371,$A77) -> 0 | L77: =COUNTIFS(Divertible_Flow_OneYr!$C$7:$C$371,L$1,Divertible_Flow_OneYr!$BI$7:$BI$371,$A77) -> 0 | M77: =COUNTIFS(Divertible_Flow_OneYr!$C$7:$C$372,M$1,Divertible_Flow_OneYr!$BI$7:$BI$372,$A77) -> 0 | N77: 0
A78: E/I | B78: =COUNTIFS(Divertible_Flow_OneYr!$C$7:$C$371,B$1,Divertible_Flow_OneYr!$BI$7:$BI$371,$A78) -> 0 | C78: =COUNTIFS(Divertible_Flow_OneYr!$C$7:$C$371,C$1,Divertible_Flow_OneYr!$BI$7:$BI$371,$A78) -> 0 | D78: =COUNTIFS(Divertible_Flow_OneYr!$C$7:$C$371,D$1,Divertible_Flow_OneYr!$BI$7:$BI$371,$A78) -> 0 | E78: =COUNTIFS(Divertible_Flow_OneYr!$C$7:$C$371,E$1,Divertible_Flow_OneYr!$BI$7:$BI$371,$A78) -> 0 | F78: =COUNTIFS(Divertible_Flow_OneYr!$C$7:$C$371,F$1,Divertible_Flow_OneYr!$BI$7:$BI$371,$A78) -> 0 | G78: =COUNTIFS(Divertible_Flow_OneYr!$C$7:$C$371,G$1,Divertible_Flow_OneYr!$BI$7:$BI$371,$A78) -> 0 | H78: =COUNTIFS(Divertible_Flow_OneYr!$C$7:$C$371,H$1,Divertible_Flow_OneYr!$BI$7:$BI$371,$A78) -> 0 | I78: =COUNTIFS(Divertible_Flow_OneYr!$C$7:$C$371,I$1,Divertible_Flow_OneYr!$BI$7:$BI$371,$A78) -> 0 | J78: =COUNTIFS(Divertible_Flow_OneYr!$C$7:$C$371,J$1,Divertible_Flow_OneYr!$BI$7:$BI$371,$A78) -> 0 | K78: =COUNTIFS(Divertible_Flow_OneYr!$C$7:$C$371,K$1,Divertible_Flow_OneYr!$BI$7:$BI$371,$A78) -> 0 | L78: =COUNTIFS(Divertible_Flow_OneYr!$C$7:$C$371,L$1,Divertible_Flow_OneYr!$BI$7:$BI$371,$A78) -> 0 | M78: =COUNTIFS(Divertible_Flow_OneYr!$C$7:$C$372,M$1,Divertible_Flow_OneYr!$BI$7:$BI$372,$A78) -> 0 | N78: 0
A79: OMR | B79: =COUNTIFS(Divertible_Flow_OneYr!$C$7:$C$371,B$1,Divertible_Flow_OneYr!$BI$7:$BI$371,$A79) -> 0 | C79: =COUNTIFS(Divertible_Flow_OneYr!$C$7:$C$371,C$1,Divertible_Flow_OneYr!$BI$7:$BI$371,$A79) -> 0 | D79: =COUNTIFS(Divertible_Flow_OneYr!$C$7:$C$371,D$1,Divertible_Flow_OneYr!$BI$7:$BI$371,$A79) -> 0 | E79: =COUNTIFS(Divertible_Flow_OneYr!$C$7:$C$371,E$1,Divertible_Flow_OneYr!$BI$7:$BI$371,$A79) -> 0 | F79: =COUNTIFS(Divertible_Flow_OneYr!$C$7:$C$371,F$1,Divertible_Flow_OneYr!$BI$7:$BI$371,$A79) -> 0 | G79: =COUNTIFS(Divertible_Flow_OneYr!$C$7:$C$371,G$1,Divertible_Flow_OneYr!$BI$7:$BI$371,$A79) -> 0 | H79: =COUNTIFS(Divertible_Flow_OneYr!$C$7:$C$371,H$1,Divertible_Flow_OneYr!$BI$7:$BI$371,$A79) -> 0 | I79: =COUNTIFS(Divertible_Flow_OneYr!$C$7:$C$371,I$1,Divertible_Flow_OneYr!$BI$7:$BI$371,$A79) -> 0 | J79: =COUNTIFS(Divertible_Flow_OneYr!$C$7:$C$371,J$1,Divertible_Flow_OneYr!$BI$7:$BI$371,$A79) -> 0 | K79: =COUNTIFS(Divertible_Flow_OneYr!$C$7:$C$371,K$1,Divertible_Flow_OneYr!$BI$7:$BI$371,$A79) -> 0 | L79: =COUNTIFS(Divertible_Flow_OneYr!$C$7:$C$371,L$1,Divertible_Flow_OneYr!$BI$7:$BI$371,$A79) -> 0 | M79: =COUNTIFS(Divertible_Flow_OneYr!$C$7:$C$372,M$1,Divertible_Flow_OneYr!$BI$7:$BI$372,$A79) -> 0 | N79: 0
A80: SJR EI | B80: =COUNTIFS(Divertible_Flow_OneYr!$C$7:$C$371,B$1,Divertible_Flow_OneYr!$BI$7:$BI$371,$A80) -> 0 | C80: =COUNTIFS(Divertible_Flow_OneYr!$C$7:$C$371,C$1,Divertible_Flow_OneYr!$BI$7:$BI$371,$A80) -> 0 | D80: =COUNTIFS(Divertible_Flow_OneYr!$C$7:$C$371,D$1,Divertible_Flow_OneYr!$BI$7:$BI$371,$A80) -> 0 | E80: =COUNTIFS(Divertible_Flow_OneYr!$C$7:$C$371,E$1,Divertible_Flow_OneYr!$BI$7:$BI$371,$A80) -> 0 | F80: =COUNTIFS(Divertible_Flow_OneYr!$C$7:$C$371,F$1,Divertible_Flow_OneYr!$BI$7:$BI$371,$A80) -> 0 | G80: =COUNTIFS(Divertible_Flow_OneYr!$C$7:$C$371,G$1,Divertible_Flow_OneYr!$BI$7:$BI$371,$A80) -> 0 | H80: =COUNTIFS(Divertible_Flow_OneYr!$C$7:$C$371,H$1,Divertible_Flow_OneYr!$BI$7:$BI$371,$A80) -> 0 | I80: =COUNTIFS(Divertible_Flow_OneYr!$C$7:$C$371,I$1,Divertible_Flow_OneYr!$BI$7:$BI$371,$A80) -> 0 | J80: =COUNTIFS(Divertible_Flow_OneYr!$C$7:$C$371,J$1,Divertible_Flow_OneYr!$BI$7:$BI$371,$A80) -> 0 | K80: =COUNTIFS(Divertible_Flow_OneYr!$C$7:$C$371,K$1,Divertible_Flow_OneYr!$BI$7:$BI$371,$A80) -> 0 | L80: =COUNTIFS(Divertible_Flow_OneYr!$C$7:$C$371,L$1,Divertible_Flow_OneYr!$BI$7:$BI$371,$A80) -> 0 | M80: =COUNTIFS(Divertible_Flow_OneYr!$C$7:$C$372,M$1,Divertible_Flow_OneYr!$BI$7:$BI$372,$A80) -> 0 | N80: 0
A81: H&S | B81: =COUNTIFS(Divertible_Flow_OneYr!$C$7:$C$371,B$1,Divertible_Flow_OneYr!$BI$7:$BI$371,$A81) -> 0 | C81: =COUNTIFS(Divertible_Flow_OneYr!$C$7:$C$371,C$1,Divertible_Flow_OneYr!$BI$7:$BI$371,$A81) -> 0 | D81: =COUNTIFS(Divertible_Flow_OneYr!$C$7:$C$371,D$1,Divertible_Flow_OneYr!$BI$7:$BI$371,$A81) -> 0 | E81: =COUNTIFS(Divertible_Flow_OneYr!$C$7:$C$371,E$1,Divertible_Flow_OneYr!$BI$7:$BI$371,$A81) -> 0 | F81: =COUNTIFS(Divertible_Flow_OneYr!$C$7:$C$371,F$1,Divertible_Flow_OneYr!$BI$7:$BI$371,$A81) -> 0 | G81: =COUNTIFS(Divertible_Flow_OneYr!$C$7:$C$371,G$1,Divertible_Flow_OneYr!$BI$7:$BI$371,$A81) -> 0 | H81: =COUNTIFS(Divertible_Flow_OneYr!$C$7:$C$371,H$1,Divertible_Flow_OneYr!$BI$7:$BI$371,$A81) -> 0 | I81: =COUNTIFS(Divertible_Flow_OneYr!$C$7:$C$371,I$1,Divertible_Flow_OneYr!$BI$7:$BI$371,$A81) -> 0 | J81: =COUNTIFS(Divertible_Flow_OneYr!$C$7:$C$371,J$1,Divertible_Flow_OneYr!$BI$7:$BI$371,$A81) -> 0 | K81: =COUNTIFS(Divertible_Flow_OneYr!$C$7:$C$371,K$1,Divertible_Flow_OneYr!$BI$7:$BI$371,$A81) -> 0 | L81: =COUNTIFS(Divertible_Flow_OneYr!$C$7:$C$371,L$1,Divertible_Flow_OneYr!$BI$7:$BI$371,$A81) -> 0 | M81: =COUNTIFS(Divertible_Flow_OneYr!$C$7:$C$372,M$1,Divertible_Flow_OneYr!$BI$7:$BI$372,$A81) -> 0 | N81: 0
A82: DO | B82: =COUNTIFS(Divertible_Flow_OneYr!$C$7:$C$371,B$1,Divertible_Flow_OneYr!$BI$7:$BI$371,$A82) -> 0 | C82: =COUNTIFS(Divertible_Flow_OneYr!$C$7:$C$371,C$1,Divertible_Flow_OneYr!$BI$7:$BI$371,$A82) -> 0 | D82: =COUNTIFS(Divertible_Flow_OneYr!$C$7:$C$371,D$1,Divertible_Flow_OneYr!$BI$7:$BI$371,$A82) -> 0 | E82: =COUNTIFS(Divertible_Flow_OneYr!$C$7:$C$371,E$1,Divertible_Flow_OneYr!$BI$7:$BI$371,$A82) -> 0 | F82: =COUNTIFS(Divertible_Flow_OneYr!$C$7:$C$371,F$1,Divertible_Flow_OneYr!$BI$7:$BI$371,$A82) -> 0 | G82: =COUNTIFS(Divertible_Flow_OneYr!$C$7:$C$371,G$1,Divertible_Flow_OneYr!$BI$7:$BI$371,$A82) -> 0 | H82: =COUNTIFS(Divertible_Flow_OneYr!$C$7:$C$371,H$1,Divertible_Flow_OneYr!$BI$7:$BI$371,$A82) -> 0 | I82: =COUNTIFS(Divertible_Flow_OneYr!$C$7:$C$371,I$1,Divertible_Flow_OneYr!$BI$7:$BI$371,$A82) -> 0 | J82: =COUNTIFS(Divertible_Flow_OneYr!$C$7:$C$371,J$1,Divertible_Flow_OneYr!$BI$7:$BI$371,$A82) -> 0 | K82: =COUNTIFS(Divertible_Flow_OneYr!$C$7:$C$371,K$1,Divertible_Flow_OneYr!$BI$7:$BI$371,$A82) -> 0 | L82: =COUNTIFS(Divertible_Flow_OneYr!$C$7:$C$371,L$1,Divertible_Flow_OneYr!$BI$7:$BI$371,$A82) -> 0 | M82: =COUNTIFS(Divertible_Flow_OneYr!$C$7:$C$372,M$1,Divertible_Flow_OneYr!$BI$7:$BI$372,$A82) -> 0 | N82: 0
A83: Balance | B83: =COUNTIFS(Divertible_Flow_OneYr!$C$7:$C$371,B$1,Divertible_Flow_OneYr!$BI$7:$BI$371,$A83) -> 0 | C83: =COUNTIFS(Divertible_Flow_OneYr!$C$7:$C$371,C$1,Divertible_Flow_OneYr!$BI$7:$BI$371,$A83) -> 0 | D83: =COUNTIFS(Divertible_Flow_OneYr!$C$7:$C$371,D$1,Divertible_Flow_OneYr!$BI$7:$BI$371,$A83) -> 0 | E83: =COUNTIFS(Divertible_Flow_OneYr!$C$7:$C$371,E$1,Divertible_Flow_OneYr!$BI$7:$BI$371,$A83) -> 0 | F83: =COUNTIFS(Divertible_Flow_OneYr!$C$7:$C$371,F$1,Divertible_Flow_OneYr!$BI$7:$BI$371,$A83) -> 0 | G83: =COUNTIFS(Divertible_Flow_OneYr!$C$7:$C$371,G$1,Divertible_Flow_OneYr!$BI$7:$BI$371,$A83) -> 0 | H83: =COUNTIFS(Divertible_Flow_OneYr!$C$7:$C$371,H$1,Divertible_Flow_OneYr!$BI$7:$BI$371,$A83) -> 0 | I83: =COUNTIFS(Divertible_Flow_OneYr!$C$7:$C$371,I$1,Divertible_Flow_OneYr!$BI$7:$BI$371,$A83) -> 0 | J83: =COUNTIFS(Divertible_Flow_OneYr!$C$7:$C$371,J$1,Divertible_Flow_OneYr!$BI$7:$BI$371,$A83) -> 0 | K83: =COUNTIFS(Divertible_Flow_OneYr!$C$7:$C$371,K$1,Divertible_Flow_OneYr!$BI$7:$BI$371,$A83) -> 0 | L83: =COUNTIFS(Divertible_Flow_OneYr!$C$7:$C$371,L$1,Divertible_Flow_OneYr!$BI$7:$BI$371,$A83) -> 0 | M83: =COUNTIFS(Divertible_Flow_OneYr!$C$7:$C$372,M$1,Divertible_Flow_OneYr!$BI$7:$BI$372,$A83) -> 0 | N83: 0
A84: Term 91 | B84: =COUNTIFS(Divertible_Flow_OneYr!$C$7:$C$371,B$1,Divertible_Flow_OneYr!$BI$7:$BI$371,$A84) -> 0 | C84: =COUNTIFS(Divertible_Flow_OneYr!$C$7:$C$371,C$1,Divertible_Flow_OneYr!$BI$7:$BI$371,$A84) -> 0 | D84: =COUNTIFS(Divertible_Flow_OneYr!$C$7:$C$371,D$1,Divertible_Flow_OneYr!$BI$7:$BI$371,$A84) -> 0 | E84: =COUNTIFS(Divertible_Flow_OneYr!$C$7:$C$371,E$1,Divertible_Flow_OneYr!$BI$7:$BI$371,$A84) -> 0 | F84: =COUNTIFS(Divertible_Flow_OneYr!$C$7:$C$371,F$1,Divertible_Flow_OneYr!$BI$7:$BI$371,$A84) -> 0 | G84: =COUNTIFS(Divertible_Flow_OneYr!$C$7:$C$371,G$1,Divertible_Flow_OneYr!$BI$7:$BI$371,$A84) -> 0 | H84: =COUNTIFS(Divertible_Flow_OneYr!$C$7:$C$371,H$1,Divertible_Flow_OneYr!$BI$7:$BI$371,$A84) -> 0 | I84: =COUNTIFS(Divertible_Flow_OneYr!$C$7:$C$371,I$1,Divertible_Flow_OneYr!$BI$7:$BI$371,$A84) -> 0 | J84: =COUNTIFS(Divertible_Flow_OneYr!$C$7:$C$371,J$1,Divertible_Flow_OneYr!$BI$7:$BI$371,$A84) -> 0 | K84: =COUNTIFS(Divertible_Flow_OneYr!$C$7:$C$371,K$1,Divertible_Flow_OneYr!$BI$7:$BI$371,$A84) -> 0 | L84: =COUNTIFS(Divertible_Flow_OneYr!$C$7:$C$371,L$1,Divertible_Flow_OneYr!$BI$7:$BI$371,$A84) -> 0 | M84: =COUNTIFS(Divertible_Flow_OneYr!$C$7:$C$372,M$1,Divertible_Flow_OneYr!$BI$7:$BI$372,$A84) -> 0 | N84: 0
A85: Spring X2 | B85: =COUNTIFS(Divertible_Flow_OneYr!$C$7:$C$371,B$1,Divertible_Flow_OneYr!$BI$7:$BI$371,$A85) -> 0 | C85: =COUNTIFS(Divertible_Flow_OneYr!$C$7:$C$371,C$1,Divertible_Flow_OneYr!$BI$7:$BI$371,$A85) -> 0 | D85: =COUNTIFS(Divertible_Flow_OneYr!$C$7:$C$371,D$1,Divertible_Flow_OneYr!$BI$7:$BI$371,$A85) -> 0 | E85: =COUNTIFS(Divertible_Flow_OneYr!$C$7:$C$371,E$1,Divertible_Flow_OneYr!$BI$7:$BI$371,$A85) -> 0 | F85: =COUNTIFS(Divertible_Flow_OneYr!$C$7:$C$371,F$1,Divertible_Flow_OneYr!$BI$7:$BI$371,$A85) -> 0 | G85: =COUNTIFS(Divertible_Flow_OneYr!$C$7:$C$371,G$1,Divertible_Flow_OneYr!$BI$7:$BI$371,$A85) -> 0 | H85: =COUNTIFS(Divertible_Flow_OneYr!$C$7:$C$371,H$1,Divertible_Flow_OneYr!$BI$7:$BI$371,$A85) -> 0 | I85: =COUNTIFS(Divertible_Flow_OneYr!$C$7:$C$371,I$1,Divertible_Flow_OneYr!$BI$7:$BI$371,$A85) -> 0 | J85: =COUNTIFS(Divertible_Flow_OneYr!$C$7:$C$371,J$1,Divertible_Flow_OneYr!$BI$7:$BI$371,$A85) -> 0 | K85: =COUNTIFS(Divertible_Flow_OneYr!$C$7:$C$371,K$1,Divertible_Flow_OneYr!$BI$7:$BI$371,$A85) -> 0 | L85: =COUNTIFS(Divertible_Flow_OneYr!$C$7:$C$371,L$1,Divertible_Flow_OneYr!$BI$7:$BI$371,$A85) -> 0 | M85: =COUNTIFS(Divertible_Flow_OneYr!$C$7:$C$372,M$1,Divertible_Flow_OneYr!$BI$7:$BI$372,$A85) -> 0 | N85: 0
A86: Fall X2 | B86: =COUNTIFS(Divertible_Flow_OneYr!$C$7:$C$371,B$1,Divertible_Flow_OneYr!$BI$7:$BI$371,$A86) -> 0 | C86: =COUNTIFS(Divertible_Flow_OneYr!$C$7:$C$371,C$1,Divertible_Flow_OneYr!$BI$7:$BI$371,$A86) -> 0 | D86: =COUNTIFS(Divertible_Flow_OneYr!$C$7:$C$371,D$1,Divertible_Flow_OneYr!$BI$7:$BI$371,$A86) -> 0 | E86: =COUNTIFS(Divertible_Flow_OneYr!$C$7:$C$371,E$1,Divertible_Flow_OneYr!$BI$7:$BI$371,$A86) -> 0 | F86: =COUNTIFS(Divertible_Flow_OneYr!$C$7:$C$371,F$1,Divertible_Flow_OneYr!$BI$7:$BI$371,$A86) -> 0 | G86: =COUNTIFS(Divertible_Flow_OneYr!$C$7:$C$371,G$1,Divertible_Flow_OneYr!$BI$7:$BI$371,$A86) -> 0 | H86: =COUNTIFS(Divertible_Flow_OneYr!$C$7:$C$371,H$1,Divertible_Flow_OneYr!$BI$7:$BI$371,$A86) -> 0 | I86: =COUNTIFS(Divertible_Flow_OneYr!$C$7:$C$371,I$1,Divertible_Flow_OneYr!$BI$7:$BI$371,$A86) -> 0 | J86: =COUNTIFS(Divertible_Flow_OneYr!$C$7:$C$371,J$1,Divertible_Flow_OneYr!$BI$7:$BI$371,$A86) -> 0 | K86: =COUNTIFS(Divertible_Flow_OneYr!$C$7:$C$371,K$1,Divertible_Flow_OneYr!$BI$7:$BI$371,$A86) -> 0 | L86: =COUNTIFS(Divertible_Flow_OneYr!$C$7:$C$371,L$1,Divertible_Flow_OneYr!$BI$7:$BI$371,$A86) -> 0 | M86: =COUNTIFS(Divertible_Flow_OneYr!$C$7:$C$372,M$1,Divertible_Flow_OneYr!$BI$7:$BI$372,$A86) -> 0 | N86: 0
A87: EC | B87: =COUNTIFS(Divertible_Flow_OneYr!$C$7:$C$371,B$1,Divertible_Flow_OneYr!$BI$7:$BI$371,$A87) -> 0 | C87: =COUNTIFS(Divertible_Flow_OneYr!$C$7:$C$371,C$1,Divertible_Flow_OneYr!$BI$7:$BI$371,$A87) -> 0 | D87: =COUNTIFS(Divertible_Flow_OneYr!$C$7:$C$371,D$1,Divertible_Flow_OneYr!$BI$7:$BI$371,$A87) -> 0 | E87: =COUNTIFS(Divertible_Flow_OneYr!$C$7:$C$371,E$1,Divertible_Flow_OneYr!$BI$7:$BI$371,$A87) -> 0 | F87: =COUNTIFS(Divertible_Flow_OneYr!$C$7:$C$371,F$1,Divertible_Flow_OneYr!$BI$7:$BI$371,$A87) -> 0 | G87: =COUNTIFS(Divertible_Flow_OneYr!$C$7:$C$371,G$1,Divertible_Flow_OneYr!$BI$7:$BI$371,$A87) -> 0 | H87: =COUNTIFS(Divertible_Flow_OneYr!$C$7:$C$371,H$1,Divertible_Flow_OneYr!$BI$7:$BI$371,$A87) -> 0 | I87: =COUNTIFS(Divertible_Flow_OneYr!$C$7:$C$371,I$1,Divertible_Flow_OneYr!$BI$7:$BI$371,$A87) -> 0 | J87: =COUNTIFS(Divertible_Flow_OneYr!$C$7:$C$371,J$1,Divertible_Flow_OneYr!$BI$7:$BI$371,$A87) -> 0 | K87: =COUNTIFS(Divertible_Flow_OneYr!$C$7:$C$371,K$1,Divertible_Flow_OneYr!$BI$7:$BI$371,$A87) -> 0 | L87: =COUNTIFS(Divertible_Flow_OneYr!$C$7:$C$371,L$1,Divertible_Flow_OneYr!$BI$7:$BI$371,$A87) -> 0 | M87: =COUNTIFS(Divertible_Flow_OneYr!$C$7:$C$372,M$1,Divertible_Flow_OneYr!$BI$7:$BI$372,$A87) -> 0 | N87: 0
A88: Rio Vista | B88: =COUNTIFS(Divertible_Flow_OneYr!$C$7:$C$371,B$1,Divertible_Flow_OneYr!$BI$7:$BI$371,$A88) -> 0 | C88: =COUNTIFS(Divertible_Flow_OneYr!$C$7:$C$371,C$1,Divertible_Flow_OneYr!$BI$7:$BI$371,$A88) -> 0 | D88: =COUNTIFS(Divertible_Flow_OneYr!$C$7:$C$371,D$1,Divertible_Flow_OneYr!$BI$7:$BI$371,$A88) -> 0 | E88: =COUNTIFS(Divertible_Flow_OneYr!$C$7:$C$371,E$1,Divertible_Flow_OneYr!$BI$7:$BI$371,$A88) -> 0 | F88: =COUNTIFS(Divertible_Flow_OneYr!$C$7:$C$371,F$1,Divertible_Flow_OneYr!$BI$7:$BI$371,$A88) -> 0 | G88: =COUNTIFS(Divertible_Flow_OneYr!$C$7:$C$371,G$1,Divertible_Flow_OneYr!$BI$7:$BI$371,$A88) -> 0 | H88: =COUNTIFS(Divertible_Flow_OneYr!$C$7:$C$371,H$1,Divertible_Flow_OneYr!$BI$7:$BI$371,$A88) -> 0 | I88: =COUNTIFS(Divertible_Flow_OneYr!$C$7:$C$371,I$1,Divertible_Flow_OneYr!$BI$7:$BI$371,$A88) -> 0 | J88: =COUNTIFS(Divertible_Flow_OneYr!$C$7:$C$371,J$1,Divertible_Flow_OneYr!$BI$7:$BI$371,$A88) -> 0 | K88: =COUNTIFS(Divertible_Flow_OneYr!$C$7:$C$371,K$1,Divertible_Flow_OneYr!$BI$7:$BI$371,$A88) -> 0 | L88: =COUNTIFS(Divertible_Flow_OneYr!$C$7:$C$371,L$1,Divertible_Flow_OneYr!$BI$7:$BI$371,$A88) -> 0 | M88: =COUNTIFS(Divertible_Flow_OneYr!$C$7:$C$372,M$1,Divertible_Flow_OneYr!$BI$7:$BI$372,$A88) -> 0 | N88: 0
A89: Intake Capacity | B89: =COUNTIFS(Divertible_Flow_OneYr!$C$7:$C$371,B$1,Divertible_Flow_OneYr!$BI$7:$BI$371,$A89) -> 1 | C89: =COUNTIFS(Divertible_Flow_OneYr!$C$7:$C$371,C$1,Divertible_Flow_OneYr!$BI$7:$BI$371,$A89) -> 0 | D89: =COUNTIFS(Divertible_Flow_OneYr!$C$7:$C$371,D$1,Divertible_Flow_OneYr!$BI$7:$BI$371,$A89) -> 0 | E89: =COUNTIFS(Divertible_Flow_OneYr!$C$7:$C$371,E$1,Divertible_Flow_OneYr!$BI$7:$BI$371,$A89) -> 0 | F89: =COUNTIFS(Divertible_Flow_OneYr!$C$7:$C$371,F$1,Divertible_Flow_OneYr!$BI$7:$BI$371,$A89) -> 0 | G89: =COUNTIFS(Divertible_Flow_OneYr!$C$7:$C$371,G$1,Divertible_Flow_OneYr!$BI$7:$BI$371,$A89) -> 0 | H89: =COUNTIFS(Divertible_Flow_OneYr!$C$7:$C$371,H$1,Divertible_Flow_OneYr!$BI$7:$BI$371,$A89) -> 0 | I89: =COUNTIFS(Divertible_Flow_OneYr!$C$7:$C$371,I$1,Divertible_Flow_OneYr!$BI$7:$BI$371,$A89) -> 0 | J89: =COUNTIFS(Divertible_Flow_OneYr!$C$7:$C$371,J$1,Divertible_Flow_OneYr!$BI$7:$BI$371,$A89) -> 0 | K89: =COUNTIFS(Divertible_Flow_OneYr!$C$7:$C$371,K$1,Divertible_Flow_OneYr!$BI$7:$BI$371,$A89) -> 0 | L89: =COUNTIFS(Divertible_Flow_OneYr!$C$7:$C$371,L$1,Divertible_Flow_OneYr!$BI$7:$BI$371,$A89) -> 0 | M89: =COUNTIFS(Divertible_Flow_OneYr!$C$7:$C$372,M$1,Divertible_Flow_OneYr!$BI$7:$BI$372,$A89) -> 0 | N89: 1
A90: Delevan Bypass | B90: =COUNTIFS(Divertible_Flow_OneYr!$C$7:$C$371,B$1,Divertible_Flow_OneYr!$BI$7:$BI$371,$A90) -> 0 | C90: =COUNTIFS(Divertible_Flow_OneYr!$C$7:$C$371,C$1,Divertible_Flow_OneYr!$BI$7:$BI$371,$A90) -> 0 | D90: =COUNTIFS(Divertible_Flow_OneYr!$C$7:$C$371,D$1,Divertible_Flow_OneYr!$BI$7:$BI$371,$A90) -> 0 | E90: =COUNTIFS(Divertible_Flow_OneYr!$C$7:$C$371,E$1,Divertible_Flow_OneYr!$BI$7:$BI$371,$A90) -> 0 | F90: =COUNTIFS(Divertible_Flow_OneYr!$C$7:$C$371,F$1,Divertible_Flow_OneYr!$BI$7:$BI$371,$A90) -> 0 | G90: =COUNTIFS(Divertible_Flow_OneYr!$C$7:$C$371,G$1,Divertible_Flow_OneYr!$BI$7:$BI$371,$A90) -> 0 | H90: =COUNTIFS(Divertible_Flow_OneYr!$C$7:$C$371,H$1,Divertible_Flow_OneYr!$BI$7:$BI$371,$A90) -> 0 | I90: =COUNTIFS(Divertible_Flow_OneYr!$C$7:$C$371,I$1,Divertible_Flow_OneYr!$BI$7:$BI$371,$A90) -> 0 | J90: =COUNTIFS(Divertible_Flow_OneYr!$C$7:$C$371,J$1,Divertible_Flow_OneYr!$BI$7:$BI$371,$A90) -> 0 | K90: =COUNTIFS(Divertible_Flow_OneYr!$C$7:$C$371,K$1,Divertible_Flow_OneYr!$BI$7:$BI$371,$A90) -> 0 | L90: =COUNTIFS(Divertible_Flow_OneYr!$C$7:$C$371,L$1,Divertible_Flow_OneYr!$BI$7:$BI$371,$A90) -> 0 | M90: =COUNTIFS(Divertible_Flow_OneYr!$C$7:$C$372,M$1,Divertible_Flow_OneYr!$BI$7:$BI$372,$A90) -> 0 | N90: 0
A91: Wilkins Slough Bypass | B91: =COUNTIFS(Divertible_Flow_OneYr!$C$7:$C$371,B$1,Divertible_Flow_OneYr!$BI$7:$BI$371,$A91) -> 0 | C91: =COUNTIFS(Divertible_Flow_OneYr!$C$7:$C$371,C$1,Divertible_Flow_OneYr!$BI$7:$BI$371,$A91) -> 0 | D91: =COUNTIFS(Divertible_Flow_OneYr!$C$7:$C$371,D$1,Divertible_Flow_OneYr!$BI$7:$BI$371,$A91) -> 0 | E91: =COUNTIFS(Divertible_Flow_OneYr!$C$7:$C$371,E$1,Divertible_Flow_OneYr!$BI$7:$BI$371,$A91) -> 0 | F91: =COUNTIFS(Divertible_Flow_OneYr!$C$7:$C$371,F$1,Divertible_Flow_OneYr!$BI$7:$BI$371,$A91) -> 0 | G91: =COUNTIFS(Divertible_Flow_OneYr!$C$7:$C$371,G$1,Divertible_Flow_OneYr!$BI$7:$BI$371,$A91) -> 0 | H91: =COUNTIFS(Divertible_Flow_OneYr!$C$7:$C$371,H$1,Divertible_Flow_OneYr!$BI$7:$BI$371,$A91) -> 0 | I91: =COUNTIFS(Divertible_Flow_OneYr!$C$7:$C$371,I$1,Divertible_Flow_OneYr!$BI$7:$BI$371,$A91) -> 0 | J91: =COUNTIFS(Divertible_Flow_OneYr!$C$7:$C$371,J$1,Divertible_Flow_OneYr!$BI$7:$BI$371,$A91) -> 0 | K91: =COUNTIFS(Divertible_Flow_OneYr!$C$7:$C$371,K$1,Divertible_Flow_OneYr!$BI$7:$BI$371,$A91) -> 0 | L91: =COUNTIFS(Divertible_Flow_OneYr!$C$7:$C$371,L$1,Divertible_Flow_OneYr!$BI$7:$BI$371,$A91) -> 0 | M91: =COUNTIFS(Divertible_Flow_OneYr!$C$7:$C$372,M$1,Divertible_Flow_OneYr!$BI$7:$BI$372,$A91) -> 0 | N91: 0
A92: Freeport Bypass | B92: =COUNTIFS(Divertible_Flow_OneYr!$C$7:$C$371,B$1,Divertible_Flow_OneYr!$BI$7:$BI$371,$A92) -> 0 | C92: =COUNTIFS(Divertible_Flow_OneYr!$C$7:$C$371,C$1,Divertible_Flow_OneYr!$BI$7:$BI$371,$A92) -> 0 | D92: =COUNTIFS(Divertible_Flow_OneYr!$C$7:$C$371,D$1,Divertible_Flow_OneYr!$BI$7:$BI$371,$A92) -> 0 | E92: =COUNTIFS(Divertible_Flow_OneYr!$C$7:$C$371,E$1,Divertible_Flow_OneYr!$BI$7:$BI$371,$A92) -> 0 | F92: =COUNTIFS(Divertible_Flow_OneYr!$C$7:$C$371,F$1,Divertible_Flow_OneYr!$BI$7:$BI$371,$A92) -> 0 | G92: =COUNTIFS(Divertible_Flow_OneYr!$C$7:$C$371,G$1,Divertible_Flow_OneYr!$BI$7:$BI$371,$A92) -> 0 | H92: =COUNTIFS(Divertible_Flow_OneYr!$C$7:$C$371,H$1,Divertible_Flow_OneYr!$BI$7:$BI$371,$A92) -> 0 | I92: =COUNTIFS(Divertible_Flow_OneYr!$C$7:$C$371,I$1,Divertible_Flow_OneYr!$BI$7:$BI$371,$A92) -> 0 | J92: =COUNTIFS(Divertible_Flow_OneYr!$C$7:$C$371,J$1,Divertible_Flow_OneYr!$BI$7:$BI$371,$A92) -> 0 | K92: =COUNTIFS(Divertible_Flow_OneYr!$C$7:$C$371,K$1,Divertible_Flow_OneYr!$BI$7:$BI$371,$A92) -> 0 | L92: =COUNTIFS(Divertible_Flow_OneYr!$C$7:$C$371,L$1,Divertible_Flow_OneYr!$BI$7:$BI$371,$A92) -> 0 | M92: =COUNTIFS(Divertible_Flow_OneYr!$C$7:$C$372,M$1,Divertible_Flow_OneYr!$BI$7:$BI$372,$A92) -> 0 | N92: 0
A93: Delta Outflow Bypass | B93: =COUNTIFS(Divertible_Flow_OneYr!$C$7:$C$371,B$1,Divertible_Flow_OneYr!$BI$7:$BI$371,$A93) -> 0 | C93: =COUNTIFS(Divertible_Flow_OneYr!$C$7:$C$371,C$1,Divertible_Flow_OneYr!$BI$7:$BI$371,$A93) -> 0 | D93: =COUNTIFS(Divertible_Flow_OneYr!$C$7:$C$371,D$1,Divertible_Flow_OneYr!$BI$7:$BI$371,$A93) -> 0 | E93: =COUNTIFS(Divertible_Flow_OneYr!$C$7:$C$371,E$1,Divertible_Flow_OneYr!$BI$7:$BI$371,$A93) -> 0 | F93: =COUNTIFS(Divertible_Flow_OneYr!$C$7:$C$371,F$1,Divertible_Flow_OneYr!$BI$7:$BI$371,$A93) -> 0 | G93: =COUNTIFS(Divertible_Flow_OneYr!$C$7:$C$371,G$1,Divertible_Flow_OneYr!$BI$7:$BI$371,$A93) -> 0 | H93: =COUNTIFS(Divertible_Flow_OneYr!$C$7:$C$371,H$1,Divertible_Flow_OneYr!$BI$7:$BI$371,$A93) -> 0 | I93: =COUNTIFS(Divertible_Flow_OneYr!$C$7:$C$371,I$1,Divertible_Flow_OneYr!$BI$7:$BI$371,$A93) -> 0 | J93: =COUNTIFS(Divertible_Flow_OneYr!$C$7:$C$371,J$1,Divertible_Flow_OneYr!$BI$7:$BI$371,$A93) -> 0 | K93: =COUNTIFS(Divertible_Flow_OneYr!$C$7:$C$371,K$1,Divertible_Flow_OneYr!$BI$7:$BI$371,$A93) -> 0 | L93: =COUNTIFS(Divertible_Flow_OneYr!$C$7:$C$371,L$1,Divertible_Flow_OneYr!$BI$7:$BI$371,$A93) -> 0 | M93: =COUNTIFS(Divertible_Flow_OneYr!$C$7:$C$372,M$1,Divertible_Flow_OneYr!$BI$7:$BI$372,$A93) -> 0 | N93: 0
A94: Fremont Weir Criteria | B94: =COUNTIFS(Divertible_Flow_OneYr!$C$7:$C$371,B$1,Divertible_Flow_OneYr!$BI$7:$BI$371,$A94) -> 0 | C94: =COUNTIFS(Divertible_Flow_OneYr!$C$7:$C$371,C$1,Divertible_Flow_OneYr!$BI$7:$BI$371,$A94) -> 0 | D94: =COUNTIFS(Divertible_Flow_OneYr!$C$7:$C$371,D$1,Divertible_Flow_OneYr!$BI$7:$BI$371,$A94) -> 0 | E94: =COUNTIFS(Divertible_Flow_OneYr!$C$7:$C$371,E$1,Divertible_Flow_OneYr!$BI$7:$BI$371,$A94) -> 0 | F94: =COUNTIFS(Divertible_Flow_OneYr!$C$7:$C$371,F$1,Divertible_Flow_OneYr!$BI$7:$BI$371,$A94) -> 0 | G94: =COUNTIFS(Divertible_Flow_OneYr!$C$7:$C$371,G$1,Divertible_Flow_OneYr!$BI$7:$BI$371,$A94) -> 0 | H94: =COUNTIFS(Divertible_Flow_OneYr!$C$7:$C$371,H$1,Divertible_Flow_OneYr!$BI$7:$BI$371,$A94) -> 0 | I94: =COUNTIFS(Divertible_Flow_OneYr!$C$7:$C$371,I$1,Divertible_Flow_OneYr!$BI$7:$BI$371,$A94) -> 0 | J94: =COUNTIFS(Divertible_Flow_OneYr!$C$7:$C$371,J$1,Divertible_Flow_OneYr!$BI$7:$BI$371,$A94) -> 0 | K94: =COUNTIFS(Divertible_Flow_OneYr!$C$7:$C$371,K$1,Divertible_Flow_OneYr!$BI$7:$BI$371,$A94) -> 0 | L94: =COUNTIFS(Divertible_Flow_OneYr!$C$7:$C$371,L$1,Divertible_Flow_OneYr!$BI$7:$BI$371,$A94) -> 0 | M94: =COUNTIFS(Divertible_Flow_OneYr!$C$7:$C$372,M$1,Divertible_Flow_OneYr!$BI$7:$BI$372,$A94) -> 0 | N94: 0
A95: Tisdale Weir Criteria | B95: =COUNTIFS(Divertible_Flow_OneYr!$C$7:$C$371,B$1,Divertible_Flow_OneYr!$BI$7:$BI$371,$A95) -> 0 | C95: =COUNTIFS(Divertible_Flow_OneYr!$C$7:$C$371,C$1,Divertible_Flow_OneYr!$BI$7:$BI$371,$A95) -> 0 | D95: =COUNTIFS(Divertible_Flow_OneYr!$C$7:$C$371,D$1,Divertible_Flow_OneYr!$BI$7:$BI$371,$A95) -> 0 | E95: =COUNTIFS(Divertible_Flow_OneYr!$C$7:$C$371,E$1,Divertible_Flow_OneYr!$BI$7:$BI$371,$A95) -> 0 | F95: =COUNTIFS(Divertible_Flow_OneYr!$C$7:$C$371,F$1,Divertible_Flow_OneYr!$BI$7:$BI$371,$A95) -> 0 | G95: =COUNTIFS(Divertible_Flow_OneYr!$C$7:$C$371,G$1,Divertible_Flow_OneYr!$BI$7:$BI$371,$A95) -> 0 | H95: =COUNTIFS(Divertible_Flow_OneYr!$C$7:$C$371,H$1,Divertible_Flow_OneYr!$BI$7:$BI$371,$A95) -> 0 | I95: =COUNTIFS(Divertible_Flow_OneYr!$C$7:$C$371,I$1,Divertible_Flow_OneYr!$BI$7:$BI$371,$A95) -> 0 | J95: =COUNTIFS(Divertible_Flow_OneYr!$C$7:$C$371,J$1,Divertible_Flow_OneYr!$BI$7:$BI$371,$A95) -> 0 | K95: =COUNTIFS(Divertible_Flow_OneYr!$C$7:$C$371,K$1,Divertible_Flow_OneYr!$BI$7:$BI$371,$A95) -> 0 | L95: =COUNTIFS(Divertible_Flow_OneYr!$C$7:$C$371,L$1,Divertible_Flow_OneYr!$BI$7:$BI$371,$A95) -> 0 | M95: =COUNTIFS(Divertible_Flow_OneYr!$C$7:$C$372,M$1,Divertible_Flow_OneYr!$BI$7:$BI$372,$A95) -> 0 | N95: =SUM(B95:M95) -> 0
A96: Scaled Protection Criteria | B96: =COUNTIFS(Divertible_Flow_OneYr!$C$7:$C$371,B$1,Divertible_Flow_OneYr!$BI$7:$BI$371,$A96) -> 0 | C96: =COUNTIFS(Divertible_Flow_OneYr!$C$7:$C$371,C$1,Divertible_Flow_OneYr!$BI$7:$BI$371,$A96) -> 0 | D96: =COUNTIFS(Divertible_Flow_OneYr!$C$7:$C$371,D$1,Divertible_Flow_OneYr!$BI$7:$BI$371,$A96) -> 0 | E96: =COUNTIFS(Divertible_Flow_OneYr!$C$7:$C$371,E$1,Divertible_Flow_OneYr!$BI$7:$BI$371,$A96) -> 0 | F96: =COUNTIFS(Divertible_Flow_OneYr!$C$7:$C$371,F$1,Divertible_Flow_OneYr!$BI$7:$BI$371,$A96) -> 0 | G96: =COUNTIFS(Divertible_Flow_OneYr!$C$7:$C$371,G$1,Divertible_Flow_OneYr!$BI$7:$BI$371,$A96) -> 0 | H96: =COUNTIFS(Divertible_Flow_OneYr!$C$7:$C$371,H$1,Divertible_Flow_OneYr!$BI$7:$BI$371,$A96) -> 0 | I96: =COUNTIFS(Divertible_Flow_OneYr!$C$7:$C$371,I$1,Divertible_Flow_OneYr!$BI$7:$BI$371,$A96) -> 0 | J96: =COUNTIFS(Divertible_Flow_OneYr!$C$7:$C$371,J$1,Divertible_Flow_OneYr!$BI$7:$BI$371,$A96) -> 0 | K96: =COUNTIFS(Divertible_Flow_OneYr!$C$7:$C$371,K$1,Divertible_Flow_OneYr!$BI$7:$BI$371,$A96) -> 0 | L96: =COUNTIFS(Divertible_Flow_OneYr!$C$7:$C$371,L$1,Divertible_Flow_OneYr!$BI$7:$BI$371,$A96) -> 0 | M96: =COUNTIFS(Divertible_Flow_OneYr!$C$7:$C$372,M$1,Divertible_Flow_OneYr!$BI$7:$BI$372,$A96) -> 0 | N96: 0
A97: Hydraulic Curve | B97: =COUNTIFS(Divertible_Flow_OneYr!$C$7:$C$371,B$1,Divertible_Flow_OneYr!$BI$7:$BI$371,$A97) -> 0 | C97: =COUNTIFS(Divertible_Flow_OneYr!$C$7:$C$371,C$1,Divertible_Flow_OneYr!$BI$7:$BI$371,$A97) -> 0 | D97: =COUNTIFS(Divertible_Flow_OneYr!$C$7:$C$371,D$1,Divertible_Flow_OneYr!$BI$7:$BI$371,$A97) -> 0 | E97: =COUNTIFS(Divertible_Flow_OneYr!$C$7:$C$371,E$1,Divertible_Flow_OneYr!$BI$7:$BI$371,$A97) -> 0 | F97: =COUNTIFS(Divertible_Flow_OneYr!$C$7:$C$371,F$1,Divertible_Flow_OneYr!$BI$7:$BI$371,$A97) -> 0 | G97: =COUNTIFS(Divertible_Flow_OneYr!$C$7:$C$371,G$1,Divertible_Flow_OneYr!$BI$7:$BI$371,$A97) -> 0 | H97: =COUNTIFS(Divertible_Flow_OneYr!$C$7:$C$371,H$1,Divertible_Flow_OneYr!$BI$7:$BI$371,$A97) -> 0 | I97: =COUNTIFS(Divertible_Flow_OneYr!$C$7:$C$371,I$1,Divertible_Flow_OneYr!$BI$7:$BI$371,$A97) -> 0 | J97: =COUNTIFS(Divertible_Flow_OneYr!$C$7:$C$371,J$1,Divertible_Flow_OneYr!$BI$7:$BI$371,$A97) -> 0 | K97: =COUNTIFS(Divertible_Flow_OneYr!$C$7:$C$371,K$1,Divertible_Flow_OneYr!$BI$7:$BI$371,$A97) -> 0 | L97: =COUNTIFS(Divertible_Flow_OneYr!$C$7:$C$371,L$1,Divertible_Flow_OneYr!$BI$7:$BI$371,$A97) -> 0 | M97: =COUNTIFS(Divertible_Flow_OneYr!$C$7:$C$372,M$1,Divertible_Flow_OneYr!$BI$7:$BI$372,$A97) -> 0 | N97: 0
A98: Table1 | B98: =COUNTIFS(Divertible_Flow_OneYr!$C$7:$C$371,B$1,Divertible_Flow_OneYr!$BI$7:$BI$371,$A98) -> 0 | C98: =COUNTIFS(Divertible_Flow_OneYr!$C$7:$C$371,C$1,Divertible_Flow_OneYr!$BI$7:$BI$371,$A98) -> 0 | D98: =COUNTIFS(Divertible_Flow_OneYr!$C$7:$C$371,D$1,Divertible_Flow_OneYr!$BI$7:$BI$371,$A98) -> 0 | E98: =COUNTIFS(Divertible_Flow_OneYr!$C$7:$C$371,E$1,Divertible_Flow_OneYr!$BI$7:$BI$371,$A98) -> 0 | F98: =COUNTIFS(Divertible_Flow_OneYr!$C$7:$C$371,F$1,Divertible_Flow_OneYr!$BI$7:$BI$371,$A98) -> 0 | G98: =COUNTIFS(Divertible_Flow_OneYr!$C$7:$C$371,G$1,Divertible_Flow_OneYr!$BI$7:$BI$371,$A98) -> 0 | H98: =COUNTIFS(Divertible_Flow_OneYr!$C$7:$C$371,H$1,Divertible_Flow_OneYr!$BI$7:$BI$371,$A98) -> 0 | I98: =COUNTIFS(Divertible_Flow_OneYr!$C$7:$C$371,I$1,Divertible_Flow_OneYr!$BI$7:$BI$371,$A98) -> 0 | J98: =COUNTIFS(Divertible_Flow_OneYr!$C$7:$C$371,J$1,Divertible_Flow_OneYr!$BI$7:$BI$371,$A98) -> 0 | K98: =COUNTIFS(Divertible_Flow_OneYr!$C$7:$C$371,K$1,Divertible_Flow_OneYr!$BI$7:$BI$371,$A98) -> 0 | L98: =COUNTIFS(Divertible_Flow_OneYr!$C$7:$C$371,L$1,Divertible_Flow_OneYr!$BI$7:$BI$371,$A98) -> 0 | M98: =COUNTIFS(Divertible_Flow_OneYr!$C$7:$C$372,M$1,Divertible_Flow_OneYr!$BI$7:$BI$372,$A98) -> 0 | N98: 0
A99: Pulse Flow (Bend Bridge) | B99: =COUNTIFS(Divertible_Flow_OneYr!$C$7:$C$371,B$1,Divertible_Flow_OneYr!$BI$7:$BI$371,$A99) -> 0 | C99: =COUNTIFS(Divertible_Flow_OneYr!$C$7:$C$371,C$1,Divertible_Flow_OneYr!$BI$7:$BI$371,$A99) -> 0 | D99: =COUNTIFS(Divertible_Flow_OneYr!$C$7:$C$371,D$1,Divertible_Flow_OneYr!$BI$7:$BI$371,$A99) -> 0 | E99: =COUNTIFS(Divertible_Flow_OneYr!$C$7:$C$371,E$1,Divertible_Flow_OneYr!$BI$7:$BI$371,$A99) -> 0 | F99: =COUNTIFS(Divertible_Flow_OneYr!$C$7:$C$371,F$1,Divertible_Flow_OneYr!$BI$7:$BI$371,$A99) -> 0 | G99: =COUNTIFS(Divertible_Flow_OneYr!$C$7:$C$371,G$1,Divertible_Flow_OneYr!$BI$7:$BI$371,$A99) -> 0 | H99: =COUNTIFS(Divertible_Flow_OneYr!$C$7:$C$371,H$1,Divertible_Flow_OneYr!$BI$7:$BI$371,$A99) -> 0 | I99: =COUNTIFS(Divertible_Flow_OneYr!$C$7:$C$371,I$1,Divertible_Flow_OneYr!$BI$7:$BI$371,$A99) -> 0 | J99: =COUNTIFS(Divertible_Flow_OneYr!$C$7:$C$371,J$1,Divertible_Flow_OneYr!$BI$7:$BI$371,$A99) -> 0 | K99: =COUNTIFS(Divertible_Flow_OneYr!$C$7:$C$371,K$1,Divertible_Flow_OneYr!$BI$7:$BI$371,$A99) -> 0 | L99: =COUNTIFS(Divertible_Flow_OneYr!$C$7:$C$371,L$1,Divertible_Flow_OneYr!$BI$7:$BI$371,$A99) -> 0 | M99: =COUNTIFS(Divertible_Flow_OneYr!$C$7:$C$372,M$1,Divertible_Flow_OneYr!$BI$7:$BI$372,$A99) -> 0 | N99: 0
A100: Freeport Pulse (Fish-based) | B100: =COUNTIFS(Divertible_Flow_OneYr!$C$7:$C$371,B$1,Divertible_Flow_OneYr!$BI$7:$BI$371,$A100) -> 0 | C100: =COUNTIFS(Divertible_Flow_OneYr!$C$7:$C$371,C$1,Divertible_Flow_OneYr!$BI$7:$BI$371,$A100) -> 0 | D100: =COUNTIFS(Divertible_Flow_OneYr!$C$7:$C$371,D$1,Divertible_Flow_OneYr!$BI$7:$BI$371,$A100) -> 0 | E100: =COUNTIFS(Divertible_Flow_OneYr!$C$7:$C$371,E$1,Divertible_Flow_OneYr!$BI$7:$BI$371,$A100) -> 0 | F100: =COUNTIFS(Divertible_Flow_OneYr!$C$7:$C$371,F$1,Divertible_Flow_OneYr!$BI$7:$BI$371,$A100) -> 0 | G100: =COUNTIFS(Divertible_Flow_OneYr!$C$7:$C$371,G$1,Divertible_Flow_OneYr!$BI$7:$BI$371,$A100) -> 0 | H100: =COUNTIFS(Divertible_Flow_OneYr!$C$7:$C$371,H$1,Divertible_Flow_OneYr!$BI$7:$BI$371,$A100) -> 0 | I100: =COUNTIFS(Divertible_Flow_OneYr!$C$7:$C$371,I$1,Divertible_Flow_OneYr!$BI$7:$BI$371,$A100) -> 0 | J100: =COUNTIFS(Divertible_Flow_OneYr!$C$7:$C$371,J$1,Divertible_Flow_OneYr!$BI$7:$BI$371,$A100) -> 0 | K100: =COUNTIFS(Divertible_Flow_OneYr!$C$7:$C$371,K$1,Divertible_Flow_OneYr!$BI$7:$BI$371,$A100) -> 0 | L100: =COUNTIFS(Divertible_Flow_OneYr!$C$7:$C$371,L$1,Divertible_Flow_OneYr!$BI$7:$BI$371,$A100) -> 0 | M100: =COUNTIFS(Divertible_Flow_OneYr!$C$7:$C$372,M$1,Divertible_Flow_OneYr!$BI$7:$BI$372,$A100) -> 0 | N100: =SUM(B100:M100) -> 0
A101: Freeport Pulse (Flow-based) | B101: =COUNTIFS(Divertible_Flow_OneYr!$C$7:$C$371,B$1,Divertible_Flow_OneYr!$BI$7:$BI$371,$A101) -> 0 | C101: =COUNTIFS(Divertible_Flow_OneYr!$C$7:$C$371,C$1,Divertible_Flow_OneYr!$BI$7:$BI$371,$A101) -> 0 | D101: =COUNTIFS(Divertible_Flow_OneYr!$C$7:$C$371,D$1,Divertible_Flow_OneYr!$BI$7:$BI$371,$A101) -> 0 | E101: =COUNTIFS(Divertible_Flow_OneYr!$C$7:$C$371,E$1,Divertible_Flow_OneYr!$BI$7:$BI$371,$A101) -> 0 | F101: =COUNTIFS(Divertible_Flow_OneYr!$C$7:$C$371,F$1,Divertible_Flow_OneYr!$BI$7:$BI$371,$A101) -> 0 | G101: =COUNTIFS(Divertible_Flow_OneYr!$C$7:$C$371,G$1,Divertible_Flow_OneYr!$BI$7:$BI$371,$A101) -> 0 | H101: =COUNTIFS(Divertible_Flow_OneYr!$C$7:$C$371,H$1,Divertible_Flow_OneYr!$BI$7:$BI$371,$A101) -> 0 | I101: =COUNTIFS(Divertible_Flow_OneYr!$C$7:$C$371,I$1,Divertible_Flow_OneYr!$BI$7:$BI$371,$A101) -> 0 | J101: =COUNTIFS(Divertible_Flow_OneYr!$C$7:$C$371,J$1,Divertible_Flow_OneYr!$BI$7:$BI$371,$A101) -> 0 | K101: =COUNTIFS(Divertible_Flow_OneYr!$C$7:$C$371,K$1,Divertible_Flow_OneYr!$BI$7:$BI$371,$A101) -> 0 | L101: =COUNTIFS(Divertible_Flow_OneYr!$C$7:$C$371,L$1,Divertible_Flow_OneYr!$BI$7:$BI$371,$A101) -> 0 | M101: =COUNTIFS(Divertible_Flow_OneYr!$C$7:$C$372,M$1,Divertible_Flow_OneYr!$BI$7:$BI$372,$A101) -> 0 | N101: =SUM(B101:M101) -> 0
A102: Minimum Pumping | B102: =COUNTIFS(Divertible_Flow_OneYr!$C$7:$C$371,B$1,Divertible_Flow_OneYr!$BI$7:$BI$371,$A102) -> 0 | C102: =COUNTIFS(Divertible_Flow_OneYr!$C$7:$C$371,C$1,Divertible_Flow_OneYr!$BI$7:$BI$371,$A102) -> 0 | D102: =COUNTIFS(Divertible_Flow_OneYr!$C$7:$C$371,D$1,Divertible_Flow_OneYr!$BI$7:$BI$371,$A102) -> 0 | E102: =COUNTIFS(Divertible_Flow_OneYr!$C$7:$C$371,E$1,Divertible_Flow_OneYr!$BI$7:$BI$371,$A102) -> 0 | F102: =COUNTIFS(Divertible_Flow_OneYr!$C$7:$C$371,F$1,Divertible_Flow_OneYr!$BI$7:$BI$371,$A102) -> 0 | G102: =COUNTIFS(Divertible_Flow_OneYr!$C$7:$C$371,G$1,Divertible_Flow_OneYr!$BI$7:$BI$371,$A102) -> 0 | H102: =COUNTIFS(Divertible_Flow_OneYr!$C$7:$C$371,H$1,Divertible_Flow_OneYr!$BI$7:$BI$371,$A102) -> 0 | I102: =COUNTIFS(Divertible_Flow_OneYr!$C$7:$C$371,I$1,Divertible_Flow_OneYr!$BI$7:$BI$371,$A102) -> 0 | J102: =COUNTIFS(Divertible_Flow_OneYr!$C$7:$C$371,J$1,Divertible_Flow_OneYr!$BI$7:$BI$371,$A102) -> 0 | K102: =COUNTIFS(Divertible_Flow_OneYr!$C$7:$C$371,K$1,Divertible_Flow_OneYr!$BI$7:$BI$371,$A102) -> 0 | L102: =COUNTIFS(Divertible_Flow_OneYr!$C$7:$C$371,L$1,Divertible_Flow_OneYr!$BI$7:$BI$371,$A102) -> 0 | M102: =COUNTIFS(Divertible_Flow_OneYr!$C$7:$C$372,M$1,Divertible_Flow_OneYr!$BI$7:$BI$372,$A102) -> 0 | N102: 0
A103: Maintenance | B103: =COUNTIFS(Divertible_Flow_OneYr!$C$7:$C$371,B$1,Divertible_Flow_OneYr!$BI$7:$BI$371,$A103) -> 0 | C103: =COUNTIFS(Divertible_Flow_OneYr!$C$7:$C$371,C$1,Divertible_Flow_OneYr!$BI$7:$BI$371,$A103) -> 0 | D103: =COUNTIFS(Divertible_Flow_OneYr!$C$7:$C$371,D$1,Divertible_Flow_OneYr!$BI$7:$BI$371,$A103) -> 0 | E103: =COUNTIFS(Divertible_Flow_OneYr!$C$7:$C$371,E$1,Divertible_Flow_OneYr!$BI$7:$BI$371,$A103) -> 0 | F103: =COUNTIFS(Divertible_Flow_OneYr!$C$7:$C$371,F$1,Divertible_Flow_OneYr!$BI$7:$BI$371,$A103) -> 0 | G103: =COUNTIFS(Divertible_Flow_OneYr!$C$7:$C$371,G$1,Divertible_Flow_OneYr!$BI$7:$BI$371,$A103) -> 0 | H103: =COUNTIFS(Divertible_Flow_OneYr!$C$7:$C$371,H$1,Divertible_Flow_OneYr!$BI$7:$BI$371,$A103) -> 0 | I103: =COUNTIFS(Divertible_Flow_OneYr!$C$7:$C$371,I$1,Divertible_Flow_OneYr!$BI$7:$BI$371,$A103) -> 0 | J103: =COUNTIFS(Divertible_Flow_OneYr!$C$7:$C$371,J$1,Divertible_Flow_OneYr!$BI$7:$BI$371,$A103) -> 0 | K103: =COUNTIFS(Divertible_Flow_OneYr!$C$7:$C$371,K$1,Divertible_Flow_OneYr!$BI$7:$BI$371,$A103) -> 0 | L103: =COUNTIFS(Divertible_Flow_OneYr!$C$7:$C$371,L$1,Divertible_Flow_OneYr!$BI$7:$BI$371,$A103) -> 0 | M103: =COUNTIFS(Divertible_Flow_OneYr!$C$7:$C$372,M$1,Divertible_Flow_OneYr!$BI$7:$BI$372,$A103) -> 0 | N103: 0
A104: Storage Capacity | B104: =COUNTIFS(Divertible_Flow_OneYr!$C$7:$C$371,B$1,Divertible_Flow_OneYr!$BI$7:$BI$371,$A104) -> 0 | C104: =COUNTIFS(Divertible_Flow_OneYr!$C$7:$C$371,C$1,Divertible_Flow_OneYr!$BI$7:$BI$371,$A104) -> 0 | D104: =COUNTIFS(Divertible_Flow_OneYr!$C$7:$C$371,D$1,Divertible_Flow_OneYr!$BI$7:$BI$371,$A104) -> 0 | E104: =COUNTIFS(Divertible_Flow_OneYr!$C$7:$C$371,E$1,Divertible_Flow_OneYr!$BI$7:$BI$371,$A104) -> 0 | F104: =COUNTIFS(Divertible_Flow_OneYr!$C$7:$C$371,F$1,Divertible_Flow_OneYr!$BI$7:$BI$371,$A104) -> 0 | G104: =COUNTIFS(Divertible_Flow_OneYr!$C$7:$C$371,G$1,Divertible_Flow_OneYr!$BI$7:$BI$371,$A104) -> 0 | H104: =COUNTIFS(Divertible_Flow_OneYr!$C$7:$C$371,H$1,Divertible_Flow_OneYr!$BI$7:$BI$371,$A104) -> 0 | I104: =COUNTIFS(Divertible_Flow_OneYr!$C$7:$C$371,I$1,Divertible_Flow_OneYr!$BI$7:$BI$371,$A104) -> 0 | J104: =COUNTIFS(Divertible_Flow_OneYr!$C$7:$C$371,J$1,Divertible_Flow_OneYr!$BI$7:$BI$371,$A104) -> 0 | K104: =COUNTIFS(Divertible_Flow_OneYr!$C$7:$C$371,K$1,Divertible_Flow_OneYr!$BI$7:$BI$371,$A104) -> 0 | L104: =COUNTIFS(Divertible_Flow_OneYr!$C$7:$C$371,L$1,Divertible_Flow_OneYr!$BI$7:$BI$371,$A104) -> 0 | M104: =COUNTIFS(Divertible_Flow_OneYr!$C$7:$C$372,M$1,Divertible_Flow_OneYr!$BI$7:$BI$372,$A104) -> 0 | N104: 0
A105: Intake Off | B105: =COUNTIFS(Divertible_Flow_OneYr!$C$7:$C$371,B$1,Divertible_Flow_OneYr!$BI$7:$BI$371,$A105) -> 0 | C105: =COUNTIFS(Divertible_Flow_OneYr!$C$7:$C$371,C$1,Divertible_Flow_OneYr!$BI$7:$BI$371,$A105) -> 0 | D105: =COUNTIFS(Divertible_Flow_OneYr!$C$7:$C$371,D$1,Divertible_Flow_OneYr!$BI$7:$BI$371,$A105) -> 0 | E105: =COUNTIFS(Divertible_Flow_OneYr!$C$7:$C$371,E$1,Divertible_Flow_OneYr!$BI$7:$BI$371,$A105) -> 0 | F105: =COUNTIFS(Divertible_Flow_OneYr!$C$7:$C$371,F$1,Divertible_Flow_OneYr!$BI$7:$BI$371,$A105) -> 0 | G105: =COUNTIFS(Divertible_Flow_OneYr!$C$7:$C$371,G$1,Divertible_Flow_OneYr!$BI$7:$BI$371,$A105) -> 0 | H105: =COUNTIFS(Divertible_Flow_OneYr!$C$7:$C$371,H$1,Divertible_Flow_OneYr!$BI$7:$BI$371,$A105) -> 0 | I105: =COUNTIFS(Divertible_Flow_OneYr!$C$7:$C$371,I$1,Divertible_Flow_OneYr!$BI$7:$BI$371,$A105) -> 0 | J105: =COUNTIFS(Divertible_Flow_OneYr!$C$7:$C$371,J$1,Divertible_Flow_OneYr!$BI$7:$BI$371,$A105) -> 0 | K105: =COUNTIFS(Divertible_Flow_OneYr!$C$7:$C$371,K$1,Divertible_Flow_OneYr!$BI$7:$BI$371,$A105) -> 0 | L105: =COUNTIFS(Divertible_Flow_OneYr!$C$7:$C$371,L$1,Divertible_Flow_OneYr!$BI$7:$BI$371,$A105) -> 0 | M105: =COUNTIFS(Divertible_Flow_OneYr!$C$7:$C$372,M$1,Divertible_Flow_OneYr!$BI$7:$BI$372,$A105) -> 0 | N105: =SUM(B105:M105) -> 0

Sheet Monthly_Report
A1: =Divertible_Flow_OneYr!B3 -> WY 2011 - Initial Sites Storage = 60 TAF - Diversions = 649 TAF | B1: Available Flow | E1: Divertible Flow | H1: Storable Flow | K1: Accumulative Storable Flow
A2: Month | B2: Available at Red Bluff | C2: Available at Hamilton City | D2: Available at Delevan | E2: Divertible at Red Bluff | F2: Divertible at Hamilton City | G2: Divertible at Delevan | H2: Storable at Red Bluff | I2: Storable at Hamilton City | J2: Storable at Delevan | K2: Storable at Red Bluff | L2: Storable at Hamilton City | M2: Storable at Delevan | N2: Storable Total
B3: TAF | C3: TAF | D3: TAF | E3: TAF | F3: TAF | G3: TAF | H3: TAF | I3: TAF | J3: TAF | K3: TAF | L3: TAF | M3: TAF | N3: TAF
A4: 10 | B4: =Monthly_Results!E7 -> 6.131270959 | C4: =Monthly_Results!F7 -> 6.131270959 | D4: =Monthly_Results!G7 -> 6.131270959 | E4: =Monthly_Results!H7 -> 0 | F4: =Monthly_Results!I7 -> 0 | G4: =Monthly_Results!J7 -> 0 | H4: =Monthly_Results!K7 -> 0 | I4: =Monthly_Results!L7 -> 0 | J4: =Monthly_Results!M7 -> 0 | K4: =H4 -> 0 | L4: =I4 -> 0 | M4: =J4 -> 0 | N4: =SUM(K4:M4) -> 0
A5: 11 | B5: =Monthly_Results!E8 -> 13.84234154 | C5: =Monthly_Results!F8 -> 13.84234154 | D5: =Monthly_Results!G8 -> 13.84234154 | E5: =Monthly_Results!H8 -> 0 | F5: =Monthly_Results!I8 -> 0 | G5: =Monthly_Results!J8 -> 0 | H5: =Monthly_Results!K8 -> 0 | I5: =Monthly_Results!L8 -> 0 | J5: =Monthly_Results!M8 -> 0 | K5: =H5+H4 -> 0 | L5: =I5+I4 -> 0 | M5: =J5+J4 -> 0 | N5: =SUM(K5:M5) -> 0
A6: 12 | B6: =Monthly_Results!E9 -> 712.627625 | C6: =Monthly_Results!F9 -> 767.1807308 | D6: =Monthly_Results!G9 -> 777.4280842 | E6: =Monthly_Results!H9 -> 79.14118898 | F6: =Monthly_Results!I9 -> 51.14085157 | G6: =Monthly_Results!J9 -> 0 | H6: =Monthly_Results!K9 -> 79.14118898 | I6: =Monthly_Results!L9 -> 51.14085157 | J6: =Monthly_Results!M9 -> 0 | K6: =H6+SUM(H$4:H5) -> 79.14118898 | L6: =I6+SUM(I$4:I5) -> 51.14085157 | M6: =J6+SUM(J$4:J5) -> 0 | N6: 130.2820405
A7: 1 | B7: =Monthly_Results!E10 -> 417.3436556 | C7: =Monthly_Results!F10 -> 533.395359 | D7: =Monthly_Results!G10 -> 626.2155436 | E7: =Monthly_Results!H10 -> 98.09744544 | F7: =Monthly_Results!I10 -> 55.10195315 | G7: =Monthly_Results!J10 -> 0 | H7: =Monthly_Results!K10 -> 98.09744544 | I7: =Monthly_Results!L10 -> 55.10195315 | J7: =Monthly_Results!M10 -> 0 | K7: =H7+SUM(H$4:H6) -> 177.2386344 | L7: =I7+SUM(I$4:I6) -> 106.2428047 | M7: =J7+SUM(J$4:J6) -> 0 | N7: 283.4814391
A8: 2 | B8: =Monthly_Results!E11 -> 81.02749431 | C8: =Monthly_Results!F11 -> 168.6335943 | D8: =Monthly_Results!G11 -> 202.3389465 | E8: =Monthly_Results!H11 -> 7.644031283 | F8: =Monthly_Results!I11 -> 0 | G8: =Monthly_Results!J11 -> 0 | H8: =Monthly_Results!K11 -> 7.644031283 | I8: =Monthly_Results!L11 -> 0 | J8: =Monthly_Results!M11 -> 0 | K8: =H8+SUM(H$4:H7) -> 184.8826657 | L8: =I8+SUM(I$4:I7) -> 106.2428047 | M8: =J8+SUM(J$4:J7) -> 0 | N8: 291.1254704
A9: 3 | B9: =Monthly_Results!E12 -> 783.4482653 | C9: =Monthly_Results!F12 -> 855.4688526 | D9: =Monthly_Results!G12 -> 872.9298575 | E9: =Monthly_Results!H12 -> 112.0835031 | F9: =Monthly_Results!I12 -> 69.44727678 | G9: =Monthly_Results!J12 -> 0 | H9: =Monthly_Results!K12 -> 112.0835031 | I9: =Monthly_Results!L12 -> 69.44727678 | J9: =Monthly_Results!M12 -> 0 | K9: =H9+SUM(H$4:H8) -> 296.9661688 | L9: =I9+SUM(I$4:I8) -> 175.6900815 | M9: =J9+SUM(J$4:J8) -> 0 | N9: 472.6562503
A10: 4 | B10: =Monthly_Results!E13 -> 651.4555682 | C10: =Monthly_Results!F13 -> 801.4157096 | D10: =Monthly_Results!G13 -> 823.6332121 | E10: =Monthly_Results!H13 -> 107.6255136 | F10: =Monthly_Results!I13 -> 67.44776515 | G10: =Monthly_Results!J13 -> 0 | H10: =Monthly_Results!K13 -> 107.6255136 | I10: =Monthly_Results!L13 -> 67.44776515 | J10: =Monthly_Results!M13 -> 0 | K10: =H10+SUM(H$4:H9) -> 404.5916824 | L10: =I10+SUM(I$4:I9) -> 243.1378466 | M10: =J10+SUM(J$4:J9) -> 0 | N10: 647.729529
A11: 5 | B11: =Monthly_Results!E14 -> 277.7537161 | C11: =Monthly_Results!F14 -> 280.8858343 | D11: =Monthly_Results!G14 -> 281.9477635 | E11: =Monthly_Results!H14 -> 0.9127954653 | F11: =Monthly_Results!I14 -> 0.2055886128 | G11: =Monthly_Results!J14 -> 0 | H11: =Monthly_Results!K14 -> 0.9127954653 | I11: =Monthly_Results!L14 -> 0.2055886128 | J11: =Monthly_Results!M14 -> 0 | K11: =H11+SUM(H$4:H10) -> 405.5044778 | L11: =I11+SUM(I$4:I10) -> 243.3434353 | M11: =J11+SUM(J$4:J10) -> 0 | N11: 648.8479131
A12: 6 | B12: =Monthly_Results!E15 -> 424.8905357 | C12: =Monthly_Results!F15 -> 436.0145609 | D12: =Monthly_Results!G15 -> 453.0633897 | E12: =Monthly_Results!H15 -> 0 | F12: =Monthly_Results!I15 -> 0 | G12: =Monthly_Results!J15 -> 0 | H12: =Monthly_Results!K15 -> 0 | I12: =Monthly_Results!L15 -> 0 | J12: =Monthly_Results!M15 -> 0 | K12: =H12+SUM(H$4:H11) -> 405.5044778 | L12: =I12+SUM(I$4:I11) -> 243.3434353 | M12: =J12+SUM(J$4:J11) -> 0 | N12: 648.8479131
A13: 7 | B13: =Monthly_Results!E16 -> 226.3336484 | C13: =Monthly_Results!F16 -> 226.3336484 | D13: =Monthly_Results!G16 -> 226.3336484 | E13: =Monthly_Results!H16 -> 0 | F13: =Monthly_Results!I16 -> 0 | G13: =Monthly_Results!J16 -> 0 | H13: =Monthly_Results!K16 -> 0 | I13: =Monthly_Results!L16 -> 0 | J13: =Monthly_Results!M16 -> 0 | K13: =H13+SUM(H$4:H12) -> 405.5044778 | L13: =I13+SUM(I$4:I12) -> 243.3434353 | M13: =J13+SUM(J$4:J12) -> 0 | N13: 648.8479131
A14: 8 | B14: =Monthly_Results!E17 -> 209.5505186 | C14: =Monthly_Results!F17 -> 209.5505186 | D14: =Monthly_Results!G17 -> 209.5505186 | E14: =Monthly_Results!H17 -> 0 | F14: =Monthly_Results!I17 -> 0 | G14: =Monthly_Results!J17 -> 0 | H14: =Monthly_Results!K17 -> 0 | I14: =Monthly_Results!L17 -> 0 | J14: =Monthly_Results!M17 -> 0 | K14: =H14+SUM(H$4:H13) -> 405.5044778 | L14: =I14+SUM(I$4:I13) -> 243.3434353 | M14: =J14+SUM(J$4:J13) -> 0 | N14: 648.8479131
A15: 9 | B15: =Monthly_Results!E18 -> 58.91639004 | C15: =Monthly_Results!F18 -> 58.91639004 | D15: =Monthly_Results!G18 -> 59.11354361 | E15: =Monthly_Results!H18 -> 0 | F15: =Monthly_Results!I18 -> 0 | G15: =Monthly_Results!J18 -> 0 | H15: =Monthly_Results!K18 -> 0 | I15: =Monthly_Results!L18 -> 0 | J15: =Monthly_Results!M18 -> 0 | K15: =H15+SUM(H$4:H14) -> 405.5044778 | L15: =I15+SUM(I$4:I14) -> 243.3434353 | M15: =J15+SUM(J$4:J14) -> 0 | N15: 648.8479131

Sheet OneYrSim
C1: Available Flow | F1: Divertible Flow | I1: Storable Flow
A2: Date | C2: Available at Red Bluff | D2: Available at Hamilton City | E2: Available at Delevan | F2: Divertible at Red Bluff | G2: Divertible at Hamilton City | H2: Divertible at Delevan | I2: Storable at Red Bluff | J2: Storable at Hamilton City | K2: Storable at Delevan | L2: Storable at Red Bluff & Hamilton City | M2: Total Storable
C3: CFS | D3: CFS | E3: CFS | F3: CFS | G3: CFS | H3: CFS | I3: CFS | J3: CFS | K3: CFS | M3: CFS
A4: Average | C4: =AVERAGE(C7:C3658) -> 2664.467347 | D4: =AVERAGE(D7:D3658) -> 2499.955892 | E4: 2082.224646 | F4: 245.7186585 | G4: 123.388963 | H4: 190.8266024 | I4: 245.7186585 | J4: 123.388963 | K4: 190.8266024 | L4: =AVERAGE(L7:L3658) -> 369.1076215 | M4: =AVERAGE(M7:M3658) -> 559.9342239
A5: Minimum | C5: =MIN(C7:C3658) -> 0 | D5: =MIN(D7:D3658) -> 0 | E5: 0 | F5: 0 | G5: 0 | H5: 0 | I5: 0 | J5: 0 | K5: 0 | L5: =MIN(L7:L3658) -> 0 | M5: =MIN(M7:M3658) -> 0
A6: Maximum | C6: =MAX(C7:C3658) -> 22917.84115 | D6: =MAX(D7:D3658) -> 22917.84115 | E6: 22917.84115 | F6: 2099.997807 | G6: 1800 | H6: 2000 | I6: 2099.997807 | J6: 1800 | K6: 2000 | L6: =MAX(L7:L3658) -> 3899.997131 | M6: =MAX(M7:M3658) -> 5899.997131
A7: 2008-10-01 | B7: 2009 | C7: 0 | D7: 0 | E7: 0 | F7: 0 | G7: 0 | H7: 0 | I7: 0 | J7: 0 | K7: 0 | L7: =SUM(I7:J7) -> 0 | M7: =SUM(I7:K7) -> 0
A8: 2008-10-02 | C8: 0 | D8: 0 | E8: 0 | F8: 0 | G8: 0 | H8: 0 | I8: 0 | J8: 0 | K8: 0 | L8: =SUM(I8:J8) -> 0 | M8: =SUM(I8:K8) -> 0
A9: 2008-10-03 | C9: 0 | D9: 0 | E9: 0 | F9: 0 | G9: 0 | H9: 0 | I9: 0 | J9: 0 | K9: 0 | L9: =SUM(I9:J9) -> 0 | M9: 0
A10: 2008-10-04 | C10: 0 | D10: 0 | E10: 0 | F10: 0 | G10: 0 | H10: 0 | I10: 0 | J10: 0 | K10: 0 | L10: 0 | M10: 0
A11: 2008-10-05 | C11: 0 | D11: 0 | E11: 0 | F11: 0 | G11: 0 | H11: 0 | I11: 0 | J11: 0 | K11: 0 | L11: 0 | M11: 0
A12: 2008-10-06 | C12: 0 | D12: 0 | E12: 0 | F12: 0 | G12: 0 | H12: 0 | I12: 0 | J12: 0 | K12: 0 | L12: 0 | M12: 0
A13: 2008-10-07 | C13: 0 | D13: 0 | E13: 0 | F13: 0 | G13: 0 | H13: 0 | I13: 0 | J13: 0 | K13: 0 | L13: 0 | M13: 0
A14: 2008-10-08 | C14: 0 | D14: 0 | E14: 0 | F14: 0 | G14: 0 | H14: 0 | I14: 0 | J14: 0 | K14: 0 | L14: 0 | M14: 0
A15: 2008-10-09 | C15: 0 | D15: 0 | E15: 0 | F15: 0 | G15: 0 | H15: 0 | I15: 0 | J15: 0 | K15: 0 | L15: 0 | M15: 0
A16: 2008-10-10 | C16: 0 | D16: 0 | E16: 0 | F16: 0 | G16: 0 | H16: 0 | I16: 0 | J16: 0 | K16: 0 | L16: 0 | M16: 0
A17: 2008-10-11 | C17: 0 | D17: 0 | E17: 0 | F17: 0 | G17: 0 | H17: 0 | I17: 0 | J17: 0 | K17: 0 | L17: 0 | M17: 0
A18: 2008-10-12 | C18: 0 | D18: 0 | E18: 0 | F18: 0 | G18: 0 | H18: 0 | I18: 0 | J18: 0 | K18: 0 | L18: 0 | M18: 0
A19: 2008-10-13 | C19: 0 | D19: 0 | E19: 0 | F19: 0 | G19: 0 | H19: 0 | I19: 0 | J19: 0 | K19: 0 | L19: 0 | M19: 0
A20: 2008-10-14 | C20: 0 | D20: 0 | E20: 0 | F20: 0 | G20: 0 | H20: 0 | I20: 0 | J20: 0 | K20: 0 | L20: 0 | M20: 0
A21: 2008-10-15 | C21: 0 | D21: 0 | E21: 0 | F21: 0 | G21: 0 | H21: 0 | I21: 0 | J21: 0 | K21: 0 | L21: 0 | M21: 0
A22: 2008-10-16 | C22: 0 | D22: 0 | E22: 0 | F22: 0 | G22: 0 | H22: 0 | I22: 0 | J22: 0 | K22: 0 | L22: 0 | M22: 0
A23: 2008-10-17 | C23: 0 | D23: 0 | E23: 0 | F23: 0 | G23: 0 | H23: 0 | I23: 0 | J23: 0 | K23: 0 | L23: 0 | M23: 0
A24: 2008-10-18 | C24: 0 | D24: 0 | E24: 0 | F24: 0 | G24: 0 | H24: 0 | I24: 0 | J24: 0 | K24: 0 | L24: 0 | M24: 0
A25: 2008-10-19 | C25: 0 | D25: 0 | E25: 0 | F25: 0 | G25: 0 | H25: 0 | I25: 0 | J25: 0 | K25: 0 | L25: 0 | M25: 0
A26: 2008-10-20 | C26: 0 | D26: 0 | E26: 0 | F26: 0 | G26: 0 | H26: 0 | I26: 0 | J26: 0 | K26: 0 | L26: 0 | M26: 0
A27: 2008-10-21 | C27: 0 | D27: 0 | E27: 0 | F27: 0 | G27: 0 | H27: 0 | I27: 0 | J27: 0 | K27: 0 | L27: 0 | M27: 0
A28: 2008-10-22 | C28: 0 | D28: 0 | E28: 0 | F28: 0 | G28: 0 | H28: 0 | I28: 0 | J28: 0 | K28: 0 | L28: 0 | M28: 0
A29: 2008-10-23 | C29: 0 | D29: 0 | E29: 0 | F29: 0 | G29: 0 | H29: 0 | I29: 0 | J29: 0 | K29: 0 | L29: 0 | M29: 0
A30: 2008-10-24 | C30: 0 | D30: 0 | E30: 0 | F30: 0 | G30: 0 | H30: 0 | I30: 0 | J30: 0 | K30: 0 | L30: 0 | M30: 0
A31: 2008-10-25 | C31: 0 | D31: 0 | E31: 0 | F31: 0 | G31: 0 | H31: 0 | I31: 0 | J31: 0 | K31: 0 | L31: 0 | M31: 0
A32: 2008-10-26 | C32: 0 | D32: 0 | E32: 0 | F32: 0 | G32: 0 | H32: 0 | I32: 0 | J32: 0 | K32: 0 | L32: 0 | M32: 0
A33: 2008-10-27 | C33: 0 | D33: 0 | E33: 0 | F33: 0 | G33: 0 | H33: 0 | I33: 0 | J33: 0 | K33: 0 | L33: 0 | M33: 0
A34: 2008-10-28 | C34: 0 | D34: 0 | E34: 0 | F34: 0 | G34: 0 | H34: 0 | I34: 0 | J34: 0 | K34: 0 | L34: 0 | M34: 0
A35: 2008-10-29 | C35: 0 | D35: 0 | E35: 0 | F35: 0 | G35: 0 | H35: 0 | I35: 0 | J35: 0 | K35: 0 | L35: 0 | M35: 0
A36: 2008-10-30 | C36: 0 | D36: 0 | E36: 0 | F36: 0 | G36: 0 | H36: 0 | I36: 0 | J36: 0 | K36: 0 | L36: 0 | M36: 0
A37: 2008-10-31 | C37: 0 | D37: 0 | E37: 0 | F37: 0 | G37: 0 | H37: 0 | I37: 0 | J37: 0 | K37: 0 | L37: 0 | M37: 0
A38: 2008-11-01 | C38: 0 | D38: 0 | E38: 0 | F38: 0 | G38: 0 | H38: 0 | I38: 0 | J38: 0 | K38: 0 | L38: 0 | M38: 0
A39: 2008-11-02 | C39: 0 | D39: 0 | E39: 0 | F39: 0 | G39: 0 | H39: 0 | I39: 0 | J39: 0 | K39: 0 | L39: 0 | M39: 0
A40: 2008-11-03 | C40: 0 | D40: 0 | E40: 0 | F40: 0 | G40: 0 | H40: 0 | I40: 0 | J40: 0 | K40: 0 | L40: 0 | M40: 0
A41: 2008-11-04 | C41: 0 | D41: 0 | E41: 0 | F41: 0 | G41: 0 | H41: 0 | I41: 0 | J41: 0 | K41: 0 | L41: 0 | M41: 0
A42: 2008-11-05 | C42: 0 | D42: 0 | E42: 0 | F42: 0 | G42: 0 | H42: 0 | I42: 0 | J42: 0 | K42: 0 | L42: 0 | M42: 0
A43: 2008-11-06 | C43: 0 | D43: 0 | E43: 0 | F43: 0 | G43: 0 | H43: 0 | I43: 0 | J43: 0 | K43: 0 | L43: 0 | M43: 0
A44: 2008-11-07 | C44: 0 | D44: 0 | E44: 0 | F44: 0 | G44: 0 | H44: 0 | I44: 0 | J44: 0 | K44: 0 | L44: 0 | M44: 0
A45: 2008-11-08 | C45: 0 | D45: 0 | E45: 0 | F45: 0 | G45: 0 | H45: 0 | I45: 0 | J45: 0 | K45: 0 | L45: 0 | M45: 0
A46: 2008-11-09 | C46: 0 | D46: 0 | E46: 0 | F46: 0 | G46: 0 | H46: 0 | I46: 0 | J46: 0 | K46: 0 | L46: 0 | M46: 0
A47: 2008-11-10 | C47: 0 | D47: 0 | E47: 0 | F47: 0 | G47: 0 | H47: 0 | I47: 0 | J47: 0 | K47: 0 | L47: 0 | M47: 0
A48: 2008-11-11 | C48: 0 | D48: 0 | E48: 0 | F48: 0 | G48: 0 | H48: 0 | I48: 0 | J48: 0 | K48: 0 | L48: 0 | M48: 0
A49: 2008-11-12 | C49: 0 | D49: 0 | E49: 0 | F49: 0 | G49: 0 | H49: 0 | I49: 0 | J49: 0 | K49: 0 | L49: 0 | M49: 0
A50: 2008-11-13 | C50: 0 | D50: 0 | E50: 0 | F50: 0 | G50: 0 | H50: 0 | I50: 0 | J50: 0 | K50: 0 | L50: 0 | M50: 0
A51: 2008-11-14 | C51: 0 | D51: 0 | E51: 0 | F51: 0 | G51: 0 | H51: 0 | I51: 0 | J51: 0 | K51: 0 | L51: 0 | M51: 0
A52: 2008-11-15 | C52: 0 | D52: 0 | E52: 0 | F52: 0 | G52: 0 | H52: 0 | I52: 0 | J52: 0 | K52: 0 | L52: 0 | M52: 0
A53: 2008-11-16 | C53: 0 | D53: 0 | E53: 0 | F53: 0 | G53: 0 | H53: 0 | I53: 0 | J53: 0 | K53: 0 | L53: 0 | M53: 0
A54: 2008-11-17 | C54: 0 | D54: 0 | E54: 0 | F54: 0 | G54: 0 | H54: 0 | I54: 0 | J54: 0 | K54: 0 | L54: 0 | M54: 0
A55: 2008-11-18 | C55: 0 | D55: 0 | E55: 0 | F55: 0 | G55: 0 | H55: 0 | I55: 0 | J55: 0 | K55: 0 | L55: 0 | M55: 0
A56: 2008-11-19 | C56: 0 | D56: 0 | E56: 0 | F56: 0 | G56: 0 | H56: 0 | I56: 0 | J56: 0 | K56: 0 | L56: 0 | M56: 0
A57: 2008-11-20 | C57: 0 | D57: 0 | E57: 0 | F57: 0 | G57: 0 | H57: 0 | I57: 0 | J57: 0 | K57: 0 | L57: 0 | M57: 0
A58: 2008-11-21 | C58: 0 | D58: 0 | E58: 0 | F58: 0 | G58: 0 | H58: 0 | I58: 0 | J58: 0 | K58: 0 | L58: 0 | M58: 0
A59: 2008-11-22 | C59: 0 | D59: 0 | E59: 0 | F59: 0 | G59: 0 | H59: 0 | I59: 0 | J59: 0 | K59: 0 | L59: 0 | M59: 0
A60: 2008-11-23 | C60: 0 | D60: 0 | E60: 0 | F60: 0 | G60: 0 | H60: 0 | I60: 0 | J60: 0 | K60: 0 | L60: 0 | M60: 0
A61: 2008-11-24 | C61: 0 | D61: 0 | E61: 0 | F61: 0 | G61: 0 | H61: 0 | I61: 0 | J61: 0 | K61: 0 | L61: 0 | M61: 0
A62: 2008-11-25 | C62: 0 | D62: 0 | E62: 0 | F62: 0 | G62: 0 | H62: 0 | I62: 0 | J62: 0 | K62: 0 | L62: 0 | M62: 0
... 76 more rows

Sheet _

Sheet Divertible_Flow_Calcs
E1: Available Flow | H1: Divertible Flow | M1: Storable Flow | R1: Divertible Flow | Y1: 1751-RDBANKCK | Z1: 180-PAYNESCKIN | AA1: CALC | AB1: 182-BENDBR-GAG | AC1: 175-RDBLFDIVDA | AD1: 155-BLW-WOODSO | AE1: 150-GCC-DIV | AF1: 129-NODOS-DIV | AG1: 127-ABVCOLUSAW | AH1: BSL (CDEC) | AI1: 117-ABV-TISDAL | AJ1: 110-LOW-SAC-DI | AK1: 105-KNIGHTSLND | AL1: 1400-SB-OUTLET | AM1: CALC | AN1: CDEC | AO1: CDEC | AP1: SAC | AQ1: CALC | AR1: CALC | AS1: DayFlow | AT1: CALC | AU1: 1136-BLKBUTTED | AV1: 1134-STONYCR-T | AW1: DayFlow | AX1: FlowAvail | BB1: CALC
A2: Date | B2: Year | C2: Month | D2: Day | E2: Sacramento River at Red Bluff | F2: Sacramento River at Hamilton City | G2: Sacramento River at Delevan | H2: Sacramento River at Red Bluff | I2: Divertible at TCC -Stony Creek | J2: Sacramento River at Hamilton City | K2: Divertible at GCC - Stony Creek | L2: Sacramento River at Delevan | M2: Sacramento River at Red Bluff | N2: Storable at TCC - Stony Creek | O2: Sacramento River at Hamilton City | P2: Storable at GCC - Stony Creek | Q2: Sacramento River at Delevan | R2: Sacramento River at Red Bluff | S2: Sacramento River at Hamilton City | T2: Sacramento River at Delevan | X2: Sites Storage | Y2: Redbank Creek Inflow | Z2: Sacramento River below Paynes Creek | AA2: Sacramento River above Red Bluff | AB2: Sacramento River at Bend Bridge | AC2: Sacramento River below Red Bluff Dam | AD2: Sacramento River above Hamilton City | AE2: Sacramento River below Hamilton City | AF2: Sacramento River above Delevan Intake | AG2: Sacramento River above Colusa Weir | AH2: Butte Slough near Meridian (CDEC) | AI2: Sacramento River above Tisdale Weir | AJ2: Sacramento River at Wilkins Slough | AK2: Sacramento River at Knights Landing | AL2: Sutter Bypass Outlet (USRDOM) | AM2: River flow at Fremont Weir | AN2: Spill at Fremont Weir | AO2: Sacramento River at Verona | AP2: Sacramento River at Freeport | AQ2: Sac R at Freeport 7-day Running Avg | AR2: Sac R at Freeport 15-day Running Avg | AS2: Delta Outflow | AT2: Delta Outflow 14-day Running Avg | AU2: Black Butte Outflow | AV2: Stony Creek at TCC | AW2: X2 | AX2: Control | AZ2: Fremont Laghr | BB2: GCC Capacity
E3: CFS | F3: CFS | G3: CFS | H3: CFS | J3: CFS | L3: CFS | M3: CFS | O3: CFS | P3: CFS | Q3: CFS | R3: TAF | S3: TAF | T3: TAF | X3: TAF | Y3: CFS | Z3: CFS | AA3: CFS | AB3: CFS | AC3: CFS | AD3: CFS | AE3: CFS | AF3: CFS | AG3: CFS | AH3: CFS | AI3: CFS | AJ3: CFS | AK3: CFS | AL3: CFS | AM3: CFS | AN3: CFS | AO3: CFS | AP3: CFS | AQ3: CFS | AR3: CFS | AS3: CFS | AT3: CFS | AU3: CFS | AV3: CFS | AW3: KM | AX3: NONE | BB3: CFS
A4: Average | E4: =AVERAGE(E7:E3536) -> 2154.188218 | F4: =AVERAGE(F7:F3536) -> 2586.356634 | G4: 2756.553754 | I4: =AVERAGE(I7:I3536) ->  | K4: =AVERAGE(K7:K3536) ->  | M4: =AVERAGE(M7:M3536) ->  | N4: =AVERAGE(N7:N3536) ->  | P4: =AVERAGE(P7:P3536) ->  | R4: 0 | S4: 0 | T4: 0 | X4: =AVERAGE(X7:X3536) -> 60 | Y4: 33.94290169 | Z4: 9994.487459 | AA4: 10028.43036 | AB4: 9920.862079 | AC4: 9779.532461 | AD4: 10968.31253 | AE4: =AVERAGE(AE7:AE3536) -> 10258.14299 | AF4: 10468.56775 | AG4: 10468.33031 | AH4: =AVERAGE(AH7:AH3536) -> 1559.808398 | AI4: 9690.220295 | AJ4: 8459.480491 | AK4: 9101.423513 | AL4: =AVERAGE(AL7:AL3536) -> 1345.032732 | AM4: 19058.48314 | AN4: 2117.893437 | AO4: =AVERAGE(AO7:AO3536) -> 16940.5897 | AP4: =AVERAGE(AP7:AP3536) -> 19386.34278 | AQ4: 19381.06027 | AR4: 19376.91498 | AS4: 19990.02946 | AT4: 19970.66045 | AU4: 430.9143027 | AV4: 430.9073622 | AW4: 76.09739515 | BB4: =AVERAGE(BB7:BB3536) -> 1646.078754
A5: Minimum | E5: =MIN(E7:E3536) -> 0 | F5: =MIN(F7:F3536) -> 0 | G5: 0 | H5: 0 | I5: =MIN(I7:I3536) -> 0 | J5: 0 | K5: =MIN(K7:K3536) -> 0 | L5: 0 | M5: =MIN(M7:M3536) -> 0 | N5: =MIN(N7:N3536) -> 0 | O5: 0 | P5: =MIN(P7:P3536) -> 0 | Q5: 0 | R5: 0 | S5: 0 | T5: 0 | X5: =MIN(X7:X3536) -> 60 | Y5: 0.001099999994 | Z5: 3500.105225 | AA5: 3501.645225 | AB5: 3494.134766 | AC5: =MIN(AC7:AC3536) -> 3352.187256 | AD5: 3502.456787 | AE5: =MIN(AE7:AE3536) -> 3449.804688 | AF5: 3027.525146 | AG5: 3057.406006 | AH5: =MIN(AH7:AH3536) -> 0 | AI5: 3069.329102 | AJ5: 1420.210815 | AK5: 2629.714355 | AL5: =MIN(AL7:AL3536) -> 0 | AM5: 4296 | AN5: 0 | AO5: =MIN(AO7:AO3536) -> 4296 | AP5: =MIN(AP7:AP3536) -> 4340 | AQ5: 4990 | AR5: 5020 | AS5: 1130 | AT5: 2458 | AU5: 1 | AV5: 1 | AW5: 40.1 | BB5: =MIN(BB7:BB3536) -> 1266
A6: Maximum | E6: =MAX(E7:E3536) -> 22917.84115 | F6: =MAX(F7:F3536) -> 22917.84115 | G6: 22917.84115 | H6: 0 | I6: =MAX(I7:I3536) -> 0 | J6: 0 | K6: =MAX(K7:K3536) -> 0 | L6: 0 | M6: =MAX(M7:M3536) -> 0 | N6: 0 | O6: 0 | P6: 0 | Q6: 0 | R6: 0 | S6: 0 | T6: 0 | X6: =MAX(X7:X3536) -> 60 | Y6: 2712.790039 | Z6: 85253.11719 | AA6: 85420.69719 | AB6: 84742.52344 | AC6: =MAX(AC7:AC3536) -> 85936.08594 | AD6: 94411.50781 | AE6: =MAX(AE7:AE3536) -> 97482.51562 | AF6: 96541.07031 | AG6: =MAX(AG7:AG3536) -> 96518.55469 | AH6: =MAX(AH7:AH3536) -> 83560.33333 | AI6: 46191.26172 | AJ6: 27919.27344 | AK6: 30539.83984 | AL6: =MAX(AL7:AL3536) -> 78884.9375 | AM6: 257350.4167 | AN6: 177121.4167 | AO6: =MAX(AO7:AO3536) -> 80229 | AP6: =MAX(AP7:AP3536) -> 96200 | AQ6: =MAX(AQ7:AQ3536) -> 92385.71429 | AR6: 87006.66667 | AS6: 374553 | AT6: 334684.4286 | AU6: 9572 | AV6: 9554.25 | AW6: 91.13 | BB6: =MAX(BB7:BB3536) -> 1800
A7: 2008-10-01 | B7: =YEAR(A7) -> 2008 | C7: =MONTH(A7) -> 10 | D7: =DAY(A7) -> 1 | E7: =Available_Flow_Data!AB10 -> 0 | F7: =Available_Flow_Data!AA10 -> 0 | G7: =Available_Flow_Data!Z10 -> 0 | R7: =H7*1.9835/1000 -> 0 | S7: =J7*1.9835/1000 -> 0 | T7: =L7*1.9835/1000 -> 0 | X7: =MIN(1.82*10^3,User_Specifications!$B$4+SUM(R7:T7)) -> 60 | Y7: 0.1700000018 | Z7: =IF(Spec_Pg!$B$17=1,Historic_Flows!B13,IF(Spec_Pg!$B$17=2,'2035CT_Flows'!B13,NA())) -> 6870.635742 | AA7: =SUM(Y7:Z7) -> 6870.805742 | AB7: =IF(Spec_Pg!$B$17=1,Historic_Flows!C13,IF(Spec_Pg!$B$17=2,'2035CT_Flows'!C13,NA())) -> 6879.180664 | AC7: =IF(Spec_Pg!$B$17=1,Historic_Flows!D13,IF(Spec_Pg!$B$17=2,'2035CT_Flows'!D13,NA())) -> 6621 | AD7: =IF(Spec_Pg!$B$17=1,Historic_Flows!E13,IF(Spec_Pg!$B$17=2,'2035CT_Flows'!E13,NA())) -> 6677.51709 | AE7: =IF(Spec_Pg!$B$17=1,Historic_Flows!F13,IF(Spec_Pg!$B$17=2,'2035CT_Flows'!F13,NA())) -> 5632.155762 | AF7: =IF(Spec_Pg!$B$17=1,Historic_Flows!G13,IF(Spec_Pg!$B$17=2,'2035CT_Flows'!G13,NA())) -> 5553.657227 | AG7: =IF(Spec_Pg!$B$17=1,Historic_Flows!H13,IF(Spec_Pg!$B$17=2,'2035CT_Flows'!H13,NA())) -> 5553.657227 | AH7: 132.7894737 | AI7: =IF(Spec_Pg!$B$17=1,Historic_Flows!I13,IF(Spec_Pg!$B$17=2,'2035CT_Flows'!I13,NA())) -> 5553.657227 | AJ7: =IF(Spec_Pg!$B$17=1,Historic_Flows!J13,IF(Spec_Pg!$B$17=2,'2035CT_Flows'!J13,NA())) -> 5393.397461 | AK7: =IF(Spec_Pg!$B$17=1,Historic_Flows!K13,IF(Spec_Pg!$B$17=2,'2035CT_Flows'!K13,NA())) -> 5393.857422 | AL7: =IF(Spec_Pg!$B$17=1,Historic_Flows!L13,IF(Spec_Pg!$B$17=2,'2035CT_Flows'!L13,NA())) -> 0 | AM7: =IF(Spec_Pg!$B$17=1,Historic_Flows!O13,IF(Spec_Pg!$B$17=2,'2035CT_Flows'!O13,NA())) -> 8605 | AN7: 0 | AO7: 8605 | AP7: 8410 | AQ7: =AP7 -> 8410 | AR7: =AP7 -> 8410 | AS7: =IF(Spec_Pg!$B$17=1,Available_Flow_Data!AC10,IF(Spec_Pg!$B$17=2,'2035CT_Flows'!P13,NA())) -> 2628 | AT7: =AS7 -> 2628 | AU7: =IF(Spec_Pg!$B$17=1,Historic_Flows!M13,IF(Spec_Pg!$B$17=2,'2035CT_Flows'!M13,NA())) -> 226 | AV7: =IF(Spec_Pg!$B$17=1,Historic_Flows!N13,IF(Spec_Pg!$B$17=2,'2035CT_Flows'!N13,NA())) -> 226 | AW7: 88.65 | AX7: =Available_Flow_Data!AD10 -> Balance | AZ7: 6905.3 | BB7: =IF(C7=10,1287,IF(C7=11,1266,IF(C7=12,1411,IF(C7=1,1565,IF(C7=2,1744,IF(C7=3,1752,1800)))))) -> 1287
A8: 2008-10-02 | B8: =YEAR(A8) -> 2008 | C8: =MONTH(A8) -> 10 | D8: =DAY(A8) -> 2 | E8: =Available_Flow_Data!AB11 -> 0 | F8: =Available_Flow_Data!AA11 -> 0 | G8: =Available_Flow_Data!Z11 -> 0 | R8: 0 | S8: 0 | T8: 0 | X8: =MIN(1.82*10^3,X7+SUM(R8:T8)) -> 60 | Y8: 0.1700000018 | Z8: =IF(Spec_Pg!$B$17=1,Historic_Flows!B14,IF(Spec_Pg!$B$17=2,'2035CT_Flows'!B14,NA())) -> 6882.92041 | AA8: =SUM(Y8:Z8) -> 6883.09041 | AB8: =IF(Spec_Pg!$B$17=1,Historic_Flows!C14,IF(Spec_Pg!$B$17=2,'2035CT_Flows'!C14,NA())) -> 6892.274414 | AC8: =IF(Spec_Pg!$B$17=1,Historic_Flows!D14,IF(Spec_Pg!$B$17=2,'2035CT_Flows'!D14,NA())) -> 6704.044434 | AD8: =IF(Spec_Pg!$B$17=1,Historic_Flows!E14,IF(Spec_Pg!$B$17=2,'2035CT_Flows'!E14,NA())) -> 6685.746094 | AE8: =IF(Spec_Pg!$B$17=1,Historic_Flows!F14,IF(Spec_Pg!$B$17=2,'2035CT_Flows'!F14,NA())) -> 5639.562012 | AF8: =IF(Spec_Pg!$B$17=1,Historic_Flows!G14,IF(Spec_Pg!$B$17=2,'2035CT_Flows'!G14,NA())) -> 5556.416016 | AG8: =IF(Spec_Pg!$B$17=1,Historic_Flows!H14,IF(Spec_Pg!$B$17=2,'2035CT_Flows'!H14,NA())) -> 5555.906738 | AH8: 135.3913043 | AI8: =IF(Spec_Pg!$B$17=1,Historic_Flows!I14,IF(Spec_Pg!$B$17=2,'2035CT_Flows'!I14,NA())) -> 5555.118164 | AJ8: =IF(Spec_Pg!$B$17=1,Historic_Flows!J14,IF(Spec_Pg!$B$17=2,'2035CT_Flows'!J14,NA())) -> 5408.379883 | AK8: =IF(Spec_Pg!$B$17=1,Historic_Flows!K14,IF(Spec_Pg!$B$17=2,'2035CT_Flows'!K14,NA())) -> 5405.484375 | AL8: =IF(Spec_Pg!$B$17=1,Historic_Flows!L14,IF(Spec_Pg!$B$17=2,'2035CT_Flows'!L14,NA())) -> 0 | AM8: =IF(Spec_Pg!$B$17=1,Historic_Flows!O14,IF(Spec_Pg!$B$17=2,'2035CT_Flows'!O14,NA())) -> 8560 | AN8: 0 | AO8: 8560 | AP8: 7650 | AQ8: =AVERAGE(AP$7:AP8) -> 8030 | AR8: =AVERAGE(AP$7:AP8) -> 8030 | AS8: =IF(Spec_Pg!$B$17=1,Available_Flow_Data!AC11,IF(Spec_Pg!$B$17=2,'2035CT_Flows'!P14,NA())) -> 2288 | AT8: =AVERAGE(AS$7:AS8) -> 2458 | AU8: =IF(Spec_Pg!$B$17=1,Historic_Flows!M14,IF(Spec_Pg!$B$17=2,'2035CT_Flows'!M14,NA())) -> 253 | AV8: =IF(Spec_Pg!$B$17=1,Historic_Flows!N14,IF(Spec_Pg!$B$17=2,'2035CT_Flows'!N14,NA())) -> 246.25 | AW8: 88.94 | AX8: =Available_Flow_Data!AD11 -> Balance | AZ8: 6887.4 | BB8: =IF(C8=10,1287,IF(C8=11,1266,IF(C8=12,1411,IF(C8=1,1565,IF(C8=2,1744,IF(C8=3,1752,1800)))))) -> 1287
A9: 2008-10-03 | B9: 2008 | C9: 10 | D9: 3 | E9: =Available_Flow_Data!AB12 -> 0 | F9: =Available_Flow_Data!AA12 -> 0 | G9: =Available_Flow_Data!Z12 -> 0 | R9: 0 | S9: 0 | T9: 0 | X9: =MIN(1.82*10^3,X8+SUM(R9:T9)) -> 60 | Y9: 0.4900000095 | Z9: =IF(Spec_Pg!$B$17=1,Historic_Flows!B15,IF(Spec_Pg!$B$17=2,'2035CT_Flows'!B15,NA())) -> 6770.276367 | AA9: 6770.766367 | AB9: =IF(Spec_Pg!$B$17=1,Historic_Flows!C15,IF(Spec_Pg!$B$17=2,'2035CT_Flows'!C15,NA())) -> 6770.905762 | AC9: =IF(Spec_Pg!$B$17=1,Historic_Flows!D15,IF(Spec_Pg!$B$17=2,'2035CT_Flows'!D15,NA())) -> 6602.578613 | AD9: =IF(Spec_Pg!$B$17=1,Historic_Flows!E15,IF(Spec_Pg!$B$17=2,'2035CT_Flows'!E15,NA())) -> 6620.257812 | AE9: =IF(Spec_Pg!$B$17=1,Historic_Flows!F15,IF(Spec_Pg!$B$17=2,'2035CT_Flows'!F15,NA())) -> 5581.445312 | AF9: =IF(Spec_Pg!$B$17=1,Historic_Flows!G15,IF(Spec_Pg!$B$17=2,'2035CT_Flows'!G15,NA())) -> 5537.98291 | AG9: =IF(Spec_Pg!$B$17=1,Historic_Flows!H15,IF(Spec_Pg!$B$17=2,'2035CT_Flows'!H15,NA())) -> 5541.385742 | AH9: 137.3478261 | AI9: =IF(Spec_Pg!$B$17=1,Historic_Flows!I15,IF(Spec_Pg!$B$17=2,'2035CT_Flows'!I15,NA())) -> 5546.400391 | AJ9: =IF(Spec_Pg!$B$17=1,Historic_Flows!J15,IF(Spec_Pg!$B$17=2,'2035CT_Flows'!J15,NA())) -> 5411.663086 | AK9: =IF(Spec_Pg!$B$17=1,Historic_Flows!K15,IF(Spec_Pg!$B$17=2,'2035CT_Flows'!K15,NA())) -> 5411.501953 | AL9: =IF(Spec_Pg!$B$17=1,Historic_Flows!L15,IF(Spec_Pg!$B$17=2,'2035CT_Flows'!L15,NA())) -> 0 | AM9: =IF(Spec_Pg!$B$17=1,Historic_Flows!O15,IF(Spec_Pg!$B$17=2,'2035CT_Flows'!O15,NA())) -> 8523 | AN9: 0 | AO9: 8523 | AP9: 7780 | AQ9: =AVERAGE(AP$7:AP9) -> 7946.666667 | AR9: =AVERAGE(AP$7:AP9) -> 7946.666667 | AS9: =IF(Spec_Pg!$B$17=1,Available_Flow_Data!AC12,IF(Spec_Pg!$B$17=2,'2035CT_Flows'!P15,NA())) -> 2585 | AT9: =AVERAGE(AS$7:AS9) -> 2500.333333 | AU9: =IF(Spec_Pg!$B$17=1,Historic_Flows!M15,IF(Spec_Pg!$B$17=2,'2035CT_Flows'!M15,NA())) -> 274 | AV9: =IF(Spec_Pg!$B$17=1,Historic_Flows!N15,IF(Spec_Pg!$B$17=2,'2035CT_Flows'!N15,NA())) -> 268.75 | AW9: 89.13 | AX9: =Available_Flow_Data!AD12 -> Balance | AZ9: 6978.2 | BB9: 1287
A10: 2008-10-04 | B10: 2008 | C10: 10 | D10: 4 | E10: =Available_Flow_Data!AB13 -> 0 | F10: =Available_Flow_Data!AA13 -> 0 | G10: =Available_Flow_Data!Z13 -> 0 | R10: 0 | S10: 0 | T10: 0 | X10: 60 | Y10: 4.769999981 | Z10: =IF(Spec_Pg!$B$17=1,Historic_Flows!B16,IF(Spec_Pg!$B$17=2,'2035CT_Flows'!B16,NA())) -> 6837.395508 | AA10: 6842.165508 | AB10: =IF(Spec_Pg!$B$17=1,Historic_Flows!C16,IF(Spec_Pg!$B$17=2,'2035CT_Flows'!C16,NA())) -> 6843.481445 | AC10: =IF(Spec_Pg!$B$17=1,Historic_Flows!D16,IF(Spec_Pg!$B$17=2,'2035CT_Flows'!D16,NA())) -> 6659.284668 | AD10: =IF(Spec_Pg!$B$17=1,Historic_Flows!E16,IF(Spec_Pg!$B$17=2,'2035CT_Flows'!E16,NA())) -> 6750.550293 | AE10: =IF(Spec_Pg!$B$17=1,Historic_Flows!F16,IF(Spec_Pg!$B$17=2,'2035CT_Flows'!F16,NA())) -> 5704.183105 | AF10: =IF(Spec_Pg!$B$17=1,Historic_Flows!G16,IF(Spec_Pg!$B$17=2,'2035CT_Flows'!G16,NA())) -> 5570.714844 | AG10: =IF(Spec_Pg!$B$17=1,Historic_Flows!H16,IF(Spec_Pg!$B$17=2,'2035CT_Flows'!H16,NA())) -> 5564.672363 | AH10: 152.3478261 | AI10: =IF(Spec_Pg!$B$17=1,Historic_Flows!I16,IF(Spec_Pg!$B$17=2,'2035CT_Flows'!I16,NA())) -> 5557.007324 | AJ10: =IF(Spec_Pg!$B$17=1,Historic_Flows!J16,IF(Spec_Pg!$B$17=2,'2035CT_Flows'!J16,NA())) -> 5421.459961 | AK10: =IF(Spec_Pg!$B$17=1,Historic_Flows!K16,IF(Spec_Pg!$B$17=2,'2035CT_Flows'!K16,NA())) -> 5419.870117 | AL10: =IF(Spec_Pg!$B$17=1,Historic_Flows!L16,IF(Spec_Pg!$B$17=2,'2035CT_Flows'!L16,NA())) -> 0 | AM10: =IF(Spec_Pg!$B$17=1,Historic_Flows!O16,IF(Spec_Pg!$B$17=2,'2035CT_Flows'!O16,NA())) -> 8697 | AN10: 0 | AO10: 8697 | AP10: 7730 | AQ10: =AVERAGE(AP$7:AP10) -> 7892.5 | AR10: =AVERAGE(AP$7:AP10) -> 7892.5 | AS10: =IF(Spec_Pg!$B$17=1,Available_Flow_Data!AC13,IF(Spec_Pg!$B$17=2,'2035CT_Flows'!P16,NA())) -> 3383 | AT10: =AVERAGE(AS$7:AS10) -> 2721 | AU10: =IF(Spec_Pg!$B$17=1,Historic_Flows!M16,IF(Spec_Pg!$B$17=2,'2035CT_Flows'!M16,NA())) -> 152 | AV10: =IF(Spec_Pg!$B$17=1,Historic_Flows!N16,IF(Spec_Pg!$B$17=2,'2035CT_Flows'!N16,NA())) -> 182.5 | AW10: 89.14 | AX10: =Available_Flow_Data!AD13 -> Balance | AZ10: 7340.1 | BB10: 1287
A11: 2008-10-05 | B11: 2008 | C11: 10 | D11: 5 | E11: =Available_Flow_Data!AB14 -> 0 | F11: =Available_Flow_Data!AA14 -> 0 | G11: =Available_Flow_Data!Z14 -> 0 | R11: 0 | S11: 0 | T11: 0 | X11: 60 | Y11: 2.950000048 | Z11: =IF(Spec_Pg!$B$17=1,Historic_Flows!B17,IF(Spec_Pg!$B$17=2,'2035CT_Flows'!B17,NA())) -> 6894.470703 | AA11: 6897.420703 | AB11: =IF(Spec_Pg!$B$17=1,Historic_Flows!C17,IF(Spec_Pg!$B$17=2,'2035CT_Flows'!C17,NA())) -> 6896.430176 | AC11: =IF(Spec_Pg!$B$17=1,Historic_Flows!D17,IF(Spec_Pg!$B$17=2,'2035CT_Flows'!D17,NA())) -> 6719.188477 | AD11: =IF(Spec_Pg!$B$17=1,Historic_Flows!E17,IF(Spec_Pg!$B$17=2,'2035CT_Flows'!E17,NA())) -> 6873.043945 | AE11: =IF(Spec_Pg!$B$17=1,Historic_Flows!F17,IF(Spec_Pg!$B$17=2,'2035CT_Flows'!F17,NA())) -> 5830.183594 | AF11: =IF(Spec_Pg!$B$17=1,Historic_Flows!G17,IF(Spec_Pg!$B$17=2,'2035CT_Flows'!G17,NA())) -> 5604.599609 | AG11: =IF(Spec_Pg!$B$17=1,Historic_Flows!H17,IF(Spec_Pg!$B$17=2,'2035CT_Flows'!H17,NA())) -> 5598.344727 | AH11: 181.7727273 | AI11: =IF(Spec_Pg!$B$17=1,Historic_Flows!I17,IF(Spec_Pg!$B$17=2,'2035CT_Flows'!I17,NA())) -> 5585.735352 | AJ11: =IF(Spec_Pg!$B$17=1,Historic_Flows!J17,IF(Spec_Pg!$B$17=2,'2035CT_Flows'!J17,NA())) -> 5449.184082 | AK11: =IF(Spec_Pg!$B$17=1,Historic_Flows!K17,IF(Spec_Pg!$B$17=2,'2035CT_Flows'!K17,NA())) -> 5443.566406 | AL11: =IF(Spec_Pg!$B$17=1,Historic_Flows!L17,IF(Spec_Pg!$B$17=2,'2035CT_Flows'!L17,NA())) -> 0 | AM11: =IF(Spec_Pg!$B$17=1,Historic_Flows!O17,IF(Spec_Pg!$B$17=2,'2035CT_Flows'!O17,NA())) -> 8817 | AN11: 0 | AO11: 8817 | AP11: 8580 | AQ11: =AVERAGE(AP$7:AP11) -> 8030 | AR11: =AVERAGE(AP$7:AP11) -> 8030 | AS11: =IF(Spec_Pg!$B$17=1,Available_Flow_Data!AC14,IF(Spec_Pg!$B$17=2,'2035CT_Flows'!P17,NA())) -> 4456 | AT11: =AVERAGE(AS$7:AS11) -> 3068 | AU11: =IF(Spec_Pg!$B$17=1,Historic_Flows!M17,IF(Spec_Pg!$B$17=2,'2035CT_Flows'!M17,NA())) -> 34.40000153 | AV11: =IF(Spec_Pg!$B$17=1,Historic_Flows!N17,IF(Spec_Pg!$B$17=2,'2035CT_Flows'!N17,NA())) -> 63.80000305 | AW11: 88.97 | AX11: =Available_Flow_Data!AD14 -> Balance | AZ11: 7478.3 | BB11: 1287
A12: 2008-10-06 | B12: 2008 | C12: 10 | D12: 6 | E12: =Available_Flow_Data!AB15 -> 0 | F12: =Available_Flow_Data!AA15 -> 0 | G12: =Available_Flow_Data!Z15 -> 0 | R12: 0 | S12: 0 | T12: 0 | X12: 60 | Y12: 1.820000052 | Z12: =IF(Spec_Pg!$B$17=1,Historic_Flows!B18,IF(Spec_Pg!$B$17=2,'2035CT_Flows'!B18,NA())) -> 6826.32373 | AA12: 6828.143731 | AB12: =IF(Spec_Pg!$B$17=1,Historic_Flows!C18,IF(Spec_Pg!$B$17=2,'2035CT_Flows'!C18,NA())) -> 6812.442871 | AC12: =IF(Spec_Pg!$B$17=1,Historic_Flows!D18,IF(Spec_Pg!$B$17=2,'2035CT_Flows'!D18,NA())) -> 6664.160645 | AD12: =IF(Spec_Pg!$B$17=1,Historic_Flows!E18,IF(Spec_Pg!$B$17=2,'2035CT_Flows'!E18,NA())) -> 6893.326172 | AE12: =IF(Spec_Pg!$B$17=1,Historic_Flows!F18,IF(Spec_Pg!$B$17=2,'2035CT_Flows'!F18,NA())) -> 5929.254395 | AF12: =IF(Spec_Pg!$B$17=1,Historic_Flows!G18,IF(Spec_Pg!$B$17=2,'2035CT_Flows'!G18,NA())) -> 5678.160156 | AG12: =IF(Spec_Pg!$B$17=1,Historic_Flows!H18,IF(Spec_Pg!$B$17=2,'2035CT_Flows'!H18,NA())) -> 5664.580566 | AH12: 203.5454545 | AI12: =IF(Spec_Pg!$B$17=1,Historic_Flows!I18,IF(Spec_Pg!$B$17=2,'2035CT_Flows'!I18,NA())) -> 5640.173828 | AJ12: =IF(Spec_Pg!$B$17=1,Historic_Flows!J18,IF(Spec_Pg!$B$17=2,'2035CT_Flows'!J18,NA())) -> 5500.094727 | AK12: =IF(Spec_Pg!$B$17=1,Historic_Flows!K18,IF(Spec_Pg!$B$17=2,'2035CT_Flows'!K18,NA())) -> 5489.236328 | AL12: =IF(Spec_Pg!$B$17=1,Historic_Flows!L18,IF(Spec_Pg!$B$17=2,'2035CT_Flows'!L18,NA())) -> 0 | AM12: =IF(Spec_Pg!$B$17=1,Historic_Flows!O18,IF(Spec_Pg!$B$17=2,'2035CT_Flows'!O18,NA())) -> 8771 | AN12: 0 | AO12: 8771 | AP12: 8660 | AQ12: =AVERAGE(AP$7:AP12) -> 8135 | AR12: =AVERAGE(AP$7:AP12) -> 8135 | AS12: =IF(Spec_Pg!$B$17=1,Available_Flow_Data!AC15,IF(Spec_Pg!$B$17=2,'2035CT_Flows'!P18,NA())) -> 4559 | AT12: =AVERAGE(AS$7:AS12) -> 3316.5 | AU12: =IF(Spec_Pg!$B$17=1,Historic_Flows!M18,IF(Spec_Pg!$B$17=2,'2035CT_Flows'!M18,NA())) -> 33.40000153 | AV12: =IF(Spec_Pg!$B$17=1,Historic_Flows!N18,IF(Spec_Pg!$B$17=2,'2035CT_Flows'!N18,NA())) -> 33.65000153 | AW12: 88.8 | AX12: =Available_Flow_Data!AD15 -> Balance | AZ12: 7421.5 | BB12: 1287
A13: 2008-10-07 | B13: 2008 | C13: 10 | D13: 7 | E13: =Available_Flow_Data!AB16 -> 0 | F13: =Available_Flow_Data!AA16 -> 0 | G13: =Available_Flow_Data!Z16 -> 0 | R13: 0 | S13: 0 | T13: 0 | X13: 60 | Y13: 1.279999971 | Z13: =IF(Spec_Pg!$B$17=1,Historic_Flows!B19,IF(Spec_Pg!$B$17=2,'2035CT_Flows'!B19,NA())) -> 6739.187988 | AA13: 6740.467988 | AB13: =IF(Spec_Pg!$B$17=1,Historic_Flows!C19,IF(Spec_Pg!$B$17=2,'2035CT_Flows'!C19,NA())) -> 6735.569824 | AC13: =IF(Spec_Pg!$B$17=1,Historic_Flows!D19,IF(Spec_Pg!$B$17=2,'2035CT_Flows'!D19,NA())) -> 6564.96875 | AD13: =IF(Spec_Pg!$B$17=1,Historic_Flows!E19,IF(Spec_Pg!$B$17=2,'2035CT_Flows'!E19,NA())) -> 6711.12207 | AE13: =IF(Spec_Pg!$B$17=1,Historic_Flows!F19,IF(Spec_Pg!$B$17=2,'2035CT_Flows'!F19,NA())) -> 5717.950684 | AF13: =IF(Spec_Pg!$B$17=1,Historic_Flows!G19,IF(Spec_Pg!$B$17=2,'2035CT_Flows'!G19,NA())) -> 5617.925293 | AG13: =IF(Spec_Pg!$B$17=1,Historic_Flows!H19,IF(Spec_Pg!$B$17=2,'2035CT_Flows'!H19,NA())) -> 5629.044922 | AH13: 198.2380952 | AI13: =IF(Spec_Pg!$B$17=1,Historic_Flows!I19,IF(Spec_Pg!$B$17=2,'2035CT_Flows'!I19,NA())) -> 5639.197754 | AJ13: =IF(Spec_Pg!$B$17=1,Historic_Flows!J19,IF(Spec_Pg!$B$17=2,'2035CT_Flows'!J19,NA())) -> 5518.996582 | AK13: =IF(Spec_Pg!$B$17=1,Historic_Flows!K19,IF(Spec_Pg!$B$17=2,'2035CT_Flows'!K19,NA())) -> 5515.525879 | AL13: =IF(Spec_Pg!$B$17=1,Historic_Flows!L19,IF(Spec_Pg!$B$17=2,'2035CT_Flows'!L19,NA())) -> 0 | AM13: =IF(Spec_Pg!$B$17=1,Historic_Flows!O19,IF(Spec_Pg!$B$17=2,'2035CT_Flows'!O19,NA())) -> 8817 | AN13: 0 | AO13: 8817 | AP13: 8760 | AQ13: =AVERAGE(AP$7:AP13) -> 8224.285714 | AR13: =AVERAGE(AP$7:AP13) -> 8224.285714 | AS13: =IF(Spec_Pg!$B$17=1,Available_Flow_Data!AC16,IF(Spec_Pg!$B$17=2,'2035CT_Flows'!P19,NA())) -> 4627 | AT13: =AVERAGE(AS$7:AS13) -> 3503.714286 | AU13: =IF(Spec_Pg!$B$17=1,Historic_Flows!M19,IF(Spec_Pg!$B$17=2,'2035CT_Flows'!M19,NA())) -> 212 | AV13: =IF(Spec_Pg!$B$17=1,Historic_Flows!N19,IF(Spec_Pg!$B$17=2,'2035CT_Flows'!N19,NA())) -> 167.3500061 | AW13: 88.63 | AX13: =Available_Flow_Data!AD16 -> Balance | AZ13: 7500.9 | BB13: 1287
A14: 2008-10-08 | B14: 2008 | C14: 10 | D14: 8 | E14: =Available_Flow_Data!AB17 -> 0 | F14: =Available_Flow_Data!AA17 -> 0 | G14: =Available_Flow_Data!Z17 -> 0 | R14: 0 | S14: 0 | T14: 0 | X14: 60 | Y14: 1.080000043 | Z14: =IF(Spec_Pg!$B$17=1,Historic_Flows!B20,IF(Spec_Pg!$B$17=2,'2035CT_Flows'!B20,NA())) -> 6686.955566 | AA14: 6688.035566 | AB14: =IF(Spec_Pg!$B$17=1,Historic_Flows!C20,IF(Spec_Pg!$B$17=2,'2035CT_Flows'!C20,NA())) -> 6691.272461 | AC14: =IF(Spec_Pg!$B$17=1,Historic_Flows!D20,IF(Spec_Pg!$B$17=2,'2035CT_Flows'!D20,NA())) -> 6500.411621 | AD14: =IF(Spec_Pg!$B$17=1,Historic_Flows!E20,IF(Spec_Pg!$B$17=2,'2035CT_Flows'!E20,NA())) -> 6565.558594 | AE14: =IF(Spec_Pg!$B$17=1,Historic_Flows!F20,IF(Spec_Pg!$B$17=2,'2035CT_Flows'!F20,NA())) -> 5534.753418 | AF14: =IF(Spec_Pg!$B$17=1,Historic_Flows!G20,IF(Spec_Pg!$B$17=2,'2035CT_Flows'!G20,NA())) -> 5492.258301 | AG14: =IF(Spec_Pg!$B$17=1,Historic_Flows!H20,IF(Spec_Pg!$B$17=2,'2035CT_Flows'!H20,NA())) -> 5515.456055 | AH14: 201.7368421 | AI14: =IF(Spec_Pg!$B$17=1,Historic_Flows!I20,IF(Spec_Pg!$B$17=2,'2035CT_Flows'!I20,NA())) -> 5556.492676 | AJ14: =IF(Spec_Pg!$B$17=1,Historic_Flows!J20,IF(Spec_Pg!$B$17=2,'2035CT_Flows'!J20,NA())) -> 5464.210449 | AK14: =IF(Spec_Pg!$B$17=1,Historic_Flows!K20,IF(Spec_Pg!$B$17=2,'2035CT_Flows'!K20,NA())) -> 5477.594238 | AL14: =IF(Spec_Pg!$B$17=1,Historic_Flows!L20,IF(Spec_Pg!$B$17=2,'2035CT_Flows'!L20,NA())) -> 0 | AM14: =IF(Spec_Pg!$B$17=1,Historic_Flows!O20,IF(Spec_Pg!$B$17=2,'2035CT_Flows'!O20,NA())) -> 8725 | AN14: 0 | AO14: 8725 | AP14: 8510 | AQ14: =AVERAGE(AP8:AP14) -> 8238.571429 | AR14: =AVERAGE(AP$7:AP14) -> 8260 | AS14: =IF(Spec_Pg!$B$17=1,Available_Flow_Data!AC17,IF(Spec_Pg!$B$17=2,'2035CT_Flows'!P20,NA())) -> 3925 | AT14: =AVERAGE(AS$7:AS14) -> 3556.375 | AU14: =IF(Spec_Pg!$B$17=1,Historic_Flows!M20,IF(Spec_Pg!$B$17=2,'2035CT_Flows'!M20,NA())) -> 252 | AV14: =IF(Spec_Pg!$B$17=1,Historic_Flows!N20,IF(Spec_Pg!$B$17=2,'2035CT_Flows'!N20,NA())) -> 242 | AW14: 88.57 | AX14: =Available_Flow_Data!AD17 -> Balance | AZ14: 7424.5 | BB14: 1287
A15: 2008-10-09 | B15: 2008 | C15: 10 | D15: 9 | E15: =Available_Flow_Data!AB18 -> 0 | F15: =Available_Flow_Data!AA18 -> 0 | G15: =Available_Flow_Data!Z18 -> 0 | R15: 0 | S15: 0 | T15: 0 | X15: 60 | Y15: 0.9300000072 | Z15: =IF(Spec_Pg!$B$17=1,Historic_Flows!B21,IF(Spec_Pg!$B$17=2,'2035CT_Flows'!B21,NA())) -> 6671.133301 | AA15: 6672.063301 | AB15: =IF(Spec_Pg!$B$17=1,Historic_Flows!C21,IF(Spec_Pg!$B$17=2,'2035CT_Flows'!C21,NA())) -> 6677.683105 | AC15: =IF(Spec_Pg!$B$17=1,Historic_Flows!D21,IF(Spec_Pg!$B$17=2,'2035CT_Flows'!D21,NA())) -> 6481.202637 | AD15: =IF(Spec_Pg!$B$17=1,Historic_Flows!E21,IF(Spec_Pg!$B$17=2,'2035CT_Flows'!E21,NA())) -> 6517.766602 | AE15: =IF(Spec_Pg!$B$17=1,Historic_Flows!F21,IF(Spec_Pg!$B$17=2,'2035CT_Flows'!F21,NA())) -> 5477.184082 | AF15: =IF(Spec_Pg!$B$17=1,Historic_Flows!G21,IF(Spec_Pg!$B$17=2,'2035CT_Flows'!G21,NA())) -> 5410.469727 | AG15: =IF(Spec_Pg!$B$17=1,Historic_Flows!H21,IF(Spec_Pg!$B$17=2,'2035CT_Flows'!H21,NA())) -> 5425.568359 | AH15: 189.2272727 | AI15: =IF(Spec_Pg!$B$17=1,Historic_Flows!I21,IF(Spec_Pg!$B$17=2,'2035CT_Flows'!I21,NA())) -> 5461.042969 | AJ15: =IF(Spec_Pg!$B$17=1,Historic_Flows!J21,IF(Spec_Pg!$B$17=2,'2035CT_Flows'!J21,NA())) -> 5376.380859 | AK15: =IF(Spec_Pg!$B$17=1,Historic_Flows!K21,IF(Spec_Pg!$B$17=2,'2035CT_Flows'!K21,NA())) -> 5397.318359 | AL15: =IF(Spec_Pg!$B$17=1,Historic_Flows!L21,IF(Spec_Pg!$B$17=2,'2035CT_Flows'!L21,NA())) -> 0 | AM15: =IF(Spec_Pg!$B$17=1,Historic_Flows!O21,IF(Spec_Pg!$B$17=2,'2035CT_Flows'!O21,NA())) -> 8415 | AN15: 0 | AO15: 8415 | AP15: 8700 | AQ15: =AVERAGE(AP9:AP15) -> 8388.571429 | AR15: =AVERAGE(AP$7:AP15) -> 8308.888889 | AS15: =IF(Spec_Pg!$B$17=1,Available_Flow_Data!AC18,IF(Spec_Pg!$B$17=2,'2035CT_Flows'!P21,NA())) -> 3204 | AT15: =AVERAGE(AS$7:AS15) -> 3517.222222 | AU15: =IF(Spec_Pg!$B$17=1,Historic_Flows!M21,IF(Spec_Pg!$B$17=2,'2035CT_Flows'!M21,NA())) -> 239 | AV15: =IF(Spec_Pg!$B$17=1,Historic_Flows!N21,IF(Spec_Pg!$B$17=2,'2035CT_Flows'!N21,NA())) -> 242.25 | AW15: 88.64 | AX15: =Available_Flow_Data!AD18 -> Balance | AZ15: 7139 | BB15: 1287
A16: 2008-10-10 | B16: 2008 | C16: 10 | D16: 10 | E16: =Available_Flow_Data!AB19 -> 0 | F16: =Available_Flow_Data!AA19 -> 0 | G16: =Available_Flow_Data!Z19 -> 0 | R16: 0 | S16: 0 | T16: 0 | X16: 60 | Y16: 0.8799999952 | Z16: =IF(Spec_Pg!$B$17=1,Historic_Flows!B22,IF(Spec_Pg!$B$17=2,'2035CT_Flows'!B22,NA())) -> 6719.973145 | AA16: 6720.853145 | AB16: =IF(Spec_Pg!$B$17=1,Historic_Flows!C22,IF(Spec_Pg!$B$17=2,'2035CT_Flows'!C22,NA())) -> 6730.987305 | AC16: =IF(Spec_Pg!$B$17=1,Historic_Flows!D22,IF(Spec_Pg!$B$17=2,'2035CT_Flows'!D22,NA())) -> 6524.23877 | AD16: =IF(Spec_Pg!$B$17=1,Historic_Flows!E22,IF(Spec_Pg!$B$17=2,'2035CT_Flows'!E22,NA())) -> 6537.612793 | AE16: =IF(Spec_Pg!$B$17=1,Historic_Flows!F22,IF(Spec_Pg!$B$17=2,'2035CT_Flows'!F22,NA())) -> 5490.26709 | AF16: =IF(Spec_Pg!$B$17=1,Historic_Flows!G22,IF(Spec_Pg!$B$17=2,'2035CT_Flows'!G22,NA())) -> 5382.956055 | AG16: =IF(Spec_Pg!$B$17=1,Historic_Flows!H22,IF(Spec_Pg!$B$17=2,'2035CT_Flows'!H22,NA())) -> 5388.034668 | AH16: 169.6086957 | AI16: =IF(Spec_Pg!$B$17=1,Historic_Flows!I22,IF(Spec_Pg!$B$17=2,'2035CT_Flows'!I22,NA())) -> 5404.363281 | AJ16: =IF(Spec_Pg!$B$17=1,Historic_Flows!J22,IF(Spec_Pg!$B$17=2,'2035CT_Flows'!J22,NA())) -> 5311.365234 | AK16: =IF(Spec_Pg!$B$17=1,Historic_Flows!K22,IF(Spec_Pg!$B$17=2,'2035CT_Flows'!K22,NA())) -> 5327.157715 | AL16: =IF(Spec_Pg!$B$17=1,Historic_Flows!L22,IF(Spec_Pg!$B$17=2,'2035CT_Flows'!L22,NA())) -> 0 | AM16: =IF(Spec_Pg!$B$17=1,Historic_Flows!O22,IF(Spec_Pg!$B$17=2,'2035CT_Flows'!O22,NA())) -> 8155 | AN16: 0 | AO16: 8155 | AP16: 8520 | AQ16: 8494.285714 | AR16: =AVERAGE(AP$7:AP16) -> 8330 | AS16: =IF(Spec_Pg!$B$17=1,Available_Flow_Data!AC19,IF(Spec_Pg!$B$17=2,'2035CT_Flows'!P22,NA())) -> 3236 | AT16: =AVERAGE(AS$7:AS16) -> 3489.1 | AU16: =IF(Spec_Pg!$B$17=1,Historic_Flows!M22,IF(Spec_Pg!$B$17=2,'2035CT_Flows'!M22,NA())) -> 229 | AV16: =IF(Spec_Pg!$B$17=1,Historic_Flows!N22,IF(Spec_Pg!$B$17=2,'2035CT_Flows'!N22,NA())) -> 231.5 | AW16: 88.71 | AX16: =Available_Flow_Data!AD19 -> Balance | AZ16: 6887.9 | BB16: 1287
A17: 2008-10-11 | B17: 2008 | C17: 10 | D17: 11 | E17: =Available_Flow_Data!AB20 -> 0 | F17: =Available_Flow_Data!AA20 -> 0 | G17: =Available_Flow_Data!Z20 -> 0 | R17: 0 | S17: 0 | T17: 0 | X17: 60 | Y17: 0.8799999952 | Z17: =IF(Spec_Pg!$B$17=1,Historic_Flows!B23,IF(Spec_Pg!$B$17=2,'2035CT_Flows'!B23,NA())) -> 6795.996582 | AA17: 6796.876582 | AB17: =IF(Spec_Pg!$B$17=1,Historic_Flows!C23,IF(Spec_Pg!$B$17=2,'2035CT_Flows'!C23,NA())) -> 6808.592285 | AC17: =IF(Spec_Pg!$B$17=1,Historic_Flows!D23,IF(Spec_Pg!$B$17=2,'2035CT_Flows'!D23,NA())) -> 6597.839844 | AD17: =IF(Spec_Pg!$B$17=1,Historic_Flows!E23,IF(Spec_Pg!$B$17=2,'2035CT_Flows'!E23,NA())) -> 6600.508301 | AE17: =IF(Spec_Pg!$B$17=1,Historic_Flows!F23,IF(Spec_Pg!$B$17=2,'2035CT_Flows'!F23,NA())) -> 5548.857422 | AF17: =IF(Spec_Pg!$B$17=1,Historic_Flows!G23,IF(Spec_Pg!$B$17=2,'2035CT_Flows'!G23,NA())) -> 5378.586914 | AG17: =IF(Spec_Pg!$B$17=1,Historic_Flows!H23,IF(Spec_Pg!$B$17=2,'2035CT_Flows'!H23,NA())) -> 5379.393555 | AH17: 154.2173913 | AI17: =IF(Spec_Pg!$B$17=1,Historic_Flows!I23,IF(Spec_Pg!$B$17=2,'2035CT_Flows'!I23,NA())) -> 5383.765137 | AJ17: =IF(Spec_Pg!$B$17=1,Historic_Flows!J23,IF(Spec_Pg!$B$17=2,'2035CT_Flows'!J23,NA())) -> 5282.505371 | AK17: =IF(Spec_Pg!$B$17=1,Historic_Flows!K23,IF(Spec_Pg!$B$17=2,'2035CT_Flows'!K23,NA())) -> 5290.102539 | AL17: =IF(Spec_Pg!$B$17=1,Historic_Flows!L23,IF(Spec_Pg!$B$17=2,'2035CT_Flows'!L23,NA())) -> 0 | AM17: =IF(Spec_Pg!$B$17=1,Historic_Flows!O23,IF(Spec_Pg!$B$17=2,'2035CT_Flows'!O23,NA())) -> 8027 | AN17: 0 | AO17: 8027 | AP17: 8290 | AQ17: 8574.285714 | AR17: =AVERAGE(AP$7:AP17) -> 8326.363636 | AS17: =IF(Spec_Pg!$B$17=1,Available_Flow_Data!AC20,IF(Spec_Pg!$B$17=2,'2035CT_Flows'!P23,NA())) -> 3146 | AT17: =AVERAGE(AS$7:AS17) -> 3457.909091 | AU17: =IF(Spec_Pg!$B$17=1,Historic_Flows!M23,IF(Spec_Pg!$B$17=2,'2035CT_Flows'!M23,NA())) -> 140 | AV17: =IF(Spec_Pg!$B$17=1,Historic_Flows!N23,IF(Spec_Pg!$B$17=2,'2035CT_Flows'!N23,NA())) -> 162.25 | AW17: 88.79 | AX17: =Available_Flow_Data!AD20 -> Balance | AZ17: 6762.1 | BB17: 1287
A18: 2008-10-12 | B18: 2008 | C18: 10 | D18: 12 | E18: =Available_Flow_Data!AB21 -> 0 | F18: =Available_Flow_Data!AA21 -> 0 | G18: =Available_Flow_Data!Z21 -> 0 | R18: 0 | S18: 0 | T18: 0 | X18: 60 | Y18: 0.9300000072 | Z18: =IF(Spec_Pg!$B$17=1,Historic_Flows!B24,IF(Spec_Pg!$B$17=2,'2035CT_Flows'!B24,NA())) -> 6870.258301 | AA18: 6871.188301 | AB18: =IF(Spec_Pg!$B$17=1,Historic_Flows!C24,IF(Spec_Pg!$B$17=2,'2035CT_Flows'!C24,NA())) -> 6882.458008 | AC18: =IF(Spec_Pg!$B$17=1,Historic_Flows!D24,IF(Spec_Pg!$B$17=2,'2035CT_Flows'!D24,NA())) -> 6672.281738 | AD18: =IF(Spec_Pg!$B$17=1,Historic_Flows!E24,IF(Spec_Pg!$B$17=2,'2035CT_Flows'!E24,NA())) -> 6674.762207 | AE18: =IF(Spec_Pg!$B$17=1,Historic_Flows!F24,IF(Spec_Pg!$B$17=2,'2035CT_Flows'!F24,NA())) -> 5621.975098 | AF18: =IF(Spec_Pg!$B$17=1,Historic_Flows!G24,IF(Spec_Pg!$B$17=2,'2035CT_Flows'!G24,NA())) -> 5369.700195 | AG18: =IF(Spec_Pg!$B$17=1,Historic_Flows!H24,IF(Spec_Pg!$B$17=2,'2035CT_Flows'!H24,NA())) -> 5371.34082 | AH18: 143.875 | AI18: =IF(Spec_Pg!$B$17=1,Historic_Flows!I24,IF(Spec_Pg!$B$17=2,'2035CT_Flows'!I24,NA())) -> 5374.481445 | AJ18: =IF(Spec_Pg!$B$17=1,Historic_Flows!J24,IF(Spec_Pg!$B$17=2,'2035CT_Flows'!J24,NA())) -> 5271.926758 | AK18: =IF(Spec_Pg!$B$17=1,Historic_Flows!K24,IF(Spec_Pg!$B$17=2,'2035CT_Flows'!K24,NA())) -> 5275.394531 | AL18: =IF(Spec_Pg!$B$17=1,Historic_Flows!L24,IF(Spec_Pg!$B$17=2,'2035CT_Flows'!L24,NA())) -> 0 | AM18: =IF(Spec_Pg!$B$17=1,Historic_Flows!O24,IF(Spec_Pg!$B$17=2,'2035CT_Flows'!O24,NA())) -> 7911 | AN18: 0 | AO18: 7911 | AP18: 7990 | AQ18: 8490 | AR18: =AVERAGE(AP$7:AP18) -> 8298.333333 | AS18: =IF(Spec_Pg!$B$17=1,Available_Flow_Data!AC21,IF(Spec_Pg!$B$17=2,'2035CT_Flows'!P24,NA())) -> 3339 | AT18: =AVERAGE(AS$7:AS18) -> 3448 | AU18: =IF(Spec_Pg!$B$17=1,Historic_Flows!M24,IF(Spec_Pg!$B$17=2,'2035CT_Flows'!M24,NA())) -> 49 | AV18: =IF(Spec_Pg!$B$17=1,Historic_Flows!N24,IF(Spec_Pg!$B$17=2,'2035CT_Flows'!N24,NA())) -> 71.75 | AW18: 88.82 | AX18: =Available_Flow_Data!AD21 -> Balance | AZ18: 6599 | BB18: 1287
A19: 2008-10-13 | B19: 2008 | C19: 10 | D19: 13 | E19: =Available_Flow_Data!AB22 -> 0 | F19: =Available_Flow_Data!AA22 -> 0 | G19: =Available_Flow_Data!Z22 -> 0 | R19: 0 | S19: 0 | T19: 0 | X19: 60 | Y19: 1.029999971 | Z19: =IF(Spec_Pg!$B$17=1,Historic_Flows!B25,IF(Spec_Pg!$B$17=2,'2035CT_Flows'!B25,NA())) -> 6695.809082 | AA19: 6696.839082 | AB19: =IF(Spec_Pg!$B$17=1,Historic_Flows!C25,IF(Spec_Pg!$B$17=2,'2035CT_Flows'!C25,NA())) -> 6691.566895 | AC19: =IF(Spec_Pg!$B$17=1,Historic_Flows!D25,IF(Spec_Pg!$B$17=2,'2035CT_Flows'!D25,NA())) -> 6519.844238 | AD19: =IF(Spec_Pg!$B$17=1,Historic_Flows!E25,IF(Spec_Pg!$B$17=2,'2035CT_Flows'!E25,NA())) -> 6583.080078 | AE19: =IF(Spec_Pg!$B$17=1,Historic_Flows!F25,IF(Spec_Pg!$B$17=2,'2035CT_Flows'!F25,NA())) -> 5546.886719 | AF19: =IF(Spec_Pg!$B$17=1,Historic_Flows!G25,IF(Spec_Pg!$B$17=2,'2035CT_Flows'!G25,NA())) -> 5301.599121 | AG19: =IF(Spec_Pg!$B$17=1,Historic_Flows!H25,IF(Spec_Pg!$B$17=2,'2035CT_Flows'!H25,NA())) -> 5314.17041 | AH19: 139.6363636 | AI19: =IF(Spec_Pg!$B$17=1,Historic_Flows!I25,IF(Spec_Pg!$B$17=2,'2035CT_Flows'!I25,NA())) -> 5334.50293 | AJ19: =IF(Spec_Pg!$B$17=1,Historic_Flows!J25,IF(Spec_Pg!$B$17=2,'2035CT_Flows'!J25,NA())) -> 5242.850098 | AK19: =IF(Spec_Pg!$B$17=1,Historic_Flows!K25,IF(Spec_Pg!$B$17=2,'2035CT_Flows'!K25,NA())) -> 5250.577148 | AL19: =IF(Spec_Pg!$B$17=1,Historic_Flows!L25,IF(Spec_Pg!$B$17=2,'2035CT_Flows'!L25,NA())) -> 0 | AM19: =IF(Spec_Pg!$B$17=1,Historic_Flows!O25,IF(Spec_Pg!$B$17=2,'2035CT_Flows'!O25,NA())) -> 7962 | AN19: 0 | AO19: 7962 | AP19: 7800 | AQ19: 8367.142857 | AR19: =AVERAGE(AP$7:AP19) -> 8260 | AS19: =IF(Spec_Pg!$B$17=1,Available_Flow_Data!AC22,IF(Spec_Pg!$B$17=2,'2035CT_Flows'!P25,NA())) -> 3813 | AT19: =AVERAGE(AS$7:AS19) -> 3476.076923 | AU19: =IF(Spec_Pg!$B$17=1,Historic_Flows!M25,IF(Spec_Pg!$B$17=2,'2035CT_Flows'!M25,NA())) -> 52 | AV19: =IF(Spec_Pg!$B$17=1,Historic_Flows!N25,IF(Spec_Pg!$B$17=2,'2035CT_Flows'!N25,NA())) -> 51.25 | AW19: 88.77 | AX19: =Available_Flow_Data!AD22 -> Balance | AZ19: 6708.3 | BB19: 1287
A20: 2008-10-14 | B20: 2008 | C20: 10 | D20: 14 | E20: =Available_Flow_Data!AB23 -> 0 | F20: =Available_Flow_Data!AA23 -> 0 | G20: =Available_Flow_Data!Z23 -> 0 | R20: 0 | S20: 0 | T20: 0 | X20: 60 | Y20: 1.080000043 | Z20: =IF(Spec_Pg!$B$17=1,Historic_Flows!B26,IF(Spec_Pg!$B$17=2,'2035CT_Flows'!B26,NA())) -> 6749.303223 | AA20: 6750.383223 | AB20: =IF(Spec_Pg!$B$17=1,Historic_Flows!C26,IF(Spec_Pg!$B$17=2,'2035CT_Flows'!C26,NA())) -> 6761.243652 | AC20: =IF(Spec_Pg!$B$17=1,Historic_Flows!D26,IF(Spec_Pg!$B$17=2,'2035CT_Flows'!D26,NA())) -> 6553.308594 | AD20: =IF(Spec_Pg!$B$17=1,Historic_Flows!E26,IF(Spec_Pg!$B$17=2,'2035CT_Flows'!E26,NA())) -> 6573.462891 | AE20: =IF(Spec_Pg!$B$17=1,Historic_Flows!F26,IF(Spec_Pg!$B$17=2,'2035CT_Flows'!F26,NA())) -> 5529.062988 | AF20: =IF(Spec_Pg!$B$17=1,Historic_Flows!G26,IF(Spec_Pg!$B$17=2,'2035CT_Flows'!G26,NA())) -> 5287.806152 | AG20: =IF(Spec_Pg!$B$17=1,Historic_Flows!H26,IF(Spec_Pg!$B$17=2,'2035CT_Flows'!H26,NA())) -> 5290.352539 | AH20: 136.826087 | AI20: =IF(Spec_Pg!$B$17=1,Historic_Flows!I26,IF(Spec_Pg!$B$17=2,'2035CT_Flows'!I26,NA())) -> 5300.689453 | AJ20: =IF(Spec_Pg!$B$17=1,Historic_Flows!J26,IF(Spec_Pg!$B$17=2,'2035CT_Flows'!J26,NA())) -> 5209.176758 | AK20: =IF(Spec_Pg!$B$17=1,Historic_Flows!K26,IF(Spec_Pg!$B$17=2,'2035CT_Flows'!K26,NA())) -> 5217.974609 | AL20: =IF(Spec_Pg!$B$17=1,Historic_Flows!L26,IF(Spec_Pg!$B$17=2,'2035CT_Flows'!L26,NA())) -> 0 | AM20: =IF(Spec_Pg!$B$17=1,Historic_Flows!O26,IF(Spec_Pg!$B$17=2,'2035CT_Flows'!O26,NA())) -> 8039 | AN20: 0 | AO20: 8039 | AP20: 7810 | AQ20: 8231.428571 | AR20: =AVERAGE(AP$7:AP20) -> 8227.857143 | AS20: =IF(Spec_Pg!$B$17=1,Available_Flow_Data!AC23,IF(Spec_Pg!$B$17=2,'2035CT_Flows'!P26,NA())) -> 3603 | AT20: =AVERAGE(AS7:AS20) -> 3485.142857 | AU20: =IF(Spec_Pg!$B$17=1,Historic_Flows!M26,IF(Spec_Pg!$B$17=2,'2035CT_Flows'!M26,NA())) -> 179 | AV20: =IF(Spec_Pg!$B$17=1,Historic_Flows!N26,IF(Spec_Pg!$B$17=2,'2035CT_Flows'!N26,NA())) -> 147.25 | AW20: 88.76 | AX20: =Available_Flow_Data!AD23 -> Balance | AZ20: 6758.8 | BB20: 1287
A21: 2008-10-15 | B21: 2008 | C21: 10 | D21: 15 | E21: =Available_Flow_Data!AB24 -> 0 | F21: =Available_Flow_Data!AA24 -> 0 | G21: =Available_Flow_Data!Z24 -> 0 | R21: 0 | S21: 0 | T21: 0 | X21: 60 | Y21: 1.080000043 | Z21: =IF(Spec_Pg!$B$17=1,Historic_Flows!B27,IF(Spec_Pg!$B$17=2,'2035CT_Flows'!B27,NA())) -> 6728.604492 | AA21: 6729.684492 | AB21: =IF(Spec_Pg!$B$17=1,Historic_Flows!C27,IF(Spec_Pg!$B$17=2,'2035CT_Flows'!C27,NA())) -> 6734.677734 | AC21: =IF(Spec_Pg!$B$17=1,Historic_Flows!D27,IF(Spec_Pg!$B$17=2,'2035CT_Flows'!D27,NA())) -> 6539.178711 | AD21: =IF(Spec_Pg!$B$17=1,Historic_Flows!E27,IF(Spec_Pg!$B$17=2,'2035CT_Flows'!E27,NA())) -> 6565.549316 | AE21: =IF(Spec_Pg!$B$17=1,Historic_Flows!F27,IF(Spec_Pg!$B$17=2,'2035CT_Flows'!F27,NA())) -> 5520.979004 | AF21: =IF(Spec_Pg!$B$17=1,Historic_Flows!G27,IF(Spec_Pg!$B$17=2,'2035CT_Flows'!G27,NA())) -> 5324.134766 | AG21: =IF(Spec_Pg!$B$17=1,Historic_Flows!H27,IF(Spec_Pg!$B$17=2,'2035CT_Flows'!H27,NA())) -> 5317.428223 | AH21: 143.125 | AI21: =IF(Spec_Pg!$B$17=1,Historic_Flows!I27,IF(Spec_Pg!$B$17=2,'2035CT_Flows'!I27,NA())) -> 5308.783691 | AJ21: =IF(Spec_Pg!$B$17=1,Historic_Flows!J27,IF(Spec_Pg!$B$17=2,'2035CT_Flows'!J27,NA())) -> 5206.344238 | AK21: =IF(Spec_Pg!$B$17=1,Historic_Flows!K27,IF(Spec_Pg!$B$17=2,'2035CT_Flows'!K27,NA())) -> 5208.111816 | AL21: =IF(Spec_Pg!$B$17=1,Historic_Flows!L27,IF(Spec_Pg!$B$17=2,'2035CT_Flows'!L27,NA())) -> 0 | AM21: =IF(Spec_Pg!$B$17=1,Historic_Flows!O27,IF(Spec_Pg!$B$17=2,'2035CT_Flows'!O27,NA())) -> 7888 | AN21: 0 | AO21: 7888 | AP21: 7600 | AQ21: 8101.428571 | AR21: =AVERAGE(AP7:AP21) -> 8186 | AS21: =IF(Spec_Pg!$B$17=1,Available_Flow_Data!AC24,IF(Spec_Pg!$B$17=2,'2035CT_Flows'!P27,NA())) -> 3210 | AT21: =AVERAGE(AS8:AS21) -> 3526.714286 | AU21: =IF(Spec_Pg!$B$17=1,Historic_Flows!M27,IF(Spec_Pg!$B$17=2,'2035CT_Flows'!M27,NA())) -> 188 | AV21: =IF(Spec_Pg!$B$17=1,Historic_Flows!N27,IF(Spec_Pg!$B$17=2,'2035CT_Flows'!N27,NA())) -> 185.75 | AW21: 88.83 | AX21: =Available_Flow_Data!AD24 -> Balance | AZ21: 6610.3 | BB21: 1287
A22: 2008-10-16 | B22: 2008 | C22: 10 | D22: 16 | E22: =Available_Flow_Data!AB25 -> 0 | F22: =Available_Flow_Data!AA25 -> 0 | G22: =Available_Flow_Data!Z25 -> 0 | R22: 0 | S22: 0 | T22: 0 | X22: 60 | Y22: 1.080000043 | Z22: =IF(Spec_Pg!$B$17=1,Historic_Flows!B28,IF(Spec_Pg!$B$17=2,'2035CT_Flows'!B28,NA())) -> 7159.281738 | AA22: 7160.361738 | AB22: =IF(Spec_Pg!$B$17=1,Historic_Flows!C28,IF(Spec_Pg!$B$17=2,'2035CT_Flows'!C28,NA())) -> 7195.473633 | AC22: =IF(Spec_Pg!$B$17=1,Historic_Flows!D28,IF(Spec_Pg!$B$17=2,'2035CT_Flows'!D28,NA())) -> 6930.044922 | AD22: =IF(Spec_Pg!$B$17=1,Historic_Flows!E28,IF(Spec_Pg!$B$17=2,'2035CT_Flows'!E28,NA())) -> 6849.484863 | AE22: =IF(Spec_Pg!$B$17=1,Historic_Flows!F28,IF(Spec_Pg!$B$17=2,'2035CT_Flows'!F28,NA())) -> 5775.72998 | AF22: =IF(Spec_Pg!$B$17=1,Historic_Flows!G28,IF(Spec_Pg!$B$17=2,'2035CT_Flows'!G28,NA())) -> 5498.157227 | AG22: =IF(Spec_Pg!$B$17=1,Historic_Flows!H28,IF(Spec_Pg!$B$17=2,'2035CT_Flows'!H28,NA())) -> 5466.032715 | AH22: 148.9545455 | AI22: =IF(Spec_Pg!$B$17=1,Historic_Flows!I28,IF(Spec_Pg!$B$17=2,'2035CT_Flows'!I28,NA())) -> 5412.989258 | AJ22: =IF(Spec_Pg!$B$17=1,Historic_Flows!J28,IF(Spec_Pg!$B$17=2,'2035CT_Flows'!J28,NA())) -> 5283.205566 | AK22: =IF(Spec_Pg!$B$17=1,Historic_Flows!K28,IF(Spec_Pg!$B$17=2,'2035CT_Flows'!K28,NA())) -> 5266.774902 | AL22: =IF(Spec_Pg!$B$17=1,Historic_Flows!L28,IF(Spec_Pg!$B$17=2,'2035CT_Flows'!L28,NA())) -> 0 | AM22: =IF(Spec_Pg!$B$17=1,Historic_Flows!O28,IF(Spec_Pg!$B$17=2,'2035CT_Flows'!O28,NA())) -> 7363 | AN22: 0 | AO22: 7363 | AP22: 7090 | AQ22: 7871.428571 | AR22: =AVERAGE(AP8:AP22) -> 8098 | AS22: =IF(Spec_Pg!$B$17=1,Available_Flow_Data!AC25,IF(Spec_Pg!$B$17=2,'2035CT_Flows'!P28,NA())) -> 2439 | AT22: 3537.5 | AU22: =IF(Spec_Pg!$B$17=1,Historic_Flows!M28,IF(Spec_Pg!$B$17=2,'2035CT_Flows'!M28,NA())) -> 217 | AV22: =IF(Spec_Pg!$B$17=1,Historic_Flows!N28,IF(Spec_Pg!$B$17=2,'2035CT_Flows'!N28,NA())) -> 209.75 | AW22: 89.06 | AX22: =Available_Flow_Data!AD25 -> Balance | AZ22: 6059.8 | BB22: 1287
A23: 2008-10-17 | B23: 2008 | C23: 10 | D23: 17 | E23: =Available_Flow_Data!AB26 -> 0 | F23: =Available_Flow_Data!AA26 -> 0 | G23: =Available_Flow_Data!Z26 -> 0 | R23: 0 | S23: 0 | T23: 0 | X23: 60 | Y23: 0.9800000191 | Z23: =IF(Spec_Pg!$B$17=1,Historic_Flows!B29,IF(Spec_Pg!$B$17=2,'2035CT_Flows'!B29,NA())) -> 7616.353027 | AA23: 7617.333027 | AB23: =IF(Spec_Pg!$B$17=1,Historic_Flows!C29,IF(Spec_Pg!$B$17=2,'2035CT_Flows'!C29,NA())) -> 7652.299805 | AC23: =IF(Spec_Pg!$B$17=1,Historic_Flows!D29,IF(Spec_Pg!$B$17=2,'2035CT_Flows'!D29,NA())) -> 7384.737793 | AD23: =IF(Spec_Pg!$B$17=1,Historic_Flows!E29,IF(Spec_Pg!$B$17=2,'2035CT_Flows'!E29,NA())) -> 7274.171875 | AE23: =IF(Spec_Pg!$B$17=1,Historic_Flows!F29,IF(Spec_Pg!$B$17=2,'2035CT_Flows'!F29,NA())) -> 6186.341797 | AF23: =IF(Spec_Pg!$B$17=1,Historic_Flows!G29,IF(Spec_Pg!$B$17=2,'2035CT_Flows'!G29,NA())) -> 5857.090332 | AG23: =IF(Spec_Pg!$B$17=1,Historic_Flows!H29,IF(Spec_Pg!$B$17=2,'2035CT_Flows'!H29,NA())) -> 5790.831543 | AH23: 151.1363636 | AI23: =IF(Spec_Pg!$B$17=1,Historic_Flows!I29,IF(Spec_Pg!$B$17=2,'2035CT_Flows'!I29,NA())) -> 5671.763184 | AJ23: =IF(Spec_Pg!$B$17=1,Historic_Flows!J29,IF(Spec_Pg!$B$17=2,'2035CT_Flows'!J29,NA())) -> 5496.883789 | AK23: =IF(Spec_Pg!$B$17=1,Historic_Flows!K29,IF(Spec_Pg!$B$17=2,'2035CT_Flows'!K29,NA())) -> 5449.136719 | AL23: =IF(Spec_Pg!$B$17=1,Historic_Flows!L29,IF(Spec_Pg!$B$17=2,'2035CT_Flows'!L29,NA())) -> 0 | AM23: =IF(Spec_Pg!$B$17=1,Historic_Flows!O29,IF(Spec_Pg!$B$17=2,'2035CT_Flows'!O29,NA())) -> 7275 | AN23: 0 | AO23: 7275 | AP23: 6950 | AQ23: 7647.142857 | AR23: 8051.333333 | AS23: =IF(Spec_Pg!$B$17=1,Available_Flow_Data!AC26,IF(Spec_Pg!$B$17=2,'2035CT_Flows'!P29,NA())) -> 1621 | AT23: 3468.642857 | AU23: =IF(Spec_Pg!$B$17=1,Historic_Flows!M29,IF(Spec_Pg!$B$17=2,'2035CT_Flows'!M29,NA())) -> 287 | AV23: =IF(Spec_Pg!$B$17=1,Historic_Flows!N29,IF(Spec_Pg!$B$17=2,'2035CT_Flows'!N29,NA())) -> 269.5 | AW23: 89.55 | AX23: =Available_Flow_Data!AD26 -> Balance | AZ23: 6030 | BB23: 1287
A24: 2008-10-18 | B24: 2008 | C24: 10 | D24: 18 | E24: =Available_Flow_Data!AB27 -> 0 | F24: =Available_Flow_Data!AA27 -> 0 | G24: =Available_Flow_Data!Z27 -> 0 | R24: 0 | S24: 0 | T24: 0 | X24: 60 | Y24: 1.029999971 | Z24: =IF(Spec_Pg!$B$17=1,Historic_Flows!B30,IF(Spec_Pg!$B$17=2,'2035CT_Flows'!B30,NA())) -> 7720.67627 | AA24: 7721.70627 | AB24: =IF(Spec_Pg!$B$17=1,Historic_Flows!C30,IF(Spec_Pg!$B$17=2,'2035CT_Flows'!C30,NA())) -> 7733.40332 | AC24: =IF(Spec_Pg!$B$17=1,Historic_Flows!D30,IF(Spec_Pg!$B$17=2,'2035CT_Flows'!D30,NA())) -> 7520.148438 | AD24: =IF(Spec_Pg!$B$17=1,Historic_Flows!E30,IF(Spec_Pg!$B$17=2,'2035CT_Flows'!E30,NA())) -> 7491.120605 | AE24: =IF(Spec_Pg!$B$17=1,Historic_Flows!F30,IF(Spec_Pg!$B$17=2,'2035CT_Flows'!F30,NA())) -> 6424.063965 | AF24: =IF(Spec_Pg!$B$17=1,Historic_Flows!G30,IF(Spec_Pg!$B$17=2,'2035CT_Flows'!G30,NA())) -> 6157.061035 | AG24: =IF(Spec_Pg!$B$17=1,Historic_Flows!H30,IF(Spec_Pg!$B$17=2,'2035CT_Flows'!H30,NA())) -> 6101.686523 | AH24: 157.0416667 | AI24: =IF(Spec_Pg!$B$17=1,Historic_Flows!I30,IF(Spec_Pg!$B$17=2,'2035CT_Flows'!I30,NA())) -> 5981.350098 | AJ24: =IF(Spec_Pg!$B$17=1,Historic_Flows!J30,IF(Spec_Pg!$B$17=2,'2035CT_Flows'!J30,NA())) -> 5791.152832 | AK24: =IF(Spec_Pg!$B$17=1,Historic_Flows!K30,IF(Spec_Pg!$B$17=2,'2035CT_Flows'!K30,NA())) -> 5724.902344 | AL24: =IF(Spec_Pg!$B$17=1,Historic_Flows!L30,IF(Spec_Pg!$B$17=2,'2035CT_Flows'!L30,NA())) -> 0 | AM24: =IF(Spec_Pg!$B$17=1,Historic_Flows!O30,IF(Spec_Pg!$B$17=2,'2035CT_Flows'!O30,NA())) -> 7180 | AN24: 0 | AO24: 7180 | AP24: 6600 | AQ24: 7405.714286 | AR24: 7972.666667 | AS24: =IF(Spec_Pg!$B$17=1,Available_Flow_Data!AC27,IF(Spec_Pg!$B$17=2,'2035CT_Flows'!P30,NA())) -> 1130 | AT24: 3307.714286 | AU24: =IF(Spec_Pg!$B$17=1,Historic_Flows!M30,IF(Spec_Pg!$B$17=2,'2035CT_Flows'!M30,NA())) -> 166 | AV24: =IF(Spec_Pg!$B$17=1,Historic_Flows!N30,IF(Spec_Pg!$B$17=2,'2035CT_Flows'!N30,NA())) -> 196.25 | AW24: 90.25 | AX24: =Available_Flow_Data!AD27 -> Balance | AZ24: 5928.6 | BB24: 1287
A25: 2008-10-19 | B25: 2008 | C25: 10 | D25: 19 | E25: =Available_Flow_Data!AB28 -> 0 | F25: =Available_Flow_Data!AA28 -> 0 | G25: =Available_Flow_Data!Z28 -> 0 | R25: 0 | S25: 0 | T25: 0 | X25: 60 | Y25: 1.029999971 | Z25: =IF(Spec_Pg!$B$17=1,Historic_Flows!B31,IF(Spec_Pg!$B$17=2,'2035CT_Flows'!B31,NA())) -> 7746.851074 | AA25: 7747.881074 | AB25: =IF(Spec_Pg!$B$17=1,Historic_Flows!C31,IF(Spec_Pg!$B$17=2,'2035CT_Flows'!C31,NA())) -> 7755.959961 | AC25: =IF(Spec_Pg!$B$17=1,Historic_Flows!D31,IF(Spec_Pg!$B$17=2,'2035CT_Flows'!D31,NA())) -> 7553.241211 | AD25: =IF(Spec_Pg!$B$17=1,Historic_Flows!E31,IF(Spec_Pg!$B$17=2,'2035CT_Flows'!E31,NA())) -> 7560.813965 | AE25: =IF(Spec_Pg!$B$17=1,Historic_Flows!F31,IF(Spec_Pg!$B$17=2,'2035CT_Flows'!F31,NA())) -> 6508.483398 | AF25: =IF(Spec_Pg!$B$17=1,Historic_Flows!G31,IF(Spec_Pg!$B$17=2,'2035CT_Flows'!G31,NA())) -> 6249.39502 | AG25: =IF(Spec_Pg!$B$17=1,Historic_Flows!H31,IF(Spec_Pg!$B$17=2,'2035CT_Flows'!H31,NA())) -> 6232.350098 | AH25: 161.25 | AI25: =IF(Spec_Pg!$B$17=1,Historic_Flows!I31,IF(Spec_Pg!$B$17=2,'2035CT_Flows'!I31,NA())) -> 6175.609863 | AJ25: =IF(Spec_Pg!$B$17=1,Historic_Flows!J31,IF(Spec_Pg!$B$17=2,'2035CT_Flows'!J31,NA())) -> 6019.480957 | AK25: =IF(Spec_Pg!$B$17=1,Historic_Flows!K31,IF(Spec_Pg!$B$17=2,'2035CT_Flows'!K31,NA())) -> 5968.284668 | AL25: =IF(Spec_Pg!$B$17=1,Historic_Flows!L31,IF(Spec_Pg!$B$17=2,'2035CT_Flows'!L31,NA())) -> 0 | AM25: =IF(Spec_Pg!$B$17=1,Historic_Flows!O31,IF(Spec_Pg!$B$17=2,'2035CT_Flows'!O31,NA())) -> 7414 | AN25: 0 | AO25: 7414 | AP25: 7090 | AQ25: 7277.142857 | AR25: 7930 | AS25: =IF(Spec_Pg!$B$17=1,Available_Flow_Data!AC28,IF(Spec_Pg!$B$17=2,'2035CT_Flows'!P31,NA())) -> 1995 | AT25: 3131.928571 | AU25: =IF(Spec_Pg!$B$17=1,Historic_Flows!M31,IF(Spec_Pg!$B$17=2,'2035CT_Flows'!M31,NA())) -> 34.29999924 | AV25: =IF(Spec_Pg!$B$17=1,Historic_Flows!N31,IF(Spec_Pg!$B$17=2,'2035CT_Flows'!N31,NA())) -> 67.22499847 | AW25: 90.54 | AX25: =Available_Flow_Data!AD28 -> Balance | AZ25: 6174 | BB25: 1287
A26: 2008-10-20 | B26: 2008 | C26: 10 | D26: 20 | E26: =Available_Flow_Data!AB29 -> 0 | F26: =Available_Flow_Data!AA29 -> 0 | G26: =Available_Flow_Data!Z29 -> 0 | R26: 0 | S26: 0 | T26: 0 | X26: 60 | Y26: 1.080000043 | Z26: =IF(Spec_Pg!$B$17=1,Historic_Flows!B32,IF(Spec_Pg!$B$17=2,'2035CT_Flows'!B32,NA())) -> 7840.003906 | AA26: 7841.083906 | AB26: =IF(Spec_Pg!$B$17=1,Historic_Flows!C32,IF(Spec_Pg!$B$17=2,'2035CT_Flows'!C32,NA())) -> 7853.677734 | AC26: =IF(Spec_Pg!$B$17=1,Historic_Flows!D32,IF(Spec_Pg!$B$17=2,'2035CT_Flows'!D32,NA())) -> 7640.511719 | AD26: =IF(Spec_Pg!$B$17=1,Historic_Flows!E32,IF(Spec_Pg!$B$17=2,'2035CT_Flows'!E32,NA())) -> 7638.587891 | AE26: =IF(Spec_Pg!$B$17=1,Historic_Flows!F32,IF(Spec_Pg!$B$17=2,'2035CT_Flows'!F32,NA())) -> 6585.449219 | AF26: =IF(Spec_Pg!$B$17=1,Historic_Flows!G32,IF(Spec_Pg!$B$17=2,'2035CT_Flows'!G32,NA())) -> 6267.196289 | AG26: =IF(Spec_Pg!$B$17=1,Historic_Flows!H32,IF(Spec_Pg!$B$17=2,'2035CT_Flows'!H32,NA())) -> 6263.910156 | AH26: 172.2727273 | AI26: =IF(Spec_Pg!$B$17=1,Historic_Flows!I32,IF(Spec_Pg!$B$17=2,'2035CT_Flows'!I32,NA())) -> 6248.172852 | AJ26: =IF(Spec_Pg!$B$17=1,Historic_Flows!J32,IF(Spec_Pg!$B$17=2,'2035CT_Flows'!J32,NA())) -> 6129.233398 | AK26: =IF(Spec_Pg!$B$17=1,Historic_Flows!K32,IF(Spec_Pg!$B$17=2,'2035CT_Flows'!K32,NA())) -> 6105.123535 | AL26: =IF(Spec_Pg!$B$17=1,Historic_Flows!L32,IF(Spec_Pg!$B$17=2,'2035CT_Flows'!L32,NA())) -> 0 | AM26: =IF(Spec_Pg!$B$17=1,Historic_Flows!O32,IF(Spec_Pg!$B$17=2,'2035CT_Flows'!O32,NA())) -> 7493 | AN26: 0 | AO26: 7493 | AP26: 7700 | AQ26: 7262.857143 | AR26: 7871.333333 | AS26: =IF(Spec_Pg!$B$17=1,Available_Flow_Data!AC29,IF(Spec_Pg!$B$17=2,'2035CT_Flows'!P32,NA())) -> 2824 | AT26: 3008 | AU26: =IF(Spec_Pg!$B$17=1,Historic_Flows!M32,IF(Spec_Pg!$B$17=2,'2035CT_Flows'!M32,NA())) -> 32.29999924 | AV26: =IF(Spec_Pg!$B$17=1,Historic_Flows!N32,IF(Spec_Pg!$B$17=2,'2035CT_Flows'!N32,NA())) -> 32.79999924 | AW26: 90.59 | AX26: =Available_Flow_Data!AD29 -> Balance | AZ26: 6257.5 | BB26: 1287
A27: 2008-10-21 | B27: 2008 | C27: 10 | D27: 21 | E27: =Available_Flow_Data!AB30 -> 0 | F27: =Available_Flow_Data!AA30 -> 0 | G27: =Available_Flow_Data!Z30 -> 0 | R27: 0 | S27: 0 | T27: 0 | X27: 60 | Y27: 1.080000043 | Z27: =IF(Spec_Pg!$B$17=1,Historic_Flows!B33,IF(Spec_Pg!$B$17=2,'2035CT_Flows'!B33,NA())) -> 7799.798828 | AA27: 7800.878828 | AB27: =IF(Spec_Pg!$B$17=1,Historic_Flows!C33,IF(Spec_Pg!$B$17=2,'2035CT_Flows'!C33,NA())) -> 7804.301758 | AC27: =IF(Spec_Pg!$B$17=1,Historic_Flows!D33,IF(Spec_Pg!$B$17=2,'2035CT_Flows'!D33,NA())) -> 7612.09375 | AD27: =IF(Spec_Pg!$B$17=1,Historic_Flows!E33,IF(Spec_Pg!$B$17=2,'2035CT_Flows'!E33,NA())) -> 7640.280273 | AE27: =IF(Spec_Pg!$B$17=1,Historic_Flows!F33,IF(Spec_Pg!$B$17=2,'2035CT_Flows'!F33,NA())) -> 6594.749512 | AF27: =IF(Spec_Pg!$B$17=1,Historic_Flows!G33,IF(Spec_Pg!$B$17=2,'2035CT_Flows'!G33,NA())) -> 6331.221191 | AG27: =IF(Spec_Pg!$B$17=1,Historic_Flows!H33,IF(Spec_Pg!$B$17=2,'2035CT_Flows'!H33,NA())) -> 6319.402344 | AH27: 186.3913043 | AI27: =IF(Spec_Pg!$B$17=1,Historic_Flows!I33,IF(Spec_Pg!$B$17=2,'2035CT_Flows'!I33,NA())) -> 6298.787109 | AJ27: =IF(Spec_Pg!$B$17=1,Historic_Flows!J33,IF(Spec_Pg!$B$17=2,'2035CT_Flows'!J33,NA())) -> 6187.81543 | AK27: =IF(Spec_Pg!$B$17=1,Historic_Flows!K33,IF(Spec_Pg!$B$17=2,'2035CT_Flows'!K33,NA())) -> 6175.413574 | AL27: =IF(Spec_Pg!$B$17=1,Historic_Flows!L33,IF(Spec_Pg!$B$17=2,'2035CT_Flows'!L33,NA())) -> 0 | AM27: =IF(Spec_Pg!$B$17=1,Historic_Flows!O33,IF(Spec_Pg!$B$17=2,'2035CT_Flows'!O33,NA())) -> 7258 | AN27: 0 | AO27: 7258 | AP27: 8090 | AQ27: 7302.857143 | AR27: 7833.333333 | AS27: =IF(Spec_Pg!$B$17=1,Available_Flow_Data!AC30,IF(Spec_Pg!$B$17=2,'2035CT_Flows'!P33,NA())) -> 3342 | AT27: 2916.214286 | AU27: =IF(Spec_Pg!$B$17=1,Historic_Flows!M33,IF(Spec_Pg!$B$17=2,'2035CT_Flows'!M33,NA())) -> 205 | AV27: =IF(Spec_Pg!$B$17=1,Historic_Flows!N33,IF(Spec_Pg!$B$17=2,'2035CT_Flows'!N33,NA())) -> 161.8249969 | AW27: 90.52 | AX27: =Available_Flow_Data!AD30 -> Balance | AZ27: 6175.4 | BB27: 1287
A28: 2008-10-22 | B28: 2008 | C28: 10 | D28: 22 | E28: =Available_Flow_Data!AB31 -> 0 | F28: =Available_Flow_Data!AA31 -> 0 | G28: =Available_Flow_Data!Z31 -> 0 | R28: 0 | S28: 0 | T28: 0 | X28: 60 | Y28: 0.9300000072 | Z28: =IF(Spec_Pg!$B$17=1,Historic_Flows!B34,IF(Spec_Pg!$B$17=2,'2035CT_Flows'!B34,NA())) -> 7886.331055 | AA28: 7887.261055 | AB28: =IF(Spec_Pg!$B$17=1,Historic_Flows!C34,IF(Spec_Pg!$B$17=2,'2035CT_Flows'!C34,NA())) -> 7899.962891 | AC28: =IF(Spec_Pg!$B$17=1,Historic_Flows!D34,IF(Spec_Pg!$B$17=2,'2035CT_Flows'!D34,NA())) -> 7687.372559 | AD28: =IF(Spec_Pg!$B$17=1,Historic_Flows!E34,IF(Spec_Pg!$B$17=2,'2035CT_Flows'!E34,NA())) -> 7688.345215 | AE28: =IF(Spec_Pg!$B$17=1,Historic_Flows!F34,IF(Spec_Pg!$B$17=2,'2035CT_Flows'!F34,NA())) -> 6638.177246 | AF28: =IF(Spec_Pg!$B$17=1,Historic_Flows!G34,IF(Spec_Pg!$B$17=2,'2035CT_Flows'!G34,NA())) -> 6454.305664 | AG28: =IF(Spec_Pg!$B$17=1,Historic_Flows!H34,IF(Spec_Pg!$B$17=2,'2035CT_Flows'!H34,NA())) -> 6431.583984 | AH28: 190.15 | AI28: =IF(Spec_Pg!$B$17=1,Historic_Flows!I34,IF(Spec_Pg!$B$17=2,'2035CT_Flows'!I34,NA())) -> 6390.304688 | AJ28: =IF(Spec_Pg!$B$17=1,Historic_Flows!J34,IF(Spec_Pg!$B$17=2,'2035CT_Flows'!J34,NA())) -> 6268.07666 | AK28: =IF(Spec_Pg!$B$17=1,Historic_Flows!K34,IF(Spec_Pg!$B$17=2,'2035CT_Flows'!K34,NA())) -> 6250.73877 | AL28: =IF(Spec_Pg!$B$17=1,Historic_Flows!L34,IF(Spec_Pg!$B$17=2,'2035CT_Flows'!L34,NA())) -> 0 | AM28: =IF(Spec_Pg!$B$17=1,Historic_Flows!O34,IF(Spec_Pg!$B$17=2,'2035CT_Flows'!O34,NA())) -> 7191 | AN28: 0 | AO28: 7191 | AP28: 7860 | AQ28: 7340 | AR28: 7773.333333 | AS28: =IF(Spec_Pg!$B$17=1,Available_Flow_Data!AC31,IF(Spec_Pg!$B$17=2,'2035CT_Flows'!P34,NA())) -> 3052 | AT28: 2853.857143 | AU28: =IF(Spec_Pg!$B$17=1,Historic_Flows!M34,IF(Spec_Pg!$B$17=2,'2035CT_Flows'!M34,NA())) -> 269 | AV28: =IF(Spec_Pg!$B$17=1,Historic_Flows!N34,IF(Spec_Pg!$B$17=2,'2035CT_Flows'!N34,NA())) -> 253 | AW28: 90.52 | AX28: =Available_Flow_Data!AD31 -> Balance | AZ28: 6250.7 | BB28: 1287
A29: 2008-10-23 | B29: 2008 | C29: 10 | D29: 23 | E29: =Available_Flow_Data!AB32 -> 0 | F29: =Available_Flow_Data!AA32 -> 0 | G29: =Available_Flow_Data!Z32 -> 0 | R29: 0 | S29: 0 | T29: 0 | X29: 60 | Y29: 0.9300000072 | Z29: =IF(Spec_Pg!$B$17=1,Historic_Flows!B35,IF(Spec_Pg!$B$17=2,'2035CT_Flows'!B35,NA())) -> 7848.972168 | AA29: 7849.902168 | AB29: =IF(Spec_Pg!$B$17=1,Historic_Flows!C35,IF(Spec_Pg!$B$17=2,'2035CT_Flows'!C35,NA())) -> 7854.017578 | AC29: =IF(Spec_Pg!$B$17=1,Historic_Flows!D35,IF(Spec_Pg!$B$17=2,'2035CT_Flows'!D35,NA())) -> 7660.865723 | AD29: =IF(Spec_Pg!$B$17=1,Historic_Flows!E35,IF(Spec_Pg!$B$17=2,'2035CT_Flows'!E35,NA())) -> 7683.475586 | AE29: =IF(Spec_Pg!$B$17=1,Historic_Flows!F35,IF(Spec_Pg!$B$17=2,'2035CT_Flows'!F35,NA())) -> 6638.601074 | AF29: =IF(Spec_Pg!$B$17=1,Historic_Flows!G35,IF(Spec_Pg!$B$17=2,'2035CT_Flows'!G35,NA())) -> 6528.327637 | AG29: =IF(Spec_Pg!$B$17=1,Historic_Flows!H35,IF(Spec_Pg!$B$17=2,'2035CT_Flows'!H35,NA())) -> 6514.663086 | AH29: 204.5416667 | AI29: =IF(Spec_Pg!$B$17=1,Historic_Flows!I35,IF(Spec_Pg!$B$17=2,'2035CT_Flows'!I35,NA())) -> 6481.616211 | AJ29: =IF(Spec_Pg!$B$17=1,Historic_Flows!J35,IF(Spec_Pg!$B$17=2,'2035CT_Flows'!J35,NA())) -> 6359.679199 | AK29: =IF(Spec_Pg!$B$17=1,Historic_Flows!K35,IF(Spec_Pg!$B$17=2,'2035CT_Flows'!K35,NA())) -> 6339.758789 | AL29: =IF(Spec_Pg!$B$17=1,Historic_Flows!L35,IF(Spec_Pg!$B$17=2,'2035CT_Flows'!L35,NA())) -> 0 | AM29: =IF(Spec_Pg!$B$17=1,Historic_Flows!O35,IF(Spec_Pg!$B$17=2,'2035CT_Flows'!O35,NA())) -> 7325 | AN29: 0 | AO29: 7325 | AP29: 7540 | AQ29: 7404.285714 | AR29: 7708.666667 | AS29: =IF(Spec_Pg!$B$17=1,Available_Flow_Data!AC32,IF(Spec_Pg!$B$17=2,'2035CT_Flows'!P35,NA())) -> 2640 | AT29: 2813.571429 | AU29: =IF(Spec_Pg!$B$17=1,Historic_Flows!M35,IF(Spec_Pg!$B$17=2,'2035CT_Flows'!M35,NA())) -> 242 | AV29: =IF(Spec_Pg!$B$17=1,Historic_Flows!N35,IF(Spec_Pg!$B$17=2,'2035CT_Flows'!N35,NA())) -> 248.75 | AW29: 90.62 | AX29: =Available_Flow_Data!AD32 -> Balance | AZ29: 6339.8 | BB29: 1287
A30: 2008-10-24 | B30: 2008 | C30: 10 | D30: 24 | E30: =Available_Flow_Data!AB33 -> 0 | F30: =Available_Flow_Data!AA33 -> 0 | G30: =Available_Flow_Data!Z33 -> 0 | R30: 0 | S30: 0 | T30: 0 | X30: 60 | Y30: 0.9300000072 | Z30: =IF(Spec_Pg!$B$17=1,Historic_Flows!B36,IF(Spec_Pg!$B$17=2,'2035CT_Flows'!B36,NA())) -> 7773.730957 | AA30: 7774.660957 | AB30: =IF(Spec_Pg!$B$17=1,Historic_Flows!C36,IF(Spec_Pg!$B$17=2,'2035CT_Flows'!C36,NA())) -> 7776.755859 | AC30: =IF(Spec_Pg!$B$17=1,Historic_Flows!D36,IF(Spec_Pg!$B$17=2,'2035CT_Flows'!D36,NA())) -> 7588.96582 | AD30: =IF(Spec_Pg!$B$17=1,Historic_Flows!E36,IF(Spec_Pg!$B$17=2,'2035CT_Flows'!E36,NA())) -> 7627.514648 | AE30: =IF(Spec_Pg!$B$17=1,Historic_Flows!F36,IF(Spec_Pg!$B$17=2,'2035CT_Flows'!F36,NA())) -> 6587.749512 | AF30: =IF(Spec_Pg!$B$17=1,Historic_Flows!G36,IF(Spec_Pg!$B$17=2,'2035CT_Flows'!G36,NA())) -> 6505.19043 | AG30: =IF(Spec_Pg!$B$17=1,Historic_Flows!H36,IF(Spec_Pg!$B$17=2,'2035CT_Flows'!H36,NA())) -> 6509.461914 | AH30: 212.9130435 | AI30: =IF(Spec_Pg!$B$17=1,Historic_Flows!I36,IF(Spec_Pg!$B$17=2,'2035CT_Flows'!I36,NA())) -> 6508.356934 | AJ30: =IF(Spec_Pg!$B$17=1,Historic_Flows!J36,IF(Spec_Pg!$B$17=2,'2035CT_Flows'!J36,NA())) -> 6405.958984 | AK30: =IF(Spec_Pg!$B$17=1,Historic_Flows!K36,IF(Spec_Pg!$B$17=2,'2035CT_Flows'!K36,NA())) -> 6396.429199 | AL30: =IF(Spec_Pg!$B$17=1,Historic_Flows!L36,IF(Spec_Pg!$B$17=2,'2035CT_Flows'!L36,NA())) -> 0 | AM30: =IF(Spec_Pg!$B$17=1,Historic_Flows!O36,IF(Spec_Pg!$B$17=2,'2035CT_Flows'!O36,NA())) -> 7347 | AN30: 0 | AO30: 7347 | AP30: 7420 | AQ30: 7471.428571 | AR30: 7623.333333 | AS30: =IF(Spec_Pg!$B$17=1,Available_Flow_Data!AC33,IF(Spec_Pg!$B$17=2,'2035CT_Flows'!P36,NA())) -> 2755 | AT30: 2779.214286 | AU30: =IF(Spec_Pg!$B$17=1,Historic_Flows!M36,IF(Spec_Pg!$B$17=2,'2035CT_Flows'!M36,NA())) -> 206 | AV30: =IF(Spec_Pg!$B$17=1,Historic_Flows!N36,IF(Spec_Pg!$B$17=2,'2035CT_Flows'!N36,NA())) -> 215 | AW30: 90.68 | AX30: =Available_Flow_Data!AD33 -> Balance | AZ30: 6396.4 | BB30: 1287
A31: 2008-10-25 | B31: 2008 | C31: 10 | D31: 25 | E31: =Available_Flow_Data!AB34 -> 0 | F31: =Available_Flow_Data!AA34 -> 0 | G31: =Available_Flow_Data!Z34 -> 0 | R31: 0 | S31: 0 | T31: 0 | X31: 60 | Y31: 0.9300000072 | Z31: =IF(Spec_Pg!$B$17=1,Historic_Flows!B37,IF(Spec_Pg!$B$17=2,'2035CT_Flows'!B37,NA())) -> 7758.461914 | AA31: 7759.391914 | AB31: =IF(Spec_Pg!$B$17=1,Historic_Flows!C37,IF(Spec_Pg!$B$17=2,'2035CT_Flows'!C37,NA())) -> 7765.47998 | AC31: =IF(Spec_Pg!$B$17=1,Historic_Flows!D37,IF(Spec_Pg!$B$17=2,'2035CT_Flows'!D37,NA())) -> 7568.407715 | AD31: =IF(Spec_Pg!$B$17=1,Historic_Flows!E37,IF(Spec_Pg!$B$17=2,'2035CT_Flows'!E37,NA())) -> 7595.498047 | AE31: =IF(Spec_Pg!$B$17=1,Historic_Flows!F37,IF(Spec_Pg!$B$17=2,'2035CT_Flows'!F37,NA())) -> 6553.338379 | AF31: =IF(Spec_Pg!$B$17=1,Historic_Flows!G37,IF(Spec_Pg!$B$17=2,'2035CT_Flows'!G37,NA())) -> 6421.947266 | AG31: =IF(Spec_Pg!$B$17=1,Historic_Flows!H37,IF(Spec_Pg!$B$17=2,'2035CT_Flows'!H37,NA())) -> 6437.313965 | AH31: 211.5833333 | AI31: =IF(Spec_Pg!$B$17=1,Historic_Flows!I37,IF(Spec_Pg!$B$17=2,'2035CT_Flows'!I37,NA())) -> 6462.758301 | AJ31: =IF(Spec_Pg!$B$17=1,Historic_Flows!J37,IF(Spec_Pg!$B$17=2,'2035CT_Flows'!J37,NA())) -> 6382.772461 | AK31: =IF(Spec_Pg!$B$17=1,Historic_Flows!K37,IF(Spec_Pg!$B$17=2,'2035CT_Flows'!K37,NA())) -> 6389.162598 | AL31: =IF(Spec_Pg!$B$17=1,Historic_Flows!L37,IF(Spec_Pg!$B$17=2,'2035CT_Flows'!L37,NA())) -> 0 | AM31: =IF(Spec_Pg!$B$17=1,Historic_Flows!O37,IF(Spec_Pg!$B$17=2,'2035CT_Flows'!O37,NA())) -> 7178 | AN31: 0 | AO31: 7178 | AP31: 7250 | AQ31: 7564.285714 | AR31: 7538.666667 | AS31: =IF(Spec_Pg!$B$17=1,Available_Flow_Data!AC34,IF(Spec_Pg!$B$17=2,'2035CT_Flows'!P37,NA())) -> 2566 | AT31: 2737.785714 | AU31: =IF(Spec_Pg!$B$17=1,Historic_Flows!M37,IF(Spec_Pg!$B$17=2,'2035CT_Flows'!M37,NA())) -> 105 | AV31: =IF(Spec_Pg!$B$17=1,Historic_Flows!N37,IF(Spec_Pg!$B$17=2,'2035CT_Flows'!N37,NA())) -> 130.25 | AW31: 90.78 | AX31: =Available_Flow_Data!AD34 -> Balance | AZ31: 6389.2 | BB31: 1287
A32: 2008-10-26 | B32: 2008 | C32: 10 | D32: 26 | E32: =Available_Flow_Data!AB35 -> 0 | F32: =Available_Flow_Data!AA35 -> 0 | G32: =Available_Flow_Data!Z35 -> 0 | R32: 0 | S32: 0 | T32: 0 | X32: 60 | Y32: 0.9300000072 | Z32: =IF(Spec_Pg!$B$17=1,Historic_Flows!B38,IF(Spec_Pg!$B$17=2,'2035CT_Flows'!B38,NA())) -> 7816.779297 | AA32: 7817.709297 | AB32: =IF(Spec_Pg!$B$17=1,Historic_Flows!C38,IF(Spec_Pg!$B$17=2,'2035CT_Flows'!C38,NA())) -> 7828.381348 | AC32: =IF(Spec_Pg!$B$17=1,Historic_Flows!D38,IF(Spec_Pg!$B$17=2,'2035CT_Flows'!D38,NA())) -> 7620.234375 | AD32: =IF(Spec_Pg!$B$17=1,Historic_Flows!E38,IF(Spec_Pg!$B$17=2,'2035CT_Flows'!E38,NA())) -> 7626.539551 | AE32: =IF(Spec_Pg!$B$17=1,Historic_Flows!F38,IF(Spec_Pg!$B$17=2,'2035CT_Flows'!F38,NA())) -> 6578.07373 | AF32: =IF(Spec_Pg!$B$17=1,Historic_Flows!G38,IF(Spec_Pg!$B$17=2,'2035CT_Flows'!G38,NA())) -> 6347.594238 | AG32: =IF(Spec_Pg!$B$17=1,Historic_Flows!H38,IF(Spec_Pg!$B$17=2,'2035CT_Flows'!H38,NA())) -> 6361.319824 | AH32: 223 | AI32: =IF(Spec_Pg!$B$17=1,Historic_Flows!I38,IF(Spec_Pg!$B$17=2,'2035CT_Flows'!I38,NA())) -> 6390.472168 | AJ32: =IF(Spec_Pg!$B$17=1,Historic_Flows!J38,IF(Spec_Pg!$B$17=2,'2035CT_Flows'!J38,NA())) -> 6319.716309 | AK32: =IF(Spec_Pg!$B$17=1,Historic_Flows!K38,IF(Spec_Pg!$B$17=2,'2035CT_Flows'!K38,NA())) -> 6335.280273 | AL32: =IF(Spec_Pg!$B$17=1,Historic_Flows!L38,IF(Spec_Pg!$B$17=2,'2035CT_Flows'!L38,NA())) -> 0 | AM32: =IF(Spec_Pg!$B$17=1,Historic_Flows!O38,IF(Spec_Pg!$B$17=2,'2035CT_Flows'!O38,NA())) -> 7045 | AN32: 0 | AO32: 7045 | AP32: 7010 | AQ32: 7552.857143 | AR32: 7453.333333 | AS32: =IF(Spec_Pg!$B$17=1,Available_Flow_Data!AC35,IF(Spec_Pg!$B$17=2,'2035CT_Flows'!P38,NA())) -> 2314 | AT32: 2664.571429 | AU32: =IF(Spec_Pg!$B$17=1,Historic_Flows!M38,IF(Spec_Pg!$B$17=2,'2035CT_Flows'!M38,NA())) -> 33.29999924 | AV32: =IF(Spec_Pg!$B$17=1,Historic_Flows!N38,IF(Spec_Pg!$B$17=2,'2035CT_Flows'!N38,NA())) -> 51.22499847 | AW32: 90.94 | AX32: =Available_Flow_Data!AD35 -> Balance | AZ32: 6335.3 | BB32: 1287
A33: 2008-10-27 | B33: 2008 | C33: 10 | D33: 27 | E33: =Available_Flow_Data!AB36 -> 0 | F33: =Available_Flow_Data!AA36 -> 0 | G33: =Available_Flow_Data!Z36 -> 0 | R33: 0 | S33: 0 | T33: 0 | X33: 60 | Y33: 0.9300000072 | Z33: =IF(Spec_Pg!$B$17=1,Historic_Flows!B39,IF(Spec_Pg!$B$17=2,'2035CT_Flows'!B39,NA())) -> 7913.514648 | AA33: 7914.444648 | AB33: =IF(Spec_Pg!$B$17=1,Historic_Flows!C39,IF(Spec_Pg!$B$17=2,'2035CT_Flows'!C39,NA())) -> 7927.345703 | AC33: =IF(Spec_Pg!$B$17=1,Historic_Flows!D39,IF(Spec_Pg!$B$17=2,'2035CT_Flows'!D39,NA())) -> 7713.581543 | AD33: =IF(Spec_Pg!$B$17=1,Historic_Flows!E39,IF(Spec_Pg!$B$17=2,'2035CT_Flows'!E39,NA())) -> 7706.438477 | AE33: =IF(Spec_Pg!$B$17=1,Historic_Flows!F39,IF(Spec_Pg!$B$17=2,'2035CT_Flows'!F39,NA())) -> 6653.086914 | AF33: =IF(Spec_Pg!$B$17=1,Historic_Flows!G39,IF(Spec_Pg!$B$17=2,'2035CT_Flows'!G39,NA())) -> 6343.759277 | AG33: =IF(Spec_Pg!$B$17=1,Historic_Flows!H39,IF(Spec_Pg!$B$17=2,'2035CT_Flows'!H39,NA())) -> 6344.466797 | AH33: 254.7826087 | AI33: =IF(Spec_Pg!$B$17=1,Historic_Flows!I39,IF(Spec_Pg!$B$17=2,'2035CT_Flows'!I39,NA())) -> 6353.04248 | AJ33: =IF(Spec_Pg!$B$17=1,Historic_Flows!J39,IF(Spec_Pg!$B$17=2,'2035CT_Flows'!J39,NA())) -> 6273.269531 | AK33: =IF(Spec_Pg!$B$17=1,Historic_Flows!K39,IF(Spec_Pg!$B$17=2,'2035CT_Flows'!K39,NA())) -> 6285.067383 | AL33: =IF(Spec_Pg!$B$17=1,Historic_Flows!L39,IF(Spec_Pg!$B$17=2,'2035CT_Flows'!L39,NA())) -> 0 | AM33: =IF(Spec_Pg!$B$17=1,Historic_Flows!O39,IF(Spec_Pg!$B$17=2,'2035CT_Flows'!O39,NA())) -> 7170 | AN33: 0 | AO33: 7170 | AP33: 6810 | AQ33: 7425.714286 | AR33: 7374.666667 | AS33: =IF(Spec_Pg!$B$17=1,Available_Flow_Data!AC36,IF(Spec_Pg!$B$17=2,'2035CT_Flows'!P39,NA())) -> 2216 | AT33: 2550.5 | AU33: =IF(Spec_Pg!$B$17=1,Historic_Flows!M39,IF(Spec_Pg!$B$17=2,'2035CT_Flows'!M39,NA())) -> 33.29999924 | AV33: =IF(Spec_Pg!$B$17=1,Historic_Flows!N39,IF(Spec_Pg!$B$17=2,'2035CT_Flows'!N39,NA())) -> 33.29999924 | AW33: 91.13 | AX33: =Available_Flow_Data!AD36 -> Balance | AZ33: 6285.1 | BB33: 1287
A34: 2008-10-28 | B34: 2008 | C34: 10 | D34: 28 | E34: =Available_Flow_Data!AB37 -> 0 | F34: =Available_Flow_Data!AA37 -> 0 | G34: =Available_Flow_Data!Z37 -> 0 | R34: 0 | S34: 0 | T34: 0 | X34: 60 | Y34: 0.9300000072 | Z34: =IF(Spec_Pg!$B$17=1,Historic_Flows!B40,IF(Spec_Pg!$B$17=2,'2035CT_Flows'!B40,NA())) -> 7928.098145 | AA34: 7929.028145 | AB34: =IF(Spec_Pg!$B$17=1,Historic_Flows!C40,IF(Spec_Pg!$B$17=2,'2035CT_Flows'!C40,NA())) -> 7936.370605 | AC34: =IF(Spec_Pg!$B$17=1,Historic_Flows!D40,IF(Spec_Pg!$B$17=2,'2035CT_Flows'!D40,NA())) -> 7735.411133 | AD34: =IF(Spec_Pg!$B$17=1,Historic_Flows!E40,IF(Spec_Pg!$B$17=2,'2035CT_Flows'!E40,NA())) -> 7745.880371 | AE34: =IF(Spec_Pg!$B$17=1,Historic_Flows!F40,IF(Spec_Pg!$B$17=2,'2035CT_Flows'!F40,NA())) -> 6696.574707 | AF34: =IF(Spec_Pg!$B$17=1,Historic_Flows!G40,IF(Spec_Pg!$B$17=2,'2035CT_Flows'!G40,NA())) -> 6433.819336 | AG34: =IF(Spec_Pg!$B$17=1,Historic_Flows!H40,IF(Spec_Pg!$B$17=2,'2035CT_Flows'!H40,NA())) -> 6417.194336 | AH34: 293.9583333 | AI34: =IF(Spec_Pg!$B$17=1,Historic_Flows!I40,IF(Spec_Pg!$B$17=2,'2035CT_Flows'!I40,NA())) -> 6392.306641 | AJ34: =IF(Spec_Pg!$B$17=1,Historic_Flows!J40,IF(Spec_Pg!$B$17=2,'2035CT_Flows'!J40,NA())) -> 6290.944336 | AK34: =IF(Spec_Pg!$B$17=1,Historic_Flows!K40,IF(Spec_Pg!$B$17=2,'2035CT_Flows'!K40,NA())) -> 6288.144043 | AL34: =IF(Spec_Pg!$B$17=1,Historic_Flows!L40,IF(Spec_Pg!$B$17=2,'2035CT_Flows'!L40,NA())) -> 0 | AM34: =IF(Spec_Pg!$B$17=1,Historic_Flows!O40,IF(Spec_Pg!$B$17=2,'2035CT_Flows'!O40,NA())) -> 7563 | AN34: 0 | AO34: 7563 | AP34: 7430 | AQ34: 7331.428571 | AR34: 7350 | AS34: =IF(Spec_Pg!$B$17=1,Available_Flow_Data!AC37,IF(Spec_Pg!$B$17=2,'2035CT_Flows'!P40,NA())) -> 3017 | AT34: 2508.642857 | AU34: =IF(Spec_Pg!$B$17=1,Historic_Flows!M40,IF(Spec_Pg!$B$17=2,'2035CT_Flows'!M40,NA())) -> 206 | AV34: =IF(Spec_Pg!$B$17=1,Historic_Flows!N40,IF(Spec_Pg!$B$17=2,'2035CT_Flows'!N40,NA())) -> 162.8249969 | AW34: 91.1 | AX34: =Available_Flow_Data!AD37 -> Balance | AZ34: 6357.5 | BB34: 1287
A35: 2008-10-29 | B35: 2008 | C35: 10 | D35: 29 | E35: =Available_Flow_Data!AB38 -> 0 | F35: =Available_Flow_Data!AA38 -> 0 | G35: =Available_Flow_Data!Z38 -> 0 | R35: 0 | S35: 0 | T35: 0 | X35: 60 | Y35: 0.8799999952 | Z35: =IF(Spec_Pg!$B$17=1,Historic_Flows!B41,IF(Spec_Pg!$B$17=2,'2035CT_Flows'!B41,NA())) -> 7834.317383 | AA35: 7835.197383 | AB35: =IF(Spec_Pg!$B$17=1,Historic_Flows!C41,IF(Spec_Pg!$B$17=2,'2035CT_Flows'!C41,NA())) -> 7835.817871 | AC35: =IF(Spec_Pg!$B$17=1,Historic_Flows!D41,IF(Spec_Pg!$B$17=2,'2035CT_Flows'!D41,NA())) -> 7651.162109 | AD35: =IF(Spec_Pg!$B$17=1,Historic_Flows!E41,IF(Spec_Pg!$B$17=2,'2035CT_Flows'!E41,NA())) -> 7691.945312 | AE35: =IF(Spec_Pg!$B$17=1,Historic_Flows!F41,IF(Spec_Pg!$B$17=2,'2035CT_Flows'!F41,NA())) -> 6651.977051 | AF35: =IF(Spec_Pg!$B$17=1,Historic_Flows!G41,IF(Spec_Pg!$B$17=2,'2035CT_Flows'!G41,NA())) -> 6526.670898 | AG35: =IF(Spec_Pg!$B$17=1,Historic_Flows!H41,IF(Spec_Pg!$B$17=2,'2035CT_Flows'!H41,NA())) -> 6509.530762 | AH35: 353 | AI35: =IF(Spec_Pg!$B$17=1,Historic_Flows!I41,IF(Spec_Pg!$B$17=2,'2035CT_Flows'!I41,NA())) -> 6474.63623 | AJ35: =IF(Spec_Pg!$B$17=1,Historic_Flows!J41,IF(Spec_Pg!$B$17=2,'2035CT_Flows'!J41,NA())) -> 6362.491211 | AK35: =IF(Spec_Pg!$B$17=1,Historic_Flows!K41,IF(Spec_Pg!$B$17=2,'2035CT_Flows'!K41,NA())) -> 6347.535156 | AL35: =IF(Spec_Pg!$B$17=1,Historic_Flows!L41,IF(Spec_Pg!$B$17=2,'2035CT_Flows'!L41,NA())) -> 0 | AM35: =IF(Spec_Pg!$B$17=1,Historic_Flows!O41,IF(Spec_Pg!$B$17=2,'2035CT_Flows'!O41,NA())) -> 7835 | AN35: 0 | AO35: 7835 | AP35: 7480 | AQ35: 7277.142857 | AR35: 7328 | AS35: =IF(Spec_Pg!$B$17=1,Available_Flow_Data!AC38,IF(Spec_Pg!$B$17=2,'2035CT_Flows'!P41,NA())) -> 3224 | AT35: 2509.642857 | AU35: =IF(Spec_Pg!$B$17=1,Historic_Flows!M41,IF(Spec_Pg!$B$17=2,'2035CT_Flows'!M41,NA())) -> 268 | AV35: =IF(Spec_Pg!$B$17=1,Historic_Flows!N41,IF(Spec_Pg!$B$17=2,'2035CT_Flows'!N41,NA())) -> 252.5 | AW35: 91.03 | AX35: =Available_Flow_Data!AD38 -> Balance | AZ35: 6624.6 | BB35: 1287
A36: 2008-10-30 | B36: 2008 | C36: 10 | D36: 30 | E36: =Available_Flow_Data!AB39 -> 0 | F36: =Available_Flow_Data!AA39 -> 0 | G36: =Available_Flow_Data!Z39 -> 0 | R36: 0 | S36: 0 | T36: 0 | X36: 60 | Y36: 1.029999971 | Z36: =IF(Spec_Pg!$B$17=1,Historic_Flows!B42,IF(Spec_Pg!$B$17=2,'2035CT_Flows'!B42,NA())) -> 7805.431641 | AA36: 7806.461641 | AB36: =IF(Spec_Pg!$B$17=1,Historic_Flows!C42,IF(Spec_Pg!$B$17=2,'2035CT_Flows'!C42,NA())) -> 7811.567871 | AC36: =IF(Spec_Pg!$B$17=1,Historic_Flows!D42,IF(Spec_Pg!$B$17=2,'2035CT_Flows'!D42,NA())) -> 7616.603027 | AD36: =IF(Spec_Pg!$B$17=1,Historic_Flows!E42,IF(Spec_Pg!$B$17=2,'2035CT_Flows'!E42,NA())) -> 7648.959473 | AE36: =IF(Spec_Pg!$B$17=1,Historic_Flows!F42,IF(Spec_Pg!$B$17=2,'2035CT_Flows'!F42,NA())) -> 6607.896484 | AF36: =IF(Spec_Pg!$B$17=1,Historic_Flows!G42,IF(Spec_Pg!$B$17=2,'2035CT_Flows'!G42,NA())) -> 6545.839355 | AG36: =IF(Spec_Pg!$B$17=1,Historic_Flows!H42,IF(Spec_Pg!$B$17=2,'2035CT_Flows'!H42,NA())) -> 6542.300781 | AH36: 398.6818182 | AI36: =IF(Spec_Pg!$B$17=1,Historic_Flows!I42,IF(Spec_Pg!$B$17=2,'2035CT_Flows'!I42,NA())) -> 6527.576172 | AJ36: =IF(Spec_Pg!$B$17=1,Historic_Flows!J42,IF(Spec_Pg!$B$17=2,'2035CT_Flows'!J42,NA())) -> 6427.56543 | AK36: =IF(Spec_Pg!$B$17=1,Historic_Flows!K42,IF(Spec_Pg!$B$17=2,'2035CT_Flows'!K42,NA())) -> 6414.179199 | AL36: =IF(Spec_Pg!$B$17=1,Historic_Flows!L42,IF(Spec_Pg!$B$17=2,'2035CT_Flows'!L42,NA())) -> 0 | AM36: =IF(Spec_Pg!$B$17=1,Historic_Flows!O42,IF(Spec_Pg!$B$17=2,'2035CT_Flows'!O42,NA())) -> 7973 | AN36: 0 | AO36: 7973 | AP36: 7600 | AQ36: 7285.714286 | AR36: 7328 | AS36: =IF(Spec_Pg!$B$17=1,Available_Flow_Data!AC39,IF(Spec_Pg!$B$17=2,'2035CT_Flows'!P42,NA())) -> 5111 | AT36: 2700.5 | AU36: =IF(Spec_Pg!$B$17=1,Historic_Flows!M42,IF(Spec_Pg!$B$17=2,'2035CT_Flows'!M42,NA())) -> 216 | AV36: =IF(Spec_Pg!$B$17=1,Historic_Flows!N42,IF(Spec_Pg!$B$17=2,'2035CT_Flows'!N42,NA())) -> 229 | AW36: 90.67 | AX36: =Available_Flow_Data!AD39 -> Balance | AZ36: 6750.8 | BB36: 1287
A37: 2008-10-31 | B37: 2008 | C37: 10 | D37: 31 | E37: =Available_Flow_Data!AB40 -> 0 | F37: =Available_Flow_Data!AA40 -> 0 | G37: =Available_Flow_Data!Z40 -> 0 | R37: 0 | S37: 0 | T37: 0 | X37: 60 | Y37: 2.650000095 | Z37: =IF(Spec_Pg!$B$17=1,Historic_Flows!B43,IF(Spec_Pg!$B$17=2,'2035CT_Flows'!B43,NA())) -> 7692.954102 | AA37: 7695.604102 | AB37: =IF(Spec_Pg!$B$17=1,Historic_Flows!C43,IF(Spec_Pg!$B$17=2,'2035CT_Flows'!C43,NA())) -> 7684.680664 | AC37: =IF(Spec_Pg!$B$17=1,Historic_Flows!D43,IF(Spec_Pg!$B$17=2,'2035CT_Flows'!D43,NA())) -> 7521.940918 | AD37: =IF(Spec_Pg!$B$17=1,Historic_Flows!E43,IF(Spec_Pg!$B$17=2,'2035CT_Flows'!E43,NA())) -> 7651.67627 | AE37: =IF(Spec_Pg!$B$17=1,Historic_Flows!F43,IF(Spec_Pg!$B$17=2,'2035CT_Flows'!F43,NA())) -> 6642.617188 | AF37: =IF(Spec_Pg!$B$17=1,Historic_Flows!G43,IF(Spec_Pg!$B$17=2,'2035CT_Flows'!G43,NA())) -> 6563.146973 | AG37: =IF(Spec_Pg!$B$17=1,Historic_Flows!H43,IF(Spec_Pg!$B$17=2,'2035CT_Flows'!H43,NA())) -> 6559.95166 | AH37: 441.8095238 | AI37: =IF(Spec_Pg!$B$17=1,Historic_Flows!I43,IF(Spec_Pg!$B$17=2,'2035CT_Flows'!I43,NA())) -> 6552.583496 | AJ37: =IF(Spec_Pg!$B$17=1,Historic_Flows!J43,IF(Spec_Pg!$B$17=2,'2035CT_Flows'!J43,NA())) -> 6464.852539 | AK37: =IF(Spec_Pg!$B$17=1,Historic_Flows!K43,IF(Spec_Pg!$B$17=2,'2035CT_Flows'!K43,NA())) -> 6457.888672 | AL37: =IF(Spec_Pg!$B$17=1,Historic_Flows!L43,IF(Spec_Pg!$B$17=2,'2035CT_Flows'!L43,NA())) -> 0 | AM37: =IF(Spec_Pg!$B$17=1,Historic_Flows!O43,IF(Spec_Pg!$B$17=2,'2035CT_Flows'!O43,NA())) -> 8340 | AN37: 0 | AO37: 8340 | AP37: 8080 | AQ37: 7380 | AR37: 7394 | AS37: =IF(Spec_Pg!$B$17=1,Available_Flow_Data!AC40,IF(Spec_Pg!$B$17=2,'2035CT_Flows'!P43,NA())) -> 6521 | AT37: 3050.5 | AU37: =IF(Spec_Pg!$B$17=1,Historic_Flows!M43,IF(Spec_Pg!$B$17=2,'2035CT_Flows'!M43,NA())) -> 162 | AV37: =IF(Spec_Pg!$B$17=1,Historic_Flows!N43,IF(Spec_Pg!$B$17=2,'2035CT_Flows'!N43,NA())) -> 175.5 | AW37: 90.17 | AX37: =Available_Flow_Data!AD40 -> Balance | AZ37: 7096.4 | BB37: 1287
A38: 2008-11-01 | B38: 2008 | C38: 11 | D38: 1 | E38: =Available_Flow_Data!AB41 -> 0 | F38: =Available_Flow_Data!AA41 -> 0 | G38: =Available_Flow_Data!Z41 -> 0 | R38: 0 | S38: 0 | T38: 0 | X38: 60 | Y38: 40.79000092 | Z38: =IF(Spec_Pg!$B$17=1,Historic_Flows!B44,IF(Spec_Pg!$B$17=2,'2035CT_Flows'!B44,NA())) -> 7383.885742 | AA38: 7424.675743 | AB38: =IF(Spec_Pg!$B$17=1,Historic_Flows!C44,IF(Spec_Pg!$B$17=2,'2035CT_Flows'!C44,NA())) -> 7339.668457 | AC38: =IF(Spec_Pg!$B$17=1,Historic_Flows!D44,IF(Spec_Pg!$B$17=2,'2035CT_Flows'!D44,NA())) -> 7428.022461 | AD38: =IF(Spec_Pg!$B$17=1,Historic_Flows!E44,IF(Spec_Pg!$B$17=2,'2035CT_Flows'!E44,NA())) -> 7916.149414 | AE38: =IF(Spec_Pg!$B$17=1,Historic_Flows!F44,IF(Spec_Pg!$B$17=2,'2035CT_Flows'!F44,NA())) -> 7882.416016 | AF38: =IF(Spec_Pg!$B$17=1,Historic_Flows!G44,IF(Spec_Pg!$B$17=2,'2035CT_Flows'!G44,NA())) -> 7291.68457 | AG38: =IF(Spec_Pg!$B$17=1,Historic_Flows!H44,IF(Spec_Pg!$B$17=2,'2035CT_Flows'!H44,NA())) -> 7157.196777 | AH38: 537.7619048 | AI38: =IF(Spec_Pg!$B$17=1,Historic_Flows!I44,IF(Spec_Pg!$B$17=2,'2035CT_Flows'!I44,NA())) -> 6947.113281 | AJ38: =IF(Spec_Pg!$B$17=1,Historic_Flows!J44,IF(Spec_Pg!$B$17=2,'2035CT_Flows'!J44,NA())) -> 6751.328613 | AK38: =IF(Spec_Pg!$B$17=1,Historic_Flows!K44,IF(Spec_Pg!$B$17=2,'2035CT_Flows'!K44,NA())) -> 6700.239746 | AL38: =IF(Spec_Pg!$B$17=1,Historic_Flows!L44,IF(Spec_Pg!$B$17=2,'2035CT_Flows'!L44,NA())) -> 0 | AM38: =IF(Spec_Pg!$B$17=1,Historic_Flows!O44,IF(Spec_Pg!$B$17=2,'2035CT_Flows'!O44,NA())) -> 9752 | AN38: 0 | AO38: 9752 | AP38: 9660 | AQ38: 7724.285714 | AR38: 7574.666667 | AS38: =IF(Spec_Pg!$B$17=1,Available_Flow_Data!AC41,IF(Spec_Pg!$B$17=2,'2035CT_Flows'!P44,NA())) -> 13115 | AT38: 3906.571429 | AU38: =IF(Spec_Pg!$B$17=1,Historic_Flows!M44,IF(Spec_Pg!$B$17=2,'2035CT_Flows'!M44,NA())) -> 68 | AV38: =IF(Spec_Pg!$B$17=1,Historic_Flows!N44,IF(Spec_Pg!$B$17=2,'2035CT_Flows'!N44,NA())) -> 91.5 | AW38: 89.25 | AX38: =Available_Flow_Data!AD41 -> Balance | AZ38: 8454 | BB38: 1266
A39: 2008-11-02 | B39: 2008 | C39: 11 | D39: 2 | E39: =Available_Flow_Data!AB42 -> 0 | F39: =Available_Flow_Data!AA42 -> 0 | G39: =Available_Flow_Data!Z42 -> 0 | R39: 0 | S39: 0 | T39: 0 | X39: 60 | Y39: 33.41999817 | Z39: =IF(Spec_Pg!$B$17=1,Historic_Flows!B45,IF(Spec_Pg!$B$17=2,'2035CT_Flows'!B45,NA())) -> 7427.466797 | AA39: 7460.886795 | AB39: =IF(Spec_Pg!$B$17=1,Historic_Flows!C45,IF(Spec_Pg!$B$17=2,'2035CT_Flows'!C45,NA())) -> 7412.316406 | AC39: =IF(Spec_Pg!$B$17=1,Historic_Flows!D45,IF(Spec_Pg!$B$17=2,'2035CT_Flows'!D45,NA())) -> 7423.716309 | AD39: =IF(Spec_Pg!$B$17=1,Historic_Flows!E45,IF(Spec_Pg!$B$17=2,'2035CT_Flows'!E45,NA())) -> 8064.595703 | AE39: =IF(Spec_Pg!$B$17=1,Historic_Flows!F45,IF(Spec_Pg!$B$17=2,'2035CT_Flows'!F45,NA())) -> 7919.369141 | AF39: =IF(Spec_Pg!$B$17=1,Historic_Flows!G45,IF(Spec_Pg!$B$17=2,'2035CT_Flows'!G45,NA())) -> 7690.644043 | AG39: =IF(Spec_Pg!$B$17=1,Historic_Flows!H45,IF(Spec_Pg!$B$17=2,'2035CT_Flows'!H45,NA())) -> 7616.996094 | AH39: 618.4090909 | AI39: =IF(Spec_Pg!$B$17=1,Historic_Flows!I45,IF(Spec_Pg!$B$17=2,'2035CT_Flows'!I45,NA())) -> 7435.04834 | AJ39: =IF(Spec_Pg!$B$17=1,Historic_Flows!J45,IF(Spec_Pg!$B$17=2,'2035CT_Flows'!J45,NA())) -> 7212.970703 | AK39: =IF(Spec_Pg!$B$17=1,Historic_Flows!K45,IF(Spec_Pg!$B$17=2,'2035CT_Flows'!K45,NA())) -> 7121.679199 | AL39: =IF(Spec_Pg!$B$17=1,Historic_Flows!L45,IF(Spec_Pg!$B$17=2,'2035CT_Flows'!L45,NA())) -> 0 | AM39: =IF(Spec_Pg!$B$17=1,Historic_Flows!O45,IF(Spec_Pg!$B$17=2,'2035CT_Flows'!O45,NA())) -> 11821 | AN39: 0 | AO39: 11821 | AP39: 12500 | AQ39: 8508.571429 | AR39: 7968 | AS39: =IF(Spec_Pg!$B$17=1,Available_Flow_Data!AC42,IF(Spec_Pg!$B$17=2,'2035CT_Flows'!P45,NA())) -> 16321 | AT39: 4929.857143 | AU39: =IF(Spec_Pg!$B$17=1,Historic_Flows!M45,IF(Spec_Pg!$B$17=2,'2035CT_Flows'!M45,NA())) -> 35 | AV39: =IF(Spec_Pg!$B$17=1,Historic_Flows!N45,IF(Spec_Pg!$B$17=2,'2035CT_Flows'!N45,NA())) -> 43.25 | AW39: 88.24 | AX39: =Available_Flow_Data!AD42 -> Balance | AZ39: 10380.9 | BB39: 1266
A40: 2008-11-03 | B40: 2008 | C40: 11 | D40: 3 | E40: =Available_Flow_Data!AB43 -> 0 | F40: =Available_Flow_Data!AA43 -> 0 | G40: =Available_Flow_Data!Z43 -> 0 | R40: 0 | S40: 0 | T40: 0 | X40: 60 | Y40: 27.03000069 | Z40: =IF(Spec_Pg!$B$17=1,Historic_Flows!B46,IF(Spec_Pg!$B$17=2,'2035CT_Flows'!B46,NA())) -> 7646.780273 | AA40: 7673.810274 | AB40: =IF(Spec_Pg!$B$17=1,Historic_Flows!C46,IF(Spec_Pg!$B$17=2,'2035CT_Flows'!C46,NA())) -> 7634.22998 | AC40: =IF(Spec_Pg!$B$17=1,Historic_Flows!D46,IF(Spec_Pg!$B$17=2,'2035CT_Flows'!D46,NA())) -> 7624.358398 | AD40: =IF(Spec_Pg!$B$17=1,Historic_Flows!E46,IF(Spec_Pg!$B$17=2,'2035CT_Flows'!E46,NA())) -> 8225.504883 | AE40: =IF(Spec_Pg!$B$17=1,Historic_Flows!F46,IF(Spec_Pg!$B$17=2,'2035CT_Flows'!F46,NA())) -> 8093.22168 | AF40: =IF(Spec_Pg!$B$17=1,Historic_Flows!G46,IF(Spec_Pg!$B$17=2,'2035CT_Flows'!G46,NA())) -> 7859.969238 | AG40: =IF(Spec_Pg!$B$17=1,Historic_Flows!H46,IF(Spec_Pg!$B$17=2,'2035CT_Flows'!H46,NA())) -> 7828.711914 | AH40: 581.9166667 | AI40: =IF(Spec_Pg!$B$17=1,Historic_Flows!I46,IF(Spec_Pg!$B$17=2,'2035CT_Flows'!I46,NA())) -> 7738.262207 | AJ40: =IF(Spec_Pg!$B$17=1,Historic_Flows!J46,IF(Spec_Pg!$B$17=2,'2035CT_Flows'!J46,NA())) -> 7572.160645 | AK40: =IF(Spec_Pg!$B$17=1,Historic_Flows!K46,IF(Spec_Pg!$B$17=2,'2035CT_Flows'!K46,NA())) -> 7504.509766 | AL40: =IF(Spec_Pg!$B$17=1,Historic_Flows!L46,IF(Spec_Pg!$B$17=2,'2035CT_Flows'!L46,NA())) -> 0 | AM40: =IF(Spec_Pg!$B$17=1,Historic_Flows!O46,IF(Spec_Pg!$B$17=2,'2035CT_Flows'!O46,NA())) -> 12742 | AN40: 0 | AO40: 12742 | AP40: 12300 | AQ40: 9292.857143 | AR40: 8315.333333 | AS40: =IF(Spec_Pg!$B$17=1,Available_Flow_Data!AC43,IF(Spec_Pg!$B$17=2,'2035CT_Flows'!P46,NA())) -> 17417 | AT40: 5972.214286 | AU40: =IF(Spec_Pg!$B$17=1,Historic_Flows!M46,IF(Spec_Pg!$B$17=2,'2035CT_Flows'!M46,NA())) -> 34 | AV40: =IF(Spec_Pg!$B$17=1,Historic_Flows!N46,IF(Spec_Pg!$B$17=2,'2035CT_Flows'!N46,NA())) -> 34.25 | AW40: 87.24 | AX40: =Available_Flow_Data!AD43 -> Balance | AZ40: 11345.8 | BB40: 1266
A41: 2008-11-04 | B41: 2008 | C41: 11 | D41: 4 | E41: =Available_Flow_Data!AB44 -> 0 | F41: =Available_Flow_Data!AA44 -> 0 | G41: =Available_Flow_Data!Z44 -> 0 | R41: 0 | S41: 0 | T41: 0 | X41: 60 | Y41: 26.54000092 | Z41: =IF(Spec_Pg!$B$17=1,Historic_Flows!B47,IF(Spec_Pg!$B$17=2,'2035CT_Flows'!B47,NA())) -> 7786.937988 | AA41: 7813.477989 | AB41: =IF(Spec_Pg!$B$17=1,Historic_Flows!C47,IF(Spec_Pg!$B$17=2,'2035CT_Flows'!C47,NA())) -> 7771.608887 | AC41: =IF(Spec_Pg!$B$17=1,Historic_Flows!D47,IF(Spec_Pg!$B$17=2,'2035CT_Flows'!D47,NA())) -> 7766.610352 | AD41: =IF(Spec_Pg!$B$17=1,Historic_Flows!E47,IF(Spec_Pg!$B$17=2,'2035CT_Flows'!E47,NA())) -> 8281.689453 | AE41: =IF(Spec_Pg!$B$17=1,Historic_Flows!F47,IF(Spec_Pg!$B$17=2,'2035CT_Flows'!F47,NA())) -> 8154.340332 | AF41: =IF(Spec_Pg!$B$17=1,Historic_Flows!G47,IF(Spec_Pg!$B$17=2,'2035CT_Flows'!G47,NA())) -> 7958.955078 | AG41: =IF(Spec_Pg!$B$17=1,Historic_Flows!H47,IF(Spec_Pg!$B$17=2,'2035CT_Flows'!H47,NA())) -> 7940.682129 | AH41: 544.0434783 | AI41: =IF(Spec_Pg!$B$17=1,Historic_Flows!I47,IF(Spec_Pg!$B$17=2,'2035CT_Flows'!I47,NA())) -> 7893.868652 | AJ41: =IF(Spec_Pg!$B$17=1,Historic_Flows!J47,IF(Spec_Pg!$B$17=2,'2035CT_Flows'!J47,NA())) -> 7773.855469 | AK41: =IF(Spec_Pg!$B$17=1,Historic_Flows!K47,IF(Spec_Pg!$B$17=2,'2035CT_Flows'!K47,NA())) -> 7741.988281 | AL41: =IF(Spec_Pg!$B$17=1,Historic_Flows!L47,IF(Spec_Pg!$B$17=2,'2035CT_Flows'!L47,NA())) -> 0 | AM41: =IF(Spec_Pg!$B$17=1,Historic_Flows!O47,IF(Spec_Pg!$B$17=2,'2035CT_Flows'!O47,NA())) -> 13017 | AN41: 0 | AO41: 13017 | AP41: 14100 | AQ41: 10245.71429 | AR41: 8742 | AS41: =IF(Spec_Pg!$B$17=1,Available_Flow_Data!AC44,IF(Spec_Pg!$B$17=2,'2035CT_Flows'!P47,NA())) -> 15170 | AT41: 6817.071429 | AU41: =IF(Spec_Pg!$B$17=1,Historic_Flows!M47,IF(Spec_Pg!$B$17=2,'2035CT_Flows'!M47,NA())) -> 35 | AV41: =IF(Spec_Pg!$B$17=1,Historic_Flows!N47,IF(Spec_Pg!$B$17=2,'2035CT_Flows'!N47,NA())) -> 34.75 | AW41: 86.38 | AX41: =Available_Flow_Data!AD44 -> Balance | AZ41: 11742.9 | BB41: 1266
A42: 2008-11-05 | B42: 2008 | C42: 11 | D42: 5 | E42: =Available_Flow_Data!AB45 -> 0 | F42: =Available_Flow_Data!AA45 -> 0 | G42: =Available_Flow_Data!Z45 -> 0 | R42: 0 | S42: 0 | T42: 0 | X42: 60 | Y42: 10.31999969 | Z42: =IF(Spec_Pg!$B$17=1,Historic_Flows!B48,IF(Spec_Pg!$B$17=2,'2035CT_Flows'!B48,NA())) -> 7273.294922 | AA42: 7283.614922 | AB42: =IF(Spec_Pg!$B$17=1,Historic_Flows!C48,IF(Spec_Pg!$B$17=2,'2035CT_Flows'!C48,NA())) -> 7196.40918 | AC42: =IF(Spec_Pg!$B$17=1,Historic_Flows!D48,IF(Spec_Pg!$B$17=2,'2035CT_Flows'!D48,NA())) -> 7342.02832 | AD42: =IF(Spec_Pg!$B$17=1,Historic_Flows!E48,IF(Spec_Pg!$B$17=2,'2035CT_Flows'!E48,NA())) -> 8090.989746 | AE42: =IF(Spec_Pg!$B$17=1,Historic_Flows!F48,IF(Spec_Pg!$B$17=2,'2035CT_Flows'!F48,NA())) -> 8140.441406 | AF42: =IF(Spec_Pg!$B$17=1,Historic_Flows!G48,IF(Spec_Pg!$B$17=2,'2035CT_Flows'!G48,NA())) -> 8077.40918 | AG42: =IF(Spec_Pg!$B$17=1,Historic_Flows!H48,IF(Spec_Pg!$B$17=2,'2035CT_Flows'!H48,NA())) -> 8055.54248 | AH42: 526.75 | AI42: =IF(Spec_Pg!$B$17=1,Historic_Flows!I48,IF(Spec_Pg!$B$17=2,'2035CT_Flows'!I48,NA())) -> 8011.285156 | AJ42: =IF(Spec_Pg!$B$17=1,Historic_Flows!J48,IF(Spec_Pg!$B$17=2,'2035CT_Flows'!J48,NA())) -> 7904.866211 | AK42: =IF(Spec_Pg!$B$17=1,Historic_Flows!K48,IF(Spec_Pg!$B$17=2,'2035CT_Flows'!K48,NA())) -> 7887.867188 | AL42: =IF(Spec_Pg!$B$17=1,Historic_Flows!L48,IF(Spec_Pg!$B$17=2,'2035CT_Flows'!L48,NA())) -> 0 | AM42: =IF(Spec_Pg!$B$17=1,Historic_Flows!O48,IF(Spec_Pg!$B$17=2,'2035CT_Flows'!O48,NA())) -> 12863 | AN42: 0 | AO42: 12863 | AP42: 14000 | AQ42: 11177.14286 | AR42: 9136 | AS42: =IF(Spec_Pg!$B$17=1,Available_Flow_Data!AC45,IF(Spec_Pg!$B$17=2,'2035CT_Flows'!P48,NA())) -> 14382 | AT42: 7626.357143 | AU42: =IF(Spec_Pg!$B$17=1,Historic_Flows!M48,IF(Spec_Pg!$B$17=2,'2035CT_Flows'!M48,NA())) -> 39 | AV42: =IF(Spec_Pg!$B$17=1,Historic_Flows!N48,IF(Spec_Pg!$B$17=2,'2035CT_Flows'!N48,NA())) -> 38 | AW42: 85.61 | AX42: =Available_Flow_Data!AD45 -> Balance | AZ42: 11647.3 | BB42: 1266
A43: 2008-11-06 | B43: 2008 | C43: 11 | D43: 6 | E43: =Available_Flow_Data!AB46 -> 0 | F43: =Available_Flow_Data!AA46 -> 0 | G43: =Available_Flow_Data!Z46 -> 0 | R43: 0 | S43: 0 | T43: 0 | X43: 60 | Y43: 7.369999886 | Z43: =IF(Spec_Pg!$B$17=1,Historic_Flows!B49,IF(Spec_Pg!$B$17=2,'2035CT_Flows'!B49,NA())) -> 6718.125488 | AA43: 6725.495488 | AB43: =IF(Spec_Pg!$B$17=1,Historic_Flows!C49,IF(Spec_Pg!$B$17=2,'2035CT_Flows'!C49,NA())) -> 6682.825684 | AC43: =IF(Spec_Pg!$B$17=1,Historic_Flows!D49,IF(Spec_Pg!$B$17=2,'2035CT_Flows'!D49,NA())) -> 6738.924805 | AD43: =IF(Spec_Pg!$B$17=1,Historic_Flows!E49,IF(Spec_Pg!$B$17=2,'2035CT_Flows'!E49,NA())) -> 7157.801758 | AE43: =IF(Spec_Pg!$B$17=1,Historic_Flows!F49,IF(Spec_Pg!$B$17=2,'2035CT_Flows'!F49,NA())) -> 7120.739258 | AF43: =IF(Spec_Pg!$B$17=1,Historic_Flows!G49,IF(Spec_Pg!$B$17=2,'2035CT_Flows'!G49,NA())) -> 7451.176758 | AG43: =IF(Spec_Pg!$B$17=1,Historic_Flows!H49,IF(Spec_Pg!$B$17=2,'2035CT_Flows'!H49,NA())) -> 7566.779297 | AH43: 484.952381 | AI43: =IF(Spec_Pg!$B$17=1,Historic_Flows!I49,IF(Spec_Pg!$B$17=2,'2035CT_Flows'!I49,NA())) -> 7734.161621 | AJ43: =IF(Spec_Pg!$B$17=1,Historic_Flows!J49,IF(Spec_Pg!$B$17=2,'2035CT_Flows'!J49,NA())) -> 7744.736328 | AK43: =IF(Spec_Pg!$B$17=1,Historic_Flows!K49,IF(Spec_Pg!$B$17=2,'2035CT_Flows'!K49,NA())) -> 7793.821777 | AL43: =IF(Spec_Pg!$B$17=1,Historic_Flows!L49,IF(Spec_Pg!$B$17=2,'2035CT_Flows'!L49,NA())) -> 0 | AM43: =IF(Spec_Pg!$B$17=1,Historic_Flows!O49,IF(Spec_Pg!$B$17=2,'2035CT_Flows'!O49,NA())) -> 12483 | AN43: 0 | AO43: 12483 | AP43: 13400 | AQ43: 12005.71429 | AR43: 9505.333333 | AS43: =IF(Spec_Pg!$B$17=1,Available_Flow_Data!AC46,IF(Spec_Pg!$B$17=2,'2035CT_Flows'!P49,NA())) -> 7869 | AT43: 7999.857143 | AU43: =IF(Spec_Pg!$B$17=1,Historic_Flows!M49,IF(Spec_Pg!$B$17=2,'2035CT_Flows'!M49,NA())) -> 39 | AV43: =IF(Spec_Pg!$B$17=1,Historic_Flows!N49,IF(Spec_Pg!$B$17=2,'2035CT_Flows'!N49,NA())) -> 39 | AW43: 85.27 | AX43: =Available_Flow_Data!AD46 -> Balance | AZ43: 11230.9 | BB43: 1266
A44: 2008-11-07 | B44: 2008 | C44: 11 | D44: 7 | E44: =Available_Flow_Data!AB47 -> 0 | F44: =Available_Flow_Data!AA47 -> 0 | G44: =Available_Flow_Data!Z47 -> 0 | R44: 0 | S44: 0 | T44: 0 | X44: 60 | Y44: 5.900000095 | Z44: =IF(Spec_Pg!$B$17=1,Historic_Flows!B50,IF(Spec_Pg!$B$17=2,'2035CT_Flows'!B50,NA())) -> 6351.075684 | AA44: 6356.975684 | AB44: =IF(Spec_Pg!$B$17=1,Historic_Flows!C50,IF(Spec_Pg!$B$17=2,'2035CT_Flows'!C50,NA())) -> 6326.069336 | AC44: =IF(Spec_Pg!$B$17=1,Historic_Flows!D50,IF(Spec_Pg!$B$17=2,'2035CT_Flows'!D50,NA())) -> 6358.001953 | AD44: =IF(Spec_Pg!$B$17=1,Historic_Flows!E50,IF(Spec_Pg!$B$17=2,'2035CT_Flows'!E50,NA())) -> 6652.17627 | AE44: =IF(Spec_Pg!$B$17=1,Historic_Flows!F50,IF(Spec_Pg!$B$17=2,'2035CT_Flows'!F50,NA())) -> 6591.219727 | AF44: =IF(Spec_Pg!$B$17=1,Historic_Flows!G50,IF(Spec_Pg!$B$17=2,'2035CT_Flows'!G50,NA())) -> 6743.182617 | AG44: =IF(Spec_Pg!$B$17=1,Historic_Flows!H50,IF(Spec_Pg!$B$17=2,'2035CT_Flows'!H50,NA())) -> 6873.878418 | AH44: 535.6818182 | AI44: =IF(Spec_Pg!$B$17=1,Historic_Flows!I50,IF(Spec_Pg!$B$17=2,'2035CT_Flows'!I50,NA())) -> 7133.757812 | AJ44: =IF(Spec_Pg!$B$17=1,Historic_Flows!J50,IF(Spec_Pg!$B$17=2,'2035CT_Flows'!J50,NA())) -> 7243.212891 | AK44: =IF(Spec_Pg!$B$17=1,Historic_Flows!K50,IF(Spec_Pg!$B$17=2,'2035CT_Flows'!K50,NA())) -> 7369.86084 | AL44: =IF(Spec_Pg!$B$17=1,Historic_Flows!L50,IF(Spec_Pg!$B$17=2,'2035CT_Flows'!L50,NA())) -> 0 | AM44: =IF(Spec_Pg!$B$17=1,Historic_Flows!O50,IF(Spec_Pg!$B$17=2,'2035CT_Flows'!O50,NA())) -> 11846 | AN44: 0 | AO44: 11846 | AP44: 12700 | AQ44: 12665.71429 | AR44: 9849.333333 | AS44: =IF(Spec_Pg!$B$17=1,Available_Flow_Data!AC47,IF(Spec_Pg!$B$17=2,'2035CT_Flows'!P50,NA())) -> 6167 | AT44: 8243.571429 | AU44: =IF(Spec_Pg!$B$17=1,Historic_Flows!M50,IF(Spec_Pg!$B$17=2,'2035CT_Flows'!M50,NA())) -> 32 | AV44: =IF(Spec_Pg!$B$17=1,Historic_Flows!N50,IF(Spec_Pg!$B$17=2,'2035CT_Flows'!N50,NA())) -> 33.75 | AW44: 85.1 | AX44: =Available_Flow_Data!AD47 -> Balance | AZ44: 10556.1 | BB44: 1266
A45: 2008-11-08 | B45: 2008 | C45: 11 | D45: 8 | E45: =Available_Flow_Data!AB48 -> 0 | F45: =Available_Flow_Data!AA48 -> 0 | G45: =Available_Flow_Data!Z48 -> 0 | R45: 0 | S45: 0 | T45: 0 | X45: 60 | Y45: 5.409999847 | Z45: =IF(Spec_Pg!$B$17=1,Historic_Flows!B51,IF(Spec_Pg!$B$17=2,'2035CT_Flows'!B51,NA())) -> 6255.725586 | AA45: 6261.135586 | AB45: =IF(Spec_Pg!$B$17=1,Historic_Flows!C51,IF(Spec_Pg!$B$17=2,'2035CT_Flows'!C51,NA())) -> 6230.324219 | AC45: =IF(Spec_Pg!$B$17=1,Historic_Flows!D51,IF(Spec_Pg!$B$17=2,'2035CT_Flows'!D51,NA())) -> 6267.540527 | AD45: =IF(Spec_Pg!$B$17=1,Historic_Flows!E51,IF(Spec_Pg!$B$17=2,'2035CT_Flows'!E51,NA())) -> 6614.743652 | AE45: =IF(Spec_Pg!$B$17=1,Historic_Flows!F51,IF(Spec_Pg!$B$17=2,'2035CT_Flows'!F51,NA())) -> 6621.126465 | AF45: =IF(Spec_Pg!$B$17=1,Historic_Flows!G51,IF(Spec_Pg!$B$17=2,'2035CT_Flows'!G51,NA())) -> 6548.572266 | AG45: =IF(Spec_Pg!$B$17=1,Historic_Flows!H51,IF(Spec_Pg!$B$17=2,'2035CT_Flows'!H51,NA())) -> 6584.497559 | AH45: 533.3333333 | AI45: =IF(Spec_Pg!$B$17=1,Historic_Flows!I51,IF(Spec_Pg!$B$17=2,'2035CT_Flows'!I51,NA())) -> 6710.208008 | AJ45: =IF(Spec_Pg!$B$17=1,Historic_Flows!J51,IF(Spec_Pg!$B$17=2,'2035CT_Flows'!J51,NA())) -> 6771.357422 | AK45: =IF(Spec_Pg!$B$17=1,Historic_Flows!K51,IF(Spec_Pg!$B$17=2,'2035CT_Flows'!K51,NA())) -> 6891.133301 | AL45: =IF(Spec_Pg!$B$17=1,Historic_Flows!L51,IF(Spec_Pg!$B$17=2,'2035CT_Flows'!L51,NA())) -> 0 | AM45: =IF(Spec_Pg!$B$17=1,Historic_Flows!O51,IF(Spec_Pg!$B$17=2,'2035CT_Flows'!O51,NA())) -> 10842 | AN45: 0 | AO45: 10842 | AP45: 11300 | AQ45: 12900 | AR45: 10108 | AS45: =IF(Spec_Pg!$B$17=1,Available_Flow_Data!AC48,IF(Spec_Pg!$B$17=2,'2035CT_Flows'!P51,NA())) -> 3824 | AT45: 8333.428571 | AU45: =IF(Spec_Pg!$B$17=1,Historic_Flows!M51,IF(Spec_Pg!$B$17=2,'2035CT_Flows'!M51,NA())) -> 29 | AV45: =IF(Spec_Pg!$B$17=1,Historic_Flows!N51,IF(Spec_Pg!$B$17=2,'2035CT_Flows'!N51,NA())) -> 29.75 | AW45: 85.25 | AX45: =Available_Flow_Data!AD48 -> Balance | AZ45: 9589.7 | BB45: 1266
A46: 2008-11-09 | B46: 2008 | C46: 11 | D46: 9 | E46: =Available_Flow_Data!AB49 -> 0 | F46: =Available_Flow_Data!AA49 -> 0 | G46: =Available_Flow_Data!Z49 -> 0 | R46: 0 | S46: 0 | T46: 0 | X46: 60 | Y46: 5.409999847 | Z46: =IF(Spec_Pg!$B$17=1,Historic_Flows!B52,IF(Spec_Pg!$B$17=2,'2035CT_Flows'!B52,NA())) -> 6161.689453 | AA46: 6167.099453 | AB46: =IF(Spec_Pg!$B$17=1,Historic_Flows!C52,IF(Spec_Pg!$B$17=2,'2035CT_Flows'!C52,NA())) -> 6139.782715 | AC46: =IF(Spec_Pg!$B$17=1,Historic_Flows!D52,IF(Spec_Pg!$B$17=2,'2035CT_Flows'!D52,NA())) -> 6168.555176 | AD46: =IF(Spec_Pg!$B$17=1,Historic_Flows!E52,IF(Spec_Pg!$B$17=2,'2035CT_Flows'!E52,NA())) -> 6503.51709 | AE46: =IF(Spec_Pg!$B$17=1,Historic_Flows!F52,IF(Spec_Pg!$B$17=2,'2035CT_Flows'!F52,NA())) -> 6499.722168 | AF46: =IF(Spec_Pg!$B$17=1,Historic_Flows!G52,IF(Spec_Pg!$B$17=2,'2035CT_Flows'!G52,NA())) -> 6466.436035 | AG46: =IF(Spec_Pg!$B$17=1,Historic_Flows!H52,IF(Spec_Pg!$B$17=2,'2035CT_Flows'!H52,NA())) -> 6481.598145 | AH46: 436.5714286 | AI46: =IF(Spec_Pg!$B$17=1,Historic_Flows!I52,IF(Spec_Pg!$B$17=2,'2035CT_Flows'!I52,NA())) -> 6528.026855 | AJ46: =IF(Spec_Pg!$B$17=1,Historic_Flows!J52,IF(Spec_Pg!$B$17=2,'2035CT_Flows'!J52,NA())) -> 6517.871582 | AK46: =IF(Spec_Pg!$B$17=1,Historic_Flows!K52,IF(Spec_Pg!$B$17=2,'2035CT_Flows'!K52,NA())) -> 6587.617676 | AL46: =IF(Spec_Pg!$B$17=1,Historic_Flows!L52,IF(Spec_Pg!$B$17=2,'2035CT_Flows'!L52,NA())) -> 0 | AM46: =IF(Spec_Pg!$B$17=1,Historic_Flows!O52,IF(Spec_Pg!$B$17=2,'2035CT_Flows'!O52,NA())) -> 10617 | AN46: 0 | AO46: 10617 | AP46: 11000 | AQ46: 12685.71429 | AR46: 10358 | AS46: =IF(Spec_Pg!$B$17=1,Available_Flow_Data!AC49,IF(Spec_Pg!$B$17=2,'2035CT_Flows'!P52,NA())) -> 3905 | AT46: 8447.071429 | AU46: =IF(Spec_Pg!$B$17=1,Historic_Flows!M52,IF(Spec_Pg!$B$17=2,'2035CT_Flows'!M52,NA())) -> 29 | AV46: =IF(Spec_Pg!$B$17=1,Historic_Flows!N52,IF(Spec_Pg!$B$17=2,'2035CT_Flows'!N52,NA())) -> 29 | AW46: 85.38 | AX46: =Available_Flow_Data!AD49 -> Balance | AZ46: 9340.5 | BB46: 1266
A47: 2008-11-10 | B47: 2008 | C47: 11 | D47: 10 | E47: =Available_Flow_Data!AB50 -> 0 | F47: =Available_Flow_Data!AA50 -> 0 | G47: =Available_Flow_Data!Z50 -> 0 | R47: 0 | S47: 0 | T47: 0 | X47: 60 | Y47: 4.46999979 | Z47: =IF(Spec_Pg!$B$17=1,Historic_Flows!B53,IF(Spec_Pg!$B$17=2,'2035CT_Flows'!B53,NA())) -> 5925.066895 | AA47: 5929.536894 | AB47: =IF(Spec_Pg!$B$17=1,Historic_Flows!C53,IF(Spec_Pg!$B$17=2,'2035CT_Flows'!C53,NA())) -> 5885.635254 | AC47: =IF(Spec_Pg!$B$17=1,Historic_Flows!D53,IF(Spec_Pg!$B$17=2,'2035CT_Flows'!D53,NA())) -> 5956.787109 | AD47: =IF(Spec_Pg!$B$17=1,Historic_Flows!E53,IF(Spec_Pg!$B$17=2,'2035CT_Flows'!E53,NA())) -> 6381.037109 | AE47: =IF(Spec_Pg!$B$17=1,Historic_Flows!F53,IF(Spec_Pg!$B$17=2,'2035CT_Flows'!F53,NA())) -> 6427.151855 | AF47: =IF(Spec_Pg!$B$17=1,Historic_Flows!G53,IF(Spec_Pg!$B$17=2,'2035CT_Flows'!G53,NA())) -> 6411.424805 | AG47: =IF(Spec_Pg!$B$17=1,Historic_Flows!H53,IF(Spec_Pg!$B$17=2,'2035CT_Flows'!H53,NA())) -> 6421.580078 | AH47: 421.4782609 | AI47: =IF(Spec_Pg!$B$17=1,Historic_Flows!I53,IF(Spec_Pg!$B$17=2,'2035CT_Flows'!I53,NA())) -> 6446.325684 | AJ47: =IF(Spec_Pg!$B$17=1,Historic_Flows!J53,IF(Spec_Pg!$B$17=2,'2035CT_Flows'!J53,NA())) -> 6405.574707 | AK47: =IF(Spec_Pg!$B$17=1,Historic_Flows!K53,IF(Spec_Pg!$B$17=2,'2035CT_Flows'!K53,NA())) -> 6442.745605 | AL47: =IF(Spec_Pg!$B$17=1,Historic_Flows!L53,IF(Spec_Pg!$B$17=2,'2035CT_Flows'!L53,NA())) -> 0 | AM47: =IF(Spec_Pg!$B$17=1,Historic_Flows!O53,IF(Spec_Pg!$B$17=2,'2035CT_Flows'!O53,NA())) -> 10188 | AN47: 0 | AO47: 10188 | AP47: 10800 | AQ47: 12471.42857 | AR47: 10610.66667 | AS47: =IF(Spec_Pg!$B$17=1,Available_Flow_Data!AC50,IF(Spec_Pg!$B$17=2,'2035CT_Flows'!P53,NA())) -> 4199 | AT47: 8588.714286 | AU47: =IF(Spec_Pg!$B$17=1,Historic_Flows!M53,IF(Spec_Pg!$B$17=2,'2035CT_Flows'!M53,NA())) -> 29 | AV47: =IF(Spec_Pg!$B$17=1,Historic_Flows!N53,IF(Spec_Pg!$B$17=2,'2035CT_Flows'!N53,NA())) -> 29 | AW47: 85.46 | AX47: =Available_Flow_Data!AD50 -> Balance | AZ47: 8985.5 | BB47: 1266
A48: 2008-11-11 | B48: 2008 | C48: 11 | D48: 11 | E48: =Available_Flow_Data!AB51 -> 0 | F48: =Available_Flow_Data!AA51 -> 0 | G48: =Available_Flow_Data!Z51 -> 0 | R48: 0 | S48: 0 | T48: 0 | X48: 60 | Y48: 4.320000172 | Z48: =IF(Spec_Pg!$B$17=1,Historic_Flows!B54,IF(Spec_Pg!$B$17=2,'2035CT_Flows'!B54,NA())) -> 5783.472656 | AA48: 5787.792656 | AB48: =IF(Spec_Pg!$B$17=1,Historic_Flows!C54,IF(Spec_Pg!$B$17=2,'2035CT_Flows'!C54,NA())) -> 5755.037598 | AC48: =IF(Spec_Pg!$B$17=1,Historic_Flows!D54,IF(Spec_Pg!$B$17=2,'2035CT_Flows'!D54,NA())) -> 5802.196289 | AD48: =IF(Spec_Pg!$B$17=1,Historic_Flows!E54,IF(Spec_Pg!$B$17=2,'2035CT_Flows'!E54,NA())) -> 6182.809082 | AE48: =IF(Spec_Pg!$B$17=1,Historic_Flows!F54,IF(Spec_Pg!$B$17=2,'2035CT_Flows'!F54,NA())) -> 6220.922363 | AF48: =IF(Spec_Pg!$B$17=1,Historic_Flows!G54,IF(Spec_Pg!$B$17=2,'2035CT_Flows'!G54,NA())) -> 6267.950195 | AG48: =IF(Spec_Pg!$B$17=1,Historic_Flows!H54,IF(Spec_Pg!$B$17=2,'2035CT_Flows'!H54,NA())) -> 6294.435547 | AH48: 416 | AI48: =IF(Spec_Pg!$B$17=1,Historic_Flows!I54,IF(Spec_Pg!$B$17=2,'2035CT_Flows'!I54,NA())) -> 6341.151855 | AJ48: =IF(Spec_Pg!$B$17=1,Historic_Flows!J54,IF(Spec_Pg!$B$17=2,'2035CT_Flows'!J54,NA())) -> 6307.200195 | AK48: =IF(Spec_Pg!$B$17=1,Historic_Flows!K54,IF(Spec_Pg!$B$17=2,'2035CT_Flows'!K54,NA())) -> 6341.02832 | AL48: =IF(Spec_Pg!$B$17=1,Historic_Flows!L54,IF(Spec_Pg!$B$17=2,'2035CT_Flows'!L54,NA())) -> 0 | AM48: =IF(Spec_Pg!$B$17=1,Historic_Flows!O54,IF(Spec_Pg!$B$17=2,'2035CT_Flows'!O54,NA())) -> 9882 | AN48: 0 | AO48: 9882 | AP48: 10400 | AQ48: 11942.85714 | AR48: 10850 | AS48: =IF(Spec_Pg!$B$17=1,Available_Flow_Data!AC51,IF(Spec_Pg!$B$17=2,'2035CT_Flows'!P54,NA())) -> 3822 | AT48: 8646.214286 | AU48: =IF(Spec_Pg!$B$17=1,Historic_Flows!M54,IF(Spec_Pg!$B$17=2,'2035CT_Flows'!M54,NA())) -> 29 | AV48: =IF(Spec_Pg!$B$17=1,Historic_Flows!N54,IF(Spec_Pg!$B$17=2,'2035CT_Flows'!N54,NA())) -> 29 | AW48: 85.59 | AX48: =Available_Flow_Data!AD51 -> Balance | AZ48: 8658.8 | BB48: 1266
A49: 2008-11-12 | B49: 2008 | C49: 11 | D49: 12 | E49: =Available_Flow_Data!AB52 -> 0 | F49: =Available_Flow_Data!AA52 -> 0 | G49: =Available_Flow_Data!Z52 -> 0 | R49: 0 | S49: 0 | T49: 0 | X49: 60 | Y49: 4.130000114 | Z49: =IF(Spec_Pg!$B$17=1,Historic_Flows!B55,IF(Spec_Pg!$B$17=2,'2035CT_Flows'!B55,NA())) -> 5708.568359 | AA49: 5712.698359 | AB49: =IF(Spec_Pg!$B$17=1,Historic_Flows!C55,IF(Spec_Pg!$B$17=2,'2035CT_Flows'!C55,NA())) -> 5691.856934 | AC49: =IF(Spec_Pg!$B$17=1,Historic_Flows!D55,IF(Spec_Pg!$B$17=2,'2035CT_Flows'!D55,NA())) -> 5710.043457 | AD49: =IF(Spec_Pg!$B$17=1,Historic_Flows!E55,IF(Spec_Pg!$B$17=2,'2035CT_Flows'!E55,NA())) -> 5997.663086 | AE49: =IF(Spec_Pg!$B$17=1,Historic_Flows!F55,IF(Spec_Pg!$B$17=2,'2035CT_Flows'!F55,NA())) -> 5991.621582 | AF49: =IF(Spec_Pg!$B$17=1,Historic_Flows!G55,IF(Spec_Pg!$B$17=2,'2035CT_Flows'!G55,NA())) -> 6030.206055 | AG49: =IF(Spec_Pg!$B$17=1,Historic_Flows!H55,IF(Spec_Pg!$B$17=2,'2035CT_Flows'!H55,NA())) -> 6074.09375 | AH49: 403.1363636 | AI49: =IF(Spec_Pg!$B$17=1,Historic_Flows!I55,IF(Spec_Pg!$B$17=2,'2035CT_Flows'!I55,NA())) -> 6155.799805 | AJ49: =IF(Spec_Pg!$B$17=1,Historic_Flows!J55,IF(Spec_Pg!$B$17=2,'2035CT_Flows'!J55,NA())) -> 6146.226562 | AK49: =IF(Spec_Pg!$B$17=1,Historic_Flows!K55,IF(Spec_Pg!$B$17=2,'2035CT_Flows'!K55,NA())) -> 6194.445312 | AL49: =IF(Spec_Pg!$B$17=1,Historic_Flows!L55,IF(Spec_Pg!$B$17=2,'2035CT_Flows'!L55,NA())) -> 0 | AM49: =IF(Spec_Pg!$B$17=1,Historic_Flows!O55,IF(Spec_Pg!$B$17=2,'2035CT_Flows'!O55,NA())) -> 9716 | AN49: 0 | AO49: 9716 | AP49: 9960 | AQ49: 11365.71429 | AR49: 11018.66667 | AS49: =IF(Spec_Pg!$B$17=1,Available_Flow_Data!AC52,IF(Spec_Pg!$B$17=2,'2035CT_Flows'!P55,NA())) -> 2723 | AT49: 8610.428571 | AU49: =IF(Spec_Pg!$B$17=1,Historic_Flows!M55,IF(Spec_Pg!$B$17=2,'2035CT_Flows'!M55,NA())) -> 29 | AV49: =IF(Spec_Pg!$B$17=1,Historic_Flows!N55,IF(Spec_Pg!$B$17=2,'2035CT_Flows'!N55,NA())) -> 29 | AW49: 85.94 | AX49: =Available_Flow_Data!AD52 -> Balance | AZ49: 8496.4 | BB49: 1266
A50: 2008-11-13 | B50: 2008 | C50: 11 | D50: 13 | E50: =Available_Flow_Data!AB53 -> 0 | F50: =Available_Flow_Data!AA53 -> 0 | G50: =Available_Flow_Data!Z53 -> 0 | R50: 0 | S50: 0 | T50: 0 | X50: 60 | Y50: 4.03000021 | Z50: =IF(Spec_Pg!$B$17=1,Historic_Flows!B56,IF(Spec_Pg!$B$17=2,'2035CT_Flows'!B56,NA())) -> 5695.841309 | AA50: 5699.871309 | AB50: =IF(Spec_Pg!$B$17=1,Historic_Flows!C56,IF(Spec_Pg!$B$17=2,'2035CT_Flows'!C56,NA())) -> 5675.605957 | AC50: =IF(Spec_Pg!$B$17=1,Historic_Flows!D56,IF(Spec_Pg!$B$17=2,'2035CT_Flows'!D56,NA())) -> 5703.062012 | AD50: =IF(Spec_Pg!$B$17=1,Historic_Flows!E56,IF(Spec_Pg!$B$17=2,'2035CT_Flows'!E56,NA())) -> 6014.890137 | AE50: =IF(Spec_Pg!$B$17=1,Historic_Flows!F56,IF(Spec_Pg!$B$17=2,'2035CT_Flows'!F56,NA())) -> 6032.13916 | AF50: =IF(Spec_Pg!$B$17=1,Historic_Flows!G56,IF(Spec_Pg!$B$17=2,'2035CT_Flows'!G56,NA())) -> 5964.959473 | AG50: =IF(Spec_Pg!$B$17=1,Historic_Flows!H56,IF(Spec_Pg!$B$17=2,'2035CT_Flows'!H56,NA())) -> 5977.003906 | AH50: 387.9130435 | AI50: =IF(Spec_Pg!$B$17=1,Historic_Flows!I56,IF(Spec_Pg!$B$17=2,'2035CT_Flows'!I56,NA())) -> 6018.743164 | AJ50: =IF(Spec_Pg!$B$17=1,Historic_Flows!J56,IF(Spec_Pg!$B$17=2,'2035CT_Flows'!J56,NA())) -> 5996.355469 | AK50: =IF(Spec_Pg!$B$17=1,Historic_Flows!K56,IF(Spec_Pg!$B$17=2,'2035CT_Flows'!K56,NA())) -> 6042.015625 | AL50: =IF(Spec_Pg!$B$17=1,Historic_Flows!L56,IF(Spec_Pg!$B$17=2,'2035CT_Flows'!L56,NA())) -> 0 | AM50: =IF(Spec_Pg!$B$17=1,Historic_Flows!O56,IF(Spec_Pg!$B$17=2,'2035CT_Flows'!O56,NA())) -> 9558 | AN50: 0 | AO50: 9558 | AP50: 9730 | AQ50: 10841.42857 | AR50: 11168.66667 | AS50: =IF(Spec_Pg!$B$17=1,Available_Flow_Data!AC53,IF(Spec_Pg!$B$17=2,'2035CT_Flows'!P56,NA())) -> 2544 | AT50: 8427.071429 | AU50: =IF(Spec_Pg!$B$17=1,Historic_Flows!M56,IF(Spec_Pg!$B$17=2,'2035CT_Flows'!M56,NA())) -> 29 | AV50: =IF(Spec_Pg!$B$17=1,Historic_Flows!N56,IF(Spec_Pg!$B$17=2,'2035CT_Flows'!N56,NA())) -> 29 | AW50: 86.31 | AX50: =Available_Flow_Data!AD53 -> Balance | AZ50: 8347.7 | BB50: 1266
A51: 2008-11-14 | B51: 2008 | C51: 11 | D51: 14 | E51: =Available_Flow_Data!AB54 -> 0 | F51: =Available_Flow_Data!AA54 -> 0 | G51: =Available_Flow_Data!Z54 -> 0 | R51: 0 | S51: 0 | T51: 0 | X51: 60 | Y51: 3.730000019 | Z51: =IF(Spec_Pg!$B$17=1,Historic_Flows!B57,IF(Spec_Pg!$B$17=2,'2035CT_Flows'!B57,NA())) -> 5615.209473 | AA51: 5618.939473 | AB51: =IF(Spec_Pg!$B$17=1,Historic_Flows!C57,IF(Spec_Pg!$B$17=2,'2035CT_Flows'!C57,NA())) -> 5593.469727 | AC51: =IF(Spec_Pg!$B$17=1,Historic_Flows!D57,IF(Spec_Pg!$B$17=2,'2035CT_Flows'!D57,NA())) -> 5624.505859 | AD51: =IF(Spec_Pg!$B$17=1,Historic_Flows!E57,IF(Spec_Pg!$B$17=2,'2035CT_Flows'!E57,NA())) -> 5941.93457 | AE51: =IF(Spec_Pg!$B$17=1,Historic_Flows!F57,IF(Spec_Pg!$B$17=2,'2035CT_Flows'!F57,NA())) -> 5953.993652 | AF51: =IF(Spec_Pg!$B$17=1,Historic_Flows!G57,IF(Spec_Pg!$B$17=2,'2035CT_Flows'!G57,NA())) -> 5920.625977 | AG51: =IF(Spec_Pg!$B$17=1,Historic_Flows!H57,IF(Spec_Pg!$B$17=2,'2035CT_Flows'!H57,NA())) -> 5928.80957 | AH51: 354.4782609 | AI51: =IF(Spec_Pg!$B$17=1,Historic_Flows!I57,IF(Spec_Pg!$B$17=2,'2035CT_Flows'!I57,NA())) -> 5949.175293 | AJ51: =IF(Spec_Pg!$B$17=1,Historic_Flows!J57,IF(Spec_Pg!$B$17=2,'2035CT_Flows'!J57,NA())) -> 5907.307129 | AK51: =IF(Spec_Pg!$B$17=1,Historic_Flows!K57,IF(Spec_Pg!$B$17=2,'2035CT_Flows'!K57,NA())) -> 5939.283203 | AL51: =IF(Spec_Pg!$B$17=1,Historic_Flows!L57,IF(Spec_Pg!$B$17=2,'2035CT_Flows'!L57,NA())) -> 0 | AM51: =IF(Spec_Pg!$B$17=1,Historic_Flows!O57,IF(Spec_Pg!$B$17=2,'2035CT_Flows'!O57,NA())) -> 9475 | AN51: 0 | AO51: 9475 | AP51: 9420 | AQ51: 10372.85714 | AR51: 11290 | AS51: =IF(Spec_Pg!$B$17=1,Available_Flow_Data!AC54,IF(Spec_Pg!$B$17=2,'2035CT_Flows'!P57,NA())) -> 2409 | AT51: 8133.357143 | AU51: =IF(Spec_Pg!$B$17=1,Historic_Flows!M57,IF(Spec_Pg!$B$17=2,'2035CT_Flows'!M57,NA())) -> 29 | AV51: =IF(Spec_Pg!$B$17=1,Historic_Flows!N57,IF(Spec_Pg!$B$17=2,'2035CT_Flows'!N57,NA())) -> 29 | AW51: 86.69 | AX51: =Available_Flow_Data!AD54 -> Balance | AZ51: 8258.2 | BB51: 1266
A52: 2008-11-15 | B52: 2008 | C52: 11 | D52: 15 | E52: =Available_Flow_Data!AB55 -> 0 | F52: =Available_Flow_Data!AA55 -> 0 | G52: =Available_Flow_Data!Z55 -> 0 | R52: 0 | S52: 0 | T52: 0 | X52: 60 | Y52: 3.49000001 | Z52: =IF(Spec_Pg!$B$17=1,Historic_Flows!B58,IF(Spec_Pg!$B$17=2,'2035CT_Flows'!B58,NA())) -> 5242.154297 | AA52: 5245.644297 | AB52: =IF(Spec_Pg!$B$17=1,Historic_Flows!C58,IF(Spec_Pg!$B$17=2,'2035CT_Flows'!C58,NA())) -> 5185.533203 | AC52: =IF(Spec_Pg!$B$17=1,Historic_Flows!D58,IF(Spec_Pg!$B$17=2,'2035CT_Flows'!D58,NA())) -> 5302.325195 | AD52: =IF(Spec_Pg!$B$17=1,Historic_Flows!E58,IF(Spec_Pg!$B$17=2,'2035CT_Flows'!E58,NA())) -> 5815.028809 | AE52: =IF(Spec_Pg!$B$17=1,Historic_Flows!F58,IF(Spec_Pg!$B$17=2,'2035CT_Flows'!F58,NA())) -> 5929.497559 | AF52: =IF(Spec_Pg!$B$17=1,Historic_Flows!G58,IF(Spec_Pg!$B$17=2,'2035CT_Flows'!G58,NA())) -> 5940.737305 | AG52: =IF(Spec_Pg!$B$17=1,Historic_Flows!H58,IF(Spec_Pg!$B$17=2,'2035CT_Flows'!H58,NA())) -> 5937.024902 | AH52: 336.2727273 | AI52: =IF(Spec_Pg!$B$17=1,Historic_Flows!I58,IF(Spec_Pg!$B$17=2,'2035CT_Flows'!I58,NA())) -> 5935.857422 | AJ52: =IF(Spec_Pg!$B$17=1,Historic_Flows!J58,IF(Spec_Pg!$B$17=2,'2035CT_Flows'!J58,NA())) -> 5877.667969 | AK52: =IF(Spec_Pg!$B$17=1,Historic_Flows!K58,IF(Spec_Pg!$B$17=2,'2035CT_Flows'!K58,NA())) -> 5896.152832 | AL52: =IF(Spec_Pg!$B$17=1,Historic_Flows!L58,IF(Spec_Pg!$B$17=2,'2035CT_Flows'!L58,NA())) -> 0 | AM52: =IF(Spec_Pg!$B$17=1,Historic_Flows!O58,IF(Spec_Pg!$B$17=2,'2035CT_Flows'!O58,NA())) -> 9323 | AN52: 0 | AO52: 9323 | AP52: 9370 | AQ52: 10097.14286 | AR52: 11376 | AS52: =IF(Spec_Pg!$B$17=1,Available_Flow_Data!AC55,IF(Spec_Pg!$B$17=2,'2035CT_Flows'!P58,NA())) -> 2293 | AT52: 7360.357143 | AU52: =IF(Spec_Pg!$B$17=1,Historic_Flows!M58,IF(Spec_Pg!$B$17=2,'2035CT_Flows'!M58,NA())) -> 31 | AV52: =IF(Spec_Pg!$B$17=1,Historic_Flows!N58,IF(Spec_Pg!$B$17=2,'2035CT_Flows'!N58,NA())) -> 30.5 | AW52: 87.09 | AX52: =Available_Flow_Data!AD55 -> Balance | AZ52: 8104 | BB52: 1266
A53: 2008-11-16 | B53: 2008 | C53: 11 | D53: 16 | E53: =Available_Flow_Data!AB56 -> 0 | F53: =Available_Flow_Data!AA56 -> 0 | G53: =Available_Flow_Data!Z56 -> 0 | R53: 0 | S53: 0 | T53: 0 | X53: 60 | Y53: 3.539999962 | Z53: =IF(Spec_Pg!$B$17=1,Historic_Flows!B59,IF(Spec_Pg!$B$17=2,'2035CT_Flows'!B59,NA())) -> 5063.63623 | AA53: 5067.17623 | AB53: =IF(Spec_Pg!$B$17=1,Historic_Flows!C59,IF(Spec_Pg!$B$17=2,'2035CT_Flows'!C59,NA())) -> 5035.572754 | AC53: =IF(Spec_Pg!$B$17=1,Historic_Flows!D59,IF(Spec_Pg!$B$17=2,'2035CT_Flows'!D59,NA())) -> 5086.262207 | AD53: =IF(Spec_Pg!$B$17=1,Historic_Flows!E59,IF(Spec_Pg!$B$17=2,'2035CT_Flows'!E59,NA())) -> 5483.180664 | AE53: =IF(Spec_Pg!$B$17=1,Historic_Flows!F59,IF(Spec_Pg!$B$17=2,'2035CT_Flows'!F59,NA())) -> 5540.494141 | AF53: =IF(Spec_Pg!$B$17=1,Historic_Flows!G59,IF(Spec_Pg!$B$17=2,'2035CT_Flows'!G59,NA())) -> 5696.40918 | AG53: =IF(Spec_Pg!$B$17=1,Historic_Flows!H59,IF(Spec_Pg!$B$17=2,'2035CT_Flows'!H59,NA())) -> 5741.512207 | AH53: 326.2272727 | AI53: =IF(Spec_Pg!$B$17=1,Historic_Flows!I59,IF(Spec_Pg!$B$17=2,'2035CT_Flows'!I59,NA())) -> 5809.816895 | AJ53: =IF(Spec_Pg!$B$17=1,Historic_Flows!J59,IF(Spec_Pg!$B$17=2,'2035CT_Flows'!J59,NA())) -> 5784.869629 | AK53: =IF(Spec_Pg!$B$17=1,Historic_Flows!K59,IF(Spec_Pg!$B$17=2,'2035CT_Flows'!K59,NA())) -> 5818.092773 | AL53: =IF(Spec_Pg!$B$17=1,Historic_Flows!L59,IF(Spec_Pg!$B$17=2,'2035CT_Flows'!L59,NA())) -> 0 | AM53: =IF(Spec_Pg!$B$17=1,Historic_Flows!O59,IF(Spec_Pg!$B$17=2,'2035CT_Flows'!O59,NA())) -> 9252 | AN53: 0 | AO53: 9252 | AP53: 9320 | AQ53: 9857.142857 | AR53: 11353.33333 | AS53: =IF(Spec_Pg!$B$17=1,Available_Flow_Data!AC56,IF(Spec_Pg!$B$17=2,'2035CT_Flows'!P59,NA())) -> 2260 | AT53: 6356 | AU53: =IF(Spec_Pg!$B$17=1,Historic_Flows!M59,IF(Spec_Pg!$B$17=2,'2035CT_Flows'!M59,NA())) -> 32 | AV53: =IF(Spec_Pg!$B$17=1,Historic_Flows!N59,IF(Spec_Pg!$B$17=2,'2035CT_Flows'!N59,NA())) -> 31.75 | AW53: 87.47 | AX53: =Available_Flow_Data!AD56 -> Balance | AZ53: 8025.6 | BB53: 1266
A54: 2008-11-17 | B54: 2008 | C54: 11 | D54: 17 | E54: =Available_Flow_Data!AB57 -> 0 | F54: =Available_Flow_Data!AA57 -> 0 | G54: =Available_Flow_Data!Z57 -> 0 | R54: 0 | S54: 0 | T54: 0 | X54: 60 | Y54: 3.440000057 | Z54: =IF(Spec_Pg!$B$17=1,Historic_Flows!B60,IF(Spec_Pg!$B$17=2,'2035CT_Flows'!B60,NA())) -> 4869.072266 | AA54: 4872.512266 | AB54: =IF(Spec_Pg!$B$17=1,Historic_Flows!C60,IF(Spec_Pg!$B$17=2,'2035CT_Flows'!C60,NA())) -> 4841.321777 | AC54: =IF(Spec_Pg!$B$17=1,Historic_Flows!D60,IF(Spec_Pg!$B$17=2,'2035CT_Flows'!D60,NA())) -> 4888.156738 | AD54: =IF(Spec_Pg!$B$17=1,Historic_Flows!E60,IF(Spec_Pg!$B$17=2,'2035CT_Flows'!E60,NA())) -> 5233.558594 | AE54: =IF(Spec_Pg!$B$17=1,Historic_Flows!F60,IF(Spec_Pg!$B$17=2,'2035CT_Flows'!F60,NA())) -> 5263.777344 | AF54: =IF(Spec_Pg!$B$17=1,Historic_Flows!G60,IF(Spec_Pg!$B$17=2,'2035CT_Flows'!G60,NA())) -> 5369.507324 | AG54: =IF(Spec_Pg!$B$17=1,Historic_Flows!H60,IF(Spec_Pg!$B$17=2,'2035CT_Flows'!H60,NA())) -> 5429.853516 | AH54: 319.2105263 | AI54: =IF(Spec_Pg!$B$17=1,Historic_Flows!I60,IF(Spec_Pg!$B$17=2,'2035CT_Flows'!I60,NA())) -> 5545.921875 | AJ54: =IF(Spec_Pg!$B$17=1,Historic_Flows!J60,IF(Spec_Pg!$B$17=2,'2035CT_Flows'!J60,NA())) -> 5562.856934 | AK54: =IF(Spec_Pg!$B$17=1,Historic_Flows!K60,IF(Spec_Pg!$B$17=2,'2035CT_Flows'!K60,NA())) -> 5625.858887 | AL54: =IF(Spec_Pg!$B$17=1,Historic_Flows!L60,IF(Spec_Pg!$B$17=2,'2035CT_Flows'!L60,NA())) -> 0 | AM54: =IF(Spec_Pg!$B$17=1,Historic_Flows!O60,IF(Spec_Pg!$B$17=2,'2035CT_Flows'!O60,NA())) -> 8929 | AN54: 0 | AO54: 8929 | AP54: 9270 | AQ54: 9638.571429 | AR54: 11138 | AS54: =IF(Spec_Pg!$B$17=1,Available_Flow_Data!AC57,IF(Spec_Pg!$B$17=2,'2035CT_Flows'!P60,NA())) -> 2866 | AT54: 5316.642857 | AU54: =IF(Spec_Pg!$B$17=1,Historic_Flows!M60,IF(Spec_Pg!$B$17=2,'2035CT_Flows'!M60,NA())) -> 32 | AV54: =IF(Spec_Pg!$B$17=1,Historic_Flows!N60,IF(Spec_Pg!$B$17=2,'2035CT_Flows'!N60,NA())) -> 32 | AW54: 87.68 | AX54: =Available_Flow_Data!AD57 -> Balance | AZ54: 7713.9 | BB54: 1266
A55: 2008-11-18 | B55: 2008 | C55: 11 | D55: 18 | E55: =Available_Flow_Data!AB58 -> 0 | F55: =Available_Flow_Data!AA58 -> 0 | G55: =Available_Flow_Data!Z58 -> 0 | R55: 0 | S55: 0 | T55: 0 | X55: 60 | Y55: 3.390000105 | Z55: =IF(Spec_Pg!$B$17=1,Historic_Flows!B61,IF(Spec_Pg!$B$17=2,'2035CT_Flows'!B61,NA())) -> 4761.408203 | AA55: 4764.798203 | AB55: =IF(Spec_Pg!$B$17=1,Historic_Flows!C61,IF(Spec_Pg!$B$17=2,'2035CT_Flows'!C61,NA())) -> 4742.233887 | AC55: =IF(Spec_Pg!$B$17=1,Historic_Flows!D61,IF(Spec_Pg!$B$17=2,'2035CT_Flows'!D61,NA())) -> 4768.270508 | AD55: =IF(Spec_Pg!$B$17=1,Historic_Flows!E61,IF(Spec_Pg!$B$17=2,'2035CT_Flows'!E61,NA())) -> 5060.641113 | AE55: =IF(Spec_Pg!$B$17=1,Historic_Flows!F61,IF(Spec_Pg!$B$17=2,'2035CT_Flows'!F61,NA())) -> 5066.036621 | AF55: =IF(Spec_Pg!$B$17=1,Historic_Flows!G61,IF(Spec_Pg!$B$17=2,'2035CT_Flows'!G61,NA())) -> 5109.572266 | AG55: =IF(Spec_Pg!$B$17=1,Historic_Flows!H61,IF(Spec_Pg!$B$17=2,'2035CT_Flows'!H61,NA())) -> 5157.556152 | AH55: 314.6666667 | AI55: =IF(Spec_Pg!$B$17=1,Historic_Flows!I61,IF(Spec_Pg!$B$17=2,'2035CT_Flows'!I61,NA())) -> 5263.936523 | AJ55: =IF(Spec_Pg!$B$17=1,Historic_Flows!J61,IF(Spec_Pg!$B$17=2,'2035CT_Flows'!J61,NA())) -> 5287.798828 | AK55: =IF(Spec_Pg!$B$17=1,Historic_Flows!K61,IF(Spec_Pg!$B$17=2,'2035CT_Flows'!K61,NA())) -> 5363.036621 | AL55: =IF(Spec_Pg!$B$17=1,Historic_Flows!L61,IF(Spec_Pg!$B$17=2,'2035CT_Flows'!L61,NA())) -> 0 | AM55: =IF(Spec_Pg!$B$17=1,Historic_Flows!O61,IF(Spec_Pg!$B$17=2,'2035CT_Flows'!O61,NA())) -> 8405 | AN55: 0 | AO55: 8405 | AP55: 8900 | AQ55: 9424.285714 | AR55: 10911.33333 | AS55: =IF(Spec_Pg!$B$17=1,Available_Flow_Data!AC58,IF(Spec_Pg!$B$17=2,'2035CT_Flows'!P61,NA())) -> 2675 | AT55: 4424.142857 | AU55: =IF(Spec_Pg!$B$17=1,Historic_Flows!M61,IF(Spec_Pg!$B$17=2,'2035CT_Flows'!M61,NA())) -> 32 | AV55: =IF(Spec_Pg!$B$17=1,Historic_Flows!N61,IF(Spec_Pg!$B$17=2,'2035CT_Flows'!N61,NA())) -> 32 | AW55: 87.92 | AX55: =Available_Flow_Data!AD58 -> Balance | AZ55: 7183 | BB55: 1266
A56: 2008-11-19 | B56: 2008 | C56: 11 | D56: 19 | E56: =Available_Flow_Data!AB59 -> 0 | F56: =Available_Flow_Data!AA59 -> 0 | G56: =Available_Flow_Data!Z59 -> 0 | R56: 0 | S56: 0 | T56: 0 | X56: 60 | Y56: 3.339999914 | Z56: =IF(Spec_Pg!$B$17=1,Historic_Flows!B62,IF(Spec_Pg!$B$17=2,'2035CT_Flows'!B62,NA())) -> 4639.300293 | AA56: 4642.640293 | AB56: =IF(Spec_Pg!$B$17=1,Historic_Flows!C62,IF(Spec_Pg!$B$17=2,'2035CT_Flows'!C62,NA())) -> 4616.758789 | AC56: =IF(Spec_Pg!$B$17=1,Historic_Flows!D62,IF(Spec_Pg!$B$17=2,'2035CT_Flows'!D62,NA())) -> 4650.408691 | AD56: =IF(Spec_Pg!$B$17=1,Historic_Flows!E62,IF(Spec_Pg!$B$17=2,'2035CT_Flows'!E62,NA())) -> 4949.116699 | AE56: =IF(Spec_Pg!$B$17=1,Historic_Flows!F62,IF(Spec_Pg!$B$17=2,'2035CT_Flows'!F62,NA())) -> 4959.937012 | AF56: =IF(Spec_Pg!$B$17=1,Historic_Flows!G62,IF(Spec_Pg!$B$17=2,'2035CT_Flows'!G62,NA())) -> 4955.869141 | AG56: =IF(Spec_Pg!$B$17=1,Historic_Flows!H62,IF(Spec_Pg!$B$17=2,'2035CT_Flows'!H62,NA())) -> 4984.242676 | AH56: 357.1304348 | AI56: =IF(Spec_Pg!$B$17=1,Historic_Flows!I62,IF(Spec_Pg!$B$17=2,'2035CT_Flows'!I62,NA())) -> 5054.598633 | AJ56: =IF(Spec_Pg!$B$17=1,Historic_Flows!J62,IF(Spec_Pg!$B$17=2,'2035CT_Flows'!J62,NA())) -> 5057.812988 | AK56: =IF(Spec_Pg!$B$17=1,Historic_Flows!K62,IF(Spec_Pg!$B$17=2,'2035CT_Flows'!K62,NA())) -> 5122.577637 | AL56: =IF(Spec_Pg!$B$17=1,Historic_Flows!L62,IF(Spec_Pg!$B$17=2,'2035CT_Flows'!L62,NA())) -> 0 | AM56: =IF(Spec_Pg!$B$17=1,Historic_Flows!O62,IF(Spec_Pg!$B$17=2,'2035CT_Flows'!O62,NA())) -> 8013 | AN56: 0 | AO56: 8013 | AP56: 8430 | AQ56: 9205.714286 | AR56: 10533.33333 | AS56: =IF(Spec_Pg!$B$17=1,Available_Flow_Data!AC59,IF(Spec_Pg!$B$17=2,'2035CT_Flows'!P62,NA())) -> 3147 | AT56: 3621.642857 | AU56: =IF(Spec_Pg!$B$17=1,Historic_Flows!M62,IF(Spec_Pg!$B$17=2,'2035CT_Flows'!M62,NA())) -> 32 | AV56: =IF(Spec_Pg!$B$17=1,Historic_Flows!N62,IF(Spec_Pg!$B$17=2,'2035CT_Flows'!N62,NA())) -> 32 | AW56: 88.04 | AX56: =Available_Flow_Data!AD59 -> Balance | AZ56: 6797.9 | BB56: 1266
A57: 2008-11-20 | B57: 2008 | C57: 11 | D57: 20 | E57: =Available_Flow_Data!AB60 -> 0 | F57: =Available_Flow_Data!AA60 -> 0 | G57: =Available_Flow_Data!Z60 -> 0 | R57: 0 | S57: 0 | T57: 0 | X57: 60 | Y57: 3.339999914 | Z57: =IF(Spec_Pg!$B$17=1,Historic_Flows!B63,IF(Spec_Pg!$B$17=2,'2035CT_Flows'!B63,NA())) -> 4494.683105 | AA57: 4498.023105 | AB57: =IF(Spec_Pg!$B$17=1,Historic_Flows!C63,IF(Spec_Pg!$B$17=2,'2035CT_Flows'!C63,NA())) -> 4465.354492 | AC57: =IF(Spec_Pg!$B$17=1,Historic_Flows!D63,IF(Spec_Pg!$B$17=2,'2035CT_Flows'!D63,NA())) -> 4516.507324 | AD57: =IF(Spec_Pg!$B$17=1,Historic_Flows!E63,IF(Spec_Pg!$B$17=2,'2035CT_Flows'!E63,NA())) -> 4865.091797 | AE57: =IF(Spec_Pg!$B$17=1,Historic_Flows!F63,IF(Spec_Pg!$B$17=2,'2035CT_Flows'!F63,NA())) -> 4906.66748 | AF57: =IF(Spec_Pg!$B$17=1,Historic_Flows!G63,IF(Spec_Pg!$B$17=2,'2035CT_Flows'!G63,NA())) -> 4895.098633 | AG57: =IF(Spec_Pg!$B$17=1,Historic_Flows!H63,IF(Spec_Pg!$B$17=2,'2035CT_Flows'!H63,NA())) -> 4906.316895 | AH57: 357.9565217 | AI57: =IF(Spec_Pg!$B$17=1,Historic_Flows!I63,IF(Spec_Pg!$B$17=2,'2035CT_Flows'!I63,NA())) -> 4939.773926 | AJ57: =IF(Spec_Pg!$B$17=1,Historic_Flows!J63,IF(Spec_Pg!$B$17=2,'2035CT_Flows'!J63,NA())) -> 4915.185547 | AK57: =IF(Spec_Pg!$B$17=1,Historic_Flows!K63,IF(Spec_Pg!$B$17=2,'2035CT_Flows'!K63,NA())) -> 4959.990234 | AL57: =IF(Spec_Pg!$B$17=1,Historic_Flows!L63,IF(Spec_Pg!$B$17=2,'2035CT_Flows'!L63,NA())) -> 0 | AM57: =IF(Spec_Pg!$B$17=1,Historic_Flows!O63,IF(Spec_Pg!$B$17=2,'2035CT_Flows'!O63,NA())) -> 7797 | AN57: 0 | AO57: 7797 | AP57: 8800 | AQ57: 9072.857143 | AR57: 10186.66667 | AS57: =IF(Spec_Pg!$B$17=1,Available_Flow_Data!AC60,IF(Spec_Pg!$B$17=2,'2035CT_Flows'!P63,NA())) -> 3437 | AT57: 3305.071429 | AU57: =IF(Spec_Pg!$B$17=1,Historic_Flows!M63,IF(Spec_Pg!$B$17=2,'2035CT_Flows'!M63,NA())) -> 32 | AV57: =IF(Spec_Pg!$B$17=1,Historic_Flows!N63,IF(Spec_Pg!$B$17=2,'2035CT_Flows'!N63,NA())) -> 32 | AW57: 88.1 | AX57: =Available_Flow_Data!AD60 -> Balance | AZ57: 6571.4 | BB57: 1266
A58: 2008-11-21 | B58: 2008 | C58: 11 | D58: 21 | E58: =Available_Flow_Data!AB61 -> 0 | F58: =Available_Flow_Data!AA61 -> 0 | G58: =Available_Flow_Data!Z61 -> 0 | R58: 0 | S58: 0 | T58: 0 | X58: 60 | Y58: 3.24000001 | Z58: =IF(Spec_Pg!$B$17=1,Historic_Flows!B64,IF(Spec_Pg!$B$17=2,'2035CT_Flows'!B64,NA())) -> 4383.912598 | AA58: 4387.152598 | AB58: =IF(Spec_Pg!$B$17=1,Historic_Flows!C64,IF(Spec_Pg!$B$17=2,'2035CT_Flows'!C64,NA())) -> 4363.48584 | AC58: =IF(Spec_Pg!$B$17=1,Historic_Flows!D64,IF(Spec_Pg!$B$17=2,'2035CT_Flows'!D64,NA())) -> 4392.987793 | AD58: =IF(Spec_Pg!$B$17=1,Historic_Flows!E64,IF(Spec_Pg!$B$17=2,'2035CT_Flows'!E64,NA())) -> 4692.611816 | AE58: =IF(Spec_Pg!$B$17=1,Historic_Flows!F64,IF(Spec_Pg!$B$17=2,'2035CT_Flows'!F64,NA())) -> 4705.860352 | AF58: =IF(Spec_Pg!$B$17=1,Historic_Flows!G64,IF(Spec_Pg!$B$17=2,'2035CT_Flows'!G64,NA())) -> 4744.733887 | AG58: =IF(Spec_Pg!$B$17=1,Historic_Flows!H64,IF(Spec_Pg!$B$17=2,'2035CT_Flows'!H64,NA())) -> 4772.491211 | AH58: 476.0952381 | AI58: =IF(Spec_Pg!$B$17=1,Historic_Flows!I64,IF(Spec_Pg!$B$17=2,'2035CT_Flows'!I64,NA())) -> 4822.203613 | AJ58: =IF(Spec_Pg!$B$17=1,Historic_Flows!J64,IF(Spec_Pg!$B$17=2,'2035CT_Flows'!J64,NA())) -> 4798.130371 | AK58: =IF(Spec_Pg!$B$17=1,Historic_Flows!K64,IF(Spec_Pg!$B$17=2,'2035CT_Flows'!K64,NA())) -> 4836.759277 | AL58: =IF(Spec_Pg!$B$17=1,Historic_Flows!L64,IF(Spec_Pg!$B$17=2,'2035CT_Flows'!L64,NA())) -> 0 | AM58: =IF(Spec_Pg!$B$17=1,Historic_Flows!O64,IF(Spec_Pg!$B$17=2,'2035CT_Flows'!O64,NA())) -> 7601 | AN58: 0 | AO58: 7601 | AP58: 8410 | AQ58: 8928.571429 | AR58: 9854 | AS58: =IF(Spec_Pg!$B$17=1,Available_Flow_Data!AC61,IF(Spec_Pg!$B$17=2,'2035CT_Flows'!P64,NA())) -> 3086 | AT58: 3085 | AU58: =IF(Spec_Pg!$B$17=1,Historic_Flows!M64,IF(Spec_Pg!$B$17=2,'2035CT_Flows'!M64,NA())) -> 33 | AV58: =IF(Spec_Pg!$B$17=1,Historic_Flows!N64,IF(Spec_Pg!$B$17=2,'2035CT_Flows'!N64,NA())) -> 32.75 | AW58: 88.23 | AX58: =Available_Flow_Data!AD61 -> Balance | AZ58: 6384.6 | BB58: 1266
A59: 2008-11-22 | B59: 2008 | C59: 11 | D59: 22 | E59: =Available_Flow_Data!AB62 -> 0 | F59: =Available_Flow_Data!AA62 -> 0 | G59: =Available_Flow_Data!Z62 -> 0 | R59: 0 | S59: 0 | T59: 0 | X59: 60 | Y59: 3.24000001 | Z59: =IF(Spec_Pg!$B$17=1,Historic_Flows!B65,IF(Spec_Pg!$B$17=2,'2035CT_Flows'!B65,NA())) -> 4333.056152 | AA59: 4336.296152 | AB59: =IF(Spec_Pg!$B$17=1,Historic_Flows!C65,IF(Spec_Pg!$B$17=2,'2035CT_Flows'!C65,NA())) -> 4316.273926 | AC59: =IF(Spec_Pg!$B$17=1,Historic_Flows!D65,IF(Spec_Pg!$B$17=2,'2035CT_Flows'!D65,NA())) -> 4336.494141 | AD59: =IF(Spec_Pg!$B$17=1,Historic_Flows!E65,IF(Spec_Pg!$B$17=2,'2035CT_Flows'!E65,NA())) -> 4606.955566 | AE59: =IF(Spec_Pg!$B$17=1,Historic_Flows!F65,IF(Spec_Pg!$B$17=2,'2035CT_Flows'!F65,NA())) -> 4610.36377 | AF59: =IF(Spec_Pg!$B$17=1,Historic_Flows!G65,IF(Spec_Pg!$B$17=2,'2035CT_Flows'!G65,NA())) -> 4605.476562 | AG59: =IF(Spec_Pg!$B$17=1,Historic_Flows!H65,IF(Spec_Pg!$B$17=2,'2035CT_Flows'!H65,NA())) -> 4631.183594 | AH59: 499.1052632 | AI59: =IF(Spec_Pg!$B$17=1,Historic_Flows!I65,IF(Spec_Pg!$B$17=2,'2035CT_Flows'!I65,NA())) -> 4685.412109 | AJ59: =IF(Spec_Pg!$B$17=1,Historic_Flows!J65,IF(Spec_Pg!$B$17=2,'2035CT_Flows'!J65,NA())) -> 4667.481934 | AK59: =IF(Spec_Pg!$B$17=1,Historic_Flows!K65,IF(Spec_Pg!$B$17=2,'2035CT_Flows'!K65,NA())) -> 4709.038086 | AL59: =IF(Spec_Pg!$B$17=1,Historic_Flows!L65,IF(Spec_Pg!$B$17=2,'2035CT_Flows'!L65,NA())) -> 0 | AM59: =IF(Spec_Pg!$B$17=1,Historic_Flows!O65,IF(Spec_Pg!$B$17=2,'2035CT_Flows'!O65,NA())) -> 7483 | AN59: 0 | AO59: 7483 | AP59: 7970 | AQ59: 8728.571429 | AR59: 9538.666667 | AS59: =IF(Spec_Pg!$B$17=1,Available_Flow_Data!AC62,IF(Spec_Pg!$B$17=2,'2035CT_Flows'!P65,NA())) -> 2672 | AT59: 3002.714286 | AU59: =IF(Spec_Pg!$B$17=1,Historic_Flows!M65,IF(Spec_Pg!$B$17=2,'2035CT_Flows'!M65,NA())) -> 37 | AV59: =IF(Spec_Pg!$B$17=1,Historic_Flows!N65,IF(Spec_Pg!$B$17=2,'2035CT_Flows'!N65,NA())) -> 36 | AW59: 88.44 | AX59: =Available_Flow_Data!AD62 -> Balance | AZ59: 6265.5 | BB59: 1266
A60: 2008-11-23 | B60: 2008 | C60: 11 | D60: 23 | E60: =Available_Flow_Data!AB63 -> 0 | F60: =Available_Flow_Data!AA63 -> 0 | G60: =Available_Flow_Data!Z63 -> 0 | R60: 0 | S60: 0 | T60: 0 | X60: 60 | Y60: 3.339999914 | Z60: =IF(Spec_Pg!$B$17=1,Historic_Flows!B66,IF(Spec_Pg!$B$17=2,'2035CT_Flows'!B66,NA())) -> 4292.762207 | AA60: 4296.102207 | AB60: =IF(Spec_Pg!$B$17=1,Historic_Flows!C66,IF(Spec_Pg!$B$17=2,'2035CT_Flows'!C66,NA())) -> 4273.432617 | AC60: =IF(Spec_Pg!$B$17=1,Historic_Flows!D66,IF(Spec_Pg!$B$17=2,'2035CT_Flows'!D66,NA())) -> 4300.005371 | AD60: =IF(Spec_Pg!$B$17=1,Historic_Flows!E66,IF(Spec_Pg!$B$17=2,'2035CT_Flows'!E66,NA())) -> 4585.726562 | AE60: =IF(Spec_Pg!$B$17=1,Historic_Flows!F66,IF(Spec_Pg!$B$17=2,'2035CT_Flows'!F66,NA())) -> 4600.626465 | AF60: =IF(Spec_Pg!$B$17=1,Historic_Flows!G66,IF(Spec_Pg!$B$17=2,'2035CT_Flows'!G66,NA())) -> 4557.927246 | AG60: =IF(Spec_Pg!$B$17=1,Historic_Flows!H66,IF(Spec_Pg!$B$17=2,'2035CT_Flows'!H66,NA())) -> 4566.705078 | AH60: 491.7916667 | AI60: =IF(Spec_Pg!$B$17=1,Historic_Flows!I66,IF(Spec_Pg!$B$17=2,'2035CT_Flows'!I66,NA())) -> 4594.273926 | AJ60: =IF(Spec_Pg!$B$17=1,Historic_Flows!J66,IF(Spec_Pg!$B$17=2,'2035CT_Flows'!J66,NA())) -> 4563.642578 | AK60: =IF(Spec_Pg!$B$17=1,Historic_Flows!K66,IF(Spec_Pg!$B$17=2,'2035CT_Flows'!K66,NA())) -> 4598.930176 | AL60: =IF(Spec_Pg!$B$17=1,Historic_Flows!L66,IF(Spec_Pg!$B$17=2,'2035CT_Flows'!L66,NA())) -> 0 | AM60: =IF(Spec_Pg!$B$17=1,Historic_Flows!O66,IF(Spec_Pg!$B$17=2,'2035CT_Flows'!O66,NA())) -> 7370 | AN60: 0 | AO60: 7370 | AP60: 7760 | AQ60: 8505.714286 | AR60: 9302.666667 | AS60: =IF(Spec_Pg!$B$17=1,Available_Flow_Data!AC63,IF(Spec_Pg!$B$17=2,'2035CT_Flows'!P66,NA())) -> 3057 | AT60: 2942.142857 | AU60: =IF(Spec_Pg!$B$17=1,Historic_Flows!M66,IF(Spec_Pg!$B$17=2,'2035CT_Flows'!M66,NA())) -> 27 | AV60: =IF(Spec_Pg!$B$17=1,Historic_Flows!N66,IF(Spec_Pg!$B$17=2,'2035CT_Flows'!N66,NA())) -> 29.5 | AW60: 88.55 | AX60: =Available_Flow_Data!AD63 -> Balance | AZ60: 6146.8 | BB60: 1266
A61: 2008-11-24 | B61: 2008 | C61: 11 | D61: 24 | E61: =Available_Flow_Data!AB64 -> 0 | F61: =Available_Flow_Data!AA64 -> 0 | G61: =Available_Flow_Data!Z64 -> 0 | R61: 0 | S61: 0 | T61: 0 | X61: 60 | Y61: 3.289999962 | Z61: =IF(Spec_Pg!$B$17=1,Historic_Flows!B67,IF(Spec_Pg!$B$17=2,'2035CT_Flows'!B67,NA())) -> 4293.006836 | AA61: 4296.296836 | AB61: =IF(Spec_Pg!$B$17=1,Historic_Flows!C67,IF(Spec_Pg!$B$17=2,'2035CT_Flows'!C67,NA())) -> 4278.550781 | AC61: =IF(Spec_Pg!$B$17=1,Historic_Flows!D67,IF(Spec_Pg!$B$17=2,'2035CT_Flows'!D67,NA())) -> 4293.522461 | AD61: =IF(Spec_Pg!$B$17=1,Historic_Flows!E67,IF(Spec_Pg!$B$17=2,'2035CT_Flows'!E67,NA())) -> 4556.347168 | AE61: =IF(Spec_Pg!$B$17=1,Historic_Flows!F67,IF(Spec_Pg!$B$17=2,'2035CT_Flows'!F67,NA())) -> 4559.90625 | AF61: =IF(Spec_Pg!$B$17=1,Historic_Flows!G67,IF(Spec_Pg!$B$17=2,'2035CT_Flows'!G67,NA())) -> 4518.702148 | AG61: =IF(Spec_Pg!$B$17=1,Historic_Flows!H67,IF(Spec_Pg!$B$17=2,'2035CT_Flows'!H67,NA())) -> 4525.943359 | AH61: 505.0454545 | AI61: =IF(Spec_Pg!$B$17=1,Historic_Flows!I67,IF(Spec_Pg!$B$17=2,'2035CT_Flows'!I67,NA())) -> 4542.536621 | AJ61: =IF(Spec_Pg!$B$17=1,Historic_Flows!J67,IF(Spec_Pg!$B$17=2,'2035CT_Flows'!J67,NA())) -> 4500.586426 | AK61: =IF(Spec_Pg!$B$17=1,Historic_Flows!K67,IF(Spec_Pg!$B$17=2,'2035CT_Flows'!K67,NA())) -> 4526.451172 | AL61: =IF(Spec_Pg!$B$17=1,Historic_Flows!L67,IF(Spec_Pg!$B$17=2,'2035CT_Flows'!L67,NA())) -> 0 | AM61: =IF(Spec_Pg!$B$17=1,Historic_Flows!O67,IF(Spec_Pg!$B$17=2,'2035CT_Flows'!O67,NA())) -> 7374 | AN61: 0 | AO61: 7374 | AP61: 7160 | AQ61: 8204.285714 | AR61: 9046.666667 | AS61: =IF(Spec_Pg!$B$17=1,Available_Flow_Data!AC64,IF(Spec_Pg!$B$17=2,'2035CT_Flows'!P67,NA())) -> 2541 | AT61: 2823.714286 | AU61: =IF(Spec_Pg!$B$17=1,Historic_Flows!M67,IF(Spec_Pg!$B$17=2,'2035CT_Flows'!M67,NA())) -> 27 | AV61: =IF(Spec_Pg!$B$17=1,Historic_Flows!N67,IF(Spec_Pg!$B$17=2,'2035CT_Flows'!N67,NA())) -> 27 | AW61: 88.78 | AX61: =Available_Flow_Data!AD64 -> Balance | AZ61: 6177.3 | BB61: 1266
